Workbook

Sheet Notes
A1: SwamiCharts.xlsm
A2: Coded 2012-Jan-14 by Ronald McAllister (rpmac_xltt@sprynet.com)
A3: For use in the Traders Tips area of "Technical Analysis of Stocks and Commodities" magazine.
A6: This Workbook demonstrates an EXCEL version of the ideas presented
A7: by John Ehlers and Ric Way in an article titled "Introducing SwamiCharts"
A8: which appears in the March 2012 issue of
A9: "Technical Analysis of Stocks and Commodities" magazine.
A11: Data for this EXCEL Traders Tip example was retrieved from Yahoo Finance.
A13: Price history for the S&P 500 index can be retrieved from Yahoo Finance: http://finance.yahoo.com
A14: The Yahoo Finance symbol for the S&P 500 as used here is "SPY".
A15: Select "Historical Prices" from the left margin. Then go to the bottom of the page and click "Download to Spreadsheet"
A16: Note: The resulting .csv file is in date-descending sequence (most recent first) and may be used in this spread sheet with out sorting.
A18: Development Notes:
A19: 1 | C19: This workbook contains and uses VBA macros.
A20: 2 | C20: This workbook was built on EXCEL 2010. The Surface chart, as used here for the "HeatMap", does not function properly in EXCEL 2003 (OFFICE XP).
B21: A. | C21: My appologies to those who do not have access to EXCEL 2007 or EXCEL 2010. I simply ran out of time to figure out the compatibility issues.
B22: B | C22: In all cases you will need to enable / allow macro processing when you open the spreadsheet, or the Green Buttons will not work for you.
C23: Alter A11 to "Pan" backwards and forwards in time and A12 to "Zoom" in or out. Then click the Green button to adjust the chart to match your settings
C24: Play with it:
C25: Want to "Back Test" your eye? Set A11 to 100 and click the Green button. Decide what you think will happen next based on the charts and indicators
C26: and then step the charts forward one day in time by subtracting 1 from the value in A11 (99, 98, 97, …) and clicking the green button.
A28: 4 | C28: Input Data
B29: A. | C29: The data in this workbook is sorted date descending (most recent date at the top) and the formulas are built accordingly.
B31: B. | C31: I have had a number of inquiries regarding adding data to previous EXCEL based Traders Tips.
C32: In previous versions, adding/changing data was problematic because the formulas were coded in the same rows as the input data and were
C33: inextricably tied to the input data locations and to each other.
C34: In this workbook I have taken steps to facilitate your ability to alter the input data by isolating the calculations from the input data as much as possible.
C35: You may freely add data rows to the InputPriceData worksheet at the top, bottom, middle of the data section. Or you may completely replace the data detail rows, as long as
C36: you do not disturb the headings in row 10 or the computations in cells B7:C7. Do update the symbol and name in InputPriceData cell B2 if you change securities.
C37: The CalculationsAndCharts worksheet obtains it's data from the InputPriceData worksheet using OFFSET references relative to the headings in row 10.
A39: Calculation and Chart Worksheet Usage Comments:
A40: 1 | C40: In General, Items in Bolded BLUE are items you may freely change to play what-if games.
C41: Be sure to have a backup copy of the spreadsheet before you alter anything else.
A42: 2 | C42: Data windowing can be performed by changing cell A11. Positive values logically "Pan" the data window represented by the Calculation sheet down the input sheet and back in time.
C43: This can have two side effects: First, data may fall outside of the fixed Y-axis scales and be clipped or fall well inside the Y-axis scales wasting a lot of chart vertical space.
C44: Second, you may move far enough back that you do not have sufficient data points to fill the left of the chart.
A45: 3 | C45: The VBA macros behind the Green button address these Data Windowing problems and also resizes and vertically aligns all charts on the work sheet to match the Price chart
C46: and then horizontally adjusts the X-axis positions of all charts on the work sheet so that the corresponding data points align vertically.
C47: The macros behind the green button are sensitive to the user control values in cells A11 and A12, and also uses the computed values in cells A8, F11, and F12
A49: Chart Notes:
A50: 1 | C50: The charts presented here attempt to replicate charts in Figure 1 from the article.
A51: 2 | C51: Price Data plotted on primary axis as candlesticks
A52: 3 | C52: Indicator lines plotted on the price chart are plotted against the secondary axis.
A53: 4 | C53: All data plotted in reverse order to get dates/times to read ascending left to right.
A54: 5 | C54: VBA macros invoked by the green button force the primary and secondary y-axis ranges to be identical
C55: The secondary x-, and y- axes are forced to the same range as the primaries and not displayed in the interest of chart clutter reduction.
A57: Definitions and readings:
B58: EMA - Exponential Moving Average | H58: http://en.wikipedia.org/wiki/Moving_average
B59: MACD - Moving Average Convergence/Divergence | H59: http://en.wikipedia.org/wiki/MACD

Sheet DevNotes4HeatMaps
A1: 2012JAN13 - Ronald McAllister; rpmac_xltt@sprynet.com
B3: I took my first cut at what the Swami Charts article calls a "Heat Map" in August of 2011 when a reader asked if I had a working Excel example of Corona Charts as described
B4: in Mr. Ehlers' "Corona Charts" article which appeared in the November 2008 issue of S&C magazine.
B5: I looked at using a VBA macro to set the color of individual bars on a stacked bar chart. The result produced a reasonable Corona, but was extremely compute bound and therefore
B6: SLOW!!!. It took several minutes to render a graph for a 60 row by 200 column array of color values. (Start the VBA, go for coffee, drink same, go back for doughnut and second cup…)
B7: When the Swami Charts article came to my attention I took another look at the built in chart types available in EXCEL and decided to try the Contour type of Surface Chart.
B8: A simple test example showed that while there is a slight pause between changes to the data table, and EXCEL rendering the matching contour chart,
B9: it is more like time for a couple of sips of the coffee. This time increases slightly as one increases the number of contour levels but remains reasonable.
A11: The code provided in the article Easy Language side bar calculates an indicator value (Stochastic in the example) for each data point and then scales that
A12: value into a set of RGB color component values which are then used as input to the Easy Language PLOT command for the data point.
A14: Using an EXCEL Contour chart, we separate this into two distinct parts.
A15: The first part is to tell the graphics engine about the Contour Chart parameters: the data value range and contour step size, and then calculate and set colors
A16: for the contour bands based on the step values. Unless we change our mind on the step sizes, or the color calculation formulas, we never have to deal with
A17: color values again for the life of this chart.
A18: The second part only needs to concern itself with calculating the point values of our indicator. We can leave the assignment of point colors to
A19: the graphics engine, which will map the indicator values into the bands and colors we established in part one. This means that dynamic data windowing
A20: will be properly reflected in the heat chart as soon as EXCEL completes the required sheet and workbook recalculations to establish the revised indicator values.
A21: And, we always see the indicator value in our data tables, not a color value, so we can use the indicator value for other calculations or plots if we so choose.
A23: There are several items to be aware of with the Contour Chart approach.
A24: > First, we give up the finer (over 16-million) gradations of 24-bit color specification available to the Easy Language PLOT command, in exchange
A25: for a user determined, but fixed number of value bands / 24-bit color steps. I have chosen to use 100 color steps in this example to minimize visual banding.
A26: One can most certainly use more than 100 steps but there is a diminishing return effect based on what your monitor (and eye) can actually differentiate vs Time to Render.
A27: > Second, while it is relatively easy to manually set the contour scale values, it is tedious to calculate and set the colors for a hundred or more contours. So I have included a button
A28: controlled VBA macro to perform this task. See one of the "Colors4" tab for detailed instructions.
A29: > Third, the visual vertical size of a surface chart is not under our direct control and we can not control it through VBA. The more horizontal points in the plot, the shorter the vertical dimension appears.
A30: One source I found on the internet suggests doubling up, or even tripling individual data lines on the chart as an approach to artificially increase the visual vertical size.
A31: > Fourth, any adjacent value transitions that cross more than one contour value will have edges that show the colors of the contour boundaries that were crossed. In the
A32: Stochastics example, if two adjacent values are 0 and 1, the chart will show a full red to full green transition with a narrow and predominantly yellow transition band between.
A33: This visual artifact is not present in either the Easy Language point value PLOTing approach nor my stacked bar coloring approach.
A34: Since our indicator values typically do not change quite that abruptly, this side effect should not be too intrusive in most instances.

Sheet InputPriceData
A1: SPDR S&P 500 (SPY)-NYSEArca
B7: =COUNTA(B11:B8457) -> 1011 | C7: Available Input Data Rows | F7: From | G7: =OFFSET(B10,B7,0,1,1) -> 2008-01-10
F8: To | G8: =B11 -> 2012-01-12
A10: RelRow | B10: Date | C10: Open | D10: High | E10: Low | F10: Close | G10: Volume | H10: Adj Close
A11: 1 | B11: 2012-01-12 | C11: 129.57 | D11: 129.7 | E11: 128.54 | F11: 129.51 | G11: 118706100 | H11: 129.51
A12: 2 | B12: 2012-01-11 | C12: 128.73 | D12: 129.37 | E12: 128.52 | F12: 129.2 | G12: 111540700 | H12: 129.2
A13: 3 | B13: 2012-01-10 | C13: 129.39 | D13: 129.65 | E13: 128.95 | F13: 129.13 | G13: 115282000 | H13: 129.13
A14: 4 | B14: 2012-01-09 | C14: 128 | D14: 128.18 | E14: 127.41 | F14: 128.02 | G14: 99530200 | H14: 128.02
A15: 5 | B15: 2012-01-06 | C15: 128.2 | D15: 128.22 | E15: 127.29 | F15: 127.71 | G15: 148050000 | H15: 127.71
A16: 6 | B16: 2012-01-05 | C16: 127.01 | D16: 128.23 | E16: 126.43 | F16: 128.04 | G16: 173895000 | H16: 128.04
A17: 7 | B17: 2012-01-04 | C17: 127.2 | D17: 127.81 | E17: 126.71 | F17: 127.7 | G17: 127186500 | H17: 127.7
A18: 8 | B18: 2012-01-03 | C18: 127.76 | D18: 128.38 | E18: 127.43 | F18: 127.5 | G18: 193697900 | H18: 127.5
A19: 9 | B19: 2011-12-30 | C19: 126.02 | D19: 126.33 | E19: 125.5 | F19: 125.5 | G19: 95599000 | H19: 125.5
A20: 10 | B20: 2011-12-29 | C20: 125.24 | D20: 126.25 | E20: 124.86 | F20: 126.12 | G20: 123507200 | H20: 126.12
A21: 11 | B21: 2011-12-28 | C21: 126.51 | D21: 126.53 | E21: 124.73 | F21: 124.83 | G21: 119107100 | H21: 124.83
A22: 12 | B22: 2011-12-27 | C22: 126.17 | D22: 126.82 | E22: 126.06 | F22: 126.49 | G22: 86075700 | H22: 126.49
A23: 13 | B23: 2011-12-23 | C23: 125.67 | D23: 126.43 | E23: 125.41 | F23: 126.39 | G23: 92187200 | H23: 126.39
A24: 14 | B24: 2011-12-22 | C24: 124.63 | D24: 125.4 | E24: 124.23 | F24: 125.27 | G24: 119465400 | H24: 125.27
A25: 15 | B25: 2011-12-21 | C25: 123.93 | D25: 124.36 | E25: 122.75 | F25: 124.17 | G25: 194230900 | H25: 124.17
A26: 16 | B26: 2011-12-20 | C26: 122.18 | D26: 124.14 | E26: 120.37 | F26: 123.93 | G26: 225418100 | H26: 123.93
A27: 17 | B27: 2011-12-19 | C27: 122.06 | D27: 122.32 | E27: 120.03 | F27: 120.29 | G27: 183903000 | H27: 120.29
A28: 18 | B28: 2011-12-16 | C28: 122.23 | D28: 122.95 | E28: 121.3 | F28: 121.59 | G28: 220481400 | H28: 121.59
A29: 19 | B29: 2011-12-15 | C29: 122.25 | D29: 122.42 | E29: 121.22 | F29: 121.41 | G29: 199109200 | H29: 121.41
A30: 20 | B30: 2011-12-14 | C30: 121.78 | D30: 122.25 | E30: 120.7 | F30: 120.97 | G30: 238618800 | H30: 120.97
A31: 21 | B31: 2011-12-13 | C31: 124.07 | D31: 124.77 | E31: 121.67 | F31: 122.27 | G31: 245159800 | H31: 122.27
A32: 22 | B32: 2011-12-12 | C32: 124.17 | D32: 124.19 | E32: 122.39 | F32: 123.43 | G32: 215826100 | H32: 123.43
A33: 23 | B33: 2011-12-09 | C33: 123.73 | D33: 125.58 | E33: 123.62 | F33: 125.26 | G33: 209111400 | H33: 125.26
A34: 24 | B34: 2011-12-08 | C34: 125.11 | D34: 125.39 | E34: 122.87 | F34: 123.17 | G34: 240862800 | H34: 123.17
A35: 25 | B35: 2011-12-07 | C35: 125.05 | D35: 126.46 | E35: 124.18 | F35: 125.93 | G35: 237802500 | H35: 125.93
A36: 26 | B36: 2011-12-06 | C36: 125.41 | D36: 126.3 | E36: 124.96 | F36: 125.46 | G36: 178842100 | H36: 125.46
A37: 27 | B37: 2011-12-05 | C37: 126.04 | D37: 126.37 | E37: 124.64 | F37: 125.42 | G37: 225263900 | H37: 125.42
A38: 28 | B38: 2011-12-02 | C38: 125.32 | D38: 125.7 | E38: 123.99 | F38: 124.07 | G38: 221109700 | H38: 124.07
A39: 29 | B39: 2011-12-01 | C39: 124.06 | D39: 124.85 | E39: 123.64 | F39: 124.18 | G39: 176954800 | H39: 124.18
A40: 30 | B40: 2011-11-30 | C40: 122.71 | D40: 124.43 | E40: 119.24 | F40: 124.2 | G40: 324439500 | H40: 124.2
A41: 31 | B41: 2011-11-29 | C41: 119.29 | D41: 120.23 | E41: 118.85 | F41: 119.29 | G41: 199241500 | H41: 119.29
A42: 32 | B42: 2011-11-28 | C42: 118.79 | D42: 119.43 | E42: 118.08 | F42: 118.96 | G42: 210686000 | H42: 118.96
A43: 33 | B43: 2011-11-25 | C43: 115.65 | D43: 116.96 | E43: 115.47 | F43: 115.61 | G43: 99557000 | H43: 115.61
A44: 34 | B44: 2011-11-23 | C44: 117.33 | D44: 118.44 | E44: 115.83 | F44: 115.83 | G44: 224329100 | H44: 115.83
A45: 35 | B45: 2011-11-22 | C45: 118.65 | D45: 119.34 | E45: 117.77 | F45: 118.44 | G45: 216494900 | H45: 118.44
A46: 36 | B46: 2011-11-21 | C46: 119.45 | D46: 119.6 | E46: 117.91 | F46: 118.91 | G46: 229611600 | H46: 118.91
A47: 37 | B47: 2011-11-18 | C47: 121.73 | D47: 121.98 | E47: 120.7 | F47: 121.21 | G47: 215580400 | H47: 121.21
A48: 38 | B48: 2011-11-17 | C48: 123.07 | D48: 123.38 | E48: 120.47 | F48: 121.34 | G48: 331219600 | H48: 121.34
A49: 39 | B49: 2011-11-16 | C49: 124.03 | D49: 125.55 | E49: 123.12 | F49: 123.3 | G49: 235782500 | H49: 123.3
A50: 40 | B50: 2011-11-15 | C50: 124.39 | D50: 125.96 | E50: 123.94 | F50: 125.29 | G50: 184709400 | H50: 125.29
A51: 41 | B51: 2011-11-14 | C51: 125.4 | D51: 126.65 | E51: 124.13 | F51: 124.67 | G51: 159258300 | H51: 124.67
A52: 42 | B52: 2011-11-11 | C52: 125.04 | D52: 126.19 | E52: 125 | F52: 125.86 | G52: 189924400 | H52: 125.86
A53: 43 | B53: 2011-11-10 | C53: 124.01 | D53: 124.16 | E53: 122.25 | F53: 123.54 | G53: 231866500 | H53: 123.54
A54: 44 | B54: 2011-11-09 | C54: 124.1 | D54: 125 | E54: 122.08 | F54: 122.38 | G54: 337982000 | H54: 122.38
A55: 45 | B55: 2011-11-08 | C55: 126.12 | D55: 127.21 | E55: 124.91 | F55: 127.07 | G55: 224426300 | H55: 127.07
A56: 46 | B56: 2011-11-07 | C56: 124.6 | D56: 125.59 | E56: 123.41 | F56: 125.46 | G56: 196617200 | H56: 125.46
A57: 47 | B57: 2011-11-04 | C57: 124.44 | D57: 124.91 | E57: 123.23 | F57: 124.69 | G57: 249401600 | H57: 124.69
A58: 48 | B58: 2011-11-03 | C58: 124.48 | D58: 125.7 | E58: 122.82 | F58: 125.45 | G58: 291174800 | H58: 125.45
A59: 49 | B59: 2011-11-02 | C59: 123.05 | D59: 123.62 | E59: 122.02 | F59: 123.21 | G59: 245529400 | H59: 123.21
A60: 50 | B60: 2011-11-01 | C60: 121.26 | D60: 122.73 | E60: 120.75 | F60: 121.23 | G60: 416565800 | H60: 121.23
A61: 51 | B61: 2011-10-31 | C61: 126.36 | D61: 127.81 | E61: 124.53 | F61: 124.71 | G61: 228146700 | H61: 124.71
A62: 52 | B62: 2011-10-28 | C62: 127.19 | D62: 128.04 | E62: 127 | F62: 127.79 | G62: 225906500 | H62: 127.79
A63: 53 | B63: 2011-10-27 | C63: 126.83 | D63: 128.61 | E63: 125.81 | F63: 127.82 | G63: 393220200 | H63: 127.82
A64: 54 | B64: 2011-10-26 | C64: 123.57 | D64: 123.99 | E64: 121.44 | F64: 123.52 | G64: 289053800 | H64: 123.52
A65: 55 | B65: 2011-10-25 | C65: 124.1 | D65: 124.16 | E65: 122 | F65: 122.27 | G65: 268596800 | H65: 122.27
A66: 56 | B66: 2011-10-24 | C66: 123.39 | D66: 125.01 | E66: 123.28 | F66: 124.7 | G66: 203215600 | H66: 124.7
A67: 57 | B67: 2011-10-21 | C67: 122.32 | D67: 123.34 | E67: 121.95 | F67: 123.19 | G67: 278999400 | H67: 123.19
A68: 58 | B68: 2011-10-20 | C68: 120.66 | D68: 121.33 | E68: 119.06 | F68: 120.89 | G68: 262075600 | H68: 120.89
A69: 59 | B69: 2011-10-19 | C69: 121.61 | D69: 122.31 | E69: 119.95 | F69: 120.37 | G69: 226601300 | H69: 120.37
A70: 60 | B70: 2011-10-18 | C70: 119.39 | D70: 122.72 | E70: 118.45 | F70: 121.81 | G70: 318857900 | H70: 121.81
A71: 61 | B71: 2011-10-17 | C71: 121.22 | D71: 121.78 | E71: 119.17 | F71: 119.47 | G71: 202311600 | H71: 119.47
A72: 62 | B72: 2011-10-14 | C72: 121.14 | D72: 121.83 | E72: 120.47 | F72: 121.8 | G72: 211397600 | H72: 121.8
A73: 63 | B73: 2011-10-13 | C73: 119.28 | D73: 120.11 | E73: 118.37 | F73: 119.75 | G73: 212159600 | H73: 119.75
A74: 64 | B74: 2011-10-12 | C74: 119.84 | D74: 121.37 | E74: 119.57 | F74: 119.99 | G74: 281544900 | H74: 119.99
A75: 65 | B75: 2011-10-11 | C75: 118.13 | D75: 119.29 | E75: 118.01 | F75: 118.95 | G75: 209088000 | H75: 118.95
A76: 66 | B76: 2011-10-10 | C76: 116.94 | D76: 118.88 | E76: 116.93 | F76: 118.83 | G76: 230666300 | H76: 118.83
A77: 67 | B77: 2011-10-07 | C77: 116.43 | D77: 116.51 | E77: 114.33 | F77: 114.98 | G77: 312657900 | H77: 114.98
A78: 68 | B78: 2011-10-06 | C78: 113.64 | D78: 115.93 | E78: 112.8 | F78: 115.76 | G78: 257800800 | H78: 115.76
A79: 69 | B79: 2011-10-05 | C79: 111.91 | D79: 114 | E79: 110.88 | F79: 113.7 | G79: 284108000 | H79: 113.7
A80: 70 | B80: 2011-10-04 | C80: 107.67 | D80: 111.87 | E80: 106.75 | F80: 111.63 | G80: 459177500 | H80: 111.63
A81: 71 | B81: 2011-10-03 | C81: 111.78 | D81: 113.23 | E81: 109.12 | F81: 109.24 | G81: 365136800 | H81: 109.24
A82: 72 | B82: 2011-09-30 | C82: 113.73 | D82: 114.73 | E82: 112.36 | F82: 112.44 | G82: 288392300 | H82: 112.44
A83: 73 | B83: 2011-09-29 | C83: 116.31 | D83: 116.89 | E83: 113.21 | F83: 115.32 | G83: 298108900 | H83: 115.32
A84: 74 | B84: 2011-09-28 | C84: 117.03 | D84: 117.74 | E84: 114.24 | F84: 114.41 | G84: 286696800 | H84: 114.41
A85: 75 | B85: 2011-09-27 | C85: 117.78 | D85: 118.81 | E85: 116.1 | F85: 116.8 | G85: 311753900 | H85: 116.8
A86: 76 | B86: 2011-09-26 | C86: 113.89 | D86: 115.67 | E86: 112.27 | F86: 115.51 | G86: 260673700 | H86: 115.51
A87: 77 | B87: 2011-09-23 | C87: 111.4 | D87: 113.44 | E87: 111.31 | F87: 112.82 | G87: 307242500 | H87: 112.82
A88: 78 | B88: 2011-09-22 | C88: 112.54 | D88: 113.49 | E88: 110.6 | F88: 112.15 | G88: 513911300 | H88: 112.15
A89: 79 | B89: 2011-09-21 | C89: 119.47 | D89: 119.83 | E89: 115.7 | F89: 115.89 | G89: 316251300 | H89: 115.89
A90: 80 | B90: 2011-09-20 | C90: 120.06 | D90: 121.22 | E90: 119.25 | F90: 119.41 | G90: 218932200 | H90: 119.41
A91: 81 | B91: 2011-09-19 | C91: 118.77 | D91: 120.17 | E91: 117.97 | F91: 119.55 | G91: 241517000 | H91: 119.55
A92: 82 | B92: 2011-09-16 | C92: 120.52 | D92: 121.2 | E92: 119.56 | F92: 120.75 | G92: 284528300 | H92: 120.75
A93: 83 | B93: 2011-09-15 | C93: 119.27 | D93: 120.08 | E93: 118.03 | F93: 120.04 | G93: 326777200 | H93: 120.04
A94: 84 | B94: 2011-09-14 | C94: 116.99 | D94: 119.42 | E94: 115.39 | F94: 118.01 | G94: 319389500 | H94: 118.01
A95: 85 | B95: 2011-09-13 | C95: 115.72 | D95: 116.83 | E95: 114.9 | F95: 116.4 | G95: 272514700 | H95: 116.4
A96: 86 | B96: 2011-09-12 | C96: 113.17 | D96: 115.43 | E96: 112.75 | F96: 115.34 | G96: 305793500 | H96: 115.34
A97: 87 | B97: 2011-09-09 | C97: 116.34 | D97: 117.7 | E97: 113.97 | F97: 114.6 | G97: 380195100 | H97: 114.6
A98: 88 | B98: 2011-09-08 | C98: 118.2 | D98: 119.56 | E98: 117.41 | F98: 117.68 | G98: 250568200 | H98: 117.68
A99: 89 | B99: 2011-09-07 | C99: 117.41 | D99: 118.97 | E99: 117.01 | F99: 118.92 | G99: 209803200 | H99: 118.92
A100: 90 | B100: 2011-09-06 | C100: 113.08 | D100: 115.82 | E100: 113.07 | F100: 115.65 | G100: 285130500 | H100: 115.65
A101: 91 | B101: 2011-09-02 | C101: 117.06 | D101: 119.49 | E101: 116.08 | F101: 116.5 | G101: 255517200 | H101: 116.5
A102: 92 | B102: 2011-09-01 | C102: 120.89 | D102: 121.99 | E102: 119.4 | F102: 119.56 | G102: 254585900 | H102: 119.56
A103: 93 | B103: 2011-08-31 | C103: 121.06 | D103: 122.1 | E103: 119.91 | F103: 120.82 | G103: 301828400 | H103: 120.82
A104: 94 | B104: 2011-08-30 | C104: 119.45 | D104: 121.03 | E104: 117.9 | F104: 120.29 | G104: 241315700 | H104: 120.29
A105: 95 | B105: 2011-08-29 | C105: 118.19 | D105: 120.04 | E105: 116.71 | F105: 119.97 | G105: 190977200 | H105: 119.97
A106: 96 | B106: 2011-08-26 | C106: 114.37 | D106: 117.15 | E106: 112.55 | F106: 116.62 | G106: 314495900 | H106: 116.62
A107: 97 | B107: 2011-08-25 | C107: 117.37 | D107: 118.03 | E107: 114.54 | F107: 114.95 | G107: 312365400 | H107: 114.95
A108: 98 | B108: 2011-08-24 | C108: 114.86 | D108: 116.89 | E108: 114.59 | F108: 116.73 | G108: 246869700 | H108: 116.73
A109: 99 | B109: 2011-08-23 | C109: 111.86 | D109: 115.24 | E109: 111.29 | F109: 115.11 | G109: 331136600 | H109: 115.11
A110: 100 | B110: 2011-08-22 | C110: 113.85 | D110: 113.91 | E110: 111.12 | F110: 111.44 | G110: 275090600 | H110: 111.44
A111: 101 | B111: 2011-08-19 | C111: 111.67 | D111: 114.55 | E111: 111.21 | F111: 111.35 | G111: 428281300 | H111: 111.35
A112: 102 | B112: 2011-08-18 | C112: 115.17 | D112: 118.34 | E112: 112.09 | F112: 113.2 | G112: 512956300 | H112: 113.2
A113: 103 | B113: 2011-08-17 | C113: 118.87 | D113: 119.81 | E113: 117.36 | F113: 118.3 | G113: 238201100 | H113: 118.3
A114: 104 | B114: 2011-08-16 | C114: 118.1 | D114: 119.31 | E114: 116.95 | F114: 118.22 | G114: 294095200 | H114: 118.22
A115: 105 | B115: 2011-08-15 | C115: 117.83 | D115: 119.36 | E115: 117.64 | F115: 119.24 | G115: 258810600 | H115: 119.24
A116: 106 | B116: 2011-08-12 | C116: 117.05 | D116: 117.85 | E116: 115.94 | F116: 116.77 | G116: 313731600 | H116: 116.77
A117: 107 | B117: 2011-08-11 | C117: 111.97 | D117: 117.56 | E117: 111.04 | F117: 115.99 | G117: 487979700 | H117: 115.99
A118: 108 | B118: 2011-08-10 | C118: 113.95 | D118: 114.95 | E118: 110.67 | F118: 111.01 | G118: 662607400 | H118: 111.01
A119: 109 | B119: 2011-08-09 | C119: 112.77 | D119: 116.3 | E119: 109.01 | F119: 116.14 | G119: 717828700 | H119: 116.14
A120: 110 | B120: 2011-08-08 | C120: 115.58 | D120: 118.75 | E120: 110.74 | F120: 110.98 | G120: 702263900 | H120: 110.98
A121: 111 | B121: 2011-08-05 | C121: 120.37 | D121: 120.68 | E121: 115.53 | F121: 118.71 | G121: 655619200 | H121: 118.71
A122: 112 | B122: 2011-08-04 | C122: 123 | D122: 123.2 | E122: 118.69 | F122: 118.89 | G122: 520721800 | H122: 118.89
A123: 113 | B123: 2011-08-03 | C123: 124.23 | D123: 124.87 | E123: 122.12 | F123: 124.73 | G123: 370830800 | H123: 124.73
A124: 114 | B124: 2011-08-02 | C124: 126.35 | D124: 127.04 | E124: 124.06 | F124: 124.06 | G124: 346653800 | H124: 124.06
A125: 115 | B125: 2011-08-01 | C125: 129.35 | D125: 129.47 | E125: 126.07 | F125: 127.31 | G125: 325790900 | H125: 127.31
A126: 116 | B126: 2011-07-29 | C126: 127.43 | D126: 129.06 | E126: 126.51 | F126: 127.85 | G126: 307038400 | H126: 127.85
A127: 117 | B127: 2011-07-28 | C127: 129.11 | D127: 130.26 | E127: 128.52 | F127: 128.73 | G127: 207939900 | H127: 128.73
A128: 118 | B128: 2011-07-27 | C128: 131.08 | D128: 131.12 | E128: 128.94 | F128: 129.11 | G128: 249020100 | H128: 129.11
A129: 119 | B129: 2011-07-26 | C129: 132.22 | D129: 132.43 | E129: 131.51 | F129: 131.81 | G129: 131278200 | H129: 131.81
A130: 120 | B130: 2011-07-25 | C130: 131.78 | D130: 132.95 | E130: 131.64 | F130: 132.3 | G130: 136653800 | H130: 132.3
A131: 121 | B131: 2011-07-22 | C131: 132.98 | D131: 133.18 | E131: 132.23 | F131: 133.04 | G131: 126019400 | H131: 133.04
A132: 122 | B132: 2011-07-21 | C132: 131.87 | D132: 133.28 | E132: 131.15 | F132: 132.95 | G132: 245246300 | H132: 132.95
A133: 123 | B133: 2011-07-20 | C133: 131.56 | D133: 131.63 | E133: 130.91 | F133: 131.14 | G133: 137145400 | H133: 131.14
A134: 124 | B134: 2011-07-19 | C134: 129.84 | D134: 131.37 | E134: 129.81 | F134: 131.21 | G134: 166554900 | H134: 131.21
A135: 125 | B135: 2011-07-18 | C135: 129.58 | D135: 129.78 | E135: 128.15 | F135: 129.12 | G135: 196872100 | H135: 129.12
A136: 126 | B136: 2011-07-15 | C136: 130.16 | D136: 130.37 | E136: 129.28 | F136: 130.19 | G136: 220012800 | H136: 130.19
A137: 127 | B137: 2011-07-14 | C137: 130.67 | D137: 131.27 | E137: 129.19 | F137: 129.44 | G137: 226111800 | H137: 129.44
A138: 128 | B138: 2011-07-13 | C138: 130.58 | D138: 131.69 | E138: 130.01 | F138: 130.33 | G138: 204062600 | H138: 130.33
A139: 129 | B139: 2011-07-12 | C139: 130.19 | D139: 131.26 | E139: 129.86 | F139: 129.9 | G139: 214675700 | H139: 129.9
A140: 130 | B140: 2011-07-11 | C140: 131.23 | D140: 131.66 | E140: 130.15 | F140: 130.46 | G140: 195918600 | H140: 130.46
A141: 131 | B141: 2011-07-08 | C141: 132.31 | D141: 133.82 | E141: 131.87 | F141: 132.87 | G141: 194171500 | H141: 132.87
A142: 132 | B142: 2011-07-07 | C142: 133.61 | D142: 134.15 | E142: 133.34 | F142: 133.81 | G142: 170464200 | H142: 133.81
A143: 133 | B143: 2011-07-06 | C143: 131.97 | D143: 132.61 | E143: 131.59 | F143: 132.44 | G143: 143331600 | H143: 132.44
A144: 134 | B144: 2011-07-05 | C144: 132.25 | D144: 132.55 | E144: 131.86 | F144: 132.28 | G144: 165936000 | H144: 132.28
A145: 135 | B145: 2011-07-01 | C145: 130.58 | D145: 132.57 | E145: 130.27 | F145: 132.39 | G145: 202385700 | H145: 132.39
A146: 136 | B146: 2011-06-30 | C146: 129.64 | D146: 130.67 | E146: 129.21 | F146: 130.46 | G146: 223496600 | H146: 130.46
A147: 137 | B147: 2011-06-29 | C147: 128.72 | D147: 129.44 | E147: 128.15 | F147: 129.23 | G147: 244295500 | H147: 129.23
A148: 138 | B148: 2011-06-28 | C148: 126.98 | D148: 128.15 | E148: 126.81 | F148: 128.13 | G148: 165556300 | H148: 128.13
A149: 139 | B149: 2011-06-27 | C149: 125.44 | D149: 126.96 | E149: 125.19 | F149: 126.48 | G149: 168904700 | H149: 126.48
A150: 140 | B150: 2011-06-24 | C150: 126.8 | D150: 126.9 | E150: 125.17 | F150: 125.36 | G150: 226129300 | H150: 125.36
A151: 141 | B151: 2011-06-23 | C151: 125.71 | D151: 127.18 | E151: 124.75 | F151: 126.84 | G151: 334286500 | H151: 126.84
A152: 142 | B152: 2011-06-22 | C152: 127.58 | D152: 128.33 | E152: 127.12 | F152: 127.2 | G152: 176703000 | H152: 127.2
A153: 143 | B153: 2011-06-21 | C153: 126.89 | D153: 128.22 | E153: 126.29 | F153: 127.97 | G153: 193157300 | H153: 127.97
A154: 144 | B154: 2011-06-20 | C154: 125.17 | D154: 126.51 | E154: 125.13 | F154: 126.24 | G154: 159479000 | H154: 126.24
A155: 145 | B155: 2011-06-17 | C155: 126.47 | D155: 126.48 | E155: 125.17 | F155: 125.6 | G155: 233284900 | H155: 125.6
A156: 146 | B156: 2011-06-16 | C156: 124.99 | D156: 125.89 | E156: 124.27 | F156: 125.23 | G156: 308032800 | H156: 125.23
A157: 147 | B157: 2011-06-15 | C157: 126.15 | D157: 127.19 | E157: 124.62 | F157: 124.95 | G157: 300958000 | H157: 124.95
A158: 148 | B158: 2011-06-14 | C158: 126.77 | D158: 127.65 | E158: 126.72 | F158: 127.21 | G158: 160570400 | H158: 127.21
A159: 149 | B159: 2011-06-13 | C159: 125.81 | D159: 126.15 | E159: 124.98 | F159: 125.62 | G159: 207599800 | H159: 125.62
A160: 150 | B160: 2011-06-10 | C160: 126.75 | D160: 126.83 | E160: 125.19 | F160: 125.52 | G160: 238629400 | H160: 125.52
A161: 151 | B161: 2011-06-09 | C161: 126.67 | D161: 127.81 | E161: 126.37 | F161: 127.29 | G161: 160964400 | H161: 127.29
A162: 152 | B162: 2011-06-08 | C162: 126.66 | D162: 127.09 | E162: 126.09 | F162: 126.33 | G162: 198696400 | H162: 126.33
A163: 153 | B163: 2011-06-07 | C163: 127.59 | D163: 127.95 | E163: 126.75 | F163: 126.86 | G163: 161660500 | H163: 126.86
A164: 154 | B164: 2011-06-06 | C164: 127.97 | D164: 128.24 | E164: 126.77 | F164: 126.94 | G164: 179951200 | H164: 126.94
A165: 155 | B165: 2011-06-03 | C165: 128.02 | D165: 129.27 | E165: 127.96 | F165: 128.29 | G165: 234690200 | H165: 128.29
A166: 156 | B166: 2011-06-02 | C166: 129.81 | D166: 130.08 | E166: 128.82 | F166: 129.58 | G166: 200466800 | H166: 129.58
A167: 157 | B167: 2011-06-01 | C167: 132.32 | D167: 132.72 | E167: 129.61 | F167: 129.72 | G167: 233094300 | H167: 129.72
A168: 158 | B168: 2011-05-31 | C168: 132.57 | D168: 132.72 | E168: 131.66 | F168: 132.7 | G168: 164731200 | H168: 132.7
A169: 159 | B169: 2011-05-27 | C169: 131.19 | D169: 131.68 | E169: 130.79 | F169: 131.33 | G169: 120921900 | H169: 131.33
A170: 160 | B170: 2011-05-26 | C170: 129.88 | D170: 131.07 | E170: 129.63 | F170: 130.83 | G170: 164850000 | H170: 130.83
A171: 161 | B171: 2011-05-25 | C171: 130.23 | D171: 130.77 | E171: 129.24 | F171: 130.23 | G171: 151050100 | H171: 130.23
A172: 162 | B172: 2011-05-24 | C172: 130.28 | D172: 130.57 | E172: 129.55 | F172: 129.8 | G172: 147199600 | H172: 129.8
A173: 163 | B173: 2011-05-23 | C173: 129.83 | D173: 130.56 | E173: 129.45 | F173: 129.91 | G173: 168700000 | H173: 129.91
A174: 164 | B174: 2011-05-20 | C174: 132.14 | D174: 132.48 | E174: 131.18 | F174: 131.43 | G174: 182594900 | H174: 131.43
A175: 165 | B175: 2011-05-19 | C175: 132.61 | D175: 132.83 | E175: 131.76 | F175: 132.49 | G175: 119489500 | H175: 132.49
A176: 166 | B176: 2011-05-18 | C176: 131.07 | D176: 132.31 | E176: 130.78 | F176: 132.17 | G176: 135217900 | H176: 132.17
A177: 167 | B177: 2011-05-17 | C177: 130.53 | D177: 131.18 | E177: 129.97 | F177: 131 | G177: 192686200 | H177: 131
A178: 168 | B178: 2011-05-16 | C178: 131.38 | D178: 132.42 | E178: 130.8 | F178: 131.02 | G178: 141675400 | H178: 131.02
A179: 169 | B179: 2011-05-13 | C179: 132.95 | D179: 133.14 | E179: 131.39 | F179: 131.86 | G179: 157444900 | H179: 131.86
A180: 170 | B180: 2011-05-12 | C180: 131.9 | D180: 133.16 | E180: 131.22 | F180: 132.88 | G180: 171550700 | H180: 132.88
A181: 171 | B181: 2011-05-11 | C181: 133.46 | D181: 133.48 | E181: 131.64 | F181: 132.25 | G181: 193564200 | H181: 132.25
A182: 172 | B182: 2011-05-10 | C182: 132.97 | D182: 133.9 | E182: 132.8 | F182: 133.66 | G182: 114806900 | H182: 133.66
A183: 173 | B183: 2011-05-09 | C183: 132 | D183: 132.9 | E183: 131.79 | F183: 132.52 | G183: 114104500 | H183: 132.52
A184: 174 | B184: 2011-05-06 | C184: 132.74 | D184: 133.42 | E184: 131.5 | F184: 132.01 | G184: 222787200 | H184: 132.01
A185: 175 | B185: 2011-05-05 | C185: 131.89 | D185: 132.75 | E185: 130.85 | F185: 131.43 | G185: 226900000 | H185: 131.43
A186: 176 | B186: 2011-05-04 | C186: 133.46 | D186: 133.52 | E186: 132.04 | F186: 132.63 | G186: 182678500 | H186: 132.63
A187: 177 | B187: 2011-05-03 | C187: 133.75 | D187: 133.97 | E187: 132.84 | F187: 133.52 | G187: 138375000 | H187: 133.52
A188: 178 | B188: 2011-05-02 | C188: 134.84 | D188: 134.94 | E188: 133.73 | F188: 134 | G188: 126278700 | H188: 134
A189: 179 | B189: 2011-04-29 | C189: 133.94 | D189: 134.35 | E189: 133.77 | F189: 134.21 | G189: 115094100 | H189: 134.21
A190: 180 | B190: 2011-04-28 | C190: 133.22 | D190: 134.07 | E190: 133.2 | F190: 133.89 | G190: 124791100 | H190: 133.89
A191: 181 | B191: 2011-04-27 | C191: 132.85 | D191: 133.66 | E191: 132.31 | F191: 133.46 | G191: 143031000 | H191: 133.46
A192: 182 | B192: 2011-04-26 | C192: 131.86 | D192: 132.86 | E192: 131.72 | F192: 132.59 | G192: 146600000 | H192: 132.59
A193: 183 | B193: 2011-04-25 | C193: 131.5 | D193: 131.68 | E193: 131.03 | F193: 131.46 | G193: 65757100 | H193: 131.46
A194: 184 | B194: 2011-04-21 | C194: 131.61 | D194: 131.66 | E194: 130.93 | F194: 131.6 | G194: 135935400 | H194: 131.6
A195: 185 | B195: 2011-04-20 | C195: 130.71 | D195: 131.22 | E195: 130.63 | F195: 130.93 | G195: 156133800 | H195: 130.93
A196: 186 | B196: 2011-04-19 | C196: 128.63 | D196: 129.21 | E196: 128.31 | F196: 129.17 | G196: 124258800 | H196: 129.17
A197: 187 | B197: 2011-04-18 | C197: 128.46 | D197: 129.88 | E197: 127.4 | F197: 128.43 | G197: 210759300 | H197: 128.43
A198: 188 | B198: 2011-04-15 | C198: 129.65 | D198: 130.21 | E198: 129.27 | F198: 129.89 | G198: 170006700 | H198: 129.89
A199: 189 | B199: 2011-04-14 | C199: 128.57 | D199: 129.62 | E199: 128.15 | F199: 129.42 | G199: 161220400 | H199: 129.42
A200: 190 | B200: 2011-04-13 | C200: 129.93 | D200: 130.03 | E200: 128.83 | F200: 129.32 | G200: 162059000 | H200: 129.32
A201: 191 | B201: 2011-04-12 | C201: 129.58 | D201: 129.83 | E201: 128.86 | F201: 129.33 | G201: 161187400 | H201: 129.33
A202: 192 | B202: 2011-04-11 | C202: 130.83 | D202: 131.27 | E202: 129.99 | F202: 130.3 | G202: 121385400 | H202: 130.3
A203: 193 | B203: 2011-04-08 | C203: 131.73 | D203: 131.81 | E203: 130.16 | F203: 130.7 | G203: 147945400 | H203: 130.7
A204: 194 | B204: 2011-04-07 | C204: 131.25 | D204: 131.8 | E204: 130.5 | F204: 131.15 | G204: 170731500 | H204: 131.15
A205: 195 | B205: 2011-04-06 | C205: 131.7 | D205: 131.81 | E205: 130.95 | F205: 131.48 | G205: 120411600 | H205: 131.48
A206: 196 | B206: 2011-04-05 | C206: 130.83 | D206: 131.65 | E206: 130.77 | F206: 131.07 | G206: 120966600 | H206: 131.07
... 815 more rows

Sheet CalculationsAndCharts
A1: Put/Call Ratio Indicators
B2: Price Data: | C2: =InputPriceData!A1 -> SPDR S&P 500 (SPY)-NYSEArca
A4: User Charting Controls
A5: Data Control
A6: =InputPriceData!$B$7 -> 1011 | B6: Available Input Data Rows | E6: Earliest: | F6: =OFFSET(InputPriceData!B10,CalculationsAndCharts!A6,0,1,1) -> 2008-01-10
E7: Latest: | F7: =InputPriceData!B11 -> 2012-01-12
A8: =MIN(A6-A11,COUNTA(B33:B9993)) -> 586 | B8: Logically Available for Calc / Plot
A10: Price Chart Windowing Controls | F10: Y-axis Range
A11: 0 | B11: Input Data Offset (Pan) | E11: Max High+ | F11: =CEILING(MAX(OFFSET($E$33,0,0,$A$12,1)),1)+1 -> 136
A12: 253 | B12: Data Points to Plot (Zoom) | E12: Min Low- | F12: =FLOOR(MIN(OFFSET($F$33,0,0,$A$12,1)),1)-1 -> 105
B13: First: | C13: =OFFSET(B32,A12,0,1,1) -> 2011-01-12
B14: Last: | C14: =B33 -> 2012-01-12
A16: MACD: EMA Coeficient Calculations
B17: Period | C17: Alpha | D17: 1_Alpha
A18: Fast(X): | B18: 12 | C18: =2/(1+B18) -> 0.1538461538 | D18: =1-C18 -> 0.8461538462
A19: Slow(Y): | B19: 26 | C19: =2/(1+B19) -> 0.07407407407 | D19: =1-C19 -> 0.9259259259
A20: Signal: | B20: 9 | C20: =2/(1+B20) -> 0.2 | D20: =1-C20 -> 0.8
A22: Help! I would like to plot data | D22: Chart Windowing values to use
B23: From | C23: 2010-10-28 | D23: =OFFSET(InputPriceData!$A$10,MATCH(C23,OFFSET(InputPriceData!$B$11,0,0,InputPriceData!$B$7,1),0),0,1,1)-D24 -> 253 | E23: ==> for Points to Plot
B24: To | C24: 2011-10-27 | D24: =OFFSET(InputPriceData!$A$10,MATCH(C24,OFFSET(InputPriceData!$B$11,0,0,InputPriceData!$B$7,1),0),0,1,1)-1 -> 52 | E24: ==> for Offset
A31: Rel Row | H31: Swami Stochastics | J31: For Look back periods
B32: Date | C32: Volume | D32: Open | E32: High | F32: Low | G32: Close | H32: 4 | I32: 5 | J32: 6 | K32: 7 | L32: 8 | M32: 9 | N32: 10 | O32: 11 | P32: 12 | Q32: 13 | R32: 14 | S32: 15 | T32: 16 | U32: 17 | V32: 18 | W32: 19 | X32: 20 | Y32: 21 | Z32: 22 | AA32: 23 | AB32: 24 | AC32: 25 | AD32: 26 | AE32: 27 | AF32: 28 | AG32: 29 | AH32: 30 | AI32: 31 | AJ32: 32 | AK32: 33 | AL32: 34 | AM32: 35 | AN32: 36 | AO32: 37 | AP32: 38 | AQ32: 39 | AR32: 40 | AS32: 41 | AT32: 42 | AU32: 43 | AV32: 44 | AW32: 45 | AX32: 46 | AY32: 47 | AZ32: 48 | BA32: 4 | BB32: 5 | BC32: 6 | BD32: 7 | BE32: 8 | BF32: 9 | BG32: 10 | BH32: 11 | BI32: 12 | BJ32: 13 | BK32: 14 | BL32: 15 | BM32: 16 | BN32: 17 | BO32: 18 | BP32: 19 | BQ32: 20 | BR32: 21 | BS32: 22 | BT32: 23 | BU32: 24 | BV32: 25 | BW32: 26 | BX32: 27 | BY32: 28 | BZ32: 29 | CA32: 30 | CB32: 31 | CC32: 32 | CD32: 33 | CE32: 34 | CF32: 35 | CG32: 36 | CH32: 37 | CI32: 38 | CJ32: 39 | CK32: 40 | CL32: 41 | CM32: 42 | CN32: 43 | CO32: 44 | CP32: 45 | CQ32: 46 | CR32: 47 | CS32: 48
A33: 1 | B33: =OFFSET(InputPriceData!B$10,CalculationsAndCharts!$A33+$A$11,0,1,1) -> 2012-01-12 | C33: =OFFSET(InputPriceData!G$10,CalculationsAndCharts!$A33+$A$11,0,1,1) -> 118706100 | D33: =OFFSET(InputPriceData!C$10,CalculationsAndCharts!$A33+$A$11,0,1,1) -> 129.57 | E33: =OFFSET(InputPriceData!D$10,CalculationsAndCharts!$A33+$A$11,0,1,1) -> 129.7 | F33: =OFFSET(InputPriceData!E$10,CalculationsAndCharts!$A33+$A$11,0,1,1) -> 128.54 | G33: =OFFSET(InputPriceData!F$10,CalculationsAndCharts!$A33+$A$11,0,1,1) -> 129.51 | H33: =OFFSET(StochasticsSwamiVersion!$C$10,CalculationsAndCharts!$A33+$A$11,(H$32-4)*3+2,1,1) -> 0.8921750045 | I33: =OFFSET(StochasticsSwamiVersion!$C$10,CalculationsAndCharts!$A33+$A$11,(I$32-4)*3+2,1,1) -> 0.9093464032 | J33: =OFFSET(StochasticsSwamiVersion!$C$10,CalculationsAndCharts!$A33+$A$11,(J$32-4)*3+2,1,1) -> 0.9201420522 | K33: =OFFSET(StochasticsSwamiVersion!$C$10,CalculationsAndCharts!$A33+$A$11,(K$32-4)*3+2,1,1) -> 0.9289600296 | L33: =OFFSET(StochasticsSwamiVersion!$C$10,CalculationsAndCharts!$A33+$A$11,(L$32-4)*3+2,1,1) -> 0.9343047314 | M33: =OFFSET(StochasticsSwamiVersion!$C$10,CalculationsAndCharts!$A33+$A$11,(M$32-4)*3+2,1,1) -> 0.9375489788 | N33: =OFFSET(StochasticsSwamiVersion!$C$10,CalculationsAndCharts!$A33+$A$11,(N$32-4)*3+2,1,1) -> 0.9408675246 | O33: =OFFSET(StochasticsSwamiVersion!$C$10,CalculationsAndCharts!$A33+$A$11,(O$32-4)*3+2,1,1) -> 0.9433182318 | P33: =OFFSET(StochasticsSwamiVersion!$C$10,CalculationsAndCharts!$A33+$A$11,(P$32-4)*3+2,1,1) -> 0.944862496 | Q33: =OFFSET(StochasticsSwamiVersion!$C$10,CalculationsAndCharts!$A33+$A$11,(Q$32-4)*3+2,1,1) -> 0.94792008 | R33: =OFFSET(StochasticsSwamiVersion!$C$10,CalculationsAndCharts!$A33+$A$11,(R$32-4)*3+2,1,1) -> 0.9506619212 | S33: =OFFSET(StochasticsSwamiVersion!$C$10,CalculationsAndCharts!$A33+$A$11,(S$32-4)*3+2,1,1) -> 0.9527722339 | T33: =OFFSET(StochasticsSwamiVersion!$C$10,CalculationsAndCharts!$A33+$A$11,(T$32-4)*3+2,1,1) -> 0.9546895621 | U33: =OFFSET(StochasticsSwamiVersion!$C$10,CalculationsAndCharts!$A33+$A$11,(U$32-4)*3+2,1,1) -> 0.9564316829 | V33: =OFFSET(StochasticsSwamiVersion!$C$10,CalculationsAndCharts!$A33+$A$11,(V$32-4)*3+2,1,1) -> 0.9578447642 | W33: =OFFSET(StochasticsSwamiVersion!$C$10,CalculationsAndCharts!$A33+$A$11,(W$32-4)*3+2,1,1) -> 0.9590175059 | X33: =OFFSET(StochasticsSwamiVersion!$C$10,CalculationsAndCharts!$A33+$A$11,(X$32-4)*3+2,1,1) -> 0.9600213604 | Y33: =OFFSET(StochasticsSwamiVersion!$C$10,CalculationsAndCharts!$A33+$A$11,(Y$32-4)*3+2,1,1) -> 0.9610333663 | Z33: =OFFSET(StochasticsSwamiVersion!$C$10,CalculationsAndCharts!$A33+$A$11,(Z$32-4)*3+2,1,1) -> 0.9620857302 | AA33: =OFFSET(StochasticsSwamiVersion!$C$10,CalculationsAndCharts!$A33+$A$11,(AA$32-4)*3+2,1,1) -> 0.9632936396 | AB33: =OFFSET(StochasticsSwamiVersion!$C$10,CalculationsAndCharts!$A33+$A$11,(AB$32-4)*3+2,1,1) -> 0.9642379529 | AC33: =OFFSET(StochasticsSwamiVersion!$C$10,CalculationsAndCharts!$A33+$A$11,(AC$32-4)*3+2,1,1) -> 0.9650107428 | AD33: =OFFSET(StochasticsSwamiVersion!$C$10,CalculationsAndCharts!$A33+$A$11,(AD$32-4)*3+2,1,1) -> 0.965408642 | AE33: =OFFSET(StochasticsSwamiVersion!$C$10,CalculationsAndCharts!$A33+$A$11,(AE$32-4)*3+2,1,1) -> 0.9656314422 | AF33: =OFFSET(StochasticsSwamiVersion!$C$10,CalculationsAndCharts!$A33+$A$11,(AF$32-4)*3+2,1,1) -> 0.9656716399 | AG33: =OFFSET(StochasticsSwamiVersion!$C$10,CalculationsAndCharts!$A33+$A$11,(AG$32-4)*3+2,1,1) -> 0.9655653622 | AH33: =OFFSET(StochasticsSwamiVersion!$C$10,CalculationsAndCharts!$A33+$A$11,(AH$32-4)*3+2,1,1) -> 0.9650505297 | AI33: =OFFSET(StochasticsSwamiVersion!$C$10,CalculationsAndCharts!$A33+$A$11,(AI$32-4)*3+2,1,1) -> 0.9641454348 | AJ33: =OFFSET(StochasticsSwamiVersion!$C$10,CalculationsAndCharts!$A33+$A$11,(AJ$32-4)*3+2,1,1) -> 0.9628396996 | AK33: =OFFSET(StochasticsSwamiVersion!$C$10,CalculationsAndCharts!$A33+$A$11,(AK$32-4)*3+2,1,1) -> 0.9617751796 | AL33: =OFFSET(StochasticsSwamiVersion!$C$10,CalculationsAndCharts!$A33+$A$11,(AL$32-4)*3+2,1,1) -> 0.9605567445 | AM33: =OFFSET(StochasticsSwamiVersion!$C$10,CalculationsAndCharts!$A33+$A$11,(AM$32-4)*3+2,1,1) -> 0.959048597 | AN33: =OFFSET(StochasticsSwamiVersion!$C$10,CalculationsAndCharts!$A33+$A$11,(AN$32-4)*3+2,1,1) -> 0.9571417946 | AO33: =OFFSET(StochasticsSwamiVersion!$C$10,CalculationsAndCharts!$A33+$A$11,(AO$32-4)*3+2,1,1) -> 0.9547392294 | AP33: =OFFSET(StochasticsSwamiVersion!$C$10,CalculationsAndCharts!$A33+$A$11,(AP$32-4)*3+2,1,1) -> 0.9542357821 | AQ33: =OFFSET(StochasticsSwamiVersion!$C$10,CalculationsAndCharts!$A33+$A$11,(AQ$32-4)*3+2,1,1) -> 0.9535456122 | AR33: =OFFSET(StochasticsSwamiVersion!$C$10,CalculationsAndCharts!$A33+$A$11,(AR$32-4)*3+2,1,1) -> 0.9526237024 | AS33: =OFFSET(StochasticsSwamiVersion!$C$10,CalculationsAndCharts!$A33+$A$11,(AS$32-4)*3+2,1,1) -> 0.9514394276 | AT33: =OFFSET(StochasticsSwamiVersion!$C$10,CalculationsAndCharts!$A33+$A$11,(AT$32-4)*3+2,1,1) -> 0.9499616862 | AU33: =OFFSET(StochasticsSwamiVersion!$C$10,CalculationsAndCharts!$A33+$A$11,(AU$32-4)*3+2,1,1) -> 0.9480800458 | AV33: =OFFSET(StochasticsSwamiVersion!$C$10,CalculationsAndCharts!$A33+$A$11,(AV$32-4)*3+2,1,1) -> 0.9457194153 | AW33: =OFFSET(StochasticsSwamiVersion!$C$10,CalculationsAndCharts!$A33+$A$11,(AW$32-4)*3+2,1,1) -> 0.9445204281 | AX33: =OFFSET(StochasticsSwamiVersion!$C$10,CalculationsAndCharts!$A33+$A$11,(AX$32-4)*3+2,1,1) -> 0.944084941 | AY33: =OFFSET(StochasticsSwamiVersion!$C$10,CalculationsAndCharts!$A33+$A$11,(AY$32-4)*3+2,1,1) -> 0.9441527365 | AZ33: =OFFSET(StochasticsSwamiVersion!$C$10,CalculationsAndCharts!$A33+$A$11,(AZ$32-4)*3+2,1,1) -> 0.9444629229
A34: 2 | B34: =OFFSET(InputPriceData!B$10,CalculationsAndCharts!$A34+$A$11,0,1,1) -> 2012-01-11 | C34: =OFFSET(InputPriceData!G$10,CalculationsAndCharts!$A34+$A$11,0,1,1) -> 111540700 | D34: =OFFSET(InputPriceData!C$10,CalculationsAndCharts!$A34+$A$11,0,1,1) -> 128.73 | E34: =OFFSET(InputPriceData!D$10,CalculationsAndCharts!$A34+$A$11,0,1,1) -> 129.37 | F34: =OFFSET(InputPriceData!E$10,CalculationsAndCharts!$A34+$A$11,0,1,1) -> 128.52 | G34: =OFFSET(InputPriceData!F$10,CalculationsAndCharts!$A34+$A$11,0,1,1) -> 129.2 | H34: =OFFSET(StochasticsSwamiVersion!$C$10,CalculationsAndCharts!$A34+$A$11,(H$32-4)*3+2,1,1) -> 0.8678281622 | I34: =OFFSET(StochasticsSwamiVersion!$C$10,CalculationsAndCharts!$A34+$A$11,(I$32-4)*3+2,1,1) -> 0.8889179472 | J34: =OFFSET(StochasticsSwamiVersion!$C$10,CalculationsAndCharts!$A34+$A$11,(J$32-4)*3+2,1,1) -> 0.9022114324 | K34: =OFFSET(StochasticsSwamiVersion!$C$10,CalculationsAndCharts!$A34+$A$11,(K$32-4)*3+2,1,1) -> 0.9129225692 | L34: =OFFSET(StochasticsSwamiVersion!$C$10,CalculationsAndCharts!$A34+$A$11,(L$32-4)*3+2,1,1) -> 0.9192047114 | M34: =OFFSET(StochasticsSwamiVersion!$C$10,CalculationsAndCharts!$A34+$A$11,(M$32-4)*3+2,1,1) -> 0.9228886163 | N34: =OFFSET(StochasticsSwamiVersion!$C$10,CalculationsAndCharts!$A34+$A$11,(N$32-4)*3+2,1,1) -> 0.9269921381 | O34: =OFFSET(StochasticsSwamiVersion!$C$10,CalculationsAndCharts!$A34+$A$11,(O$32-4)*3+2,1,1) -> 0.9299778366 | P34: =OFFSET(StochasticsSwamiVersion!$C$10,CalculationsAndCharts!$A34+$A$11,(P$32-4)*3+2,1,1) -> 0.9318911842 | Q34: =OFFSET(StochasticsSwamiVersion!$C$10,CalculationsAndCharts!$A34+$A$11,(Q$32-4)*3+2,1,1) -> 0.9356772519 | R34: =OFFSET(StochasticsSwamiVersion!$C$10,CalculationsAndCharts!$A34+$A$11,(R$32-4)*3+2,1,1) -> 0.9390414735 | S34: =OFFSET(StochasticsSwamiVersion!$C$10,CalculationsAndCharts!$A34+$A$11,(S$32-4)*3+2,1,1) -> 0.9415796349 | T34: =OFFSET(StochasticsSwamiVersion!$C$10,CalculationsAndCharts!$A34+$A$11,(T$32-4)*3+2,1,1) -> 0.9438869231 | U34: =OFFSET(StochasticsSwamiVersion!$C$10,CalculationsAndCharts!$A34+$A$11,(U$32-4)*3+2,1,1) -> 0.945957223 | V34: =OFFSET(StochasticsSwamiVersion!$C$10,CalculationsAndCharts!$A34+$A$11,(V$32-4)*3+2,1,1) -> 0.947723569 | W34: =OFFSET(StochasticsSwamiVersion!$C$10,CalculationsAndCharts!$A34+$A$11,(W$32-4)*3+2,1,1) -> 0.9491894848 | X34: =OFFSET(StochasticsSwamiVersion!$C$10,CalculationsAndCharts!$A34+$A$11,(X$32-4)*3+2,1,1) -> 0.9504442805 | Y34: =OFFSET(StochasticsSwamiVersion!$C$10,CalculationsAndCharts!$A34+$A$11,(Y$32-4)*3+2,1,1) -> 0.9517092431 | Z34: =OFFSET(StochasticsSwamiVersion!$C$10,CalculationsAndCharts!$A34+$A$11,(Z$32-4)*3+2,1,1) -> 0.9530246082 | AA34: =OFFSET(StochasticsSwamiVersion!$C$10,CalculationsAndCharts!$A34+$A$11,(AA$32-4)*3+2,1,1) -> 0.9545343155 | AB34: =OFFSET(StochasticsSwamiVersion!$C$10,CalculationsAndCharts!$A34+$A$11,(AB$32-4)*3+2,1,1) -> 0.9557143486 | AC34: =OFFSET(StochasticsSwamiVersion!$C$10,CalculationsAndCharts!$A34+$A$11,(AC$32-4)*3+2,1,1) -> 0.956679621 | AD34: =OFFSET(StochasticsSwamiVersion!$C$10,CalculationsAndCharts!$A34+$A$11,(AD$32-4)*3+2,1,1) -> 0.9571755725 | AE34: =OFFSET(StochasticsSwamiVersion!$C$10,CalculationsAndCharts!$A34+$A$11,(AE$32-4)*3+2,1,1) -> 0.9574512574 | AF34: =OFFSET(StochasticsSwamiVersion!$C$10,CalculationsAndCharts!$A34+$A$11,(AF$32-4)*3+2,1,1) -> 0.9574959894 | AG34: =OFFSET(StochasticsSwamiVersion!$C$10,CalculationsAndCharts!$A34+$A$11,(AG$32-4)*3+2,1,1) -> 0.9573525523 | AH34: =OFFSET(StochasticsSwamiVersion!$C$10,CalculationsAndCharts!$A34+$A$11,(AH$32-4)*3+2,1,1) -> 0.9566894383 | AI34: =OFFSET(StochasticsSwamiVersion!$C$10,CalculationsAndCharts!$A34+$A$11,(AI$32-4)*3+2,1,1) -> 0.9555243156 | AJ34: =OFFSET(StochasticsSwamiVersion!$C$10,CalculationsAndCharts!$A34+$A$11,(AJ$32-4)*3+2,1,1) -> 0.953864771 | AK34: =OFFSET(StochasticsSwamiVersion!$C$10,CalculationsAndCharts!$A34+$A$11,(AK$32-4)*3+2,1,1) -> 0.9524967905 | AL34: =OFFSET(StochasticsSwamiVersion!$C$10,CalculationsAndCharts!$A34+$A$11,(AL$32-4)*3+2,1,1) -> 0.9509763762 | AM34: =OFFSET(StochasticsSwamiVersion!$C$10,CalculationsAndCharts!$A34+$A$11,(AM$32-4)*3+2,1,1) -> 0.9490964507 | AN34: =OFFSET(StochasticsSwamiVersion!$C$10,CalculationsAndCharts!$A34+$A$11,(AN$32-4)*3+2,1,1) -> 0.9467234649 | AO34: =OFFSET(StochasticsSwamiVersion!$C$10,CalculationsAndCharts!$A34+$A$11,(AO$32-4)*3+2,1,1) -> 0.9437412902 | AP34: =OFFSET(StochasticsSwamiVersion!$C$10,CalculationsAndCharts!$A34+$A$11,(AP$32-4)*3+2,1,1) -> 0.9431123934 | AQ34: =OFFSET(StochasticsSwamiVersion!$C$10,CalculationsAndCharts!$A34+$A$11,(AQ$32-4)*3+2,1,1) -> 0.9422505057 | AR34: =OFFSET(StochasticsSwamiVersion!$C$10,CalculationsAndCharts!$A34+$A$11,(AR$32-4)*3+2,1,1) -> 0.9410997676 | AS34: =OFFSET(StochasticsSwamiVersion!$C$10,CalculationsAndCharts!$A34+$A$11,(AS$32-4)*3+2,1,1) -> 0.9396227227 | AT34: =OFFSET(StochasticsSwamiVersion!$C$10,CalculationsAndCharts!$A34+$A$11,(AT$32-4)*3+2,1,1) -> 0.9377821426 | AU34: =OFFSET(StochasticsSwamiVersion!$C$10,CalculationsAndCharts!$A34+$A$11,(AU$32-4)*3+2,1,1) -> 0.9354432844 | AV34: =OFFSET(StochasticsSwamiVersion!$C$10,CalculationsAndCharts!$A34+$A$11,(AV$32-4)*3+2,1,1) -> 0.9325188768 | AW34: =OFFSET(StochasticsSwamiVersion!$C$10,CalculationsAndCharts!$A34+$A$11,(AW$32-4)*3+2,1,1) -> 0.9310420325 | AX34: =OFFSET(StochasticsSwamiVersion!$C$10,CalculationsAndCharts!$A34+$A$11,(AX$32-4)*3+2,1,1) -> 0.930512743 | AY34: =OFFSET(StochasticsSwamiVersion!$C$10,CalculationsAndCharts!$A34+$A$11,(AY$32-4)*3+2,1,1) -> 0.9306017927 | AZ34: =OFFSET(StochasticsSwamiVersion!$C$10,CalculationsAndCharts!$A34+$A$11,(AZ$32-4)*3+2,1,1) -> 0.9309895256
A35: 3 | B35: =OFFSET(InputPriceData!B$10,CalculationsAndCharts!$A35+$A$11,0,1,1) -> 2012-01-10 | C35: =OFFSET(InputPriceData!G$10,CalculationsAndCharts!$A35+$A$11,0,1,1) -> 115282000 | D35: =OFFSET(InputPriceData!C$10,CalculationsAndCharts!$A35+$A$11,0,1,1) -> 129.39 | E35: =OFFSET(InputPriceData!D$10,CalculationsAndCharts!$A35+$A$11,0,1,1) -> 129.65 | F35: =OFFSET(InputPriceData!E$10,CalculationsAndCharts!$A35+$A$11,0,1,1) -> 128.95 | G35: =OFFSET(InputPriceData!F$10,CalculationsAndCharts!$A35+$A$11,0,1,1) -> 129.13 | H35: =OFFSET(StochasticsSwamiVersion!$C$10,CalculationsAndCharts!$A35+$A$11,(H$32-4)*3+2,1,1) -> 0.8403290738 | I35: =OFFSET(StochasticsSwamiVersion!$C$10,CalculationsAndCharts!$A35+$A$11,(I$32-4)*3+2,1,1) -> 0.8660830425 | J35: =OFFSET(StochasticsSwamiVersion!$C$10,CalculationsAndCharts!$A35+$A$11,(J$32-4)*3+2,1,1) -> 0.8818109281 | K35: =OFFSET(StochasticsSwamiVersion!$C$10,CalculationsAndCharts!$A35+$A$11,(K$32-4)*3+2,1,1) -> 0.8941393475 | L35: =OFFSET(StochasticsSwamiVersion!$C$10,CalculationsAndCharts!$A35+$A$11,(L$32-4)*3+2,1,1) -> 0.9010761941 | M35: =OFFSET(StochasticsSwamiVersion!$C$10,CalculationsAndCharts!$A35+$A$11,(M$32-4)*3+2,1,1) -> 0.905579324 | N35: =OFFSET(StochasticsSwamiVersion!$C$10,CalculationsAndCharts!$A35+$A$11,(N$32-4)*3+2,1,1) -> 0.9105258205 | O35: =OFFSET(StochasticsSwamiVersion!$C$10,CalculationsAndCharts!$A35+$A$11,(O$32-4)*3+2,1,1) -> 0.9142159703 | P35: =OFFSET(StochasticsSwamiVersion!$C$10,CalculationsAndCharts!$A35+$A$11,(P$32-4)*3+2,1,1) -> 0.9165296035 | Q35: =OFFSET(StochasticsSwamiVersion!$C$10,CalculationsAndCharts!$A35+$A$11,(Q$32-4)*3+2,1,1) -> 0.9211181476 | R35: =OFFSET(StochasticsSwamiVersion!$C$10,CalculationsAndCharts!$A35+$A$11,(R$32-4)*3+2,1,1) -> 0.9250990608 | S35: =OFFSET(StochasticsSwamiVersion!$C$10,CalculationsAndCharts!$A35+$A$11,(S$32-4)*3+2,1,1) -> 0.9280741259 | T35: =OFFSET(StochasticsSwamiVersion!$C$10,CalculationsAndCharts!$A35+$A$11,(T$32-4)*3+2,1,1) -> 0.9307250062 | U35: =OFFSET(StochasticsSwamiVersion!$C$10,CalculationsAndCharts!$A35+$A$11,(U$32-4)*3+2,1,1) -> 0.9333128691 | V35: =OFFSET(StochasticsSwamiVersion!$C$10,CalculationsAndCharts!$A35+$A$11,(V$32-4)*3+2,1,1) -> 0.9355207772 | W35: =OFFSET(StochasticsSwamiVersion!$C$10,CalculationsAndCharts!$A35+$A$11,(W$32-4)*3+2,1,1) -> 0.9373531232 | X35: =OFFSET(StochasticsSwamiVersion!$C$10,CalculationsAndCharts!$A35+$A$11,(X$32-4)*3+2,1,1) -> 0.9389215202 | Y35: =OFFSET(StochasticsSwamiVersion!$C$10,CalculationsAndCharts!$A35+$A$11,(Y$32-4)*3+2,1,1) -> 0.9405025281 | Z35: =OFFSET(StochasticsSwamiVersion!$C$10,CalculationsAndCharts!$A35+$A$11,(Z$32-4)*3+2,1,1) -> 0.942146344 | AA35: =OFFSET(StochasticsSwamiVersion!$C$10,CalculationsAndCharts!$A35+$A$11,(AA$32-4)*3+2,1,1) -> 0.9440326984 | AB35: =OFFSET(StochasticsSwamiVersion!$C$10,CalculationsAndCharts!$A35+$A$11,(AB$32-4)*3+2,1,1) -> 0.9455061847 | AC35: =OFFSET(StochasticsSwamiVersion!$C$10,CalculationsAndCharts!$A35+$A$11,(AC$32-4)*3+2,1,1) -> 0.9467096816 | AD35: =OFFSET(StochasticsSwamiVersion!$C$10,CalculationsAndCharts!$A35+$A$11,(AD$32-4)*3+2,1,1) -> 0.9473235007 | AE35: =OFFSET(StochasticsSwamiVersion!$C$10,CalculationsAndCharts!$A35+$A$11,(AE$32-4)*3+2,1,1) -> 0.9476561265 | AF35: =OFFSET(StochasticsSwamiVersion!$C$10,CalculationsAndCharts!$A35+$A$11,(AF$32-4)*3+2,1,1) -> 0.9476890714 | AG35: =OFFSET(StochasticsSwamiVersion!$C$10,CalculationsAndCharts!$A35+$A$11,(AG$32-4)*3+2,1,1) -> 0.9474674354 | AH35: =OFFSET(StochasticsSwamiVersion!$C$10,CalculationsAndCharts!$A35+$A$11,(AH$32-4)*3+2,1,1) -> 0.9465658809 | AI35: =OFFSET(StochasticsSwamiVersion!$C$10,CalculationsAndCharts!$A35+$A$11,(AI$32-4)*3+2,1,1) -> 0.9450500593 | AJ35: =OFFSET(StochasticsSwamiVersion!$C$10,CalculationsAndCharts!$A35+$A$11,(AJ$32-4)*3+2,1,1) -> 0.9428968305 | AK35: =OFFSET(StochasticsSwamiVersion!$C$10,CalculationsAndCharts!$A35+$A$11,(AK$32-4)*3+2,1,1) -> 0.9411900039 | AL35: =OFFSET(StochasticsSwamiVersion!$C$10,CalculationsAndCharts!$A35+$A$11,(AL$32-4)*3+2,1,1) -> 0.9392948655 | AM35: =OFFSET(StochasticsSwamiVersion!$C$10,CalculationsAndCharts!$A35+$A$11,(AM$32-4)*3+2,1,1) -> 0.9369557168 | AN35: =OFFSET(StochasticsSwamiVersion!$C$10,CalculationsAndCharts!$A35+$A$11,(AN$32-4)*3+2,1,1) -> 0.9340109981 | AO35: =OFFSET(StochasticsSwamiVersion!$C$10,CalculationsAndCharts!$A35+$A$11,(AO$32-4)*3+2,1,1) -> 0.9303262957 | AP35: =OFFSET(StochasticsSwamiVersion!$C$10,CalculationsAndCharts!$A35+$A$11,(AP$32-4)*3+2,1,1) -> 0.929541018 | AQ35: =OFFSET(StochasticsSwamiVersion!$C$10,CalculationsAndCharts!$A35+$A$11,(AQ$32-4)*3+2,1,1) -> 0.9284653448 | AR35: =OFFSET(StochasticsSwamiVersion!$C$10,CalculationsAndCharts!$A35+$A$11,(AR$32-4)*3+2,1,1) -> 0.9270302951 | AS35: =OFFSET(StochasticsSwamiVersion!$C$10,CalculationsAndCharts!$A35+$A$11,(AS$32-4)*3+2,1,1) -> 0.9251907344 | AT35: =OFFSET(StochasticsSwamiVersion!$C$10,CalculationsAndCharts!$A35+$A$11,(AT$32-4)*3+2,1,1) -> 0.9229034991 | AU35: =OFFSET(StochasticsSwamiVersion!$C$10,CalculationsAndCharts!$A35+$A$11,(AU$32-4)*3+2,1,1) -> 0.9200069018 | AV35: =OFFSET(StochasticsSwamiVersion!$C$10,CalculationsAndCharts!$A35+$A$11,(AV$32-4)*3+2,1,1) -> 0.9164053256 | AW35: =OFFSET(StochasticsSwamiVersion!$C$10,CalculationsAndCharts!$A35+$A$11,(AW$32-4)*3+2,1,1) -> 0.9146040135 | AX35: =OFFSET(StochasticsSwamiVersion!$C$10,CalculationsAndCharts!$A35+$A$11,(AX$32-4)*3+2,1,1) -> 0.913973199 | AY35: =OFFSET(StochasticsSwamiVersion!$C$10,CalculationsAndCharts!$A35+$A$11,(AY$32-4)*3+2,1,1) -> 0.9140933088 | AZ35: =OFFSET(StochasticsSwamiVersion!$C$10,CalculationsAndCharts!$A35+$A$11,(AZ$32-4)*3+2,1,1) -> 0.9145779749
A36: 4 | B36: =OFFSET(InputPriceData!B$10,CalculationsAndCharts!$A36+$A$11,0,1,1) -> 2012-01-09 | C36: =OFFSET(InputPriceData!G$10,CalculationsAndCharts!$A36+$A$11,0,1,1) -> 99530200 | D36: =OFFSET(InputPriceData!C$10,CalculationsAndCharts!$A36+$A$11,0,1,1) -> 128 | E36: =OFFSET(InputPriceData!D$10,CalculationsAndCharts!$A36+$A$11,0,1,1) -> 128.18 | F36: =OFFSET(InputPriceData!E$10,CalculationsAndCharts!$A36+$A$11,0,1,1) -> 127.41 | G36: =OFFSET(InputPriceData!F$10,CalculationsAndCharts!$A36+$A$11,0,1,1) -> 128.02 | H36: =OFFSET(StochasticsSwamiVersion!$C$10,CalculationsAndCharts!$A36+$A$11,(H$32-4)*3+2,1,1) -> 0.8130768469 | I36: =OFFSET(StochasticsSwamiVersion!$C$10,CalculationsAndCharts!$A36+$A$11,(I$32-4)*3+2,1,1) -> 0.8424777044 | J36: =OFFSET(StochasticsSwamiVersion!$C$10,CalculationsAndCharts!$A36+$A$11,(J$32-4)*3+2,1,1) -> 0.8591497341 | K36: =OFFSET(StochasticsSwamiVersion!$C$10,CalculationsAndCharts!$A36+$A$11,(K$32-4)*3+2,1,1) -> 0.8722296641 | L36: =OFFSET(StochasticsSwamiVersion!$C$10,CalculationsAndCharts!$A36+$A$11,(L$32-4)*3+2,1,1) -> 0.8806496375 | M36: =OFFSET(StochasticsSwamiVersion!$C$10,CalculationsAndCharts!$A36+$A$11,(M$32-4)*3+2,1,1) -> 0.8858510639 | N36: =OFFSET(StochasticsSwamiVersion!$C$10,CalculationsAndCharts!$A36+$A$11,(N$32-4)*3+2,1,1) -> 0.8919323458 | O36: =OFFSET(StochasticsSwamiVersion!$C$10,CalculationsAndCharts!$A36+$A$11,(O$32-4)*3+2,1,1) -> 0.8963569767 | P36: =OFFSET(StochasticsSwamiVersion!$C$10,CalculationsAndCharts!$A36+$A$11,(P$32-4)*3+2,1,1) -> 0.8989251126 | Q36: =OFFSET(StochasticsSwamiVersion!$C$10,CalculationsAndCharts!$A36+$A$11,(Q$32-4)*3+2,1,1) -> 0.9041502992 | R36: =OFFSET(StochasticsSwamiVersion!$C$10,CalculationsAndCharts!$A36+$A$11,(R$32-4)*3+2,1,1) -> 0.9086855912 | S36: =OFFSET(StochasticsSwamiVersion!$C$10,CalculationsAndCharts!$A36+$A$11,(S$32-4)*3+2,1,1) -> 0.9118945102 | T36: =OFFSET(StochasticsSwamiVersion!$C$10,CalculationsAndCharts!$A36+$A$11,(T$32-4)*3+2,1,1) -> 0.9152080844 | U36: =OFFSET(StochasticsSwamiVersion!$C$10,CalculationsAndCharts!$A36+$A$11,(U$32-4)*3+2,1,1) -> 0.9184428607 | V36: =OFFSET(StochasticsSwamiVersion!$C$10,CalculationsAndCharts!$A36+$A$11,(V$32-4)*3+2,1,1) -> 0.9212026397 | W36: =OFFSET(StochasticsSwamiVersion!$C$10,CalculationsAndCharts!$A36+$A$11,(W$32-4)*3+2,1,1) -> 0.9234928598 | X36: =OFFSET(StochasticsSwamiVersion!$C$10,CalculationsAndCharts!$A36+$A$11,(X$32-4)*3+2,1,1) -> 0.9254529314 | Y36: =OFFSET(StochasticsSwamiVersion!$C$10,CalculationsAndCharts!$A36+$A$11,(Y$32-4)*3+2,1,1) -> 0.9274283425 | Z36: =OFFSET(StochasticsSwamiVersion!$C$10,CalculationsAndCharts!$A36+$A$11,(Z$32-4)*3+2,1,1) -> 0.9294814173 | AA36: =OFFSET(StochasticsSwamiVersion!$C$10,CalculationsAndCharts!$A36+$A$11,(AA$32-4)*3+2,1,1) -> 0.9318359797 | AB36: =OFFSET(StochasticsSwamiVersion!$C$10,CalculationsAndCharts!$A36+$A$11,(AB$32-4)*3+2,1,1) -> 0.9336711144 | AC36: =OFFSET(StochasticsSwamiVersion!$C$10,CalculationsAndCharts!$A36+$A$11,(AC$32-4)*3+2,1,1) -> 0.9351621899 | AD36: =OFFSET(StochasticsSwamiVersion!$C$10,CalculationsAndCharts!$A36+$A$11,(AD$32-4)*3+2,1,1) -> 0.9359034598 | AE36: =OFFSET(StochasticsSwamiVersion!$C$10,CalculationsAndCharts!$A36+$A$11,(AE$32-4)*3+2,1,1) -> 0.9362694654 | AF36: =OFFSET(StochasticsSwamiVersion!$C$10,CalculationsAndCharts!$A36+$A$11,(AF$32-4)*3+2,1,1) -> 0.936219173 | AG36: =OFFSET(StochasticsSwamiVersion!$C$10,CalculationsAndCharts!$A36+$A$11,(AG$32-4)*3+2,1,1) -> 0.9357859779 | AH36: =OFFSET(StochasticsSwamiVersion!$C$10,CalculationsAndCharts!$A36+$A$11,(AH$32-4)*3+2,1,1) -> 0.9345312928 | AI36: =OFFSET(StochasticsSwamiVersion!$C$10,CalculationsAndCharts!$A36+$A$11,(AI$32-4)*3+2,1,1) -> 0.9324677193 | AJ36: =OFFSET(StochasticsSwamiVersion!$C$10,CalculationsAndCharts!$A36+$A$11,(AJ$32-4)*3+2,1,1) -> 0.9297815659 | AK36: =OFFSET(StochasticsSwamiVersion!$C$10,CalculationsAndCharts!$A36+$A$11,(AK$32-4)*3+2,1,1) -> 0.9276544754 | AL36: =OFFSET(StochasticsSwamiVersion!$C$10,CalculationsAndCharts!$A36+$A$11,(AL$32-4)*3+2,1,1) -> 0.9252965582 | AM36: =OFFSET(StochasticsSwamiVersion!$C$10,CalculationsAndCharts!$A36+$A$11,(AM$32-4)*3+2,1,1) -> 0.9223946309 | AN36: =OFFSET(StochasticsSwamiVersion!$C$10,CalculationsAndCharts!$A36+$A$11,(AN$32-4)*3+2,1,1) -> 0.918757738 | AO36: =OFFSET(StochasticsSwamiVersion!$C$10,CalculationsAndCharts!$A36+$A$11,(AO$32-4)*3+2,1,1) -> 0.9142398244 | AP36: =OFFSET(StochasticsSwamiVersion!$C$10,CalculationsAndCharts!$A36+$A$11,(AP$32-4)*3+2,1,1) -> 0.9132599513 | AQ36: =OFFSET(StochasticsSwamiVersion!$C$10,CalculationsAndCharts!$A36+$A$11,(AQ$32-4)*3+2,1,1) -> 0.9119188078 | AR36: =OFFSET(StochasticsSwamiVersion!$C$10,CalculationsAndCharts!$A36+$A$11,(AR$32-4)*3+2,1,1) -> 0.9101318915 | AS36: =OFFSET(StochasticsSwamiVersion!$C$10,CalculationsAndCharts!$A36+$A$11,(AS$32-4)*3+2,1,1) -> 0.907846231 | AT36: =OFFSET(StochasticsSwamiVersion!$C$10,CalculationsAndCharts!$A36+$A$11,(AT$32-4)*3+2,1,1) -> 0.9050147632 | AU36: =OFFSET(StochasticsSwamiVersion!$C$10,CalculationsAndCharts!$A36+$A$11,(AU$32-4)*3+2,1,1) -> 0.9014491507 | AV36: =OFFSET(StochasticsSwamiVersion!$C$10,CalculationsAndCharts!$A36+$A$11,(AV$32-4)*3+2,1,1) -> 0.8970573754 | AW36: =OFFSET(StochasticsSwamiVersion!$C$10,CalculationsAndCharts!$A36+$A$11,(AW$32-4)*3+2,1,1) -> 0.8948971153 | AX36: =OFFSET(StochasticsSwamiVersion!$C$10,CalculationsAndCharts!$A36+$A$11,(AX$32-4)*3+2,1,1) -> 0.8941714756 | AY36: =OFFSET(StochasticsSwamiVersion!$C$10,CalculationsAndCharts!$A36+$A$11,(AY$32-4)*3+2,1,1) -> 0.8943395719 | AZ36: =OFFSET(StochasticsSwamiVersion!$C$10,CalculationsAndCharts!$A36+$A$11,(AZ$32-4)*3+2,1,1) -> 0.8949454038
A37: 5 | B37: =OFFSET(InputPriceData!B$10,CalculationsAndCharts!$A37+$A$11,0,1,1) -> 2012-01-06 | C37: =OFFSET(InputPriceData!G$10,CalculationsAndCharts!$A37+$A$11,0,1,1) -> 148050000 | D37: =OFFSET(InputPriceData!C$10,CalculationsAndCharts!$A37+$A$11,0,1,1) -> 128.2 | E37: =OFFSET(InputPriceData!D$10,CalculationsAndCharts!$A37+$A$11,0,1,1) -> 128.22 | F37: =OFFSET(InputPriceData!E$10,CalculationsAndCharts!$A37+$A$11,0,1,1) -> 127.29 | G37: =OFFSET(InputPriceData!F$10,CalculationsAndCharts!$A37+$A$11,0,1,1) -> 127.71 | H37: =OFFSET(StochasticsSwamiVersion!$C$10,CalculationsAndCharts!$A37+$A$11,(H$32-4)*3+2,1,1) -> 0.7989994485 | I37: =OFFSET(StochasticsSwamiVersion!$C$10,CalculationsAndCharts!$A37+$A$11,(I$32-4)*3+2,1,1) -> 0.8220900321 | J37: =OFFSET(StochasticsSwamiVersion!$C$10,CalculationsAndCharts!$A37+$A$11,(J$32-4)*3+2,1,1) -> 0.8350660863 | K37: =OFFSET(StochasticsSwamiVersion!$C$10,CalculationsAndCharts!$A37+$A$11,(K$32-4)*3+2,1,1) -> 0.8506662681 | L37: =OFFSET(StochasticsSwamiVersion!$C$10,CalculationsAndCharts!$A37+$A$11,(L$32-4)*3+2,1,1) -> 0.8599576461 | M37: =OFFSET(StochasticsSwamiVersion!$C$10,CalculationsAndCharts!$A37+$A$11,(M$32-4)*3+2,1,1) -> 0.8661918069 | N37: =OFFSET(StochasticsSwamiVersion!$C$10,CalculationsAndCharts!$A37+$A$11,(N$32-4)*3+2,1,1) -> 0.8732698683 | O37: =OFFSET(StochasticsSwamiVersion!$C$10,CalculationsAndCharts!$A37+$A$11,(O$32-4)*3+2,1,1) -> 0.8779209112 | P37: =OFFSET(StochasticsSwamiVersion!$C$10,CalculationsAndCharts!$A37+$A$11,(P$32-4)*3+2,1,1) -> 0.8798349304 | Q37: =OFFSET(StochasticsSwamiVersion!$C$10,CalculationsAndCharts!$A37+$A$11,(Q$32-4)*3+2,1,1) -> 0.885277192 | R37: =OFFSET(StochasticsSwamiVersion!$C$10,CalculationsAndCharts!$A37+$A$11,(R$32-4)*3+2,1,1) -> 0.8897375017 | S37: =OFFSET(StochasticsSwamiVersion!$C$10,CalculationsAndCharts!$A37+$A$11,(S$32-4)*3+2,1,1) -> 0.8937485893 | T37: =OFFSET(StochasticsSwamiVersion!$C$10,CalculationsAndCharts!$A37+$A$11,(T$32-4)*3+2,1,1) -> 0.8978904344 | U37: =OFFSET(StochasticsSwamiVersion!$C$10,CalculationsAndCharts!$A37+$A$11,(U$32-4)*3+2,1,1) -> 0.9019336593 | V37: =OFFSET(StochasticsSwamiVersion!$C$10,CalculationsAndCharts!$A37+$A$11,(V$32-4)*3+2,1,1) -> 0.9053828892 | W37: =OFFSET(StochasticsSwamiVersion!$C$10,CalculationsAndCharts!$A37+$A$11,(W$32-4)*3+2,1,1) -> 0.9082446771 | X37: =OFFSET(StochasticsSwamiVersion!$C$10,CalculationsAndCharts!$A37+$A$11,(X$32-4)*3+2,1,1) -> 0.9106927937 | Y37: =OFFSET(StochasticsSwamiVersion!$C$10,CalculationsAndCharts!$A37+$A$11,(Y$32-4)*3+2,1,1) -> 0.9131581171 | Z37: =OFFSET(StochasticsSwamiVersion!$C$10,CalculationsAndCharts!$A37+$A$11,(Z$32-4)*3+2,1,1) -> 0.9157166036 | AA37: =OFFSET(StochasticsSwamiVersion!$C$10,CalculationsAndCharts!$A37+$A$11,(AA$32-4)*3+2,1,1) -> 0.9186441882 | AB37: =OFFSET(StochasticsSwamiVersion!$C$10,CalculationsAndCharts!$A37+$A$11,(AB$32-4)*3+2,1,1) -> 0.9209072462 | AC37: =OFFSET(StochasticsSwamiVersion!$C$10,CalculationsAndCharts!$A37+$A$11,(AC$32-4)*3+2,1,1) -> 0.9227108344 | AD37: =OFFSET(StochasticsSwamiVersion!$C$10,CalculationsAndCharts!$A37+$A$11,(AD$32-4)*3+2,1,1) -> 0.9235224523 | AE37: =OFFSET(StochasticsSwamiVersion!$C$10,CalculationsAndCharts!$A37+$A$11,(AE$32-4)*3+2,1,1) -> 0.9237699503 | AF37: =OFFSET(StochasticsSwamiVersion!$C$10,CalculationsAndCharts!$A37+$A$11,(AF$32-4)*3+2,1,1) -> 0.9233523347 | AG37: =OFFSET(StochasticsSwamiVersion!$C$10,CalculationsAndCharts!$A37+$A$11,(AG$32-4)*3+2,1,1) -> 0.9225231753 | AH37: =OFFSET(StochasticsSwamiVersion!$C$10,CalculationsAndCharts!$A37+$A$11,(AH$32-4)*3+2,1,1) -> 0.9205789114 | AI37: =OFFSET(StochasticsSwamiVersion!$C$10,CalculationsAndCharts!$A37+$A$11,(AI$32-4)*3+2,1,1) -> 0.9180050553 | AJ37: =OFFSET(StochasticsSwamiVersion!$C$10,CalculationsAndCharts!$A37+$A$11,(AJ$32-4)*3+2,1,1) -> 0.9146585842 | AK37: =OFFSET(StochasticsSwamiVersion!$C$10,CalculationsAndCharts!$A37+$A$11,(AK$32-4)*3+2,1,1) -> 0.9120131513 | AL37: =OFFSET(StochasticsSwamiVersion!$C$10,CalculationsAndCharts!$A37+$A$11,(AL$32-4)*3+2,1,1) -> 0.9090886946 | AM37: =OFFSET(StochasticsSwamiVersion!$C$10,CalculationsAndCharts!$A37+$A$11,(AM$32-4)*3+2,1,1) -> 0.9055071526 | AN37: =OFFSET(StochasticsSwamiVersion!$C$10,CalculationsAndCharts!$A37+$A$11,(AN$32-4)*3+2,1,1) -> 0.9010527195 | AO37: =OFFSET(StochasticsSwamiVersion!$C$10,CalculationsAndCharts!$A37+$A$11,(AO$32-4)*3+2,1,1) -> 0.8955884901 | AP37: =OFFSET(StochasticsSwamiVersion!$C$10,CalculationsAndCharts!$A37+$A$11,(AP$32-4)*3+2,1,1) -> 0.8943672372 | AQ37: =OFFSET(StochasticsSwamiVersion!$C$10,CalculationsAndCharts!$A37+$A$11,(AQ$32-4)*3+2,1,1) -> 0.8926979845 | AR37: =OFFSET(StochasticsSwamiVersion!$C$10,CalculationsAndCharts!$A37+$A$11,(AR$32-4)*3+2,1,1) -> 0.8904786911 | AS37: =OFFSET(StochasticsSwamiVersion!$C$10,CalculationsAndCharts!$A37+$A$11,(AS$32-4)*3+2,1,1) -> 0.8876503146 | AT37: =OFFSET(StochasticsSwamiVersion!$C$10,CalculationsAndCharts!$A37+$A$11,(AT$32-4)*3+2,1,1) -> 0.8841683578 | AU37: =OFFSET(StochasticsSwamiVersion!$C$10,CalculationsAndCharts!$A37+$A$11,(AU$32-4)*3+2,1,1) -> 0.8798260184 | AV37: =OFFSET(StochasticsSwamiVersion!$C$10,CalculationsAndCharts!$A37+$A$11,(AV$32-4)*3+2,1,1) -> 0.8745653326 | AW37: =OFFSET(StochasticsSwamiVersion!$C$10,CalculationsAndCharts!$A37+$A$11,(AW$32-4)*3+2,1,1) -> 0.8720547671 | AX37: =OFFSET(StochasticsSwamiVersion!$C$10,CalculationsAndCharts!$A37+$A$11,(AX$32-4)*3+2,1,1) -> 0.8712782015 | AY37: =OFFSET(StochasticsSwamiVersion!$C$10,CalculationsAndCharts!$A37+$A$11,(AY$32-4)*3+2,1,1) -> 0.8715255764 | AZ37: =OFFSET(StochasticsSwamiVersion!$C$10,CalculationsAndCharts!$A37+$A$11,(AZ$32-4)*3+2,1,1) -> 0.8722828633
A38: 6 | B38: =OFFSET(InputPriceData!B$10,CalculationsAndCharts!$A38+$A$11,0,1,1) -> 2012-01-05 | C38: =OFFSET(InputPriceData!G$10,CalculationsAndCharts!$A38+$A$11,0,1,1) -> 173895000 | D38: =OFFSET(InputPriceData!C$10,CalculationsAndCharts!$A38+$A$11,0,1,1) -> 127.01 | E38: =OFFSET(InputPriceData!D$10,CalculationsAndCharts!$A38+$A$11,0,1,1) -> 128.23 | F38: =OFFSET(InputPriceData!E$10,CalculationsAndCharts!$A38+$A$11,0,1,1) -> 126.43 | G38: =OFFSET(InputPriceData!F$10,CalculationsAndCharts!$A38+$A$11,0,1,1) -> 128.04 | H38: =OFFSET(StochasticsSwamiVersion!$C$10,CalculationsAndCharts!$A38+$A$11,(H$32-4)*3+2,1,1) -> 0.785583426 | I38: =OFFSET(StochasticsSwamiVersion!$C$10,CalculationsAndCharts!$A38+$A$11,(I$32-4)*3+2,1,1) -> 0.7986612334 | J38: =OFFSET(StochasticsSwamiVersion!$C$10,CalculationsAndCharts!$A38+$A$11,(J$32-4)*3+2,1,1) -> 0.8134195539 | K38: =OFFSET(StochasticsSwamiVersion!$C$10,CalculationsAndCharts!$A38+$A$11,(K$32-4)*3+2,1,1) -> 0.8305177577 | L38: =OFFSET(StochasticsSwamiVersion!$C$10,CalculationsAndCharts!$A38+$A$11,(L$32-4)*3+2,1,1) -> 0.8415988138 | M38: =OFFSET(StochasticsSwamiVersion!$C$10,CalculationsAndCharts!$A38+$A$11,(M$32-4)*3+2,1,1) -> 0.848415324 | N38: =OFFSET(StochasticsSwamiVersion!$C$10,CalculationsAndCharts!$A38+$A$11,(N$32-4)*3+2,1,1) -> 0.8555655648 | O38: =OFFSET(StochasticsSwamiVersion!$C$10,CalculationsAndCharts!$A38+$A$11,(O$32-4)*3+2,1,1) -> 0.8588957577 | P38: =OFFSET(StochasticsSwamiVersion!$C$10,CalculationsAndCharts!$A38+$A$11,(P$32-4)*3+2,1,1) -> 0.859257872 | Q38: =OFFSET(StochasticsSwamiVersion!$C$10,CalculationsAndCharts!$A38+$A$11,(Q$32-4)*3+2,1,1) -> 0.8637868903 | R38: =OFFSET(StochasticsSwamiVersion!$C$10,CalculationsAndCharts!$A38+$A$11,(R$32-4)*3+2,1,1) -> 0.8693621226 | S38: =OFFSET(StochasticsSwamiVersion!$C$10,CalculationsAndCharts!$A38+$A$11,(S$32-4)*3+2,1,1) -> 0.8743757515 | T38: =OFFSET(StochasticsSwamiVersion!$C$10,CalculationsAndCharts!$A38+$A$11,(T$32-4)*3+2,1,1) -> 0.8795525962 | U38: =OFFSET(StochasticsSwamiVersion!$C$10,CalculationsAndCharts!$A38+$A$11,(U$32-4)*3+2,1,1) -> 0.8846057039 | V38: =OFFSET(StochasticsSwamiVersion!$C$10,CalculationsAndCharts!$A38+$A$11,(V$32-4)*3+2,1,1) -> 0.8889153888 | W38: =OFFSET(StochasticsSwamiVersion!$C$10,CalculationsAndCharts!$A38+$A$11,(W$32-4)*3+2,1,1) -> 0.8924889218 | X38: =OFFSET(StochasticsSwamiVersion!$C$10,CalculationsAndCharts!$A38+$A$11,(X$32-4)*3+2,1,1) -> 0.8955416751 | Y38: =OFFSET(StochasticsSwamiVersion!$C$10,CalculationsAndCharts!$A38+$A$11,(Y$32-4)*3+2,1,1) -> 0.898608589 | Z38: =OFFSET(StochasticsSwamiVersion!$C$10,CalculationsAndCharts!$A38+$A$11,(Z$32-4)*3+2,1,1) -> 0.9017773978 | AA38: =OFFSET(StochasticsSwamiVersion!$C$10,CalculationsAndCharts!$A38+$A$11,(AA$32-4)*3+2,1,1) -> 0.9053789939 | AB38: =OFFSET(StochasticsSwamiVersion!$C$10,CalculationsAndCharts!$A38+$A$11,(AB$32-4)*3+2,1,1) -> 0.9080948247 | AC38: =OFFSET(StochasticsSwamiVersion!$C$10,CalculationsAndCharts!$A38+$A$11,(AC$32-4)*3+2,1,1) -> 0.9101338328 | AD38: =OFFSET(StochasticsSwamiVersion!$C$10,CalculationsAndCharts!$A38+$A$11,(AD$32-4)*3+2,1,1) -> 0.9107551339 | AE38: =OFFSET(StochasticsSwamiVersion!$C$10,CalculationsAndCharts!$A38+$A$11,(AE$32-4)*3+2,1,1) -> 0.910401384 | AF38: =OFFSET(StochasticsSwamiVersion!$C$10,CalculationsAndCharts!$A38+$A$11,(AF$32-4)*3+2,1,1) -> 0.9093419643 | AG38: =OFFSET(StochasticsSwamiVersion!$C$10,CalculationsAndCharts!$A38+$A$11,(AG$32-4)*3+2,1,1) -> 0.9076042513 | AH38: =OFFSET(StochasticsSwamiVersion!$C$10,CalculationsAndCharts!$A38+$A$11,(AH$32-4)*3+2,1,1) -> 0.9051795257 | AI38: =OFFSET(StochasticsSwamiVersion!$C$10,CalculationsAndCharts!$A38+$A$11,(AI$32-4)*3+2,1,1) -> 0.9019734131 | AJ38: =OFFSET(StochasticsSwamiVersion!$C$10,CalculationsAndCharts!$A38+$A$11,(AJ$32-4)*3+2,1,1) -> 0.8978127364 | AK38: =OFFSET(StochasticsSwamiVersion!$C$10,CalculationsAndCharts!$A38+$A$11,(AK$32-4)*3+2,1,1) -> 0.8945327678 | AL38: =OFFSET(StochasticsSwamiVersion!$C$10,CalculationsAndCharts!$A38+$A$11,(AL$32-4)*3+2,1,1) -> 0.8909230056 | AM38: =OFFSET(StochasticsSwamiVersion!$C$10,CalculationsAndCharts!$A38+$A$11,(AM$32-4)*3+2,1,1) -> 0.8865376441 | AN38: =OFFSET(StochasticsSwamiVersion!$C$10,CalculationsAndCharts!$A38+$A$11,(AN$32-4)*3+2,1,1) -> 0.8811525299 | AO38: =OFFSET(StochasticsSwamiVersion!$C$10,CalculationsAndCharts!$A38+$A$11,(AO$32-4)*3+2,1,1) -> 0.8746872803 | AP38: =OFFSET(StochasticsSwamiVersion!$C$10,CalculationsAndCharts!$A38+$A$11,(AP$32-4)*3+2,1,1) -> 0.8731678604 | AQ38: =OFFSET(StochasticsSwamiVersion!$C$10,CalculationsAndCharts!$A38+$A$11,(AQ$32-4)*3+2,1,1) -> 0.8710955858 | AR38: =OFFSET(StochasticsSwamiVersion!$C$10,CalculationsAndCharts!$A38+$A$11,(AR$32-4)*3+2,1,1) -> 0.8683500464 | AS38: =OFFSET(StochasticsSwamiVersion!$C$10,CalculationsAndCharts!$A38+$A$11,(AS$32-4)*3+2,1,1) -> 0.8648717107 | AT38: =OFFSET(StochasticsSwamiVersion!$C$10,CalculationsAndCharts!$A38+$A$11,(AT$32-4)*3+2,1,1) -> 0.8606334546 | AU38: =OFFSET(StochasticsSwamiVersion!$C$10,CalculationsAndCharts!$A38+$A$11,(AU$32-4)*3+2,1,1) -> 0.8554335904 | AV38: =OFFSET(StochasticsSwamiVersion!$C$10,CalculationsAndCharts!$A38+$A$11,(AV$32-4)*3+2,1,1) -> 0.8493125799 | AW38: =OFFSET(StochasticsSwamiVersion!$C$10,CalculationsAndCharts!$A38+$A$11,(AW$32-4)*3+2,1,1) -> 0.84655058 | AX38: =OFFSET(StochasticsSwamiVersion!$C$10,CalculationsAndCharts!$A38+$A$11,(AX$32-4)*3+2,1,1) -> 0.8458382248 | AY38: =OFFSET(StochasticsSwamiVersion!$C$10,CalculationsAndCharts!$A38+$A$11,(AY$32-4)*3+2,1,1) -> 0.8462211527 | AZ38: =OFFSET(StochasticsSwamiVersion!$C$10,CalculationsAndCharts!$A38+$A$11,(AZ$32-4)*3+2,1,1) -> 0.8471677499
A39: 7 | B39: =OFFSET(InputPriceData!B$10,CalculationsAndCharts!$A39+$A$11,0,1,1) -> 2012-01-04 | C39: =OFFSET(InputPriceData!G$10,CalculationsAndCharts!$A39+$A$11,0,1,1) -> 127186500 | D39: =OFFSET(InputPriceData!C$10,CalculationsAndCharts!$A39+$A$11,0,1,1) -> 127.2 | E39: =OFFSET(InputPriceData!D$10,CalculationsAndCharts!$A39+$A$11,0,1,1) -> 127.81 | F39: =OFFSET(InputPriceData!E$10,CalculationsAndCharts!$A39+$A$11,0,1,1) -> 126.71 | G39: =OFFSET(InputPriceData!F$10,CalculationsAndCharts!$A39+$A$11,0,1,1) -> 127.7 | H39: =OFFSET(StochasticsSwamiVersion!$C$10,CalculationsAndCharts!$A39+$A$11,(H$32-4)*3+2,1,1) -> 0.7424978244 | I39: =OFFSET(StochasticsSwamiVersion!$C$10,CalculationsAndCharts!$A39+$A$11,(I$32-4)*3+2,1,1) -> 0.7580925126 | J39: =OFFSET(StochasticsSwamiVersion!$C$10,CalculationsAndCharts!$A39+$A$11,(J$32-4)*3+2,1,1) -> 0.7753044431 | K39: =OFFSET(StochasticsSwamiVersion!$C$10,CalculationsAndCharts!$A39+$A$11,(K$32-4)*3+2,1,1) -> 0.7964218962 | L39: =OFFSET(StochasticsSwamiVersion!$C$10,CalculationsAndCharts!$A39+$A$11,(L$32-4)*3+2,1,1) -> 0.8097941417 | M39: =OFFSET(StochasticsSwamiVersion!$C$10,CalculationsAndCharts!$A39+$A$11,(M$32-4)*3+2,1,1) -> 0.8175057676 | N39: =OFFSET(StochasticsSwamiVersion!$C$10,CalculationsAndCharts!$A39+$A$11,(N$32-4)*3+2,1,1) -> 0.8251632142 | O39: =OFFSET(StochasticsSwamiVersion!$C$10,CalculationsAndCharts!$A39+$A$11,(O$32-4)*3+2,1,1) -> 0.8283011972 | P39: =OFFSET(StochasticsSwamiVersion!$C$10,CalculationsAndCharts!$A39+$A$11,(P$32-4)*3+2,1,1) -> 0.8276453038 | Q39: =OFFSET(StochasticsSwamiVersion!$C$10,CalculationsAndCharts!$A39+$A$11,(Q$32-4)*3+2,1,1) -> 0.8333065027 | R39: =OFFSET(StochasticsSwamiVersion!$C$10,CalculationsAndCharts!$A39+$A$11,(R$32-4)*3+2,1,1) -> 0.8402753865 | S39: =OFFSET(StochasticsSwamiVersion!$C$10,CalculationsAndCharts!$A39+$A$11,(S$32-4)*3+2,1,1) -> 0.8465421895 | T39: =OFFSET(StochasticsSwamiVersion!$C$10,CalculationsAndCharts!$A39+$A$11,(T$32-4)*3+2,1,1) -> 0.8530127782 | U39: =OFFSET(StochasticsSwamiVersion!$C$10,CalculationsAndCharts!$A39+$A$11,(U$32-4)*3+2,1,1) -> 0.8593282283 | V39: =OFFSET(StochasticsSwamiVersion!$C$10,CalculationsAndCharts!$A39+$A$11,(V$32-4)*3+2,1,1) -> 0.8647134541 | W39: =OFFSET(StochasticsSwamiVersion!$C$10,CalculationsAndCharts!$A39+$A$11,(W$32-4)*3+2,1,1) -> 0.8691766156 | X39: =OFFSET(StochasticsSwamiVersion!$C$10,CalculationsAndCharts!$A39+$A$11,(X$32-4)*3+2,1,1) -> 0.8729850715 | Y39: =OFFSET(StochasticsSwamiVersion!$C$10,CalculationsAndCharts!$A39+$A$11,(Y$32-4)*3+2,1,1) -> 0.8768038345 | Z39: =OFFSET(StochasticsSwamiVersion!$C$10,CalculationsAndCharts!$A39+$A$11,(Z$32-4)*3+2,1,1) -> 0.8807354578 | AA39: =OFFSET(StochasticsSwamiVersion!$C$10,CalculationsAndCharts!$A39+$A$11,(AA$32-4)*3+2,1,1) -> 0.8851801196 | AB39: =OFFSET(StochasticsSwamiVersion!$C$10,CalculationsAndCharts!$A39+$A$11,(AB$32-4)*3+2,1,1) -> 0.8884656902 | AC39: =OFFSET(StochasticsSwamiVersion!$C$10,CalculationsAndCharts!$A39+$A$11,(AC$32-4)*3+2,1,1) -> 0.8908155371 | AD39: =OFFSET(StochasticsSwamiVersion!$C$10,CalculationsAndCharts!$A39+$A$11,(AD$32-4)*3+2,1,1) -> 0.8912578763 | AE39: =OFFSET(StochasticsSwamiVersion!$C$10,CalculationsAndCharts!$A39+$A$11,(AE$32-4)*3+2,1,1) -> 0.8905462652 | AF39: =OFFSET(StochasticsSwamiVersion!$C$10,CalculationsAndCharts!$A39+$A$11,(AF$32-4)*3+2,1,1) -> 0.8888720751 | AG39: =OFFSET(StochasticsSwamiVersion!$C$10,CalculationsAndCharts!$A39+$A$11,(AG$32-4)*3+2,1,1) -> 0.8867056711 | AH39: =OFFSET(StochasticsSwamiVersion!$C$10,CalculationsAndCharts!$A39+$A$11,(AH$32-4)*3+2,1,1) -> 0.8836862379 | AI39: =OFFSET(StochasticsSwamiVersion!$C$10,CalculationsAndCharts!$A39+$A$11,(AI$32-4)*3+2,1,1) -> 0.8797015417 | AJ39: =OFFSET(StochasticsSwamiVersion!$C$10,CalculationsAndCharts!$A39+$A$11,(AJ$32-4)*3+2,1,1) -> 0.8745465719 | AK39: =OFFSET(StochasticsSwamiVersion!$C$10,CalculationsAndCharts!$A39+$A$11,(AK$32-4)*3+2,1,1) -> 0.8705015039 | AL39: =OFFSET(StochasticsSwamiVersion!$C$10,CalculationsAndCharts!$A39+$A$11,(AL$32-4)*3+2,1,1) -> 0.8660830207 | AM39: =OFFSET(StochasticsSwamiVersion!$C$10,CalculationsAndCharts!$A39+$A$11,(AM$32-4)*3+2,1,1) -> 0.8607885449 | AN39: =OFFSET(StochasticsSwamiVersion!$C$10,CalculationsAndCharts!$A39+$A$11,(AN$32-4)*3+2,1,1) -> 0.8544307565 | AO39: =OFFSET(StochasticsSwamiVersion!$C$10,CalculationsAndCharts!$A39+$A$11,(AO$32-4)*3+2,1,1) -> 0.8470930278 | AP39: =OFFSET(StochasticsSwamiVersion!$C$10,CalculationsAndCharts!$A39+$A$11,(AP$32-4)*3+2,1,1) -> 0.8452082921 | AQ39: =OFFSET(StochasticsSwamiVersion!$C$10,CalculationsAndCharts!$A39+$A$11,(AQ$32-4)*3+2,1,1) -> 0.8426470221 | AR39: =OFFSET(StochasticsSwamiVersion!$C$10,CalculationsAndCharts!$A39+$A$11,(AR$32-4)*3+2,1,1) -> 0.8392732239 | AS39: =OFFSET(StochasticsSwamiVersion!$C$10,CalculationsAndCharts!$A39+$A$11,(AS$32-4)*3+2,1,1) -> 0.8350414738 | AT39: =OFFSET(StochasticsSwamiVersion!$C$10,CalculationsAndCharts!$A39+$A$11,(AT$32-4)*3+2,1,1) -> 0.8299756641 | AU39: =OFFSET(StochasticsSwamiVersion!$C$10,CalculationsAndCharts!$A39+$A$11,(AU$32-4)*3+2,1,1) -> 0.8239385447 | AV39: =OFFSET(StochasticsSwamiVersion!$C$10,CalculationsAndCharts!$A39+$A$11,(AV$32-4)*3+2,1,1) -> 0.8172074963 | AW39: =OFFSET(StochasticsSwamiVersion!$C$10,CalculationsAndCharts!$A39+$A$11,(AW$32-4)*3+2,1,1) -> 0.8145134851 | AX39: =OFFSET(StochasticsSwamiVersion!$C$10,CalculationsAndCharts!$A39+$A$11,(AX$32-4)*3+2,1,1) -> 0.8141425445 | AY39: =OFFSET(StochasticsSwamiVersion!$C$10,CalculationsAndCharts!$A39+$A$11,(AY$32-4)*3+2,1,1) -> 0.8147692171 | AZ39: =OFFSET(StochasticsSwamiVersion!$C$10,CalculationsAndCharts!$A39+$A$11,(AZ$32-4)*3+2,1,1) -> 0.81595244
A40: 8 | B40: =OFFSET(InputPriceData!B$10,CalculationsAndCharts!$A40+$A$11,0,1,1) -> 2012-01-03 | C40: =OFFSET(InputPriceData!G$10,CalculationsAndCharts!$A40+$A$11,0,1,1) -> 193697900 | D40: =OFFSET(InputPriceData!C$10,CalculationsAndCharts!$A40+$A$11,0,1,1) -> 127.76 | E40: =OFFSET(InputPriceData!D$10,CalculationsAndCharts!$A40+$A$11,0,1,1) -> 128.38 | F40: =OFFSET(InputPriceData!E$10,CalculationsAndCharts!$A40+$A$11,0,1,1) -> 127.43 | G40: =OFFSET(InputPriceData!F$10,CalculationsAndCharts!$A40+$A$11,0,1,1) -> 127.5 | H40: =OFFSET(StochasticsSwamiVersion!$C$10,CalculationsAndCharts!$A40+$A$11,(H$32-4)*3+2,1,1) -> 0.70068441 | I40: =OFFSET(StochasticsSwamiVersion!$C$10,CalculationsAndCharts!$A40+$A$11,(I$32-4)*3+2,1,1) -> 0.716896446 | J40: =OFFSET(StochasticsSwamiVersion!$C$10,CalculationsAndCharts!$A40+$A$11,(J$32-4)*3+2,1,1) -> 0.7377504836 | K40: =OFFSET(StochasticsSwamiVersion!$C$10,CalculationsAndCharts!$A40+$A$11,(K$32-4)*3+2,1,1) -> 0.7628800343 | L40: =OFFSET(StochasticsSwamiVersion!$C$10,CalculationsAndCharts!$A40+$A$11,(L$32-4)*3+2,1,1) -> 0.7775082646 | M40: =OFFSET(StochasticsSwamiVersion!$C$10,CalculationsAndCharts!$A40+$A$11,(M$32-4)*3+2,1,1) -> 0.784211851 | N40: =OFFSET(StochasticsSwamiVersion!$C$10,CalculationsAndCharts!$A40+$A$11,(N$32-4)*3+2,1,1) -> 0.79138417 | O40: =OFFSET(StochasticsSwamiVersion!$C$10,CalculationsAndCharts!$A40+$A$11,(O$32-4)*3+2,1,1) -> 0.792787368 | P40: =OFFSET(StochasticsSwamiVersion!$C$10,CalculationsAndCharts!$A40+$A$11,(P$32-4)*3+2,1,1) -> 0.7920560178 | Q40: =OFFSET(StochasticsSwamiVersion!$C$10,CalculationsAndCharts!$A40+$A$11,(Q$32-4)*3+2,1,1) -> 0.7991321786 | R40: =OFFSET(StochasticsSwamiVersion!$C$10,CalculationsAndCharts!$A40+$A$11,(R$32-4)*3+2,1,1) -> 0.80784259 | S40: =OFFSET(StochasticsSwamiVersion!$C$10,CalculationsAndCharts!$A40+$A$11,(S$32-4)*3+2,1,1) -> 0.8156750604 | T40: =OFFSET(StochasticsSwamiVersion!$C$10,CalculationsAndCharts!$A40+$A$11,(T$32-4)*3+2,1,1) -> 0.8237612282 | U40: =OFFSET(StochasticsSwamiVersion!$C$10,CalculationsAndCharts!$A40+$A$11,(U$32-4)*3+2,1,1) -> 0.8316514066 | V40: =OFFSET(StochasticsSwamiVersion!$C$10,CalculationsAndCharts!$A40+$A$11,(V$32-4)*3+2,1,1) -> 0.8383746583 | W40: =OFFSET(StochasticsSwamiVersion!$C$10,CalculationsAndCharts!$A40+$A$11,(W$32-4)*3+2,1,1) -> 0.8439371039 | X40: =OFFSET(StochasticsSwamiVersion!$C$10,CalculationsAndCharts!$A40+$A$11,(X$32-4)*3+2,1,1) -> 0.8486648788 | Y40: =OFFSET(StochasticsSwamiVersion!$C$10,CalculationsAndCharts!$A40+$A$11,(Y$32-4)*3+2,1,1) -> 0.8533735959 | Z40: =OFFSET(StochasticsSwamiVersion!$C$10,CalculationsAndCharts!$A40+$A$11,(Z$32-4)*3+2,1,1) -> 0.8581619805 | AA40: =OFFSET(StochasticsSwamiVersion!$C$10,CalculationsAndCharts!$A40+$A$11,(AA$32-4)*3+2,1,1) -> 0.8634780608 | AB40: =OFFSET(StochasticsSwamiVersion!$C$10,CalculationsAndCharts!$A40+$A$11,(AB$32-4)*3+2,1,1) -> 0.8671502406 | AC40: =OFFSET(StochasticsSwamiVersion!$C$10,CalculationsAndCharts!$A40+$A$11,(AC$32-4)*3+2,1,1) -> 0.8693622164 | AD40: =OFFSET(StochasticsSwamiVersion!$C$10,CalculationsAndCharts!$A40+$A$11,(AD$32-4)*3+2,1,1) -> 0.8693344456 | AE40: =OFFSET(StochasticsSwamiVersion!$C$10,CalculationsAndCharts!$A40+$A$11,(AE$32-4)*3+2,1,1) -> 0.867696609 | AF40: =OFFSET(StochasticsSwamiVersion!$C$10,CalculationsAndCharts!$A40+$A$11,(AF$32-4)*3+2,1,1) -> 0.865609724 | AG40: =OFFSET(StochasticsSwamiVersion!$C$10,CalculationsAndCharts!$A40+$A$11,(AG$32-4)*3+2,1,1) -> 0.8629134234 | AH40: =OFFSET(StochasticsSwamiVersion!$C$10,CalculationsAndCharts!$A40+$A$11,(AH$32-4)*3+2,1,1) -> 0.8591625373 | AI40: =OFFSET(StochasticsSwamiVersion!$C$10,CalculationsAndCharts!$A40+$A$11,(AI$32-4)*3+2,1,1) -> 0.8542284643 | AJ40: =OFFSET(StochasticsSwamiVersion!$C$10,CalculationsAndCharts!$A40+$A$11,(AJ$32-4)*3+2,1,1) -> 0.8478782933 | AK40: =OFFSET(StochasticsSwamiVersion!$C$10,CalculationsAndCharts!$A40+$A$11,(AK$32-4)*3+2,1,1) -> 0.8429338358 | AL40: =OFFSET(StochasticsSwamiVersion!$C$10,CalculationsAndCharts!$A40+$A$11,(AL$32-4)*3+2,1,1) -> 0.8376016214 | AM40: =OFFSET(StochasticsSwamiVersion!$C$10,CalculationsAndCharts!$A40+$A$11,(AM$32-4)*3+2,1,1) -> 0.8313644157 | AN40: =OFFSET(StochasticsSwamiVersion!$C$10,CalculationsAndCharts!$A40+$A$11,(AN$32-4)*3+2,1,1) -> 0.8241754162 | AO40: =OFFSET(StochasticsSwamiVersion!$C$10,CalculationsAndCharts!$A40+$A$11,(AO$32-4)*3+2,1,1) -> 0.8165057127 | AP40: =OFFSET(StochasticsSwamiVersion!$C$10,CalculationsAndCharts!$A40+$A$11,(AP$32-4)*3+2,1,1) -> 0.8141790661 | AQ40: =OFFSET(StochasticsSwamiVersion!$C$10,CalculationsAndCharts!$A40+$A$11,(AQ$32-4)*3+2,1,1) -> 0.8110360032 | AR40: =OFFSET(StochasticsSwamiVersion!$C$10,CalculationsAndCharts!$A40+$A$11,(AR$32-4)*3+2,1,1) -> 0.8069357198 | AS40: =OFFSET(StochasticsSwamiVersion!$C$10,CalculationsAndCharts!$A40+$A$11,(AS$32-4)*3+2,1,1) -> 0.8018796225 | AT40: =OFFSET(StochasticsSwamiVersion!$C$10,CalculationsAndCharts!$A40+$A$11,(AT$32-4)*3+2,1,1) -> 0.7960131917 | AU40: =OFFSET(StochasticsSwamiVersion!$C$10,CalculationsAndCharts!$A40+$A$11,(AU$32-4)*3+2,1,1) -> 0.7893930935 | AV40: =OFFSET(StochasticsSwamiVersion!$C$10,CalculationsAndCharts!$A40+$A$11,(AV$32-4)*3+2,1,1) -> 0.7828107248 | AW40: =OFFSET(StochasticsSwamiVersion!$C$10,CalculationsAndCharts!$A40+$A$11,(AW$32-4)*3+2,1,1) -> 0.7809421297 | AX40: =OFFSET(StochasticsSwamiVersion!$C$10,CalculationsAndCharts!$A40+$A$11,(AX$32-4)*3+2,1,1) -> 0.7814995838 | AY40: =OFFSET(StochasticsSwamiVersion!$C$10,CalculationsAndCharts!$A40+$A$11,(AY$32-4)*3+2,1,1) -> 0.7825730213 | AZ40: =OFFSET(StochasticsSwamiVersion!$C$10,CalculationsAndCharts!$A40+$A$11,(AZ$32-4)*3+2,1,1) -> 0.7840519541
A41: 9 | B41: =OFFSET(InputPriceData!B$10,CalculationsAndCharts!$A41+$A$11,0,1,1) -> 2011-12-30 | C41: =OFFSET(InputPriceData!G$10,CalculationsAndCharts!$A41+$A$11,0,1,1) -> 95599000 | D41: =OFFSET(InputPriceData!C$10,CalculationsAndCharts!$A41+$A$11,0,1,1) -> 126.02 | E41: =OFFSET(InputPriceData!D$10,CalculationsAndCharts!$A41+$A$11,0,1,1) -> 126.33 | F41: =OFFSET(InputPriceData!E$10,CalculationsAndCharts!$A41+$A$11,0,1,1) -> 125.5 | G41: =OFFSET(InputPriceData!F$10,CalculationsAndCharts!$A41+$A$11,0,1,1) -> 125.5 | H41: =OFFSET(StochasticsSwamiVersion!$C$10,CalculationsAndCharts!$A41+$A$11,(H$32-4)*3+2,1,1) -> 0.6706092331 | I41: =OFFSET(StochasticsSwamiVersion!$C$10,CalculationsAndCharts!$A41+$A$11,(I$32-4)*3+2,1,1) -> 0.6890080012 | J41: =OFFSET(StochasticsSwamiVersion!$C$10,CalculationsAndCharts!$A41+$A$11,(J$32-4)*3+2,1,1) -> 0.7117035195 | K41: =OFFSET(StochasticsSwamiVersion!$C$10,CalculationsAndCharts!$A41+$A$11,(K$32-4)*3+2,1,1) -> 0.7376540487 | L41: =OFFSET(StochasticsSwamiVersion!$C$10,CalculationsAndCharts!$A41+$A$11,(L$32-4)*3+2,1,1) -> 0.748590482 | M41: =OFFSET(StochasticsSwamiVersion!$C$10,CalculationsAndCharts!$A41+$A$11,(M$32-4)*3+2,1,1) -> 0.7515409637 | N41: =OFFSET(StochasticsSwamiVersion!$C$10,CalculationsAndCharts!$A41+$A$11,(N$32-4)*3+2,1,1) -> 0.7547593505 | O41: =OFFSET(StochasticsSwamiVersion!$C$10,CalculationsAndCharts!$A41+$A$11,(O$32-4)*3+2,1,1) -> 0.7566045272 | P41: =OFFSET(StochasticsSwamiVersion!$C$10,CalculationsAndCharts!$A41+$A$11,(P$32-4)*3+2,1,1) -> 0.7558701056 | Q41: =OFFSET(StochasticsSwamiVersion!$C$10,CalculationsAndCharts!$A41+$A$11,(Q$32-4)*3+2,1,1) -> 0.7647137823 | R41: =OFFSET(StochasticsSwamiVersion!$C$10,CalculationsAndCharts!$A41+$A$11,(R$32-4)*3+2,1,1) -> 0.7755987125 | S41: =OFFSET(StochasticsSwamiVersion!$C$10,CalculationsAndCharts!$A41+$A$11,(S$32-4)*3+2,1,1) -> 0.7853847012 | T41: =OFFSET(StochasticsSwamiVersion!$C$10,CalculationsAndCharts!$A41+$A$11,(T$32-4)*3+2,1,1) -> 0.7954832162 | U41: =OFFSET(StochasticsSwamiVersion!$C$10,CalculationsAndCharts!$A41+$A$11,(U$32-4)*3+2,1,1) -> 0.8053275792 | V41: =OFFSET(StochasticsSwamiVersion!$C$10,CalculationsAndCharts!$A41+$A$11,(V$32-4)*3+2,1,1) -> 0.8136949988 | W41: =OFFSET(StochasticsSwamiVersion!$C$10,CalculationsAndCharts!$A41+$A$11,(W$32-4)*3+2,1,1) -> 0.8205752746 | X41: =OFFSET(StochasticsSwamiVersion!$C$10,CalculationsAndCharts!$A41+$A$11,(X$32-4)*3+2,1,1) -> 0.8263414346 | Y41: =OFFSET(StochasticsSwamiVersion!$C$10,CalculationsAndCharts!$A41+$A$11,(Y$32-4)*3+2,1,1) -> 0.8319479663 | Z41: =OFFSET(StochasticsSwamiVersion!$C$10,CalculationsAndCharts!$A41+$A$11,(Z$32-4)*3+2,1,1) -> 0.8374038743 | AA41: =OFFSET(StochasticsSwamiVersion!$C$10,CalculationsAndCharts!$A41+$A$11,(AA$32-4)*3+2,1,1) -> 0.8430931794 | AB41: =OFFSET(StochasticsSwamiVersion!$C$10,CalculationsAndCharts!$A41+$A$11,(AB$32-4)*3+2,1,1) -> 0.8461019258 | AC41: =OFFSET(StochasticsSwamiVersion!$C$10,CalculationsAndCharts!$A41+$A$11,(AC$32-4)*3+2,1,1) -> 0.8476114192 | AD41: =OFFSET(StochasticsSwamiVersion!$C$10,CalculationsAndCharts!$A41+$A$11,(AD$32-4)*3+2,1,1) -> 0.8459733124 | AE41: =OFFSET(StochasticsSwamiVersion!$C$10,CalculationsAndCharts!$A41+$A$11,(AE$32-4)*3+2,1,1) -> 0.8439319354 | AF41: =OFFSET(StochasticsSwamiVersion!$C$10,CalculationsAndCharts!$A41+$A$11,(AF$32-4)*3+2,1,1) -> 0.8413351659 | AG41: =OFFSET(StochasticsSwamiVersion!$C$10,CalculationsAndCharts!$A41+$A$11,(AG$32-4)*3+2,1,1) -> 0.83798846 | AH41: =OFFSET(StochasticsSwamiVersion!$C$10,CalculationsAndCharts!$A41+$A$11,(AH$32-4)*3+2,1,1) -> 0.8333471782 | AI41: =OFFSET(StochasticsSwamiVersion!$C$10,CalculationsAndCharts!$A41+$A$11,(AI$32-4)*3+2,1,1) -> 0.8272741829 | AJ41: =OFFSET(StochasticsSwamiVersion!$C$10,CalculationsAndCharts!$A41+$A$11,(AJ$32-4)*3+2,1,1) -> 0.8195254379 | AK41: =OFFSET(StochasticsSwamiVersion!$C$10,CalculationsAndCharts!$A41+$A$11,(AK$32-4)*3+2,1,1) -> 0.8135706768 | AL41: =OFFSET(StochasticsSwamiVersion!$C$10,CalculationsAndCharts!$A41+$A$11,(AL$32-4)*3+2,1,1) -> 0.8072901912 | AM41: =OFFSET(StochasticsSwamiVersion!$C$10,CalculationsAndCharts!$A41+$A$11,(AM$32-4)*3+2,1,1) -> 0.8002595608 | AN41: =OFFSET(StochasticsSwamiVersion!$C$10,CalculationsAndCharts!$A41+$A$11,(AN$32-4)*3+2,1,1) -> 0.7927904765 | AO41: =OFFSET(StochasticsSwamiVersion!$C$10,CalculationsAndCharts!$A41+$A$11,(AO$32-4)*3+2,1,1) -> 0.7861806033 | AP41: =OFFSET(StochasticsSwamiVersion!$C$10,CalculationsAndCharts!$A41+$A$11,(AP$32-4)*3+2,1,1) -> 0.7833299223 | AQ41: =OFFSET(StochasticsSwamiVersion!$C$10,CalculationsAndCharts!$A41+$A$11,(AQ$32-4)*3+2,1,1) -> 0.7795162633 | AR41: =OFFSET(StochasticsSwamiVersion!$C$10,CalculationsAndCharts!$A41+$A$11,(AR$32-4)*3+2,1,1) -> 0.7746209093 | AS41: =OFFSET(StochasticsSwamiVersion!$C$10,CalculationsAndCharts!$A41+$A$11,(AS$32-4)*3+2,1,1) -> 0.7687594357 | AT41: =OFFSET(StochasticsSwamiVersion!$C$10,CalculationsAndCharts!$A41+$A$11,(AT$32-4)*3+2,1,1) -> 0.7623383214 | AU41: =OFFSET(StochasticsSwamiVersion!$C$10,CalculationsAndCharts!$A41+$A$11,(AU$32-4)*3+2,1,1) -> 0.7558658505 | AV41: =OFFSET(StochasticsSwamiVersion!$C$10,CalculationsAndCharts!$A41+$A$11,(AV$32-4)*3+2,1,1) -> 0.7511606719 | AW41: =OFFSET(StochasticsSwamiVersion!$C$10,CalculationsAndCharts!$A41+$A$11,(AW$32-4)*3+2,1,1) -> 0.7516679542 | AX41: =OFFSET(StochasticsSwamiVersion!$C$10,CalculationsAndCharts!$A41+$A$11,(AX$32-4)*3+2,1,1) -> 0.7526404939 | AY41: =OFFSET(StochasticsSwamiVersion!$C$10,CalculationsAndCharts!$A41+$A$11,(AY$32-4)*3+2,1,1) -> 0.7539821159 | AZ41: =OFFSET(StochasticsSwamiVersion!$C$10,CalculationsAndCharts!$A41+$A$11,(AZ$32-4)*3+2,1,1) -> 0.7558304321
A42: 10 | B42: =OFFSET(InputPriceData!B$10,CalculationsAndCharts!$A42+$A$11,0,1,1) -> 2011-12-29 | C42: =OFFSET(InputPriceData!G$10,CalculationsAndCharts!$A42+$A$11,0,1,1) -> 123507200 | D42: =OFFSET(InputPriceData!C$10,CalculationsAndCharts!$A42+$A$11,0,1,1) -> 125.24 | E42: =OFFSET(InputPriceData!D$10,CalculationsAndCharts!$A42+$A$11,0,1,1) -> 126.25 | F42: =OFFSET(InputPriceData!E$10,CalculationsAndCharts!$A42+$A$11,0,1,1) -> 124.86 | G42: =OFFSET(InputPriceData!F$10,CalculationsAndCharts!$A42+$A$11,0,1,1) -> 126.12 | H42: =OFFSET(StochasticsSwamiVersion!$C$10,CalculationsAndCharts!$A42+$A$11,(H$32-4)*3+2,1,1) -> 0.6992722984 | I42: =OFFSET(StochasticsSwamiVersion!$C$10,CalculationsAndCharts!$A42+$A$11,(I$32-4)*3+2,1,1) -> 0.7108868404 | J42: =OFFSET(StochasticsSwamiVersion!$C$10,CalculationsAndCharts!$A42+$A$11,(J$32-4)*3+2,1,1) -> 0.7222983154 | K42: =OFFSET(StochasticsSwamiVersion!$C$10,CalculationsAndCharts!$A42+$A$11,(K$32-4)*3+2,1,1) -> 0.733725801 | L42: =OFFSET(StochasticsSwamiVersion!$C$10,CalculationsAndCharts!$A42+$A$11,(L$32-4)*3+2,1,1) -> 0.7329820061 | M42: =OFFSET(StochasticsSwamiVersion!$C$10,CalculationsAndCharts!$A42+$A$11,(M$32-4)*3+2,1,1) -> 0.723033356 | N42: =OFFSET(StochasticsSwamiVersion!$C$10,CalculationsAndCharts!$A42+$A$11,(N$32-4)*3+2,1,1) -> 0.7271466221 | O42: =OFFSET(StochasticsSwamiVersion!$C$10,CalculationsAndCharts!$A42+$A$11,(O$32-4)*3+2,1,1) -> 0.7296339982 | P42: =OFFSET(StochasticsSwamiVersion!$C$10,CalculationsAndCharts!$A42+$A$11,(P$32-4)*3+2,1,1) -> 0.7290730795 | Q42: =OFFSET(StochasticsSwamiVersion!$C$10,CalculationsAndCharts!$A42+$A$11,(Q$32-4)*3+2,1,1) -> 0.7401204625 | R42: =OFFSET(StochasticsSwamiVersion!$C$10,CalculationsAndCharts!$A42+$A$11,(R$32-4)*3+2,1,1) -> 0.753712136 | S42: =OFFSET(StochasticsSwamiVersion!$C$10,CalculationsAndCharts!$A42+$A$11,(S$32-4)*3+2,1,1) -> 0.7659230183 | T42: =OFFSET(StochasticsSwamiVersion!$C$10,CalculationsAndCharts!$A42+$A$11,(T$32-4)*3+2,1,1) -> 0.7785030279 | U42: =OFFSET(StochasticsSwamiVersion!$C$10,CalculationsAndCharts!$A42+$A$11,(U$32-4)*3+2,1,1) -> 0.7907225343 | V42: =OFFSET(StochasticsSwamiVersion!$C$10,CalculationsAndCharts!$A42+$A$11,(V$32-4)*3+2,1,1) -> 0.8010111009 | W42: =OFFSET(StochasticsSwamiVersion!$C$10,CalculationsAndCharts!$A42+$A$11,(W$32-4)*3+2,1,1) -> 0.8092751134 | X42: =OFFSET(StochasticsSwamiVersion!$C$10,CalculationsAndCharts!$A42+$A$11,(X$32-4)*3+2,1,1) -> 0.8158297901 | Y42: =OFFSET(StochasticsSwamiVersion!$C$10,CalculationsAndCharts!$A42+$A$11,(Y$32-4)*3+2,1,1) -> 0.8216053031 | Z42: =OFFSET(StochasticsSwamiVersion!$C$10,CalculationsAndCharts!$A42+$A$11,(Z$32-4)*3+2,1,1) -> 0.82621771 | AA42: =OFFSET(StochasticsSwamiVersion!$C$10,CalculationsAndCharts!$A42+$A$11,(AA$32-4)*3+2,1,1) -> 0.8297248213 | AB42: =OFFSET(StochasticsSwamiVersion!$C$10,CalculationsAndCharts!$A42+$A$11,(AB$32-4)*3+2,1,1) -> 0.8306649936 | AC42: =OFFSET(StochasticsSwamiVersion!$C$10,CalculationsAndCharts!$A42+$A$11,(AC$32-4)*3+2,1,1) -> 0.8290014514 | AD42: =OFFSET(StochasticsSwamiVersion!$C$10,CalculationsAndCharts!$A42+$A$11,(AD$32-4)*3+2,1,1) -> 0.8269597553 | AE42: =OFFSET(StochasticsSwamiVersion!$C$10,CalculationsAndCharts!$A42+$A$11,(AE$32-4)*3+2,1,1) -> 0.8244199079 | AF42: =OFFSET(StochasticsSwamiVersion!$C$10,CalculationsAndCharts!$A42+$A$11,(AF$32-4)*3+2,1,1) -> 0.82119769 | AG42: =OFFSET(StochasticsSwamiVersion!$C$10,CalculationsAndCharts!$A42+$A$11,(AG$32-4)*3+2,1,1) -> 0.817061781 | AH42: =OFFSET(StochasticsSwamiVersion!$C$10,CalculationsAndCharts!$A42+$A$11,(AH$32-4)*3+2,1,1) -> 0.8113550669 | AI42: =OFFSET(StochasticsSwamiVersion!$C$10,CalculationsAndCharts!$A42+$A$11,(AI$32-4)*3+2,1,1) -> 0.8039533646 | AJ42: =OFFSET(StochasticsSwamiVersion!$C$10,CalculationsAndCharts!$A42+$A$11,(AJ$32-4)*3+2,1,1) -> 0.7946455828 | AK42: =OFFSET(StochasticsSwamiVersion!$C$10,CalculationsAndCharts!$A42+$A$11,(AK$32-4)*3+2,1,1) -> 0.7876531555 | AL42: =OFFSET(StochasticsSwamiVersion!$C$10,CalculationsAndCharts!$A42+$A$11,(AL$32-4)*3+2,1,1) -> 0.7805689708 | AM42: =OFFSET(StochasticsSwamiVersion!$C$10,CalculationsAndCharts!$A42+$A$11,(AM$32-4)*3+2,1,1) -> 0.7732982599 | AN42: =OFFSET(StochasticsSwamiVersion!$C$10,CalculationsAndCharts!$A42+$A$11,(AN$32-4)*3+2,1,1) -> 0.7669373887 | AO42: =OFFSET(StochasticsSwamiVersion!$C$10,CalculationsAndCharts!$A42+$A$11,(AO$32-4)*3+2,1,1) -> 0.764398006 | AP42: =OFFSET(StochasticsSwamiVersion!$C$10,CalculationsAndCharts!$A42+$A$11,(AP$32-4)*3+2,1,1) -> 0.7609439404 | AQ42: =OFFSET(StochasticsSwamiVersion!$C$10,CalculationsAndCharts!$A42+$A$11,(AQ$32-4)*3+2,1,1) -> 0.75639511 | AR42: =OFFSET(StochasticsSwamiVersion!$C$10,CalculationsAndCharts!$A42+$A$11,(AR$32-4)*3+2,1,1) -> 0.7507110971 | AS42: =OFFSET(StochasticsSwamiVersion!$C$10,CalculationsAndCharts!$A42+$A$11,(AS$32-4)*3+2,1,1) -> 0.7442494226 | AT42: =OFFSET(StochasticsSwamiVersion!$C$10,CalculationsAndCharts!$A42+$A$11,(AT$32-4)*3+2,1,1) -> 0.7379328835 | AU42: =OFFSET(StochasticsSwamiVersion!$C$10,CalculationsAndCharts!$A42+$A$11,(AU$32-4)*3+2,1,1) -> 0.7331823062 | AV42: =OFFSET(StochasticsSwamiVersion!$C$10,CalculationsAndCharts!$A42+$A$11,(AV$32-4)*3+2,1,1) -> 0.7336788828 | AW42: =OFFSET(StochasticsSwamiVersion!$C$10,CalculationsAndCharts!$A42+$A$11,(AW$32-4)*3+2,1,1) -> 0.734565009 | AX42: =OFFSET(StochasticsSwamiVersion!$C$10,CalculationsAndCharts!$A42+$A$11,(AX$32-4)*3+2,1,1) -> 0.7357803783 | AY42: =OFFSET(StochasticsSwamiVersion!$C$10,CalculationsAndCharts!$A42+$A$11,(AY$32-4)*3+2,1,1) -> 0.737456795 | AZ42: =OFFSET(StochasticsSwamiVersion!$C$10,CalculationsAndCharts!$A42+$A$11,(AZ$32-4)*3+2,1,1) -> 0.7397659689
A43: 11 | B43: =OFFSET(InputPriceData!B$10,CalculationsAndCharts!$A43+$A$11,0,1,1) -> 2011-12-28 | C43: =OFFSET(InputPriceData!G$10,CalculationsAndCharts!$A43+$A$11,0,1,1) -> 119107100 | D43: =OFFSET(InputPriceData!C$10,CalculationsAndCharts!$A43+$A$11,0,1,1) -> 126.51 | E43: =OFFSET(InputPriceData!D$10,CalculationsAndCharts!$A43+$A$11,0,1,1) -> 126.53 | F43: =OFFSET(InputPriceData!E$10,CalculationsAndCharts!$A43+$A$11,0,1,1) -> 124.73 | G43: =OFFSET(InputPriceData!F$10,CalculationsAndCharts!$A43+$A$11,0,1,1) -> 124.83 | H43: =OFFSET(StochasticsSwamiVersion!$C$10,CalculationsAndCharts!$A43+$A$11,(H$32-4)*3+2,1,1) -> 0.7026284889 | I43: =OFFSET(StochasticsSwamiVersion!$C$10,CalculationsAndCharts!$A43+$A$11,(I$32-4)*3+2,1,1) -> 0.7036781387 | J43: =OFFSET(StochasticsSwamiVersion!$C$10,CalculationsAndCharts!$A43+$A$11,(J$32-4)*3+2,1,1) -> 0.7014005813 | K43: =OFFSET(StochasticsSwamiVersion!$C$10,CalculationsAndCharts!$A43+$A$11,(K$32-4)*3+2,1,1) -> 0.7043402699 | L43: =OFFSET(StochasticsSwamiVersion!$C$10,CalculationsAndCharts!$A43+$A$11,(L$32-4)*3+2,1,1) -> 0.6927230524 | M43: =OFFSET(StochasticsSwamiVersion!$C$10,CalculationsAndCharts!$A43+$A$11,(M$32-4)*3+2,1,1) -> 0.6810036027 | N43: =OFFSET(StochasticsSwamiVersion!$C$10,CalculationsAndCharts!$A43+$A$11,(N$32-4)*3+2,1,1) -> 0.6863329392 | O43: =OFFSET(StochasticsSwamiVersion!$C$10,CalculationsAndCharts!$A43+$A$11,(O$32-4)*3+2,1,1) -> 0.6898175754 | P43: =OFFSET(StochasticsSwamiVersion!$C$10,CalculationsAndCharts!$A43+$A$11,(P$32-4)*3+2,1,1) -> 0.689854777 | Q43: =OFFSET(StochasticsSwamiVersion!$C$10,CalculationsAndCharts!$A43+$A$11,(Q$32-4)*3+2,1,1) -> 0.7036519697 | R43: =OFFSET(StochasticsSwamiVersion!$C$10,CalculationsAndCharts!$A43+$A$11,(R$32-4)*3+2,1,1) -> 0.7206173709 | S43: =OFFSET(StochasticsSwamiVersion!$C$10,CalculationsAndCharts!$A43+$A$11,(S$32-4)*3+2,1,1) -> 0.7358449457 | T43: =OFFSET(StochasticsSwamiVersion!$C$10,CalculationsAndCharts!$A43+$A$11,(T$32-4)*3+2,1,1) -> 0.7514981571 | U43: =OFFSET(StochasticsSwamiVersion!$C$10,CalculationsAndCharts!$A43+$A$11,(U$32-4)*3+2,1,1) -> 0.7666300113 | V43: =OFFSET(StochasticsSwamiVersion!$C$10,CalculationsAndCharts!$A43+$A$11,(V$32-4)*3+2,1,1) -> 0.7792097052 | W43: =OFFSET(StochasticsSwamiVersion!$C$10,CalculationsAndCharts!$A43+$A$11,(W$32-4)*3+2,1,1) -> 0.7889941557 | X43: =OFFSET(StochasticsSwamiVersion!$C$10,CalculationsAndCharts!$A43+$A$11,(X$32-4)*3+2,1,1) -> 0.7961578936 | Y43: =OFFSET(StochasticsSwamiVersion!$C$10,CalculationsAndCharts!$A43+$A$11,(Y$32-4)*3+2,1,1) -> 0.8015340118 | Z43: =OFFSET(StochasticsSwamiVersion!$C$10,CalculationsAndCharts!$A43+$A$11,(Z$32-4)*3+2,1,1) -> 0.8042914091 | AA43: =OFFSET(StochasticsSwamiVersion!$C$10,CalculationsAndCharts!$A43+$A$11,(AA$32-4)*3+2,1,1) -> 0.8063229028 | AB43: =OFFSET(StochasticsSwamiVersion!$C$10,CalculationsAndCharts!$A43+$A$11,(AB$32-4)*3+2,1,1) -> 0.8045391601 | AC43: =OFFSET(StochasticsSwamiVersion!$C$10,CalculationsAndCharts!$A43+$A$11,(AC$32-4)*3+2,1,1) -> 0.8024657658 | AD43: =OFFSET(StochasticsSwamiVersion!$C$10,CalculationsAndCharts!$A43+$A$11,(AD$32-4)*3+2,1,1) -> 0.7999257113 | AE43: =OFFSET(StochasticsSwamiVersion!$C$10,CalculationsAndCharts!$A43+$A$11,(AE$32-4)*3+2,1,1) -> 0.7967750296 | AF43: =OFFSET(StochasticsSwamiVersion!$C$10,CalculationsAndCharts!$A43+$A$11,(AF$32-4)*3+2,1,1) -> 0.7927954976 | AG43: =OFFSET(StochasticsSwamiVersion!$C$10,CalculationsAndCharts!$A43+$A$11,(AG$32-4)*3+2,1,1) -> 0.7877220322 | AH43: =OFFSET(StochasticsSwamiVersion!$C$10,CalculationsAndCharts!$A43+$A$11,(AH$32-4)*3+2,1,1) -> 0.7807812426 | AI43: =OFFSET(StochasticsSwamiVersion!$C$10,CalculationsAndCharts!$A43+$A$11,(AI$32-4)*3+2,1,1) -> 0.7719133699 | AJ43: =OFFSET(StochasticsSwamiVersion!$C$10,CalculationsAndCharts!$A43+$A$11,(AJ$32-4)*3+2,1,1) -> 0.76104337 | AK43: =OFFSET(StochasticsSwamiVersion!$C$10,CalculationsAndCharts!$A43+$A$11,(AK$32-4)*3+2,1,1) -> 0.7532116609 | AL43: =OFFSET(StochasticsSwamiVersion!$C$10,CalculationsAndCharts!$A43+$A$11,(AL$32-4)*3+2,1,1) -> 0.7458926728 | AM43: =OFFSET(StochasticsSwamiVersion!$C$10,CalculationsAndCharts!$A43+$A$11,(AM$32-4)*3+2,1,1) -> 0.7398163659 | AN43: =OFFSET(StochasticsSwamiVersion!$C$10,CalculationsAndCharts!$A43+$A$11,(AN$32-4)*3+2,1,1) -> 0.7376586262 | AO43: =OFFSET(StochasticsSwamiVersion!$C$10,CalculationsAndCharts!$A43+$A$11,(AO$32-4)*3+2,1,1) -> 0.7345950278 | AP43: =OFFSET(StochasticsSwamiVersion!$C$10,CalculationsAndCharts!$A43+$A$11,(AP$32-4)*3+2,1,1) -> 0.7304983737 | AQ43: =OFFSET(StochasticsSwamiVersion!$C$10,CalculationsAndCharts!$A43+$A$11,(AQ$32-4)*3+2,1,1) -> 0.7252528683 | AR43: =OFFSET(StochasticsSwamiVersion!$C$10,CalculationsAndCharts!$A43+$A$11,(AR$32-4)*3+2,1,1) -> 0.7190236615 | AS43: =OFFSET(StochasticsSwamiVersion!$C$10,CalculationsAndCharts!$A43+$A$11,(AS$32-4)*3+2,1,1) -> 0.7126774542 | AT43: =OFFSET(StochasticsSwamiVersion!$C$10,CalculationsAndCharts!$A43+$A$11,(AT$32-4)*3+2,1,1) -> 0.7081628753 | AU43: =OFFSET(StochasticsSwamiVersion!$C$10,CalculationsAndCharts!$A43+$A$11,(AU$32-4)*3+2,1,1) -> 0.7086811566 | AV43: =OFFSET(StochasticsSwamiVersion!$C$10,CalculationsAndCharts!$A43+$A$11,(AV$32-4)*3+2,1,1) -> 0.709557011 | AW43: =OFFSET(StochasticsSwamiVersion!$C$10,CalculationsAndCharts!$A43+$A$11,(AW$32-4)*3+2,1,1) -> 0.7106643805 | AX43: =OFFSET(StochasticsSwamiVersion!$C$10,CalculationsAndCharts!$A43+$A$11,(AX$32-4)*3+2,1,1) -> 0.7121830156 | AY43: =OFFSET(StochasticsSwamiVersion!$C$10,CalculationsAndCharts!$A43+$A$11,(AY$32-4)*3+2,1,1) -> 0.7142773836 | AZ43: =OFFSET(StochasticsSwamiVersion!$C$10,CalculationsAndCharts!$A43+$A$11,(AZ$32-4)*3+2,1,1) -> 0.7171615453
A44: 12 | B44: =OFFSET(InputPriceData!B$10,CalculationsAndCharts!$A44+$A$11,0,1,1) -> 2011-12-27 | C44: =OFFSET(InputPriceData!G$10,CalculationsAndCharts!$A44+$A$11,0,1,1) -> 86075700 | D44: =OFFSET(InputPriceData!C$10,CalculationsAndCharts!$A44+$A$11,0,1,1) -> 126.17 | E44: =OFFSET(InputPriceData!D$10,CalculationsAndCharts!$A44+$A$11,0,1,1) -> 126.82 | F44: =OFFSET(InputPriceData!E$10,CalculationsAndCharts!$A44+$A$11,0,1,1) -> 126.06 | G44: =OFFSET(InputPriceData!F$10,CalculationsAndCharts!$A44+$A$11,0,1,1) -> 126.49 | H44: =OFFSET(StochasticsSwamiVersion!$C$10,CalculationsAndCharts!$A44+$A$11,(H$32-4)*3+2,1,1) -> 0.7237778244 | I44: =OFFSET(StochasticsSwamiVersion!$C$10,CalculationsAndCharts!$A44+$A$11,(I$32-4)*3+2,1,1) -> 0.6996841441 | J44: =OFFSET(StochasticsSwamiVersion!$C$10,CalculationsAndCharts!$A44+$A$11,(J$32-4)*3+2,1,1) -> 0.6801301291 | K44: =OFFSET(StochasticsSwamiVersion!$C$10,CalculationsAndCharts!$A44+$A$11,(K$32-4)*3+2,1,1) -> 0.6680582888 | L44: =OFFSET(StochasticsSwamiVersion!$C$10,CalculationsAndCharts!$A44+$A$11,(L$32-4)*3+2,1,1) -> 0.6543632264 | M44: =OFFSET(StochasticsSwamiVersion!$C$10,CalculationsAndCharts!$A44+$A$11,(M$32-4)*3+2,1,1) -> 0.641086705 | N44: =OFFSET(StochasticsSwamiVersion!$C$10,CalculationsAndCharts!$A44+$A$11,(N$32-4)*3+2,1,1) -> 0.6481041936 | O44: =OFFSET(StochasticsSwamiVersion!$C$10,CalculationsAndCharts!$A44+$A$11,(O$32-4)*3+2,1,1) -> 0.6531704555 | P44: =OFFSET(StochasticsSwamiVersion!$C$10,CalculationsAndCharts!$A44+$A$11,(P$32-4)*3+2,1,1) -> 0.6546095091 | Q44: =OFFSET(StochasticsSwamiVersion!$C$10,CalculationsAndCharts!$A44+$A$11,(Q$32-4)*3+2,1,1) -> 0.6718199752 | R44: =OFFSET(StochasticsSwamiVersion!$C$10,CalculationsAndCharts!$A44+$A$11,(R$32-4)*3+2,1,1) -> 0.6929545802 | S44: =OFFSET(StochasticsSwamiVersion!$C$10,CalculationsAndCharts!$A44+$A$11,(S$32-4)*3+2,1,1) -> 0.7118818146 | T44: =OFFSET(StochasticsSwamiVersion!$C$10,CalculationsAndCharts!$A44+$A$11,(T$32-4)*3+2,1,1) -> 0.7312354563 | U44: =OFFSET(StochasticsSwamiVersion!$C$10,CalculationsAndCharts!$A44+$A$11,(U$32-4)*3+2,1,1) -> 0.749730911 | V44: =OFFSET(StochasticsSwamiVersion!$C$10,CalculationsAndCharts!$A44+$A$11,(V$32-4)*3+2,1,1) -> 0.7646411314 | W44: =OFFSET(StochasticsSwamiVersion!$C$10,CalculationsAndCharts!$A44+$A$11,(W$32-4)*3+2,1,1) -> 0.7753353108 | X44: =OFFSET(StochasticsSwamiVersion!$C$10,CalculationsAndCharts!$A44+$A$11,(X$32-4)*3+2,1,1) -> 0.7815413639 | Y44: =OFFSET(StochasticsSwamiVersion!$C$10,CalculationsAndCharts!$A44+$A$11,(Y$32-4)*3+2,1,1) -> 0.7837810136 | Z44: =OFFSET(StochasticsSwamiVersion!$C$10,CalculationsAndCharts!$A44+$A$11,(Z$32-4)*3+2,1,1) -> 0.7837279066 | AA44: =OFFSET(StochasticsSwamiVersion!$C$10,CalculationsAndCharts!$A44+$A$11,(AA$32-4)*3+2,1,1) -> 0.7818702486 | AB44: =OFFSET(StochasticsSwamiVersion!$C$10,CalculationsAndCharts!$A44+$A$11,(AB$32-4)*3+2,1,1) -> 0.7796464257 | AC44: =OFFSET(StochasticsSwamiVersion!$C$10,CalculationsAndCharts!$A44+$A$11,(AC$32-4)*3+2,1,1) -> 0.7770663925 | AD44: =OFFSET(StochasticsSwamiVersion!$C$10,CalculationsAndCharts!$A44+$A$11,(AD$32-4)*3+2,1,1) -> 0.7739147405 | AE44: =OFFSET(StochasticsSwamiVersion!$C$10,CalculationsAndCharts!$A44+$A$11,(AE$32-4)*3+2,1,1) -> 0.7700232058 | AF44: =OFFSET(StochasticsSwamiVersion!$C$10,CalculationsAndCharts!$A44+$A$11,(AF$32-4)*3+2,1,1) -> 0.7651423674 | AG44: =OFFSET(StochasticsSwamiVersion!$C$10,CalculationsAndCharts!$A44+$A$11,(AG$32-4)*3+2,1,1) -> 0.7589874566 | AH44: =OFFSET(StochasticsSwamiVersion!$C$10,CalculationsAndCharts!$A44+$A$11,(AH$32-4)*3+2,1,1) -> 0.7506843851 | AI44: =OFFSET(StochasticsSwamiVersion!$C$10,CalculationsAndCharts!$A44+$A$11,(AI$32-4)*3+2,1,1) -> 0.7403416897 | AJ44: =OFFSET(StochasticsSwamiVersion!$C$10,CalculationsAndCharts!$A44+$A$11,(AJ$32-4)*3+2,1,1) -> 0.7282239083 | AK44: =OFFSET(StochasticsSwamiVersion!$C$10,CalculationsAndCharts!$A44+$A$11,(AK$32-4)*3+2,1,1) -> 0.7201684628 | AL44: =OFFSET(StochasticsSwamiVersion!$C$10,CalculationsAndCharts!$A44+$A$11,(AL$32-4)*3+2,1,1) -> 0.7139207667 | AM44: =OFFSET(StochasticsSwamiVersion!$C$10,CalculationsAndCharts!$A44+$A$11,(AM$32-4)*3+2,1,1) -> 0.7119051563 | AN44: =OFFSET(StochasticsSwamiVersion!$C$10,CalculationsAndCharts!$A44+$A$11,(AN$32-4)*3+2,1,1) -> 0.7093145329 | AO44: =OFFSET(StochasticsSwamiVersion!$C$10,CalculationsAndCharts!$A44+$A$11,(AO$32-4)*3+2,1,1) -> 0.7056978175 | AP44: =OFFSET(StochasticsSwamiVersion!$C$10,CalculationsAndCharts!$A44+$A$11,(AP$32-4)*3+2,1,1) -> 0.7010012909 | AQ44: =OFFSET(StochasticsSwamiVersion!$C$10,CalculationsAndCharts!$A44+$A$11,(AQ$32-4)*3+2,1,1) -> 0.6952879291 | AR44: =OFFSET(StochasticsSwamiVersion!$C$10,CalculationsAndCharts!$A44+$A$11,(AR$32-4)*3+2,1,1) -> 0.6891684921 | AS44: =OFFSET(StochasticsSwamiVersion!$C$10,CalculationsAndCharts!$A44+$A$11,(AS$32-4)*3+2,1,1) -> 0.6844921734 | AT44: =OFFSET(StochasticsSwamiVersion!$C$10,CalculationsAndCharts!$A44+$A$11,(AT$32-4)*3+2,1,1) -> 0.685067414 | AU44: =OFFSET(StochasticsSwamiVersion!$C$10,CalculationsAndCharts!$A44+$A$11,(AU$32-4)*3+2,1,1) -> 0.6859609622 | AV44: =OFFSET(StochasticsSwamiVersion!$C$10,CalculationsAndCharts!$A44+$A$11,(AV$32-4)*3+2,1,1) -> 0.68705544 | AW44: =OFFSET(StochasticsSwamiVersion!$C$10,CalculationsAndCharts!$A44+$A$11,(AW$32-4)*3+2,1,1) -> 0.6884389715 | AX44: =OFFSET(StochasticsSwamiVersion!$C$10,CalculationsAndCharts!$A44+$A$11,(AX$32-4)*3+2,1,1) -> 0.6903359047 | AY44: =OFFSET(StochasticsSwamiVersion!$C$10,CalculationsAndCharts!$A44+$A$11,(AY$32-4)*3+2,1,1) -> 0.6929511437 | AZ44: =OFFSET(StochasticsSwamiVersion!$C$10,CalculationsAndCharts!$A44+$A$11,(AZ$32-4)*3+2,1,1) -> 0.6965509044
A45: 13 | B45: =OFFSET(InputPriceData!B$10,CalculationsAndCharts!$A45+$A$11,0,1,1) -> 2011-12-23 | C45: =OFFSET(InputPriceData!G$10,CalculationsAndCharts!$A45+$A$11,0,1,1) -> 92187200 | D45: =OFFSET(InputPriceData!C$10,CalculationsAndCharts!$A45+$A$11,0,1,1) -> 125.67 | E45: =OFFSET(InputPriceData!D$10,CalculationsAndCharts!$A45+$A$11,0,1,1) -> 126.43 | F45: =OFFSET(InputPriceData!E$10,CalculationsAndCharts!$A45+$A$11,0,1,1) -> 125.41 | G45: =OFFSET(InputPriceData!F$10,CalculationsAndCharts!$A45+$A$11,0,1,1) -> 126.39 | H45: =OFFSET(StochasticsSwamiVersion!$C$10,CalculationsAndCharts!$A45+$A$11,(H$32-4)*3+2,1,1) -> 0.6588660495 | I45: =OFFSET(StochasticsSwamiVersion!$C$10,CalculationsAndCharts!$A45+$A$11,(I$32-4)*3+2,1,1) -> 0.6293932373 | J45: =OFFSET(StochasticsSwamiVersion!$C$10,CalculationsAndCharts!$A45+$A$11,(J$32-4)*3+2,1,1) -> 0.6048731494 | K45: =OFFSET(StochasticsSwamiVersion!$C$10,CalculationsAndCharts!$A45+$A$11,(K$32-4)*3+2,1,1) -> 0.591114416 | L45: =OFFSET(StochasticsSwamiVersion!$C$10,CalculationsAndCharts!$A45+$A$11,(L$32-4)*3+2,1,1) -> 0.5759640082 | M45: =OFFSET(StochasticsSwamiVersion!$C$10,CalculationsAndCharts!$A45+$A$11,(M$32-4)*3+2,1,1) -> 0.5626024706 | N45: =OFFSET(StochasticsSwamiVersion!$C$10,CalculationsAndCharts!$A45+$A$11,(N$32-4)*3+2,1,1) -> 0.5722169655 | O45: =OFFSET(StochasticsSwamiVersion!$C$10,CalculationsAndCharts!$A45+$A$11,(O$32-4)*3+2,1,1) -> 0.5802172 | P45: =OFFSET(StochasticsSwamiVersion!$C$10,CalculationsAndCharts!$A45+$A$11,(P$32-4)*3+2,1,1) -> 0.585233907 | Q45: =OFFSET(StochasticsSwamiVersion!$C$10,CalculationsAndCharts!$A45+$A$11,(Q$32-4)*3+2,1,1) -> 0.606717945 | R45: =OFFSET(StochasticsSwamiVersion!$C$10,CalculationsAndCharts!$A45+$A$11,(R$32-4)*3+2,1,1) -> 0.6330777745 | S45: =OFFSET(StochasticsSwamiVersion!$C$10,CalculationsAndCharts!$A45+$A$11,(S$32-4)*3+2,1,1) -> 0.6566503865 | T45: =OFFSET(StochasticsSwamiVersion!$C$10,CalculationsAndCharts!$A45+$A$11,(T$32-4)*3+2,1,1) -> 0.680672136 | U45: =OFFSET(StochasticsSwamiVersion!$C$10,CalculationsAndCharts!$A45+$A$11,(U$32-4)*3+2,1,1) -> 0.7034609789 | V45: =OFFSET(StochasticsSwamiVersion!$C$10,CalculationsAndCharts!$A45+$A$11,(V$32-4)*3+2,1,1) -> 0.7214749041 | W45: =OFFSET(StochasticsSwamiVersion!$C$10,CalculationsAndCharts!$A45+$A$11,(W$32-4)*3+2,1,1) -> 0.7337280918 | X45: =OFFSET(StochasticsSwamiVersion!$C$10,CalculationsAndCharts!$A45+$A$11,(X$32-4)*3+2,1,1) -> 0.7396731181 | Y45: =OFFSET(StochasticsSwamiVersion!$C$10,CalculationsAndCharts!$A45+$A$11,(Y$32-4)*3+2,1,1) -> 0.7410610108 | Z45: =OFFSET(StochasticsSwamiVersion!$C$10,CalculationsAndCharts!$A45+$A$11,(Z$32-4)*3+2,1,1) -> 0.7392259082 | AA45: =OFFSET(StochasticsSwamiVersion!$C$10,CalculationsAndCharts!$A45+$A$11,(AA$32-4)*3+2,1,1) -> 0.7369101121 | AB45: =OFFSET(StochasticsSwamiVersion!$C$10,CalculationsAndCharts!$A45+$A$11,(AB$32-4)*3+2,1,1) -> 0.7341428852 | AC45: =OFFSET(StochasticsSwamiVersion!$C$10,CalculationsAndCharts!$A45+$A$11,(AC$32-4)*3+2,1,1) -> 0.7309429433 | AD45: =OFFSET(StochasticsSwamiVersion!$C$10,CalculationsAndCharts!$A45+$A$11,(AD$32-4)*3+2,1,1) -> 0.7270535615 | AE45: =OFFSET(StochasticsSwamiVersion!$C$10,CalculationsAndCharts!$A45+$A$11,(AE$32-4)*3+2,1,1) -> 0.7222894471 | AF45: =OFFSET(StochasticsSwamiVersion!$C$10,CalculationsAndCharts!$A45+$A$11,(AF$32-4)*3+2,1,1) -> 0.716388756 | AG45: =OFFSET(StochasticsSwamiVersion!$C$10,CalculationsAndCharts!$A45+$A$11,(AG$32-4)*3+2,1,1) -> 0.7090948304 | AH45: =OFFSET(StochasticsSwamiVersion!$C$10,CalculationsAndCharts!$A45+$A$11,(AH$32-4)*3+2,1,1) -> 0.6995114365 | AI45: =OFFSET(StochasticsSwamiVersion!$C$10,CalculationsAndCharts!$A45+$A$11,(AI$32-4)*3+2,1,1) -> 0.6881582203 | AJ45: =OFFSET(StochasticsSwamiVersion!$C$10,CalculationsAndCharts!$A45+$A$11,(AJ$32-4)*3+2,1,1) -> 0.6760997833 | AK45: =OFFSET(StochasticsSwamiVersion!$C$10,CalculationsAndCharts!$A45+$A$11,(AK$32-4)*3+2,1,1) -> 0.6696237148 | AL45: =OFFSET(StochasticsSwamiVersion!$C$10,CalculationsAndCharts!$A45+$A$11,(AL$32-4)*3+2,1,1) -> 0.6677040075 | AM45: =OFFSET(StochasticsSwamiVersion!$C$10,CalculationsAndCharts!$A45+$A$11,(AM$32-4)*3+2,1,1) -> 0.6652969685 | AN45: =OFFSET(StochasticsSwamiVersion!$C$10,CalculationsAndCharts!$A45+$A$11,(AN$32-4)*3+2,1,1) -> 0.6622832998 | AO45: =OFFSET(StochasticsSwamiVersion!$C$10,CalculationsAndCharts!$A45+$A$11,(AO$32-4)*3+2,1,1) -> 0.6582102814 | AP45: =OFFSET(StochasticsSwamiVersion!$C$10,CalculationsAndCharts!$A45+$A$11,(AP$32-4)*3+2,1,1) -> 0.6532300313 | AQ45: =OFFSET(StochasticsSwamiVersion!$C$10,CalculationsAndCharts!$A45+$A$11,(AQ$32-4)*3+2,1,1) -> 0.6478480671 | AR45: =OFFSET(StochasticsSwamiVersion!$C$10,CalculationsAndCharts!$A45+$A$11,(AR$32-4)*3+2,1,1) -> 0.6436362255 | AS45: =OFFSET(StochasticsSwamiVersion!$C$10,CalculationsAndCharts!$A45+$A$11,(AS$32-4)*3+2,1,1) -> 0.6443549538 | AT45: =OFFSET(StochasticsSwamiVersion!$C$10,CalculationsAndCharts!$A45+$A$11,(AT$32-4)*3+2,1,1) -> 0.6453334048 | AU45: =OFFSET(StochasticsSwamiVersion!$C$10,CalculationsAndCharts!$A45+$A$11,(AU$32-4)*3+2,1,1) -> 0.6464500753 | AV45: =OFFSET(StochasticsSwamiVersion!$C$10,CalculationsAndCharts!$A45+$A$11,(AV$32-4)*3+2,1,1) -> 0.6478176429 | AW45: =OFFSET(StochasticsSwamiVersion!$C$10,CalculationsAndCharts!$A45+$A$11,(AW$32-4)*3+2,1,1) -> 0.6495459984 | AX45: =OFFSET(StochasticsSwamiVersion!$C$10,CalculationsAndCharts!$A45+$A$11,(AX$32-4)*3+2,1,1) -> 0.6519150472 | AY45: =OFFSET(StochasticsSwamiVersion!$C$10,CalculationsAndCharts!$A45+$A$11,(AY$32-4)*3+2,1,1) -> 0.6551798609 | AZ45: =OFFSET(StochasticsSwamiVersion!$C$10,CalculationsAndCharts!$A45+$A$11,(AZ$32-4)*3+2,1,1) -> 0.6596710949
A46: 14 | B46: =OFFSET(InputPriceData!B$10,CalculationsAndCharts!$A46+$A$11,0,1,1) -> 2011-12-22 | C46: =OFFSET(InputPriceData!G$10,CalculationsAndCharts!$A46+$A$11,0,1,1) -> 119465400 | D46: =OFFSET(InputPriceData!C$10,CalculationsAndCharts!$A46+$A$11,0,1,1) -> 124.63 | E46: =OFFSET(InputPriceData!D$10,CalculationsAndCharts!$A46+$A$11,0,1,1) -> 125.4 | F46: =OFFSET(InputPriceData!E$10,CalculationsAndCharts!$A46+$A$11,0,1,1) -> 124.23 | G46: =OFFSET(InputPriceData!F$10,CalculationsAndCharts!$A46+$A$11,0,1,1) -> 125.27 | H46: =OFFSET(StochasticsSwamiVersion!$C$10,CalculationsAndCharts!$A46+$A$11,(H$32-4)*3+2,1,1) -> 0.580643517 | I46: =OFFSET(StochasticsSwamiVersion!$C$10,CalculationsAndCharts!$A46+$A$11,(I$32-4)*3+2,1,1) -> 0.543900184 | J46: =OFFSET(StochasticsSwamiVersion!$C$10,CalculationsAndCharts!$A46+$A$11,(J$32-4)*3+2,1,1) -> 0.5163770408 | K46: =OFFSET(StochasticsSwamiVersion!$C$10,CalculationsAndCharts!$A46+$A$11,(K$32-4)*3+2,1,1) -> 0.50199993 | L46: =OFFSET(StochasticsSwamiVersion!$C$10,CalculationsAndCharts!$A46+$A$11,(L$32-4)*3+2,1,1) -> 0.4871677885 | M46: =OFFSET(StochasticsSwamiVersion!$C$10,CalculationsAndCharts!$A46+$A$11,(M$32-4)*3+2,1,1) -> 0.4770446681 | N46: =OFFSET(StochasticsSwamiVersion!$C$10,CalculationsAndCharts!$A46+$A$11,(N$32-4)*3+2,1,1) -> 0.490733433 | O46: =OFFSET(StochasticsSwamiVersion!$C$10,CalculationsAndCharts!$A46+$A$11,(O$32-4)*3+2,1,1) -> 0.50400166 | P46: =OFFSET(StochasticsSwamiVersion!$C$10,CalculationsAndCharts!$A46+$A$11,(P$32-4)*3+2,1,1) -> 0.5164416937 | Q46: =OFFSET(StochasticsSwamiVersion!$C$10,CalculationsAndCharts!$A46+$A$11,(Q$32-4)*3+2,1,1) -> 0.5431732877 | R46: =OFFSET(StochasticsSwamiVersion!$C$10,CalculationsAndCharts!$A46+$A$11,(R$32-4)*3+2,1,1) -> 0.5758775784 | S46: =OFFSET(StochasticsSwamiVersion!$C$10,CalculationsAndCharts!$A46+$A$11,(S$32-4)*3+2,1,1) -> 0.6049833049 | T46: =OFFSET(StochasticsSwamiVersion!$C$10,CalculationsAndCharts!$A46+$A$11,(T$32-4)*3+2,1,1) -> 0.6343123662 | U46: =OFFSET(StochasticsSwamiVersion!$C$10,CalculationsAndCharts!$A46+$A$11,(U$32-4)*3+2,1,1) -> 0.6614843882 | V46: =OFFSET(StochasticsSwamiVersion!$C$10,CalculationsAndCharts!$A46+$A$11,(V$32-4)*3+2,1,1) -> 0.6816594152 | W46: =OFFSET(StochasticsSwamiVersion!$C$10,CalculationsAndCharts!$A46+$A$11,(W$32-4)*3+2,1,1) -> 0.6931849007 | X46: =OFFSET(StochasticsSwamiVersion!$C$10,CalculationsAndCharts!$A46+$A$11,(X$32-4)*3+2,1,1) -> 0.697678401 | Y46: =OFFSET(StochasticsSwamiVersion!$C$10,CalculationsAndCharts!$A46+$A$11,(Y$32-4)*3+2,1,1) -> 0.6957508997 | Z46: =OFFSET(StochasticsSwamiVersion!$C$10,CalculationsAndCharts!$A46+$A$11,(Z$32-4)*3+2,1,1) -> 0.6934631346 | AA46: =OFFSET(StochasticsSwamiVersion!$C$10,CalculationsAndCharts!$A46+$A$11,(AA$32-4)*3+2,1,1) -> 0.6905806147 | AB46: =OFFSET(StochasticsSwamiVersion!$C$10,CalculationsAndCharts!$A46+$A$11,(AB$32-4)*3+2,1,1) -> 0.6871460277 | AC46: =OFFSET(StochasticsSwamiVersion!$C$10,CalculationsAndCharts!$A46+$A$11,(AC$32-4)*3+2,1,1) -> 0.6831949783 | AD46: =OFFSET(StochasticsSwamiVersion!$C$10,CalculationsAndCharts!$A46+$A$11,(AD$32-4)*3+2,1,1) -> 0.6784309447 | AE46: =OFFSET(StochasticsSwamiVersion!$C$10,CalculationsAndCharts!$A46+$A$11,(AE$32-4)*3+2,1,1) -> 0.6726709408 | AF46: =OFFSET(StochasticsSwamiVersion!$C$10,CalculationsAndCharts!$A46+$A$11,(AF$32-4)*3+2,1,1) -> 0.665684365 | AG46: =OFFSET(StochasticsSwamiVersion!$C$10,CalculationsAndCharts!$A46+$A$11,(AG$32-4)*3+2,1,1) -> 0.6573415975 | AH46: =OFFSET(StochasticsSwamiVersion!$C$10,CalculationsAndCharts!$A46+$A$11,(AH$32-4)*3+2,1,1) -> 0.6468960714 | AI46: =OFFSET(StochasticsSwamiVersion!$C$10,CalculationsAndCharts!$A46+$A$11,(AI$32-4)*3+2,1,1) -> 0.6357111738 | AJ46: =OFFSET(StochasticsSwamiVersion!$C$10,CalculationsAndCharts!$A46+$A$11,(AJ$32-4)*3+2,1,1) -> 0.6264190933 | AK46: =OFFSET(StochasticsSwamiVersion!$C$10,CalculationsAndCharts!$A46+$A$11,(AK$32-4)*3+2,1,1) -> 0.6248641707 | AL46: =OFFSET(StochasticsSwamiVersion!$C$10,CalculationsAndCharts!$A46+$A$11,(AL$32-4)*3+2,1,1) -> 0.6225707372 | AM46: =OFFSET(StochasticsSwamiVersion!$C$10,CalculationsAndCharts!$A46+$A$11,(AM$32-4)*3+2,1,1) -> 0.6197740216 | AN46: =OFFSET(StochasticsSwamiVersion!$C$10,CalculationsAndCharts!$A46+$A$11,(AN$32-4)*3+2,1,1) -> 0.6164298316 | AO46: =OFFSET(StochasticsSwamiVersion!$C$10,CalculationsAndCharts!$A46+$A$11,(AO$32-4)*3+2,1,1) -> 0.6121793052 | AP46: =OFFSET(StochasticsSwamiVersion!$C$10,CalculationsAndCharts!$A46+$A$11,(AP$32-4)*3+2,1,1) -> 0.6076155829 | AQ46: =OFFSET(StochasticsSwamiVersion!$C$10,CalculationsAndCharts!$A46+$A$11,(AQ$32-4)*3+2,1,1) -> 0.6041338614 | AR46: =OFFSET(StochasticsSwamiVersion!$C$10,CalculationsAndCharts!$A46+$A$11,(AR$32-4)*3+2,1,1) -> 0.605067078 | AS46: =OFFSET(StochasticsSwamiVersion!$C$10,CalculationsAndCharts!$A46+$A$11,(AS$32-4)*3+2,1,1) -> 0.6062103745 | AT46: =OFFSET(StochasticsSwamiVersion!$C$10,CalculationsAndCharts!$A46+$A$11,(AT$32-4)*3+2,1,1) -> 0.6074330935 | AU46: =OFFSET(StochasticsSwamiVersion!$C$10,CalculationsAndCharts!$A46+$A$11,(AU$32-4)*3+2,1,1) -> 0.6088282423 | AV46: =OFFSET(StochasticsSwamiVersion!$C$10,CalculationsAndCharts!$A46+$A$11,(AV$32-4)*3+2,1,1) -> 0.6105363234 | AW46: =OFFSET(StochasticsSwamiVersion!$C$10,CalculationsAndCharts!$A46+$A$11,(AW$32-4)*3+2,1,1) -> 0.612694011 | AX46: =OFFSET(StochasticsSwamiVersion!$C$10,CalculationsAndCharts!$A46+$A$11,(AX$32-4)*3+2,1,1) -> 0.6156498092 | AY46: =OFFSET(StochasticsSwamiVersion!$C$10,CalculationsAndCharts!$A46+$A$11,(AY$32-4)*3+2,1,1) -> 0.6197198046 | AZ46: =OFFSET(StochasticsSwamiVersion!$C$10,CalculationsAndCharts!$A46+$A$11,(AZ$32-4)*3+2,1,1) -> 0.6253118178
A47: 15 | B47: =OFFSET(InputPriceData!B$10,CalculationsAndCharts!$A47+$A$11,0,1,1) -> 2011-12-21 | C47: =OFFSET(InputPriceData!G$10,CalculationsAndCharts!$A47+$A$11,0,1,1) -> 194230900 | D47: =OFFSET(InputPriceData!C$10,CalculationsAndCharts!$A47+$A$11,0,1,1) -> 123.93 | E47: =OFFSET(InputPriceData!D$10,CalculationsAndCharts!$A47+$A$11,0,1,1) -> 124.36 | F47: =OFFSET(InputPriceData!E$10,CalculationsAndCharts!$A47+$A$11,0,1,1) -> 122.75 | G47: =OFFSET(InputPriceData!F$10,CalculationsAndCharts!$A47+$A$11,0,1,1) -> 124.17 | H47: =OFFSET(StochasticsSwamiVersion!$C$10,CalculationsAndCharts!$A47+$A$11,(H$32-4)*3+2,1,1) -> 0.487070162 | I47: =OFFSET(StochasticsSwamiVersion!$C$10,CalculationsAndCharts!$A47+$A$11,(I$32-4)*3+2,1,1) -> 0.4473297239 | J47: =OFFSET(StochasticsSwamiVersion!$C$10,CalculationsAndCharts!$A47+$A$11,(J$32-4)*3+2,1,1) -> 0.4200916811 | K47: =OFFSET(StochasticsSwamiVersion!$C$10,CalculationsAndCharts!$A47+$A$11,(K$32-4)*3+2,1,1) -> 0.4083613923 | L47: =OFFSET(StochasticsSwamiVersion!$C$10,CalculationsAndCharts!$A47+$A$11,(L$32-4)*3+2,1,1) -> 0.398546945 | M47: =OFFSET(StochasticsSwamiVersion!$C$10,CalculationsAndCharts!$A47+$A$11,(M$32-4)*3+2,1,1) -> 0.3990541115 | N47: =OFFSET(StochasticsSwamiVersion!$C$10,CalculationsAndCharts!$A47+$A$11,(N$32-4)*3+2,1,1) -> 0.4193027323 | O47: =OFFSET(StochasticsSwamiVersion!$C$10,CalculationsAndCharts!$A47+$A$11,(O$32-4)*3+2,1,1) -> 0.4418723031 | P47: =OFFSET(StochasticsSwamiVersion!$C$10,CalculationsAndCharts!$A47+$A$11,(P$32-4)*3+2,1,1) -> 0.4682021086 | Q47: =OFFSET(StochasticsSwamiVersion!$C$10,CalculationsAndCharts!$A47+$A$11,(Q$32-4)*3+2,1,1) -> 0.5010818241 | R47: =OFFSET(StochasticsSwamiVersion!$C$10,CalculationsAndCharts!$A47+$A$11,(R$32-4)*3+2,1,1) -> 0.5409139182 | S47: =OFFSET(StochasticsSwamiVersion!$C$10,CalculationsAndCharts!$A47+$A$11,(S$32-4)*3+2,1,1) -> 0.5757867067 | T47: =OFFSET(StochasticsSwamiVersion!$C$10,CalculationsAndCharts!$A47+$A$11,(T$32-4)*3+2,1,1) -> 0.6096136718 | U47: =OFFSET(StochasticsSwamiVersion!$C$10,CalculationsAndCharts!$A47+$A$11,(U$32-4)*3+2,1,1) -> 0.6385509005 | V47: =OFFSET(StochasticsSwamiVersion!$C$10,CalculationsAndCharts!$A47+$A$11,(V$32-4)*3+2,1,1) -> 0.6556878914 | W47: =OFFSET(StochasticsSwamiVersion!$C$10,CalculationsAndCharts!$A47+$A$11,(W$32-4)*3+2,1,1) -> 0.6638793314 | X47: =OFFSET(StochasticsSwamiVersion!$C$10,CalculationsAndCharts!$A47+$A$11,(X$32-4)*3+2,1,1) -> 0.6618063046 | Y47: =OFFSET(StochasticsSwamiVersion!$C$10,CalculationsAndCharts!$A47+$A$11,(Y$32-4)*3+2,1,1) -> 0.6594026275 | Z47: =OFFSET(StochasticsSwamiVersion!$C$10,CalculationsAndCharts!$A47+$A$11,(Z$32-4)*3+2,1,1) -> 0.6565543193 | AA47: =OFFSET(StochasticsSwamiVersion!$C$10,CalculationsAndCharts!$A47+$A$11,(AA$32-4)*3+2,1,1) -> 0.6529739622 | AB47: =OFFSET(StochasticsSwamiVersion!$C$10,CalculationsAndCharts!$A47+$A$11,(AB$32-4)*3+2,1,1) -> 0.6487262994 | AC47: =OFFSET(StochasticsSwamiVersion!$C$10,CalculationsAndCharts!$A47+$A$11,(AC$32-4)*3+2,1,1) -> 0.6438785701 | AD47: =OFFSET(StochasticsSwamiVersion!$C$10,CalculationsAndCharts!$A47+$A$11,(AD$32-4)*3+2,1,1) -> 0.6381054572 | AE47: =OFFSET(StochasticsSwamiVersion!$C$10,CalculationsAndCharts!$A47+$A$11,(AE$32-4)*3+2,1,1) -> 0.6312683666 | AF47: =OFFSET(StochasticsSwamiVersion!$C$10,CalculationsAndCharts!$A47+$A$11,(AF$32-4)*3+2,1,1) -> 0.6232572244 | AG47: =OFFSET(StochasticsSwamiVersion!$C$10,CalculationsAndCharts!$A47+$A$11,(AG$32-4)*3+2,1,1) -> 0.6142580946 | AH47: =OFFSET(StochasticsSwamiVersion!$C$10,CalculationsAndCharts!$A47+$A$11,(AH$32-4)*3+2,1,1) -> 0.6040019462 | AI47: =OFFSET(StochasticsSwamiVersion!$C$10,CalculationsAndCharts!$A47+$A$11,(AI$32-4)*3+2,1,1) -> 0.5954013984 | AJ47: =OFFSET(StochasticsSwamiVersion!$C$10,CalculationsAndCharts!$A47+$A$11,(AJ$32-4)*3+2,1,1) -> 0.5937409452 | AK47: =OFFSET(StochasticsSwamiVersion!$C$10,CalculationsAndCharts!$A47+$A$11,(AK$32-4)*3+2,1,1) -> 0.5918920345 | AL47: =OFFSET(StochasticsSwamiVersion!$C$10,CalculationsAndCharts!$A47+$A$11,(AL$32-4)*3+2,1,1) -> 0.58921445 | AM47: =OFFSET(StochasticsSwamiVersion!$C$10,CalculationsAndCharts!$A47+$A$11,(AM$32-4)*3+2,1,1) -> 0.586095838 | AN47: =OFFSET(StochasticsSwamiVersion!$C$10,CalculationsAndCharts!$A47+$A$11,(AN$32-4)*3+2,1,1) -> 0.5826656647 | AO47: =OFFSET(StochasticsSwamiVersion!$C$10,CalculationsAndCharts!$A47+$A$11,(AO$32-4)*3+2,1,1) -> 0.5788348786 | AP47: =OFFSET(StochasticsSwamiVersion!$C$10,CalculationsAndCharts!$A47+$A$11,(AP$32-4)*3+2,1,1) -> 0.5760258762 | AQ47: =OFFSET(StochasticsSwamiVersion!$C$10,CalculationsAndCharts!$A47+$A$11,(AQ$32-4)*3+2,1,1) -> 0.5772032276 | AR47: =OFFSET(StochasticsSwamiVersion!$C$10,CalculationsAndCharts!$A47+$A$11,(AR$32-4)*3+2,1,1) -> 0.5785881313 | AS47: =OFFSET(StochasticsSwamiVersion!$C$10,CalculationsAndCharts!$A47+$A$11,(AS$32-4)*3+2,1,1) -> 0.5800167614 | AT47: =OFFSET(StochasticsSwamiVersion!$C$10,CalculationsAndCharts!$A47+$A$11,(AT$32-4)*3+2,1,1) -> 0.5815441791 | AU47: =OFFSET(StochasticsSwamiVersion!$C$10,CalculationsAndCharts!$A47+$A$11,(AU$32-4)*3+2,1,1) -> 0.5832861532 | AV47: =OFFSET(StochasticsSwamiVersion!$C$10,CalculationsAndCharts!$A47+$A$11,(AV$32-4)*3+2,1,1) -> 0.5854173309 | AW47: =OFFSET(StochasticsSwamiVersion!$C$10,CalculationsAndCharts!$A47+$A$11,(AW$32-4)*3+2,1,1) -> 0.5881065943 | AX47: =OFFSET(StochasticsSwamiVersion!$C$10,CalculationsAndCharts!$A47+$A$11,(AX$32-4)*3+2,1,1) -> 0.5917856552 | AY47: =OFFSET(StochasticsSwamiVersion!$C$10,CalculationsAndCharts!$A47+$A$11,(AY$32-4)*3+2,1,1) -> 0.5968417961 | AZ47: =OFFSET(StochasticsSwamiVersion!$C$10,CalculationsAndCharts!$A47+$A$11,(AZ$32-4)*3+2,1,1) -> 0.6037691873
A48: 16 | B48: =OFFSET(InputPriceData!B$10,CalculationsAndCharts!$A48+$A$11,0,1,1) -> 2011-12-20 | C48: =OFFSET(InputPriceData!G$10,CalculationsAndCharts!$A48+$A$11,0,1,1) -> 225418100 | D48: =OFFSET(InputPriceData!C$10,CalculationsAndCharts!$A48+$A$11,0,1,1) -> 122.18 | E48: =OFFSET(InputPriceData!D$10,CalculationsAndCharts!$A48+$A$11,0,1,1) -> 124.14 | F48: =OFFSET(InputPriceData!E$10,CalculationsAndCharts!$A48+$A$11,0,1,1) -> 120.37 | G48: =OFFSET(InputPriceData!F$10,CalculationsAndCharts!$A48+$A$11,0,1,1) -> 123.93 | H48: =OFFSET(StochasticsSwamiVersion!$C$10,CalculationsAndCharts!$A48+$A$11,(H$32-4)*3+2,1,1) -> 0.3871980796 | I48: =OFFSET(StochasticsSwamiVersion!$C$10,CalculationsAndCharts!$A48+$A$11,(I$32-4)*3+2,1,1) -> 0.3514336406 | J48: =OFFSET(StochasticsSwamiVersion!$C$10,CalculationsAndCharts!$A48+$A$11,(J$32-4)*3+2,1,1) -> 0.3322242799 | K48: =OFFSET(StochasticsSwamiVersion!$C$10,CalculationsAndCharts!$A48+$A$11,(K$32-4)*3+2,1,1) -> 0.3294840797 | L48: =OFFSET(StochasticsSwamiVersion!$C$10,CalculationsAndCharts!$A48+$A$11,(L$32-4)*3+2,1,1) -> 0.332520172 | M48: =OFFSET(StochasticsSwamiVersion!$C$10,CalculationsAndCharts!$A48+$A$11,(M$32-4)*3+2,1,1) -> 0.353646562 | N48: =OFFSET(StochasticsSwamiVersion!$C$10,CalculationsAndCharts!$A48+$A$11,(N$32-4)*3+2,1,1) -> 0.3832245285 | O48: =OFFSET(StochasticsSwamiVersion!$C$10,CalculationsAndCharts!$A48+$A$11,(O$32-4)*3+2,1,1) -> 0.4192647269 | P48: =OFFSET(StochasticsSwamiVersion!$C$10,CalculationsAndCharts!$A48+$A$11,(P$32-4)*3+2,1,1) -> 0.4513087375 | Q48: =OFFSET(StochasticsSwamiVersion!$C$10,CalculationsAndCharts!$A48+$A$11,(Q$32-4)*3+2,1,1) -> 0.4907100829 | R48: =OFFSET(StochasticsSwamiVersion!$C$10,CalculationsAndCharts!$A48+$A$11,(R$32-4)*3+2,1,1) -> 0.5372456174 | S48: =OFFSET(StochasticsSwamiVersion!$C$10,CalculationsAndCharts!$A48+$A$11,(S$32-4)*3+2,1,1) -> 0.5763085336 | T48: =OFFSET(StochasticsSwamiVersion!$C$10,CalculationsAndCharts!$A48+$A$11,(T$32-4)*3+2,1,1) -> 0.6105599251 | U48: =OFFSET(StochasticsSwamiVersion!$C$10,CalculationsAndCharts!$A48+$A$11,(U$32-4)*3+2,1,1) -> 0.6338240178 | V48: =OFFSET(StochasticsSwamiVersion!$C$10,CalculationsAndCharts!$A48+$A$11,(V$32-4)*3+2,1,1) -> 0.6453162585 | W48: =OFFSET(StochasticsSwamiVersion!$C$10,CalculationsAndCharts!$A48+$A$11,(W$32-4)*3+2,1,1) -> 0.6432707558 | X48: =OFFSET(StochasticsSwamiVersion!$C$10,CalculationsAndCharts!$A48+$A$11,(X$32-4)*3+2,1,1) -> 0.6406848379 | Y48: =OFFSET(StochasticsSwamiVersion!$C$10,CalculationsAndCharts!$A48+$A$11,(Y$32-4)*3+2,1,1) -> 0.6376903544 | Z48: =OFFSET(StochasticsSwamiVersion!$C$10,CalculationsAndCharts!$A48+$A$11,(Z$32-4)*3+2,1,1) -> 0.6341501913 | AA48: =OFFSET(StochasticsSwamiVersion!$C$10,CalculationsAndCharts!$A48+$A$11,(AA$32-4)*3+2,1,1) -> 0.6297151765 | AB48: =OFFSET(StochasticsSwamiVersion!$C$10,CalculationsAndCharts!$A48+$A$11,(AB$32-4)*3+2,1,1) -> 0.6244864095 | AC48: =OFFSET(StochasticsSwamiVersion!$C$10,CalculationsAndCharts!$A48+$A$11,(AC$32-4)*3+2,1,1) -> 0.6185881609 | AD48: =OFFSET(StochasticsSwamiVersion!$C$10,CalculationsAndCharts!$A48+$A$11,(AD$32-4)*3+2,1,1) -> 0.61169376 | AE48: =OFFSET(StochasticsSwamiVersion!$C$10,CalculationsAndCharts!$A48+$A$11,(AE$32-4)*3+2,1,1) -> 0.603788049 | AF48: =OFFSET(StochasticsSwamiVersion!$C$10,CalculationsAndCharts!$A48+$A$11,(AF$32-4)*3+2,1,1) -> 0.5950422721 | AG48: =OFFSET(StochasticsSwamiVersion!$C$10,CalculationsAndCharts!$A48+$A$11,(AG$32-4)*3+2,1,1) -> 0.5862782903 | AH48: =OFFSET(StochasticsSwamiVersion!$C$10,CalculationsAndCharts!$A48+$A$11,(AH$32-4)*3+2,1,1) -> 0.5782319372 | AI48: =OFFSET(StochasticsSwamiVersion!$C$10,CalculationsAndCharts!$A48+$A$11,(AI$32-4)*3+2,1,1) -> 0.5763133614 | AJ48: =OFFSET(StochasticsSwamiVersion!$C$10,CalculationsAndCharts!$A48+$A$11,(AJ$32-4)*3+2,1,1) -> 0.5743218506 | AK48: =OFFSET(StochasticsSwamiVersion!$C$10,CalculationsAndCharts!$A48+$A$11,(AK$32-4)*3+2,1,1) -> 0.5721785727 | AL48: =OFFSET(StochasticsSwamiVersion!$C$10,CalculationsAndCharts!$A48+$A$11,(AL$32-4)*3+2,1,1) -> 0.5691663257 | AM48: =OFFSET(StochasticsSwamiVersion!$C$10,CalculationsAndCharts!$A48+$A$11,(AM$32-4)*3+2,1,1) -> 0.5659335374 | AN48: =OFFSET(StochasticsSwamiVersion!$C$10,CalculationsAndCharts!$A48+$A$11,(AN$32-4)*3+2,1,1) -> 0.5629610203 | AO48: =OFFSET(StochasticsSwamiVersion!$C$10,CalculationsAndCharts!$A48+$A$11,(AO$32-4)*3+2,1,1) -> 0.5607416353 | AP48: =OFFSET(StochasticsSwamiVersion!$C$10,CalculationsAndCharts!$A48+$A$11,(AP$32-4)*3+2,1,1) -> 0.5621363036 | AQ48: =OFFSET(StochasticsSwamiVersion!$C$10,CalculationsAndCharts!$A48+$A$11,(AQ$32-4)*3+2,1,1) -> 0.5638016544 | AR48: =OFFSET(StochasticsSwamiVersion!$C$10,CalculationsAndCharts!$A48+$A$11,(AR$32-4)*3+2,1,1) -> 0.5655321575 | AS48: =OFFSET(StochasticsSwamiVersion!$C$10,CalculationsAndCharts!$A48+$A$11,(AS$32-4)*3+2,1,1) -> 0.567316692 | AT48: =OFFSET(StochasticsSwamiVersion!$C$10,CalculationsAndCharts!$A48+$A$11,(AT$32-4)*3+2,1,1) -> 0.5692234579 | AU48: =OFFSET(StochasticsSwamiVersion!$C$10,CalculationsAndCharts!$A48+$A$11,(AU$32-4)*3+2,1,1) -> 0.5713959134 | AV48: =OFFSET(StochasticsSwamiVersion!$C$10,CalculationsAndCharts!$A48+$A$11,(AV$32-4)*3+2,1,1) -> 0.5740498631 | AW48: =OFFSET(StochasticsSwamiVersion!$C$10,CalculationsAndCharts!$A48+$A$11,(AW$32-4)*3+2,1,1) -> 0.5773914039 | AX48: =OFFSET(StochasticsSwamiVersion!$C$10,CalculationsAndCharts!$A48+$A$11,(AX$32-4)*3+2,1,1) -> 0.5819501791 | AY48: =OFFSET(StochasticsSwamiVersion!$C$10,CalculationsAndCharts!$A48+$A$11,(AY$32-4)*3+2,1,1) -> 0.5881903577 | AZ48: =OFFSET(StochasticsSwamiVersion!$C$10,CalculationsAndCharts!$A48+$A$11,(AZ$32-4)*3+2,1,1) -> 0.5966900175
A49: 17 | B49: =OFFSET(InputPriceData!B$10,CalculationsAndCharts!$A49+$A$11,0,1,1) -> 2011-12-19 | C49: =OFFSET(InputPriceData!G$10,CalculationsAndCharts!$A49+$A$11,0,1,1) -> 183903000 | D49: =OFFSET(InputPriceData!C$10,CalculationsAndCharts!$A49+$A$11,0,1,1) -> 122.06 | E49: =OFFSET(InputPriceData!D$10,CalculationsAndCharts!$A49+$A$11,0,1,1) -> 122.32 | F49: =OFFSET(InputPriceData!E$10,CalculationsAndCharts!$A49+$A$11,0,1,1) -> 120.03 | G49: =OFFSET(InputPriceData!F$10,CalculationsAndCharts!$A49+$A$11,0,1,1) -> 120.29 | H49: =OFFSET(StochasticsSwamiVersion!$C$10,CalculationsAndCharts!$A49+$A$11,(H$32-4)*3+2,1,1) -> 0.3033576284 | I49: =OFFSET(StochasticsSwamiVersion!$C$10,CalculationsAndCharts!$A49+$A$11,(I$32-4)*3+2,1,1) -> 0.2840452887 | J49: =OFFSET(StochasticsSwamiVersion!$C$10,CalculationsAndCharts!$A49+$A$11,(J$32-4)*3+2,1,1) -> 0.2828056755 | K49: =OFFSET(StochasticsSwamiVersion!$C$10,CalculationsAndCharts!$A49+$A$11,(K$32-4)*3+2,1,1) -> 0.2950766566 | L49: =OFFSET(StochasticsSwamiVersion!$C$10,CalculationsAndCharts!$A49+$A$11,(L$32-4)*3+2,1,1) -> 0.3163467943 | M49: =OFFSET(StochasticsSwamiVersion!$C$10,CalculationsAndCharts!$A49+$A$11,(M$32-4)*3+2,1,1) -> 0.3454442455 | N49: =OFFSET(StochasticsSwamiVersion!$C$10,CalculationsAndCharts!$A49+$A$11,(N$32-4)*3+2,1,1) -> 0.3872461932 | O49: =OFFSET(StochasticsSwamiVersion!$C$10,CalculationsAndCharts!$A49+$A$11,(O$32-4)*3+2,1,1) -> 0.4305241668 | P49: =OFFSET(StochasticsSwamiVersion!$C$10,CalculationsAndCharts!$A49+$A$11,(P$32-4)*3+2,1,1) -> 0.4682540005 | Q49: =OFFSET(StochasticsSwamiVersion!$C$10,CalculationsAndCharts!$A49+$A$11,(Q$32-4)*3+2,1,1) -> 0.5130569815 | R49: =OFFSET(StochasticsSwamiVersion!$C$10,CalculationsAndCharts!$A49+$A$11,(R$32-4)*3+2,1,1) -> 0.5630537622 | S49: =OFFSET(StochasticsSwamiVersion!$C$10,CalculationsAndCharts!$A49+$A$11,(S$32-4)*3+2,1,1) -> 0.6012171134 | T49: =OFFSET(StochasticsSwamiVersion!$C$10,CalculationsAndCharts!$A49+$A$11,(T$32-4)*3+2,1,1) -> 0.6268928331 | U49: =OFFSET(StochasticsSwamiVersion!$C$10,CalculationsAndCharts!$A49+$A$11,(U$32-4)*3+2,1,1) -> 0.642793138 | V49: =OFFSET(StochasticsSwamiVersion!$C$10,CalculationsAndCharts!$A49+$A$11,(V$32-4)*3+2,1,1) -> 0.6408470359 | W49: =OFFSET(StochasticsSwamiVersion!$C$10,CalculationsAndCharts!$A49+$A$11,(W$32-4)*3+2,1,1) -> 0.6382949256 | X49: =OFFSET(StochasticsSwamiVersion!$C$10,CalculationsAndCharts!$A49+$A$11,(X$32-4)*3+2,1,1) -> 0.6350720637 | Y49: =OFFSET(StochasticsSwamiVersion!$C$10,CalculationsAndCharts!$A49+$A$11,(Y$32-4)*3+2,1,1) -> 0.6313469289 | Z49: =OFFSET(StochasticsSwamiVersion!$C$10,CalculationsAndCharts!$A49+$A$11,(Z$32-4)*3+2,1,1) -> 0.6269576526 | AA49: =OFFSET(StochasticsSwamiVersion!$C$10,CalculationsAndCharts!$A49+$A$11,(AA$32-4)*3+2,1,1) -> 0.6214856938 | AB49: =OFFSET(StochasticsSwamiVersion!$C$10,CalculationsAndCharts!$A49+$A$11,(AB$32-4)*3+2,1,1) -> 0.61509317 | AC49: =OFFSET(StochasticsSwamiVersion!$C$10,CalculationsAndCharts!$A49+$A$11,(AC$32-4)*3+2,1,1) -> 0.6080064853 | AD49: =OFFSET(StochasticsSwamiVersion!$C$10,CalculationsAndCharts!$A49+$A$11,(AD$32-4)*3+2,1,1) -> 0.5999577821 | AE49: =OFFSET(StochasticsSwamiVersion!$C$10,CalculationsAndCharts!$A49+$A$11,(AE$32-4)*3+2,1,1) -> 0.5912025506 | AF49: =OFFSET(StochasticsSwamiVersion!$C$10,CalculationsAndCharts!$A49+$A$11,(AF$32-4)*3+2,1,1) -> 0.5824784943 | AG49: =OFFSET(StochasticsSwamiVersion!$C$10,CalculationsAndCharts!$A49+$A$11,(AG$32-4)*3+2,1,1) -> 0.5757656507 | AH49: =OFFSET(StochasticsSwamiVersion!$C$10,CalculationsAndCharts!$A49+$A$11,(AH$32-4)*3+2,1,1) -> 0.5735561193 | AI49: =OFFSET(StochasticsSwamiVersion!$C$10,CalculationsAndCharts!$A49+$A$11,(AI$32-4)*3+2,1,1) -> 0.5712325904 | AJ49: =OFFSET(StochasticsSwamiVersion!$C$10,CalculationsAndCharts!$A49+$A$11,(AJ$32-4)*3+2,1,1) -> 0.5688923601 | AK49: =OFFSET(StochasticsSwamiVersion!$C$10,CalculationsAndCharts!$A49+$A$11,(AK$32-4)*3+2,1,1) -> 0.5665106891 | AL49: =OFFSET(StochasticsSwamiVersion!$C$10,CalculationsAndCharts!$A49+$A$11,(AL$32-4)*3+2,1,1) -> 0.563336728 | AM49: =OFFSET(StochasticsSwamiVersion!$C$10,CalculationsAndCharts!$A49+$A$11,(AM$32-4)*3+2,1,1) -> 0.5604644463 | AN49: =OFFSET(StochasticsSwamiVersion!$C$10,CalculationsAndCharts!$A49+$A$11,(AN$32-4)*3+2,1,1) -> 0.5590317339 | AO49: =OFFSET(StochasticsSwamiVersion!$C$10,CalculationsAndCharts!$A49+$A$11,(AO$32-4)*3+2,1,1) -> 0.5606169691 | AP49: =OFFSET(StochasticsSwamiVersion!$C$10,CalculationsAndCharts!$A49+$A$11,(AP$32-4)*3+2,1,1) -> 0.5625323021 | AQ49: =OFFSET(StochasticsSwamiVersion!$C$10,CalculationsAndCharts!$A49+$A$11,(AQ$32-4)*3+2,1,1) -> 0.5646132447 | AR49: =OFFSET(StochasticsSwamiVersion!$C$10,CalculationsAndCharts!$A49+$A$11,(AR$32-4)*3+2,1,1) -> 0.5667748819 | AS49: =OFFSET(StochasticsSwamiVersion!$C$10,CalculationsAndCharts!$A49+$A$11,(AS$32-4)*3+2,1,1) -> 0.5690025668 | AT49: =OFFSET(StochasticsSwamiVersion!$C$10,CalculationsAndCharts!$A49+$A$11,(AT$32-4)*3+2,1,1) -> 0.5713800584 | AU49: =OFFSET(StochasticsSwamiVersion!$C$10,CalculationsAndCharts!$A49+$A$11,(AU$32-4)*3+2,1,1) -> 0.574083698 | AV49: =OFFSET(StochasticsSwamiVersion!$C$10,CalculationsAndCharts!$A49+$A$11,(AV$32-4)*3+2,1,1) -> 0.5773772832 | AW49: =OFFSET(StochasticsSwamiVersion!$C$10,CalculationsAndCharts!$A49+$A$11,(AW$32-4)*3+2,1,1) -> 0.5815065367 | AX49: =OFFSET(StochasticsSwamiVersion!$C$10,CalculationsAndCharts!$A49+$A$11,(AX$32-4)*3+2,1,1) -> 0.5871097847 | AY49: =OFFSET(StochasticsSwamiVersion!$C$10,CalculationsAndCharts!$A49+$A$11,(AY$32-4)*3+2,1,1) -> 0.5947200607 | AZ49: =OFFSET(StochasticsSwamiVersion!$C$10,CalculationsAndCharts!$A49+$A$11,(AZ$32-4)*3+2,1,1) -> 0.6049667078
A50: 18 | B50: =OFFSET(InputPriceData!B$10,CalculationsAndCharts!$A50+$A$11,0,1,1) -> 2011-12-16 | C50: =OFFSET(InputPriceData!G$10,CalculationsAndCharts!$A50+$A$11,0,1,1) -> 220481400 | D50: =OFFSET(InputPriceData!C$10,CalculationsAndCharts!$A50+$A$11,0,1,1) -> 122.23 | E50: =OFFSET(InputPriceData!D$10,CalculationsAndCharts!$A50+$A$11,0,1,1) -> 122.95 | F50: =OFFSET(InputPriceData!E$10,CalculationsAndCharts!$A50+$A$11,0,1,1) -> 121.3 | G50: =OFFSET(InputPriceData!F$10,CalculationsAndCharts!$A50+$A$11,0,1,1) -> 121.59 | H50: =OFFSET(StochasticsSwamiVersion!$C$10,CalculationsAndCharts!$A50+$A$11,(H$32-4)*3+2,1,1) -> 0.3446824904 | I50: =OFFSET(StochasticsSwamiVersion!$C$10,CalculationsAndCharts!$A50+$A$11,(I$32-4)*3+2,1,1) -> 0.3319409064 | J50: =OFFSET(StochasticsSwamiVersion!$C$10,CalculationsAndCharts!$A50+$A$11,(J$32-4)*3+2,1,1) -> 0.3367968014 | K50: =OFFSET(StochasticsSwamiVersion!$C$10,CalculationsAndCharts!$A50+$A$11,(K$32-4)*3+2,1,1) -> 0.3551226813 | L50: =OFFSET(StochasticsSwamiVersion!$C$10,CalculationsAndCharts!$A50+$A$11,(L$32-4)*3+2,1,1) -> 0.3812592159 | M50: =OFFSET(StochasticsSwamiVersion!$C$10,CalculationsAndCharts!$A50+$A$11,(M$32-4)*3+2,1,1) -> 0.4168246714 | N50: =OFFSET(StochasticsSwamiVersion!$C$10,CalculationsAndCharts!$A50+$A$11,(N$32-4)*3+2,1,1) -> 0.4657208001 | O50: =OFFSET(StochasticsSwamiVersion!$C$10,CalculationsAndCharts!$A50+$A$11,(O$32-4)*3+2,1,1) -> 0.5145441178 | P50: =OFFSET(StochasticsSwamiVersion!$C$10,CalculationsAndCharts!$A50+$A$11,(P$32-4)*3+2,1,1) -> 0.5549702521 | Q50: =OFFSET(StochasticsSwamiVersion!$C$10,CalculationsAndCharts!$A50+$A$11,(Q$32-4)*3+2,1,1) -> 0.5986378177 | R50: =OFFSET(StochasticsSwamiVersion!$C$10,CalculationsAndCharts!$A50+$A$11,(R$32-4)*3+2,1,1) -> 0.6401970856 | S50: =OFFSET(StochasticsSwamiVersion!$C$10,CalculationsAndCharts!$A50+$A$11,(S$32-4)*3+2,1,1) -> 0.6634827839 | T50: =OFFSET(StochasticsSwamiVersion!$C$10,CalculationsAndCharts!$A50+$A$11,(T$32-4)*3+2,1,1) -> 0.6767979954 | U50: =OFFSET(StochasticsSwamiVersion!$C$10,CalculationsAndCharts!$A50+$A$11,(U$32-4)*3+2,1,1) -> 0.673439964 | V50: =OFFSET(StochasticsSwamiVersion!$C$10,CalculationsAndCharts!$A50+$A$11,(V$32-4)*3+2,1,1) -> 0.6710110763 | W50: =OFFSET(StochasticsSwamiVersion!$C$10,CalculationsAndCharts!$A50+$A$11,(W$32-4)*3+2,1,1) -> 0.6678284178 | X50: =OFFSET(StochasticsSwamiVersion!$C$10,CalculationsAndCharts!$A50+$A$11,(X$32-4)*3+2,1,1) -> 0.6638147964 | Y50: =OFFSET(StochasticsSwamiVersion!$C$10,CalculationsAndCharts!$A50+$A$11,(Y$32-4)*3+2,1,1) -> 0.6591865582 | Z50: =OFFSET(StochasticsSwamiVersion!$C$10,CalculationsAndCharts!$A50+$A$11,(Z$32-4)*3+2,1,1) -> 0.6537562871 | AA50: =OFFSET(StochasticsSwamiVersion!$C$10,CalculationsAndCharts!$A50+$A$11,(AA$32-4)*3+2,1,1) -> 0.6470288442 | AB50: =OFFSET(StochasticsSwamiVersion!$C$10,CalculationsAndCharts!$A50+$A$11,(AB$32-4)*3+2,1,1) -> 0.6392626228 | AC50: =OFFSET(StochasticsSwamiVersion!$C$10,CalculationsAndCharts!$A50+$A$11,(AC$32-4)*3+2,1,1) -> 0.6308508138 | AD50: =OFFSET(StochasticsSwamiVersion!$C$10,CalculationsAndCharts!$A50+$A$11,(AD$32-4)*3+2,1,1) -> 0.6216738703 | AE50: =OFFSET(StochasticsSwamiVersion!$C$10,CalculationsAndCharts!$A50+$A$11,(AE$32-4)*3+2,1,1) -> 0.6124618946 | AF50: =OFFSET(StochasticsSwamiVersion!$C$10,CalculationsAndCharts!$A50+$A$11,(AF$32-4)*3+2,1,1) -> 0.6048843137 | AG50: =OFFSET(StochasticsSwamiVersion!$C$10,CalculationsAndCharts!$A50+$A$11,(AG$32-4)*3+2,1,1) -> 0.6026494759 | AH50: =OFFSET(StochasticsSwamiVersion!$C$10,CalculationsAndCharts!$A50+$A$11,(AH$32-4)*3+2,1,1) -> 0.5999461429 | AI50: =OFFSET(StochasticsSwamiVersion!$C$10,CalculationsAndCharts!$A50+$A$11,(AI$32-4)*3+2,1,1) -> 0.5971587191 | AJ50: =OFFSET(StochasticsSwamiVersion!$C$10,CalculationsAndCharts!$A50+$A$11,(AJ$32-4)*3+2,1,1) -> 0.5944667067 | AK50: =OFFSET(StochasticsSwamiVersion!$C$10,CalculationsAndCharts!$A50+$A$11,(AK$32-4)*3+2,1,1) -> 0.5919533941 | AL50: =OFFSET(StochasticsSwamiVersion!$C$10,CalculationsAndCharts!$A50+$A$11,(AL$32-4)*3+2,1,1) -> 0.5889026301 | AM50: =OFFSET(StochasticsSwamiVersion!$C$10,CalculationsAndCharts!$A50+$A$11,(AM$32-4)*3+2,1,1) -> 0.5871029449 | AN50: =OFFSET(StochasticsSwamiVersion!$C$10,CalculationsAndCharts!$A50+$A$11,(AN$32-4)*3+2,1,1) -> 0.5887314929 | AO50: =OFFSET(StochasticsSwamiVersion!$C$10,CalculationsAndCharts!$A50+$A$11,(AO$32-4)*3+2,1,1) -> 0.5908477675 | AP50: =OFFSET(StochasticsSwamiVersion!$C$10,CalculationsAndCharts!$A50+$A$11,(AP$32-4)*3+2,1,1) -> 0.5932409828 | AQ50: =OFFSET(StochasticsSwamiVersion!$C$10,CalculationsAndCharts!$A50+$A$11,(AQ$32-4)*3+2,1,1) -> 0.5958402592 | AR50: =OFFSET(StochasticsSwamiVersion!$C$10,CalculationsAndCharts!$A50+$A$11,(AR$32-4)*3+2,1,1) -> 0.5985385021 | AS50: =OFFSET(StochasticsSwamiVersion!$C$10,CalculationsAndCharts!$A50+$A$11,(AS$32-4)*3+2,1,1) -> 0.6013155016 | AT50: =OFFSET(StochasticsSwamiVersion!$C$10,CalculationsAndCharts!$A50+$A$11,(AT$32-4)*3+2,1,1) -> 0.6042721553 | AU50: =OFFSET(StochasticsSwamiVersion!$C$10,CalculationsAndCharts!$A50+$A$11,(AU$32-4)*3+2,1,1) -> 0.6076212932 | AV50: =OFFSET(StochasticsSwamiVersion!$C$10,CalculationsAndCharts!$A50+$A$11,(AV$32-4)*3+2,1,1) -> 0.6116774911 | AW50: =OFFSET(StochasticsSwamiVersion!$C$10,CalculationsAndCharts!$A50+$A$11,(AW$32-4)*3+2,1,1) -> 0.6167176489 | AX50: =OFFSET(StochasticsSwamiVersion!$C$10,CalculationsAndCharts!$A50+$A$11,(AX$32-4)*3+2,1,1) -> 0.6234795216 | AY50: =OFFSET(StochasticsSwamiVersion!$C$10,CalculationsAndCharts!$A50+$A$11,(AY$32-4)*3+2,1,1) -> 0.6325104999 | AZ50: =OFFSET(StochasticsSwamiVersion!$C$10,CalculationsAndCharts!$A50+$A$11,(AZ$32-4)*3+2,1,1) -> 0.6443649876
A51: 19 | B51: =OFFSET(InputPriceData!B$10,CalculationsAndCharts!$A51+$A$11,0,1,1) -> 2011-12-15 | C51: =OFFSET(InputPriceData!G$10,CalculationsAndCharts!$A51+$A$11,0,1,1) -> 199109200 | D51: =OFFSET(InputPriceData!C$10,CalculationsAndCharts!$A51+$A$11,0,1,1) -> 122.25 | E51: =OFFSET(InputPriceData!D$10,CalculationsAndCharts!$A51+$A$11,0,1,1) -> 122.42 | F51: =OFFSET(InputPriceData!E$10,CalculationsAndCharts!$A51+$A$11,0,1,1) -> 121.22 | G51: =OFFSET(InputPriceData!F$10,CalculationsAndCharts!$A51+$A$11,0,1,1) -> 121.41 | H51: =OFFSET(StochasticsSwamiVersion!$C$10,CalculationsAndCharts!$A51+$A$11,(H$32-4)*3+2,1,1) -> 0.3755228623 | I51: =OFFSET(StochasticsSwamiVersion!$C$10,CalculationsAndCharts!$A51+$A$11,(I$32-4)*3+2,1,1) -> 0.3776867858 | J51: =OFFSET(StochasticsSwamiVersion!$C$10,CalculationsAndCharts!$A51+$A$11,(J$32-4)*3+2,1,1) -> 0.3919418985 | K51: =OFFSET(StochasticsSwamiVersion!$C$10,CalculationsAndCharts!$A51+$A$11,(K$32-4)*3+2,1,1) -> 0.4148223915 | L51: =OFFSET(StochasticsSwamiVersion!$C$10,CalculationsAndCharts!$A51+$A$11,(L$32-4)*3+2,1,1) -> 0.447766872 | M51: =OFFSET(StochasticsSwamiVersion!$C$10,CalculationsAndCharts!$A51+$A$11,(M$32-4)*3+2,1,1) -> 0.4887744518 | N51: =OFFSET(StochasticsSwamiVersion!$C$10,CalculationsAndCharts!$A51+$A$11,(N$32-4)*3+2,1,1) -> 0.5433080871 | O51: =OFFSET(StochasticsSwamiVersion!$C$10,CalculationsAndCharts!$A51+$A$11,(O$32-4)*3+2,1,1) -> 0.5944076266 | P51: =OFFSET(StochasticsSwamiVersion!$C$10,CalculationsAndCharts!$A51+$A$11,(P$32-4)*3+2,1,1) -> 0.6329542082 | Q51: =OFFSET(StochasticsSwamiVersion!$C$10,CalculationsAndCharts!$A51+$A$11,(Q$32-4)*3+2,1,1) -> 0.667398141 | R51: =OFFSET(StochasticsSwamiVersion!$C$10,CalculationsAndCharts!$A51+$A$11,(R$32-4)*3+2,1,1) -> 0.6896654107 | S51: =OFFSET(StochasticsSwamiVersion!$C$10,CalculationsAndCharts!$A51+$A$11,(S$32-4)*3+2,1,1) -> 0.7026070398 | T51: =OFFSET(StochasticsSwamiVersion!$C$10,CalculationsAndCharts!$A51+$A$11,(T$32-4)*3+2,1,1) -> 0.6992518112 | U51: =OFFSET(StochasticsSwamiVersion!$C$10,CalculationsAndCharts!$A51+$A$11,(U$32-4)*3+2,1,1) -> 0.6950696007 | V51: =OFFSET(StochasticsSwamiVersion!$C$10,CalculationsAndCharts!$A51+$A$11,(V$32-4)*3+2,1,1) -> 0.6920419302 | W51: =OFFSET(StochasticsSwamiVersion!$C$10,CalculationsAndCharts!$A51+$A$11,(W$32-4)*3+2,1,1) -> 0.6880804822 | X51: =OFFSET(StochasticsSwamiVersion!$C$10,CalculationsAndCharts!$A51+$A$11,(X$32-4)*3+2,1,1) -> 0.6830971941 | Y51: =OFFSET(StochasticsSwamiVersion!$C$10,CalculationsAndCharts!$A51+$A$11,(Y$32-4)*3+2,1,1) -> 0.677375446 | Z51: =OFFSET(StochasticsSwamiVersion!$C$10,CalculationsAndCharts!$A51+$A$11,(Z$32-4)*3+2,1,1) -> 0.6707145416 | AA51: =OFFSET(StochasticsSwamiVersion!$C$10,CalculationsAndCharts!$A51+$A$11,(AA$32-4)*3+2,1,1) -> 0.6625584547 | AB51: =OFFSET(StochasticsSwamiVersion!$C$10,CalculationsAndCharts!$A51+$A$11,(AB$32-4)*3+2,1,1) -> 0.6533545038 | AC51: =OFFSET(StochasticsSwamiVersion!$C$10,CalculationsAndCharts!$A51+$A$11,(AC$32-4)*3+2,1,1) -> 0.6438370499 | AD51: =OFFSET(StochasticsSwamiVersion!$C$10,CalculationsAndCharts!$A51+$A$11,(AD$32-4)*3+2,1,1) -> 0.634320102 | AE51: =OFFSET(StochasticsSwamiVersion!$C$10,CalculationsAndCharts!$A51+$A$11,(AE$32-4)*3+2,1,1) -> 0.6265594314 | AF51: =OFFSET(StochasticsSwamiVersion!$C$10,CalculationsAndCharts!$A51+$A$11,(AF$32-4)*3+2,1,1) -> 0.6240333149 | AG51: =OFFSET(StochasticsSwamiVersion!$C$10,CalculationsAndCharts!$A51+$A$11,(AG$32-4)*3+2,1,1) -> 0.6213058611 | AH51: =OFFSET(StochasticsSwamiVersion!$C$10,CalculationsAndCharts!$A51+$A$11,(AH$32-4)*3+2,1,1) -> 0.6180586937 | AI51: =OFFSET(StochasticsSwamiVersion!$C$10,CalculationsAndCharts!$A51+$A$11,(AI$32-4)*3+2,1,1) -> 0.6148376215 | AJ51: =OFFSET(StochasticsSwamiVersion!$C$10,CalculationsAndCharts!$A51+$A$11,(AJ$32-4)*3+2,1,1) -> 0.6119958839 | AK51: =OFFSET(StochasticsSwamiVersion!$C$10,CalculationsAndCharts!$A51+$A$11,(AK$32-4)*3+2,1,1) -> 0.6098884251 | AL51: =OFFSET(StochasticsSwamiVersion!$C$10,CalculationsAndCharts!$A51+$A$11,(AL$32-4)*3+2,1,1) -> 0.6080953303 | AM51: =OFFSET(StochasticsSwamiVersion!$C$10,CalculationsAndCharts!$A51+$A$11,(AM$32-4)*3+2,1,1) -> 0.6097038152 | AN51: =OFFSET(StochasticsSwamiVersion!$C$10,CalculationsAndCharts!$A51+$A$11,(AN$32-4)*3+2,1,1) -> 0.611891621 | AO51: =OFFSET(StochasticsSwamiVersion!$C$10,CalculationsAndCharts!$A51+$A$11,(AO$32-4)*3+2,1,1) -> 0.614536109 | AP51: =OFFSET(StochasticsSwamiVersion!$C$10,CalculationsAndCharts!$A51+$A$11,(AP$32-4)*3+2,1,1) -> 0.6175259177 | AQ51: =OFFSET(StochasticsSwamiVersion!$C$10,CalculationsAndCharts!$A51+$A$11,(AQ$32-4)*3+2,1,1) -> 0.6207715924 | AR51: =OFFSET(StochasticsSwamiVersion!$C$10,CalculationsAndCharts!$A51+$A$11,(AR$32-4)*3+2,1,1) -> 0.624137555 | AS51: =OFFSET(StochasticsSwamiVersion!$C$10,CalculationsAndCharts!$A51+$A$11,(AS$32-4)*3+2,1,1) -> 0.6275951247 | AT51: =OFFSET(StochasticsSwamiVersion!$C$10,CalculationsAndCharts!$A51+$A$11,(AT$32-4)*3+2,1,1) -> 0.6312635912 | AU51: =OFFSET(StochasticsSwamiVersion!$C$10,CalculationsAndCharts!$A51+$A$11,(AU$32-4)*3+2,1,1) -> 0.6353953482 | AV51: =OFFSET(StochasticsSwamiVersion!$C$10,CalculationsAndCharts!$A51+$A$11,(AV$32-4)*3+2,1,1) -> 0.6403564068 | AW51: =OFFSET(StochasticsSwamiVersion!$C$10,CalculationsAndCharts!$A51+$A$11,(AW$32-4)*3+2,1,1) -> 0.6464387938 | AX51: =OFFSET(StochasticsSwamiVersion!$C$10,CalculationsAndCharts!$A51+$A$11,(AX$32-4)*3+2,1,1) -> 0.6544577701 | AY51: =OFFSET(StochasticsSwamiVersion!$C$10,CalculationsAndCharts!$A51+$A$11,(AY$32-4)*3+2,1,1) -> 0.6648886779 | AZ51: =OFFSET(StochasticsSwamiVersion!$C$10,CalculationsAndCharts!$A51+$A$11,(AZ$32-4)*3+2,1,1) -> 0.6780259699
A52: 20 | B52: =OFFSET(InputPriceData!B$10,CalculationsAndCharts!$A52+$A$11,0,1,1) -> 2011-12-14 | C52: =OFFSET(InputPriceData!G$10,CalculationsAndCharts!$A52+$A$11,0,1,1) -> 238618800 | D52: =OFFSET(InputPriceData!C$10,CalculationsAndCharts!$A52+$A$11,0,1,1) -> 121.78 | E52: =OFFSET(InputPriceData!D$10,CalculationsAndCharts!$A52+$A$11,0,1,1) -> 122.25 | F52: =OFFSET(InputPriceData!E$10,CalculationsAndCharts!$A52+$A$11,0,1,1) -> 120.7 | G52: =OFFSET(InputPriceData!F$10,CalculationsAndCharts!$A52+$A$11,0,1,1) -> 120.97 | H52: =OFFSET(StochasticsSwamiVersion!$C$10,CalculationsAndCharts!$A52+$A$11,(H$32-4)*3+2,1,1) -> 0.4416618152 | I52: =OFFSET(StochasticsSwamiVersion!$C$10,CalculationsAndCharts!$A52+$A$11,(I$32-4)*3+2,1,1) -> 0.4506333757 | J52: =OFFSET(StochasticsSwamiVersion!$C$10,CalculationsAndCharts!$A52+$A$11,(J$32-4)*3+2,1,1) -> 0.46808164 | K52: =OFFSET(StochasticsSwamiVersion!$C$10,CalculationsAndCharts!$A52+$A$11,(K$32-4)*3+2,1,1) -> 0.4960329937 | L52: =OFFSET(StochasticsSwamiVersion!$C$10,CalculationsAndCharts!$A52+$A$11,(L$32-4)*3+2,1,1) -> 0.5334968362 | M52: =OFFSET(StochasticsSwamiVersion!$C$10,CalculationsAndCharts!$A52+$A$11,(M$32-4)*3+2,1,1) -> 0.577676366 | N52: =OFFSET(StochasticsSwamiVersion!$C$10,CalculationsAndCharts!$A52+$A$11,(N$32-4)*3+2,1,1) -> 0.632946392 | O52: =OFFSET(StochasticsSwamiVersion!$C$10,CalculationsAndCharts!$A52+$A$11,(O$32-4)*3+2,1,1) -> 0.6787859742 | P52: =OFFSET(StochasticsSwamiVersion!$C$10,CalculationsAndCharts!$A52+$A$11,(P$32-4)*3+2,1,1) -> 0.7071880354 | Q52: =OFFSET(StochasticsSwamiVersion!$C$10,CalculationsAndCharts!$A52+$A$11,(Q$32-4)*3+2,1,1) -> 0.7211101647 | R52: =OFFSET(StochasticsSwamiVersion!$C$10,CalculationsAndCharts!$A52+$A$11,(R$32-4)*3+2,1,1) -> 0.733071574 | S52: =OFFSET(StochasticsSwamiVersion!$C$10,CalculationsAndCharts!$A52+$A$11,(S$32-4)*3+2,1,1) -> 0.7296148321 | T52: =OFFSET(StochasticsSwamiVersion!$C$10,CalculationsAndCharts!$A52+$A$11,(T$32-4)*3+2,1,1) -> 0.7254374517 | U52: =OFFSET(StochasticsSwamiVersion!$C$10,CalculationsAndCharts!$A52+$A$11,(U$32-4)*3+2,1,1) -> 0.7202407387 | V52: =OFFSET(StochasticsSwamiVersion!$C$10,CalculationsAndCharts!$A52+$A$11,(V$32-4)*3+2,1,1) -> 0.7164732418 | W52: =OFFSET(StochasticsSwamiVersion!$C$10,CalculationsAndCharts!$A52+$A$11,(W$32-4)*3+2,1,1) -> 0.7115556024 | X52: =OFFSET(StochasticsSwamiVersion!$C$10,CalculationsAndCharts!$A52+$A$11,(X$32-4)*3+2,1,1) -> 0.7053947866 | Y52: =OFFSET(StochasticsSwamiVersion!$C$10,CalculationsAndCharts!$A52+$A$11,(Y$32-4)*3+2,1,1) -> 0.6983711545 | Z52: =OFFSET(StochasticsSwamiVersion!$C$10,CalculationsAndCharts!$A52+$A$11,(Z$32-4)*3+2,1,1) -> 0.6903014636 | AA52: =OFFSET(StochasticsSwamiVersion!$C$10,CalculationsAndCharts!$A52+$A$11,(AA$32-4)*3+2,1,1) -> 0.6806165954 | AB52: =OFFSET(StochasticsSwamiVersion!$C$10,CalculationsAndCharts!$A52+$A$11,(AB$32-4)*3+2,1,1) -> 0.6701216809 | AC52: =OFFSET(StochasticsSwamiVersion!$C$10,CalculationsAndCharts!$A52+$A$11,(AC$32-4)*3+2,1,1) -> 0.6602039959 | AD52: =OFFSET(StochasticsSwamiVersion!$C$10,CalculationsAndCharts!$A52+$A$11,(AD$32-4)*3+2,1,1) -> 0.6521099795 | AE52: =OFFSET(StochasticsSwamiVersion!$C$10,CalculationsAndCharts!$A52+$A$11,(AE$32-4)*3+2,1,1) -> 0.6494435635 | AF52: =OFFSET(StochasticsSwamiVersion!$C$10,CalculationsAndCharts!$A52+$A$11,(AF$32-4)*3+2,1,1) -> 0.6463528545 | AG52: =OFFSET(StochasticsSwamiVersion!$C$10,CalculationsAndCharts!$A52+$A$11,(AG$32-4)*3+2,1,1) -> 0.6430772097 | AH52: =OFFSET(StochasticsSwamiVersion!$C$10,CalculationsAndCharts!$A52+$A$11,(AH$32-4)*3+2,1,1) -> 0.6392848145 | AI52: =OFFSET(StochasticsSwamiVersion!$C$10,CalculationsAndCharts!$A52+$A$11,(AI$32-4)*3+2,1,1) -> 0.6357884234 | AJ52: =OFFSET(StochasticsSwamiVersion!$C$10,CalculationsAndCharts!$A52+$A$11,(AJ$32-4)*3+2,1,1) -> 0.6332836085 | AK52: =OFFSET(StochasticsSwamiVersion!$C$10,CalculationsAndCharts!$A52+$A$11,(AK$32-4)*3+2,1,1) -> 0.6326952056 | AL52: =OFFSET(StochasticsSwamiVersion!$C$10,CalculationsAndCharts!$A52+$A$11,(AL$32-4)*3+2,1,1) -> 0.6343610899 | AM52: =OFFSET(StochasticsSwamiVersion!$C$10,CalculationsAndCharts!$A52+$A$11,(AM$32-4)*3+2,1,1) -> 0.6365257672 | AN52: =OFFSET(StochasticsSwamiVersion!$C$10,CalculationsAndCharts!$A52+$A$11,(AN$32-4)*3+2,1,1) -> 0.6392596799 | AO52: =OFFSET(StochasticsSwamiVersion!$C$10,CalculationsAndCharts!$A52+$A$11,(AO$32-4)*3+2,1,1) -> 0.642563601 | AP52: =OFFSET(StochasticsSwamiVersion!$C$10,CalculationsAndCharts!$A52+$A$11,(AP$32-4)*3+2,1,1) -> 0.646297484 | AQ52: =OFFSET(StochasticsSwamiVersion!$C$10,CalculationsAndCharts!$A52+$A$11,(AQ$32-4)*3+2,1,1) -> 0.6503478223 | AR52: =OFFSET(StochasticsSwamiVersion!$C$10,CalculationsAndCharts!$A52+$A$11,(AR$32-4)*3+2,1,1) -> 0.6545417675 | AS52: =OFFSET(StochasticsSwamiVersion!$C$10,CalculationsAndCharts!$A52+$A$11,(AS$32-4)*3+2,1,1) -> 0.6588367223 | AT52: =OFFSET(StochasticsSwamiVersion!$C$10,CalculationsAndCharts!$A52+$A$11,(AT$32-4)*3+2,1,1) -> 0.6633683262 | AU52: =OFFSET(StochasticsSwamiVersion!$C$10,CalculationsAndCharts!$A52+$A$11,(AU$32-4)*3+2,1,1) -> 0.6684252041 | AV52: =OFFSET(StochasticsSwamiVersion!$C$10,CalculationsAndCharts!$A52+$A$11,(AV$32-4)*3+2,1,1) -> 0.6744114512 | AW52: =OFFSET(StochasticsSwamiVersion!$C$10,CalculationsAndCharts!$A52+$A$11,(AW$32-4)*3+2,1,1) -> 0.6815865099 | AX52: =OFFSET(StochasticsSwamiVersion!$C$10,CalculationsAndCharts!$A52+$A$11,(AX$32-4)*3+2,1,1) -> 0.6907631823 | AY52: =OFFSET(StochasticsSwamiVersion!$C$10,CalculationsAndCharts!$A52+$A$11,(AY$32-4)*3+2,1,1) -> 0.702142097 | AZ52: =OFFSET(StochasticsSwamiVersion!$C$10,CalculationsAndCharts!$A52+$A$11,(AZ$32-4)*3+2,1,1) -> 0.7153754358
A53: 21 | B53: =OFFSET(InputPriceData!B$10,CalculationsAndCharts!$A53+$A$11,0,1,1) -> 2011-12-13 | C53: =OFFSET(InputPriceData!G$10,CalculationsAndCharts!$A53+$A$11,0,1,1) -> 245159800 | D53: =OFFSET(InputPriceData!C$10,CalculationsAndCharts!$A53+$A$11,0,1,1) -> 124.07 | E53: =OFFSET(InputPriceData!D$10,CalculationsAndCharts!$A53+$A$11,0,1,1) -> 124.77 | F53: =OFFSET(InputPriceData!E$10,CalculationsAndCharts!$A53+$A$11,0,1,1) -> 121.67 | G53: =OFFSET(InputPriceData!F$10,CalculationsAndCharts!$A53+$A$11,0,1,1) -> 122.27 | H53: =OFFSET(StochasticsSwamiVersion!$C$10,CalculationsAndCharts!$A53+$A$11,(H$32-4)*3+2,1,1) -> 0.5360575128 | I53: =OFFSET(StochasticsSwamiVersion!$C$10,CalculationsAndCharts!$A53+$A$11,(I$32-4)*3+2,1,1) -> 0.5465793697 | J53: =OFFSET(StochasticsSwamiVersion!$C$10,CalculationsAndCharts!$A53+$A$11,(J$32-4)*3+2,1,1) -> 0.5671958213 | K53: =OFFSET(StochasticsSwamiVersion!$C$10,CalculationsAndCharts!$A53+$A$11,(K$32-4)*3+2,1,1) -> 0.597173333 | L53: =OFFSET(StochasticsSwamiVersion!$C$10,CalculationsAndCharts!$A53+$A$11,(L$32-4)*3+2,1,1) -> 0.6360875582 | M53: =OFFSET(StochasticsSwamiVersion!$C$10,CalculationsAndCharts!$A53+$A$11,(M$32-4)*3+2,1,1) -> 0.6770317193 | N53: =OFFSET(StochasticsSwamiVersion!$C$10,CalculationsAndCharts!$A53+$A$11,(N$32-4)*3+2,1,1) -> 0.7224965965 | O53: =OFFSET(StochasticsSwamiVersion!$C$10,CalculationsAndCharts!$A53+$A$11,(O$32-4)*3+2,1,1) -> 0.7511030227 | P53: =OFFSET(StochasticsSwamiVersion!$C$10,CalculationsAndCharts!$A53+$A$11,(P$32-4)*3+2,1,1) -> 0.7598013758 | Q53: =OFFSET(StochasticsSwamiVersion!$C$10,CalculationsAndCharts!$A53+$A$11,(Q$32-4)*3+2,1,1) -> 0.7626368748 | R53: =OFFSET(StochasticsSwamiVersion!$C$10,CalculationsAndCharts!$A53+$A$11,(R$32-4)*3+2,1,1) -> 0.7595296606 | S53: =OFFSET(StochasticsSwamiVersion!$C$10,CalculationsAndCharts!$A53+$A$11,(S$32-4)*3+2,1,1) -> 0.7552301703 | T53: =OFFSET(StochasticsSwamiVersion!$C$10,CalculationsAndCharts!$A53+$A$11,(T$32-4)*3+2,1,1) -> 0.7500435863 | U53: =OFFSET(StochasticsSwamiVersion!$C$10,CalculationsAndCharts!$A53+$A$11,(U$32-4)*3+2,1,1) -> 0.7436131868 | V53: =OFFSET(StochasticsSwamiVersion!$C$10,CalculationsAndCharts!$A53+$A$11,(V$32-4)*3+2,1,1) -> 0.7389398536 | W53: =OFFSET(StochasticsSwamiVersion!$C$10,CalculationsAndCharts!$A53+$A$11,(W$32-4)*3+2,1,1) -> 0.7328648304 | X53: =OFFSET(StochasticsSwamiVersion!$C$10,CalculationsAndCharts!$A53+$A$11,(X$32-4)*3+2,1,1) -> 0.7253076641 | Y53: =OFFSET(StochasticsSwamiVersion!$C$10,CalculationsAndCharts!$A53+$A$11,(Y$32-4)*3+2,1,1) -> 0.7167985473 | Z53: =OFFSET(StochasticsSwamiVersion!$C$10,CalculationsAndCharts!$A53+$A$11,(Z$32-4)*3+2,1,1) -> 0.7072494854 | AA53: =OFFSET(StochasticsSwamiVersion!$C$10,CalculationsAndCharts!$A53+$A$11,(AA$32-4)*3+2,1,1) -> 0.6962084778 | AB53: =OFFSET(StochasticsSwamiVersion!$C$10,CalculationsAndCharts!$A53+$A$11,(AB$32-4)*3+2,1,1) -> 0.6851768793 | AC53: =OFFSET(StochasticsSwamiVersion!$C$10,CalculationsAndCharts!$A53+$A$11,(AC$32-4)*3+2,1,1) -> 0.6767892177 | AD53: =OFFSET(StochasticsSwamiVersion!$C$10,CalculationsAndCharts!$A53+$A$11,(AD$32-4)*3+2,1,1) -> 0.6740896585 | AE53: =OFFSET(StochasticsSwamiVersion!$C$10,CalculationsAndCharts!$A53+$A$11,(AE$32-4)*3+2,1,1) -> 0.6708272267 | AF53: =OFFSET(StochasticsSwamiVersion!$C$10,CalculationsAndCharts!$A53+$A$11,(AF$32-4)*3+2,1,1) -> 0.667104805 | AG53: =OFFSET(StochasticsSwamiVersion!$C$10,CalculationsAndCharts!$A53+$A$11,(AG$32-4)*3+2,1,1) -> 0.6632913333 | AH53: =OFFSET(StochasticsSwamiVersion!$C$10,CalculationsAndCharts!$A53+$A$11,(AH$32-4)*3+2,1,1) -> 0.6591096919 | AI53: =OFFSET(StochasticsSwamiVersion!$C$10,CalculationsAndCharts!$A53+$A$11,(AI$32-4)*3+2,1,1) -> 0.6558436791 | AJ53: =OFFSET(StochasticsSwamiVersion!$C$10,CalculationsAndCharts!$A53+$A$11,(AJ$32-4)*3+2,1,1) -> 0.6548701376 | AK53: =OFFSET(StochasticsSwamiVersion!$C$10,CalculationsAndCharts!$A53+$A$11,(AK$32-4)*3+2,1,1) -> 0.6582545602 | AL53: =OFFSET(StochasticsSwamiVersion!$C$10,CalculationsAndCharts!$A53+$A$11,(AL$32-4)*3+2,1,1) -> 0.6604993684 | AM53: =OFFSET(StochasticsSwamiVersion!$C$10,CalculationsAndCharts!$A53+$A$11,(AM$32-4)*3+2,1,1) -> 0.6632044171 | AN53: =OFFSET(StochasticsSwamiVersion!$C$10,CalculationsAndCharts!$A53+$A$11,(AN$32-4)*3+2,1,1) -> 0.666620212 | AO53: =OFFSET(StochasticsSwamiVersion!$C$10,CalculationsAndCharts!$A53+$A$11,(AO$32-4)*3+2,1,1) -> 0.6707469214 | AP53: =OFFSET(StochasticsSwamiVersion!$C$10,CalculationsAndCharts!$A53+$A$11,(AP$32-4)*3+2,1,1) -> 0.6754078919 | AQ53: =OFFSET(StochasticsSwamiVersion!$C$10,CalculationsAndCharts!$A53+$A$11,(AQ$32-4)*3+2,1,1) -> 0.6804580504 | AR53: =OFFSET(StochasticsSwamiVersion!$C$10,CalculationsAndCharts!$A53+$A$11,(AR$32-4)*3+2,1,1) -> 0.6856749614 | AS53: =OFFSET(StochasticsSwamiVersion!$C$10,CalculationsAndCharts!$A53+$A$11,(AS$32-4)*3+2,1,1) -> 0.6909926471 | AT53: =OFFSET(StochasticsSwamiVersion!$C$10,CalculationsAndCharts!$A53+$A$11,(AT$32-4)*3+2,1,1) -> 0.6965552691 | AU53: =OFFSET(StochasticsSwamiVersion!$C$10,CalculationsAndCharts!$A53+$A$11,(AU$32-4)*3+2,1,1) -> 0.7026731303 | AV53: =OFFSET(StochasticsSwamiVersion!$C$10,CalculationsAndCharts!$A53+$A$11,(AV$32-4)*3+2,1,1) -> 0.7097515713 | AW53: =OFFSET(StochasticsSwamiVersion!$C$10,CalculationsAndCharts!$A53+$A$11,(AW$32-4)*3+2,1,1) -> 0.7179199767 | AX53: =OFFSET(StochasticsSwamiVersion!$C$10,CalculationsAndCharts!$A53+$A$11,(AX$32-4)*3+2,1,1) -> 0.7278224647 | AY53: =OFFSET(StochasticsSwamiVersion!$C$10,CalculationsAndCharts!$A53+$A$11,(AY$32-4)*3+2,1,1) -> 0.7390333462 | AZ53: =OFFSET(StochasticsSwamiVersion!$C$10,CalculationsAndCharts!$A53+$A$11,(AZ$32-4)*3+2,1,1) -> 0.7500018474
A54: 22 | B54: =OFFSET(InputPriceData!B$10,CalculationsAndCharts!$A54+$A$11,0,1,1) -> 2011-12-12 | C54: =OFFSET(InputPriceData!G$10,CalculationsAndCharts!$A54+$A$11,0,1,1) -> 215826100 | D54: =OFFSET(InputPriceData!C$10,CalculationsAndCharts!$A54+$A$11,0,1,1) -> 124.17 | E54: =OFFSET(InputPriceData!D$10,CalculationsAndCharts!$A54+$A$11,0,1,1) -> 124.19 | F54: =OFFSET(InputPriceData!E$10,CalculationsAndCharts!$A54+$A$11,0,1,1) -> 122.39 | G54: =OFFSET(InputPriceData!F$10,CalculationsAndCharts!$A54+$A$11,0,1,1) -> 123.43 | H54: =OFFSET(StochasticsSwamiVersion!$C$10,CalculationsAndCharts!$A54+$A$11,(H$32-4)*3+2,1,1) -> 0.6298042003 | I54: =OFFSET(StochasticsSwamiVersion!$C$10,CalculationsAndCharts!$A54+$A$11,(I$32-4)*3+2,1,1) -> 0.6442100869 | J54: =OFFSET(StochasticsSwamiVersion!$C$10,CalculationsAndCharts!$A54+$A$11,(J$32-4)*3+2,1,1) -> 0.6642230973 | K54: =OFFSET(StochasticsSwamiVersion!$C$10,CalculationsAndCharts!$A54+$A$11,(K$32-4)*3+2,1,1) -> 0.6910797895 | L54: =OFFSET(StochasticsSwamiVersion!$C$10,CalculationsAndCharts!$A54+$A$11,(L$32-4)*3+2,1,1) -> 0.7240810431 | M54: =OFFSET(StochasticsSwamiVersion!$C$10,CalculationsAndCharts!$A54+$A$11,(M$32-4)*3+2,1,1) -> 0.7504927656 | N54: =OFFSET(StochasticsSwamiVersion!$C$10,CalculationsAndCharts!$A54+$A$11,(N$32-4)*3+2,1,1) -> 0.7738941278 | O54: =OFFSET(StochasticsSwamiVersion!$C$10,CalculationsAndCharts!$A54+$A$11,(O$32-4)*3+2,1,1) -> 0.7781124005 | P54: =OFFSET(StochasticsSwamiVersion!$C$10,CalculationsAndCharts!$A54+$A$11,(P$32-4)*3+2,1,1) -> 0.7786596398 | Q54: =OFFSET(StochasticsSwamiVersion!$C$10,CalculationsAndCharts!$A54+$A$11,(Q$32-4)*3+2,1,1) -> 0.7694603306 | R54: =OFFSET(StochasticsSwamiVersion!$C$10,CalculationsAndCharts!$A54+$A$11,(R$32-4)*3+2,1,1) -> 0.7656014649 | S54: =OFFSET(StochasticsSwamiVersion!$C$10,CalculationsAndCharts!$A54+$A$11,(S$32-4)*3+2,1,1) -> 0.7602773856 | T54: =OFFSET(StochasticsSwamiVersion!$C$10,CalculationsAndCharts!$A54+$A$11,(T$32-4)*3+2,1,1) -> 0.7538765547 | U54: =OFFSET(StochasticsSwamiVersion!$C$10,CalculationsAndCharts!$A54+$A$11,(U$32-4)*3+2,1,1) -> 0.7459920206 | V54: =OFFSET(StochasticsSwamiVersion!$C$10,CalculationsAndCharts!$A54+$A$11,(V$32-4)*3+2,1,1) -> 0.740234747 | W54: =OFFSET(StochasticsSwamiVersion!$C$10,CalculationsAndCharts!$A54+$A$11,(W$32-4)*3+2,1,1) -> 0.7328095215 | X54: =OFFSET(StochasticsSwamiVersion!$C$10,CalculationsAndCharts!$A54+$A$11,(X$32-4)*3+2,1,1) -> 0.7236992429 | Y54: =OFFSET(StochasticsSwamiVersion!$C$10,CalculationsAndCharts!$A54+$A$11,(Y$32-4)*3+2,1,1) -> 0.7136931493 | Z54: =OFFSET(StochasticsSwamiVersion!$C$10,CalculationsAndCharts!$A54+$A$11,(Z$32-4)*3+2,1,1) -> 0.7030044856 | AA54: =OFFSET(StochasticsSwamiVersion!$C$10,CalculationsAndCharts!$A54+$A$11,(AA$32-4)*3+2,1,1) -> 0.6916480402 | AB54: =OFFSET(StochasticsSwamiVersion!$C$10,CalculationsAndCharts!$A54+$A$11,(AB$32-4)*3+2,1,1) -> 0.6825553498 | AC54: =OFFSET(StochasticsSwamiVersion!$C$10,CalculationsAndCharts!$A54+$A$11,(AC$32-4)*3+2,1,1) -> 0.6807603562 | AD54: =OFFSET(StochasticsSwamiVersion!$C$10,CalculationsAndCharts!$A54+$A$11,(AD$32-4)*3+2,1,1) -> 0.6774686025 | AE54: =OFFSET(StochasticsSwamiVersion!$C$10,CalculationsAndCharts!$A54+$A$11,(AE$32-4)*3+2,1,1) -> 0.673555705 | AF54: =OFFSET(StochasticsSwamiVersion!$C$10,CalculationsAndCharts!$A54+$A$11,(AF$32-4)*3+2,1,1) -> 0.6692319731 | AG54: =OFFSET(StochasticsSwamiVersion!$C$10,CalculationsAndCharts!$A54+$A$11,(AG$32-4)*3+2,1,1) -> 0.6651197946 | AH54: =OFFSET(StochasticsSwamiVersion!$C$10,CalculationsAndCharts!$A54+$A$11,(AH$32-4)*3+2,1,1) -> 0.6611866227 | AI54: =OFFSET(StochasticsSwamiVersion!$C$10,CalculationsAndCharts!$A54+$A$11,(AI$32-4)*3+2,1,1) -> 0.6596315541 | AJ54: =OFFSET(StochasticsSwamiVersion!$C$10,CalculationsAndCharts!$A54+$A$11,(AJ$32-4)*3+2,1,1) -> 0.6632409987 | AK54: =OFFSET(StochasticsSwamiVersion!$C$10,CalculationsAndCharts!$A54+$A$11,(AK$32-4)*3+2,1,1) -> 0.6676613786 | AL54: =OFFSET(StochasticsSwamiVersion!$C$10,CalculationsAndCharts!$A54+$A$11,(AL$32-4)*3+2,1,1) -> 0.6704666408 | AM54: =OFFSET(StochasticsSwamiVersion!$C$10,CalculationsAndCharts!$A54+$A$11,(AM$32-4)*3+2,1,1) -> 0.6738466638 | AN54: =OFFSET(StochasticsSwamiVersion!$C$10,CalculationsAndCharts!$A54+$A$11,(AN$32-4)*3+2,1,1) -> 0.6781138321 | AO54: =OFFSET(StochasticsSwamiVersion!$C$10,CalculationsAndCharts!$A54+$A$11,(AO$32-4)*3+2,1,1) -> 0.6832670686 | AP54: =OFFSET(StochasticsSwamiVersion!$C$10,CalculationsAndCharts!$A54+$A$11,(AP$32-4)*3+2,1,1) -> 0.6890829829 | AQ54: =OFFSET(StochasticsSwamiVersion!$C$10,CalculationsAndCharts!$A54+$A$11,(AQ$32-4)*3+2,1,1) -> 0.6953750898 | AR54: =OFFSET(StochasticsSwamiVersion!$C$10,CalculationsAndCharts!$A54+$A$11,(AR$32-4)*3+2,1,1) -> 0.7018550732 | AS54: =OFFSET(StochasticsSwamiVersion!$C$10,CalculationsAndCharts!$A54+$A$11,(AS$32-4)*3+2,1,1) -> 0.7084199767 | AT54: =OFFSET(StochasticsSwamiVersion!$C$10,CalculationsAndCharts!$A54+$A$11,(AT$32-4)*3+2,1,1) -> 0.7152092739 | AU54: =OFFSET(StochasticsSwamiVersion!$C$10,CalculationsAndCharts!$A54+$A$11,(AU$32-4)*3+2,1,1) -> 0.7225303381 | AV54: =OFFSET(StochasticsSwamiVersion!$C$10,CalculationsAndCharts!$A54+$A$11,(AV$32-4)*3+2,1,1) -> 0.7307325757 | AW54: =OFFSET(StochasticsSwamiVersion!$C$10,CalculationsAndCharts!$A54+$A$11,(AW$32-4)*3+2,1,1) -> 0.7396776643 | AX54: =OFFSET(StochasticsSwamiVersion!$C$10,CalculationsAndCharts!$A54+$A$11,(AX$32-4)*3+2,1,1) -> 0.7496249411 | AY54: =OFFSET(StochasticsSwamiVersion!$C$10,CalculationsAndCharts!$A54+$A$11,(AY$32-4)*3+2,1,1) -> 0.7591418543 | AZ54: =OFFSET(StochasticsSwamiVersion!$C$10,CalculationsAndCharts!$A54+$A$11,(AZ$32-4)*3+2,1,1) -> 0.7685054952
A55: 23 | B55: =OFFSET(InputPriceData!B$10,CalculationsAndCharts!$A55+$A$11,0,1,1) -> 2011-12-09 | C55: =OFFSET(InputPriceData!G$10,CalculationsAndCharts!$A55+$A$11,0,1,1) -> 209111400 | D55: =OFFSET(InputPriceData!C$10,CalculationsAndCharts!$A55+$A$11,0,1,1) -> 123.73 | E55: =OFFSET(InputPriceData!D$10,CalculationsAndCharts!$A55+$A$11,0,1,1) -> 125.58 | F55: =OFFSET(InputPriceData!E$10,CalculationsAndCharts!$A55+$A$11,0,1,1) -> 123.62 | G55: =OFFSET(InputPriceData!F$10,CalculationsAndCharts!$A55+$A$11,0,1,1) -> 125.26 | H55: =OFFSET(StochasticsSwamiVersion!$C$10,CalculationsAndCharts!$A55+$A$11,(H$32-4)*3+2,1,1) -> 0.7020369431 | I55: =OFFSET(StochasticsSwamiVersion!$C$10,CalculationsAndCharts!$A55+$A$11,(I$32-4)*3+2,1,1) -> 0.7146920788 | J55: =OFFSET(StochasticsSwamiVersion!$C$10,CalculationsAndCharts!$A55+$A$11,(J$32-4)*3+2,1,1) -> 0.7299943897 | K55: =OFFSET(StochasticsSwamiVersion!$C$10,CalculationsAndCharts!$A55+$A$11,(K$32-4)*3+2,1,1) -> 0.7473286717 | L55: =OFFSET(StochasticsSwamiVersion!$C$10,CalculationsAndCharts!$A55+$A$11,(L$32-4)*3+2,1,1) -> 0.7678880144 | M55: =OFFSET(StochasticsSwamiVersion!$C$10,CalculationsAndCharts!$A55+$A$11,(M$32-4)*3+2,1,1) -> 0.774257269 | N55: =OFFSET(StochasticsSwamiVersion!$C$10,CalculationsAndCharts!$A55+$A$11,(N$32-4)*3+2,1,1) -> 0.7758657371 | O55: =OFFSET(StochasticsSwamiVersion!$C$10,CalculationsAndCharts!$A55+$A$11,(O$32-4)*3+2,1,1) -> 0.7743745531 | P55: =OFFSET(StochasticsSwamiVersion!$C$10,CalculationsAndCharts!$A55+$A$11,(P$32-4)*3+2,1,1) -> 0.766724677 | Q55: =OFFSET(StochasticsSwamiVersion!$C$10,CalculationsAndCharts!$A55+$A$11,(Q$32-4)*3+2,1,1) -> 0.7554248287 | R55: =OFFSET(StochasticsSwamiVersion!$C$10,CalculationsAndCharts!$A55+$A$11,(R$32-4)*3+2,1,1) -> 0.7506578009 | S55: =OFFSET(StochasticsSwamiVersion!$C$10,CalculationsAndCharts!$A55+$A$11,(S$32-4)*3+2,1,1) -> 0.7441157176 | T55: =OFFSET(StochasticsSwamiVersion!$C$10,CalculationsAndCharts!$A55+$A$11,(T$32-4)*3+2,1,1) -> 0.7362997426 | U55: =OFFSET(StochasticsSwamiVersion!$C$10,CalculationsAndCharts!$A55+$A$11,(U$32-4)*3+2,1,1) -> 0.7267883064 | V55: =OFFSET(StochasticsSwamiVersion!$C$10,CalculationsAndCharts!$A55+$A$11,(V$32-4)*3+2,1,1) -> 0.7197807694 | W55: =OFFSET(StochasticsSwamiVersion!$C$10,CalculationsAndCharts!$A55+$A$11,(W$32-4)*3+2,1,1) -> 0.7108763064 | X55: =OFFSET(StochasticsSwamiVersion!$C$10,CalculationsAndCharts!$A55+$A$11,(X$32-4)*3+2,1,1) -> 0.7002384599 | Y55: =OFFSET(StochasticsSwamiVersion!$C$10,CalculationsAndCharts!$A55+$A$11,(Y$32-4)*3+2,1,1) -> 0.6891296685 | Z55: =OFFSET(StochasticsSwamiVersion!$C$10,CalculationsAndCharts!$A55+$A$11,(Z$32-4)*3+2,1,1) -> 0.6785098199 | AA55: =OFFSET(StochasticsSwamiVersion!$C$10,CalculationsAndCharts!$A55+$A$11,(AA$32-4)*3+2,1,1) -> 0.6695800219 | AB55: =OFFSET(StochasticsSwamiVersion!$C$10,CalculationsAndCharts!$A55+$A$11,(AB$32-4)*3+2,1,1) -> 0.6679564144 | AC55: =OFFSET(StochasticsSwamiVersion!$C$10,CalculationsAndCharts!$A55+$A$11,(AC$32-4)*3+2,1,1) -> 0.6658053119 | AD55: =OFFSET(StochasticsSwamiVersion!$C$10,CalculationsAndCharts!$A55+$A$11,(AD$32-4)*3+2,1,1) -> 0.6618757756 | AE55: =OFFSET(StochasticsSwamiVersion!$C$10,CalculationsAndCharts!$A55+$A$11,(AE$32-4)*3+2,1,1) -> 0.6573538563 | AF55: =OFFSET(StochasticsSwamiVersion!$C$10,CalculationsAndCharts!$A55+$A$11,(AF$32-4)*3+2,1,1) -> 0.6526831906 | AG55: =OFFSET(StochasticsSwamiVersion!$C$10,CalculationsAndCharts!$A55+$A$11,(AG$32-4)*3+2,1,1) -> 0.6489935851 | AH55: =OFFSET(StochasticsSwamiVersion!$C$10,CalculationsAndCharts!$A55+$A$11,(AH$32-4)*3+2,1,1) -> 0.6469108196 | AI55: =OFFSET(StochasticsSwamiVersion!$C$10,CalculationsAndCharts!$A55+$A$11,(AI$32-4)*3+2,1,1) -> 0.6503781503 | AJ55: =OFFSET(StochasticsSwamiVersion!$C$10,CalculationsAndCharts!$A55+$A$11,(AJ$32-4)*3+2,1,1) -> 0.6551030476 | AK55: =OFFSET(StochasticsSwamiVersion!$C$10,CalculationsAndCharts!$A55+$A$11,(AK$32-4)*3+2,1,1) -> 0.6606269304 | AL55: =OFFSET(StochasticsSwamiVersion!$C$10,CalculationsAndCharts!$A55+$A$11,(AL$32-4)*3+2,1,1) -> 0.6641323082 | AM55: =OFFSET(StochasticsSwamiVersion!$C$10,CalculationsAndCharts!$A55+$A$11,(AM$32-4)*3+2,1,1) -> 0.668355272 | AN55: =OFFSET(StochasticsSwamiVersion!$C$10,CalculationsAndCharts!$A55+$A$11,(AN$32-4)*3+2,1,1) -> 0.6736851025 | AO55: =OFFSET(StochasticsSwamiVersion!$C$10,CalculationsAndCharts!$A55+$A$11,(AO$32-4)*3+2,1,1) -> 0.6801183899 | AP55: =OFFSET(StochasticsSwamiVersion!$C$10,CalculationsAndCharts!$A55+$A$11,(AP$32-4)*3+2,1,1) -> 0.6873717716 | AQ55: =OFFSET(StochasticsSwamiVersion!$C$10,CalculationsAndCharts!$A55+$A$11,(AQ$32-4)*3+2,1,1) -> 0.6952039045 | AR55: =OFFSET(StochasticsSwamiVersion!$C$10,CalculationsAndCharts!$A55+$A$11,(AR$32-4)*3+2,1,1) -> 0.7032379682 | AS55: =OFFSET(StochasticsSwamiVersion!$C$10,CalculationsAndCharts!$A55+$A$11,(AS$32-4)*3+2,1,1) -> 0.7113126089 | AT55: =OFFSET(StochasticsSwamiVersion!$C$10,CalculationsAndCharts!$A55+$A$11,(AT$32-4)*3+2,1,1) -> 0.7195376147 | AU55: =OFFSET(StochasticsSwamiVersion!$C$10,CalculationsAndCharts!$A55+$A$11,(AU$32-4)*3+2,1,1) -> 0.7281710949 | AV55: =OFFSET(StochasticsSwamiVersion!$C$10,CalculationsAndCharts!$A55+$A$11,(AV$32-4)*3+2,1,1) -> 0.7374092079 | AW55: =OFFSET(StochasticsSwamiVersion!$C$10,CalculationsAndCharts!$A55+$A$11,(AW$32-4)*3+2,1,1) -> 0.7466413888 | AX55: =OFFSET(StochasticsSwamiVersion!$C$10,CalculationsAndCharts!$A55+$A$11,(AX$32-4)*3+2,1,1) -> 0.7554697848 | AY55: =OFFSET(StochasticsSwamiVersion!$C$10,CalculationsAndCharts!$A55+$A$11,(AY$32-4)*3+2,1,1) -> 0.7638802666 | AZ55: =OFFSET(StochasticsSwamiVersion!$C$10,CalculationsAndCharts!$A55+$A$11,(AZ$32-4)*3+2,1,1) -> 0.7695802007
A56: 24 | B56: =OFFSET(InputPriceData!B$10,CalculationsAndCharts!$A56+$A$11,0,1,1) -> 2011-12-08 | C56: =OFFSET(InputPriceData!G$10,CalculationsAndCharts!$A56+$A$11,0,1,1) -> 240862800 | D56: =OFFSET(InputPriceData!C$10,CalculationsAndCharts!$A56+$A$11,0,1,1) -> 125.11 | E56: =OFFSET(InputPriceData!D$10,CalculationsAndCharts!$A56+$A$11,0,1,1) -> 125.39 | F56: =OFFSET(InputPriceData!E$10,CalculationsAndCharts!$A56+$A$11,0,1,1) -> 122.87 | G56: =OFFSET(InputPriceData!F$10,CalculationsAndCharts!$A56+$A$11,0,1,1) -> 123.17 | H56: =OFFSET(StochasticsSwamiVersion!$C$10,CalculationsAndCharts!$A56+$A$11,(H$32-4)*3+2,1,1) -> 0.726789929 | I56: =OFFSET(StochasticsSwamiVersion!$C$10,CalculationsAndCharts!$A56+$A$11,(I$32-4)*3+2,1,1) -> 0.7362387704 | J56: =OFFSET(StochasticsSwamiVersion!$C$10,CalculationsAndCharts!$A56+$A$11,(J$32-4)*3+2,1,1) -> 0.7448395172 | K56: =OFFSET(StochasticsSwamiVersion!$C$10,CalculationsAndCharts!$A56+$A$11,(K$32-4)*3+2,1,1) -> 0.7513667937 | L56: =OFFSET(StochasticsSwamiVersion!$C$10,CalculationsAndCharts!$A56+$A$11,(L$32-4)*3+2,1,1) -> 0.7610831926 | M56: =OFFSET(StochasticsSwamiVersion!$C$10,CalculationsAndCharts!$A56+$A$11,(M$32-4)*3+2,1,1) -> 0.7526231532 | N56: =OFFSET(StochasticsSwamiVersion!$C$10,CalculationsAndCharts!$A56+$A$11,(N$32-4)*3+2,1,1) -> 0.750659722 | O56: =OFFSET(StochasticsSwamiVersion!$C$10,CalculationsAndCharts!$A56+$A$11,(O$32-4)*3+2,1,1) -> 0.7438543391 | P56: =OFFSET(StochasticsSwamiVersion!$C$10,CalculationsAndCharts!$A56+$A$11,(P$32-4)*3+2,1,1) -> 0.7345092172 | Q56: =OFFSET(StochasticsSwamiVersion!$C$10,CalculationsAndCharts!$A56+$A$11,(Q$32-4)*3+2,1,1) -> 0.7208176321 | R56: =OFFSET(StochasticsSwamiVersion!$C$10,CalculationsAndCharts!$A56+$A$11,(R$32-4)*3+2,1,1) -> 0.7149816347 | S56: =OFFSET(StochasticsSwamiVersion!$C$10,CalculationsAndCharts!$A56+$A$11,(S$32-4)*3+2,1,1) -> 0.7070492007 | T56: =OFFSET(StochasticsSwamiVersion!$C$10,CalculationsAndCharts!$A56+$A$11,(T$32-4)*3+2,1,1) -> 0.6976801168 | U56: =OFFSET(StochasticsSwamiVersion!$C$10,CalculationsAndCharts!$A56+$A$11,(U$32-4)*3+2,1,1) -> 0.6865345789 | V56: =OFFSET(StochasticsSwamiVersion!$C$10,CalculationsAndCharts!$A56+$A$11,(V$32-4)*3+2,1,1) -> 0.6781825801 | W56: =OFFSET(StochasticsSwamiVersion!$C$10,CalculationsAndCharts!$A56+$A$11,(W$32-4)*3+2,1,1) -> 0.6678623755 | X56: =OFFSET(StochasticsSwamiVersion!$C$10,CalculationsAndCharts!$A56+$A$11,(X$32-4)*3+2,1,1) -> 0.6561681578 | Y56: =OFFSET(StochasticsSwamiVersion!$C$10,CalculationsAndCharts!$A56+$A$11,(Y$32-4)*3+2,1,1) -> 0.6452412853 | Z56: =OFFSET(StochasticsSwamiVersion!$C$10,CalculationsAndCharts!$A56+$A$11,(Z$32-4)*3+2,1,1) -> 0.6376512371 | AA56: =OFFSET(StochasticsSwamiVersion!$C$10,CalculationsAndCharts!$A56+$A$11,(AA$32-4)*3+2,1,1) -> 0.6370063764 | AB56: =OFFSET(StochasticsSwamiVersion!$C$10,CalculationsAndCharts!$A56+$A$11,(AB$32-4)*3+2,1,1) -> 0.6350769041 | AC56: =OFFSET(StochasticsSwamiVersion!$C$10,CalculationsAndCharts!$A56+$A$11,(AC$32-4)*3+2,1,1) -> 0.6325877993 | AD56: =OFFSET(StochasticsSwamiVersion!$C$10,CalculationsAndCharts!$A56+$A$11,(AD$32-4)*3+2,1,1) -> 0.6280744679 | AE56: =OFFSET(StochasticsSwamiVersion!$C$10,CalculationsAndCharts!$A56+$A$11,(AE$32-4)*3+2,1,1) -> 0.6232144901 | AF56: =OFFSET(StochasticsSwamiVersion!$C$10,CalculationsAndCharts!$A56+$A$11,(AF$32-4)*3+2,1,1) -> 0.618942236 | AG56: =OFFSET(StochasticsSwamiVersion!$C$10,CalculationsAndCharts!$A56+$A$11,(AG$32-4)*3+2,1,1) -> 0.617389369 | AH56: =OFFSET(StochasticsSwamiVersion!$C$10,CalculationsAndCharts!$A56+$A$11,(AH$32-4)*3+2,1,1) -> 0.6206276954 | AI56: =OFFSET(StochasticsSwamiVersion!$C$10,CalculationsAndCharts!$A56+$A$11,(AI$32-4)*3+2,1,1) -> 0.6251921059 | AJ56: =OFFSET(StochasticsSwamiVersion!$C$10,CalculationsAndCharts!$A56+$A$11,(AJ$32-4)*3+2,1,1) -> 0.6310968037 | AK56: =OFFSET(StochasticsSwamiVersion!$C$10,CalculationsAndCharts!$A56+$A$11,(AK$32-4)*3+2,1,1) -> 0.637999052 | AL56: =OFFSET(StochasticsSwamiVersion!$C$10,CalculationsAndCharts!$A56+$A$11,(AL$32-4)*3+2,1,1) -> 0.6423788113 | AM56: =OFFSET(StochasticsSwamiVersion!$C$10,CalculationsAndCharts!$A56+$A$11,(AM$32-4)*3+2,1,1) -> 0.6476541374 | AN56: =OFFSET(StochasticsSwamiVersion!$C$10,CalculationsAndCharts!$A56+$A$11,(AN$32-4)*3+2,1,1) -> 0.6543096695 | AO56: =OFFSET(StochasticsSwamiVersion!$C$10,CalculationsAndCharts!$A56+$A$11,(AO$32-4)*3+2,1,1) -> 0.6623377712 | AP56: =OFFSET(StochasticsSwamiVersion!$C$10,CalculationsAndCharts!$A56+$A$11,(AP$32-4)*3+2,1,1) -> 0.6713775007 | AQ56: =OFFSET(StochasticsSwamiVersion!$C$10,CalculationsAndCharts!$A56+$A$11,(AQ$32-4)*3+2,1,1) -> 0.6811137418 | AR56: =OFFSET(StochasticsSwamiVersion!$C$10,CalculationsAndCharts!$A56+$A$11,(AR$32-4)*3+2,1,1) -> 0.6910487515 | AS56: =OFFSET(StochasticsSwamiVersion!$C$10,CalculationsAndCharts!$A56+$A$11,(AS$32-4)*3+2,1,1) -> 0.7009280265 | AT56: =OFFSET(StochasticsSwamiVersion!$C$10,CalculationsAndCharts!$A56+$A$11,(AT$32-4)*3+2,1,1) -> 0.7107856347 | AU56: =OFFSET(StochasticsSwamiVersion!$C$10,CalculationsAndCharts!$A56+$A$11,(AU$32-4)*3+2,1,1) -> 0.7207473797 | AV56: =OFFSET(StochasticsSwamiVersion!$C$10,CalculationsAndCharts!$A56+$A$11,(AV$32-4)*3+2,1,1) -> 0.7307004116 | AW56: =OFFSET(StochasticsSwamiVersion!$C$10,CalculationsAndCharts!$A56+$A$11,(AW$32-4)*3+2,1,1) -> 0.7392908419 | AX56: =OFFSET(StochasticsSwamiVersion!$C$10,CalculationsAndCharts!$A56+$A$11,(AX$32-4)*3+2,1,1) -> 0.7474747452 | AY56: =OFFSET(StochasticsSwamiVersion!$C$10,CalculationsAndCharts!$A56+$A$11,(AY$32-4)*3+2,1,1) -> 0.7530755158 | AZ56: =OFFSET(StochasticsSwamiVersion!$C$10,CalculationsAndCharts!$A56+$A$11,(AZ$32-4)*3+2,1,1) -> 0.7556719542
A57: 25 | B57: =OFFSET(InputPriceData!B$10,CalculationsAndCharts!$A57+$A$11,0,1,1) -> 2011-12-07 | C57: =OFFSET(InputPriceData!G$10,CalculationsAndCharts!$A57+$A$11,0,1,1) -> 237802500 | D57: =OFFSET(InputPriceData!C$10,CalculationsAndCharts!$A57+$A$11,0,1,1) -> 125.05 | E57: =OFFSET(InputPriceData!D$10,CalculationsAndCharts!$A57+$A$11,0,1,1) -> 126.46 | F57: =OFFSET(InputPriceData!E$10,CalculationsAndCharts!$A57+$A$11,0,1,1) -> 124.18 | G57: =OFFSET(InputPriceData!F$10,CalculationsAndCharts!$A57+$A$11,0,1,1) -> 125.93 | H57: =OFFSET(StochasticsSwamiVersion!$C$10,CalculationsAndCharts!$A57+$A$11,(H$32-4)*3+2,1,1) -> 0.8014501815 | I57: =OFFSET(StochasticsSwamiVersion!$C$10,CalculationsAndCharts!$A57+$A$11,(I$32-4)*3+2,1,1) -> 0.7949148003 | J57: =OFFSET(StochasticsSwamiVersion!$C$10,CalculationsAndCharts!$A57+$A$11,(J$32-4)*3+2,1,1) -> 0.7803426267 | K57: =OFFSET(StochasticsSwamiVersion!$C$10,CalculationsAndCharts!$A57+$A$11,(K$32-4)*3+2,1,1) -> 0.7600239195 | L57: =OFFSET(StochasticsSwamiVersion!$C$10,CalculationsAndCharts!$A57+$A$11,(L$32-4)*3+2,1,1) -> 0.7490617967 | M57: =OFFSET(StochasticsSwamiVersion!$C$10,CalculationsAndCharts!$A57+$A$11,(M$32-4)*3+2,1,1) -> 0.7331088155 | N57: =OFFSET(StochasticsSwamiVersion!$C$10,CalculationsAndCharts!$A57+$A$11,(N$32-4)*3+2,1,1) -> 0.7238285593 | O57: =OFFSET(StochasticsSwamiVersion!$C$10,CalculationsAndCharts!$A57+$A$11,(O$32-4)*3+2,1,1) -> 0.7155317798 | P57: =OFFSET(StochasticsSwamiVersion!$C$10,CalculationsAndCharts!$A57+$A$11,(P$32-4)*3+2,1,1) -> 0.7042690439 | Q57: =OFFSET(StochasticsSwamiVersion!$C$10,CalculationsAndCharts!$A57+$A$11,(Q$32-4)*3+2,1,1) -> 0.6879871168 | R57: =OFFSET(StochasticsSwamiVersion!$C$10,CalculationsAndCharts!$A57+$A$11,(R$32-4)*3+2,1,1) -> 0.6809274946 | S57: =OFFSET(StochasticsSwamiVersion!$C$10,CalculationsAndCharts!$A57+$A$11,(S$32-4)*3+2,1,1) -> 0.6714811444 | T57: =OFFSET(StochasticsSwamiVersion!$C$10,CalculationsAndCharts!$A57+$A$11,(T$32-4)*3+2,1,1) -> 0.6605347425 | U57: =OFFSET(StochasticsSwamiVersion!$C$10,CalculationsAndCharts!$A57+$A$11,(U$32-4)*3+2,1,1) -> 0.6480147225 | V57: =OFFSET(StochasticsSwamiVersion!$C$10,CalculationsAndCharts!$A57+$A$11,(V$32-4)*3+2,1,1) -> 0.6383441502 | W57: =OFFSET(StochasticsSwamiVersion!$C$10,CalculationsAndCharts!$A57+$A$11,(W$32-4)*3+2,1,1) -> 0.6269659656 | X57: =OFFSET(StochasticsSwamiVersion!$C$10,CalculationsAndCharts!$A57+$A$11,(X$32-4)*3+2,1,1) -> 0.6153268955 | Y57: =OFFSET(StochasticsSwamiVersion!$C$10,CalculationsAndCharts!$A57+$A$11,(Y$32-4)*3+2,1,1) -> 0.6070566717 | Z57: =OFFSET(StochasticsSwamiVersion!$C$10,CalculationsAndCharts!$A57+$A$11,(Z$32-4)*3+2,1,1) -> 0.6075379938 | AA57: =OFFSET(StochasticsSwamiVersion!$C$10,CalculationsAndCharts!$A57+$A$11,(AA$32-4)*3+2,1,1) -> 0.6068265535 | AB57: =OFFSET(StochasticsSwamiVersion!$C$10,CalculationsAndCharts!$A57+$A$11,(AB$32-4)*3+2,1,1) -> 0.6046040339 | AC57: =OFFSET(StochasticsSwamiVersion!$C$10,CalculationsAndCharts!$A57+$A$11,(AC$32-4)*3+2,1,1) -> 0.6018701574 | AD57: =OFFSET(StochasticsSwamiVersion!$C$10,CalculationsAndCharts!$A57+$A$11,(AD$32-4)*3+2,1,1) -> 0.5969795747 | AE57: =OFFSET(StochasticsSwamiVersion!$C$10,CalculationsAndCharts!$A57+$A$11,(AE$32-4)*3+2,1,1) -> 0.5923889785 | AF57: =OFFSET(StochasticsSwamiVersion!$C$10,CalculationsAndCharts!$A57+$A$11,(AF$32-4)*3+2,1,1) -> 0.5899482011 | AG57: =OFFSET(StochasticsSwamiVersion!$C$10,CalculationsAndCharts!$A57+$A$11,(AG$32-4)*3+2,1,1) -> 0.5935439559 | AH57: =OFFSET(StochasticsSwamiVersion!$C$10,CalculationsAndCharts!$A57+$A$11,(AH$32-4)*3+2,1,1) -> 0.5978099326 | AI57: =OFFSET(StochasticsSwamiVersion!$C$10,CalculationsAndCharts!$A57+$A$11,(AI$32-4)*3+2,1,1) -> 0.6035137397 | AJ57: =OFFSET(StochasticsSwamiVersion!$C$10,CalculationsAndCharts!$A57+$A$11,(AJ$32-4)*3+2,1,1) -> 0.6108913152 | AK57: =OFFSET(StochasticsSwamiVersion!$C$10,CalculationsAndCharts!$A57+$A$11,(AK$32-4)*3+2,1,1) -> 0.6195130948 | AL57: =OFFSET(StochasticsSwamiVersion!$C$10,CalculationsAndCharts!$A57+$A$11,(AL$32-4)*3+2,1,1) -> 0.6249832495 | AM57: =OFFSET(StochasticsSwamiVersion!$C$10,CalculationsAndCharts!$A57+$A$11,(AM$32-4)*3+2,1,1) -> 0.6315695869 | AN57: =OFFSET(StochasticsSwamiVersion!$C$10,CalculationsAndCharts!$A57+$A$11,(AN$32-4)*3+2,1,1) -> 0.6398733667 | AO57: =OFFSET(StochasticsSwamiVersion!$C$10,CalculationsAndCharts!$A57+$A$11,(AO$32-4)*3+2,1,1) -> 0.6498772432 | AP57: =OFFSET(StochasticsSwamiVersion!$C$10,CalculationsAndCharts!$A57+$A$11,(AP$32-4)*3+2,1,1) -> 0.6611144855 | AQ57: =OFFSET(StochasticsSwamiVersion!$C$10,CalculationsAndCharts!$A57+$A$11,(AQ$32-4)*3+2,1,1) -> 0.673160272 | AR57: =OFFSET(StochasticsSwamiVersion!$C$10,CalculationsAndCharts!$A57+$A$11,(AR$32-4)*3+2,1,1) -> 0.6853312937 | AS57: =OFFSET(StochasticsSwamiVersion!$C$10,CalculationsAndCharts!$A57+$A$11,(AS$32-4)*3+2,1,1) -> 0.6971900028 | AT57: =OFFSET(StochasticsSwamiVersion!$C$10,CalculationsAndCharts!$A57+$A$11,(AT$32-4)*3+2,1,1) -> 0.7085511447 | AU57: =OFFSET(StochasticsSwamiVersion!$C$10,CalculationsAndCharts!$A57+$A$11,(AU$32-4)*3+2,1,1) -> 0.7191575245 | AV57: =OFFSET(StochasticsSwamiVersion!$C$10,CalculationsAndCharts!$A57+$A$11,(AV$32-4)*3+2,1,1) -> 0.7281843496 | AW57: =OFFSET(StochasticsSwamiVersion!$C$10,CalculationsAndCharts!$A57+$A$11,(AW$32-4)*3+2,1,1) -> 0.7356215965 | AX57: =OFFSET(StochasticsSwamiVersion!$C$10,CalculationsAndCharts!$A57+$A$11,(AX$32-4)*3+2,1,1) -> 0.7401653249 | AY57: =OFFSET(StochasticsSwamiVersion!$C$10,CalculationsAndCharts!$A57+$A$11,(AY$32-4)*3+2,1,1) -> 0.7419244567 | AZ57: =OFFSET(StochasticsSwamiVersion!$C$10,CalculationsAndCharts!$A57+$A$11,(AZ$32-4)*3+2,1,1) -> 0.7419168736
A58: 26 | B58: =OFFSET(InputPriceData!B$10,CalculationsAndCharts!$A58+$A$11,0,1,1) -> 2011-12-06 | C58: =OFFSET(InputPriceData!G$10,CalculationsAndCharts!$A58+$A$11,0,1,1) -> 178842100 | D58: =OFFSET(InputPriceData!C$10,CalculationsAndCharts!$A58+$A$11,0,1,1) -> 125.41 | E58: =OFFSET(InputPriceData!D$10,CalculationsAndCharts!$A58+$A$11,0,1,1) -> 126.3 | F58: =OFFSET(InputPriceData!E$10,CalculationsAndCharts!$A58+$A$11,0,1,1) -> 124.96 | G58: =OFFSET(InputPriceData!F$10,CalculationsAndCharts!$A58+$A$11,0,1,1) -> 125.46 | H58: =OFFSET(StochasticsSwamiVersion!$C$10,CalculationsAndCharts!$A58+$A$11,(H$32-4)*3+2,1,1) -> 0.7546338705 | I58: =OFFSET(StochasticsSwamiVersion!$C$10,CalculationsAndCharts!$A58+$A$11,(I$32-4)*3+2,1,1) -> 0.746277862 | J58: =OFFSET(StochasticsSwamiVersion!$C$10,CalculationsAndCharts!$A58+$A$11,(J$32-4)*3+2,1,1) -> 0.7278680363 | K58: =OFFSET(StochasticsSwamiVersion!$C$10,CalculationsAndCharts!$A58+$A$11,(K$32-4)*3+2,1,1) -> 0.7022279129 | L58: =OFFSET(StochasticsSwamiVersion!$C$10,CalculationsAndCharts!$A58+$A$11,(L$32-4)*3+2,1,1) -> 0.6886463728 | M58: =OFFSET(StochasticsSwamiVersion!$C$10,CalculationsAndCharts!$A58+$A$11,(M$32-4)*3+2,1,1) -> 0.6689075364 | N58: =OFFSET(StochasticsSwamiVersion!$C$10,CalculationsAndCharts!$A58+$A$11,(N$32-4)*3+2,1,1) -> 0.6577294584 | O58: =OFFSET(StochasticsSwamiVersion!$C$10,CalculationsAndCharts!$A58+$A$11,(O$32-4)*3+2,1,1) -> 0.6478509703 | P58: =OFFSET(StochasticsSwamiVersion!$C$10,CalculationsAndCharts!$A58+$A$11,(P$32-4)*3+2,1,1) -> 0.6347516506 | Q58: =OFFSET(StochasticsSwamiVersion!$C$10,CalculationsAndCharts!$A58+$A$11,(Q$32-4)*3+2,1,1) -> 0.6163343174 | R58: =OFFSET(StochasticsSwamiVersion!$C$10,CalculationsAndCharts!$A58+$A$11,(R$32-4)*3+2,1,1) -> 0.6080540511 | S58: =OFFSET(StochasticsSwamiVersion!$C$10,CalculationsAndCharts!$A58+$A$11,(S$32-4)*3+2,1,1) -> 0.597327374 | T58: =OFFSET(StochasticsSwamiVersion!$C$10,CalculationsAndCharts!$A58+$A$11,(T$32-4)*3+2,1,1) -> 0.5853968331 | U58: =OFFSET(StochasticsSwamiVersion!$C$10,CalculationsAndCharts!$A58+$A$11,(U$32-4)*3+2,1,1) -> 0.5729480074 | V58: =OFFSET(StochasticsSwamiVersion!$C$10,CalculationsAndCharts!$A58+$A$11,(V$32-4)*3+2,1,1) -> 0.5625863426 | W58: =OFFSET(StochasticsSwamiVersion!$C$10,CalculationsAndCharts!$A58+$A$11,(W$32-4)*3+2,1,1) -> 0.5517423449 | X58: =OFFSET(StochasticsSwamiVersion!$C$10,CalculationsAndCharts!$A58+$A$11,(X$32-4)*3+2,1,1) -> 0.5436680334 | Y58: =OFFSET(StochasticsSwamiVersion!$C$10,CalculationsAndCharts!$A58+$A$11,(Y$32-4)*3+2,1,1) -> 0.5446001271 | Z58: =OFFSET(StochasticsSwamiVersion!$C$10,CalculationsAndCharts!$A58+$A$11,(Z$32-4)*3+2,1,1) -> 0.5453087752 | AA58: =OFFSET(StochasticsSwamiVersion!$C$10,CalculationsAndCharts!$A58+$A$11,(AA$32-4)*3+2,1,1) -> 0.5446333856 | AB58: =OFFSET(StochasticsSwamiVersion!$C$10,CalculationsAndCharts!$A58+$A$11,(AB$32-4)*3+2,1,1) -> 0.5422821687 | AC58: =OFFSET(StochasticsSwamiVersion!$C$10,CalculationsAndCharts!$A58+$A$11,(AC$32-4)*3+2,1,1) -> 0.5397135799 | AD58: =OFFSET(StochasticsSwamiVersion!$C$10,CalculationsAndCharts!$A58+$A$11,(AD$32-4)*3+2,1,1) -> 0.5352784519 | AE58: =OFFSET(StochasticsSwamiVersion!$C$10,CalculationsAndCharts!$A58+$A$11,(AE$32-4)*3+2,1,1) -> 0.5328181516 | AF58: =OFFSET(StochasticsSwamiVersion!$C$10,CalculationsAndCharts!$A58+$A$11,(AF$32-4)*3+2,1,1) -> 0.5360265632 | AG58: =OFFSET(StochasticsSwamiVersion!$C$10,CalculationsAndCharts!$A58+$A$11,(AG$32-4)*3+2,1,1) -> 0.5407679087 | AH58: =OFFSET(StochasticsSwamiVersion!$C$10,CalculationsAndCharts!$A58+$A$11,(AH$32-4)*3+2,1,1) -> 0.5460992032 | AI58: =OFFSET(StochasticsSwamiVersion!$C$10,CalculationsAndCharts!$A58+$A$11,(AI$32-4)*3+2,1,1) -> 0.5532266482 | AJ58: =OFFSET(StochasticsSwamiVersion!$C$10,CalculationsAndCharts!$A58+$A$11,(AJ$32-4)*3+2,1,1) -> 0.5624441469 | AK58: =OFFSET(StochasticsSwamiVersion!$C$10,CalculationsAndCharts!$A58+$A$11,(AK$32-4)*3+2,1,1) -> 0.5732131939 | AL58: =OFFSET(StochasticsSwamiVersion!$C$10,CalculationsAndCharts!$A58+$A$11,(AL$32-4)*3+2,1,1) -> 0.5800447264 | AM58: =OFFSET(StochasticsSwamiVersion!$C$10,CalculationsAndCharts!$A58+$A$11,(AM$32-4)*3+2,1,1) -> 0.5882670477 | AN58: =OFFSET(StochasticsSwamiVersion!$C$10,CalculationsAndCharts!$A58+$A$11,(AN$32-4)*3+2,1,1) -> 0.5986255853 | AO58: =OFFSET(StochasticsSwamiVersion!$C$10,CalculationsAndCharts!$A58+$A$11,(AO$32-4)*3+2,1,1) -> 0.6110881119 | AP58: =OFFSET(StochasticsSwamiVersion!$C$10,CalculationsAndCharts!$A58+$A$11,(AP$32-4)*3+2,1,1) -> 0.6250502465 | AQ58: =OFFSET(StochasticsSwamiVersion!$C$10,CalculationsAndCharts!$A58+$A$11,(AQ$32-4)*3+2,1,1) -> 0.6399395172 | AR58: =OFFSET(StochasticsSwamiVersion!$C$10,CalculationsAndCharts!$A58+$A$11,(AR$32-4)*3+2,1,1) -> 0.6548208246 | AS58: =OFFSET(StochasticsSwamiVersion!$C$10,CalculationsAndCharts!$A58+$A$11,(AS$32-4)*3+2,1,1) -> 0.668992764 | AT58: =OFFSET(StochasticsSwamiVersion!$C$10,CalculationsAndCharts!$A58+$A$11,(AT$32-4)*3+2,1,1) -> 0.6819427799 | AU58: =OFFSET(StochasticsSwamiVersion!$C$10,CalculationsAndCharts!$A58+$A$11,(AU$32-4)*3+2,1,1) -> 0.692885825 | AV58: =OFFSET(StochasticsSwamiVersion!$C$10,CalculationsAndCharts!$A58+$A$11,(AV$32-4)*3+2,1,1) -> 0.7019314951 | AW58: =OFFSET(StochasticsSwamiVersion!$C$10,CalculationsAndCharts!$A58+$A$11,(AW$32-4)*3+2,1,1) -> 0.7073729726 | AX58: =OFFSET(StochasticsSwamiVersion!$C$10,CalculationsAndCharts!$A58+$A$11,(AX$32-4)*3+2,1,1) -> 0.7094987903 | AY58: =OFFSET(StochasticsSwamiVersion!$C$10,CalculationsAndCharts!$A58+$A$11,(AY$32-4)*3+2,1,1) -> 0.709492156 | AZ58: =OFFSET(StochasticsSwamiVersion!$C$10,CalculationsAndCharts!$A58+$A$11,(AZ$32-4)*3+2,1,1) -> 0.7094826772
A59: 27 | B59: =OFFSET(InputPriceData!B$10,CalculationsAndCharts!$A59+$A$11,0,1,1) -> 2011-12-05 | C59: =OFFSET(InputPriceData!G$10,CalculationsAndCharts!$A59+$A$11,0,1,1) -> 225263900 | D59: =OFFSET(InputPriceData!C$10,CalculationsAndCharts!$A59+$A$11,0,1,1) -> 126.04 | E59: =OFFSET(InputPriceData!D$10,CalculationsAndCharts!$A59+$A$11,0,1,1) -> 126.37 | F59: =OFFSET(InputPriceData!E$10,CalculationsAndCharts!$A59+$A$11,0,1,1) -> 124.64 | G59: =OFFSET(InputPriceData!F$10,CalculationsAndCharts!$A59+$A$11,0,1,1) -> 125.42 | H59: =OFFSET(StochasticsSwamiVersion!$C$10,CalculationsAndCharts!$A59+$A$11,(H$32-4)*3+2,1,1) -> 0.6983406435 | I59: =OFFSET(StochasticsSwamiVersion!$C$10,CalculationsAndCharts!$A59+$A$11,(I$32-4)*3+2,1,1) -> 0.6867664287 | J59: =OFFSET(StochasticsSwamiVersion!$C$10,CalculationsAndCharts!$A59+$A$11,(J$32-4)*3+2,1,1) -> 0.6629491562 | K59: =OFFSET(StochasticsSwamiVersion!$C$10,CalculationsAndCharts!$A59+$A$11,(K$32-4)*3+2,1,1) -> 0.631860125 | L59: =OFFSET(StochasticsSwamiVersion!$C$10,CalculationsAndCharts!$A59+$A$11,(L$32-4)*3+2,1,1) -> 0.6148329961 | M59: =OFFSET(StochasticsSwamiVersion!$C$10,CalculationsAndCharts!$A59+$A$11,(M$32-4)*3+2,1,1) -> 0.5913884545 | N59: =OFFSET(StochasticsSwamiVersion!$C$10,CalculationsAndCharts!$A59+$A$11,(N$32-4)*3+2,1,1) -> 0.5782843482 | O59: =OFFSET(StochasticsSwamiVersion!$C$10,CalculationsAndCharts!$A59+$A$11,(O$32-4)*3+2,1,1) -> 0.5669451622 | P59: =OFFSET(StochasticsSwamiVersion!$C$10,CalculationsAndCharts!$A59+$A$11,(P$32-4)*3+2,1,1) -> 0.5525640004 | Q59: =OFFSET(StochasticsSwamiVersion!$C$10,CalculationsAndCharts!$A59+$A$11,(Q$32-4)*3+2,1,1) -> 0.5334318481 | R59: =OFFSET(StochasticsSwamiVersion!$C$10,CalculationsAndCharts!$A59+$A$11,(R$32-4)*3+2,1,1) -> 0.5241638319 | S59: =OFFSET(StochasticsSwamiVersion!$C$10,CalculationsAndCharts!$A59+$A$11,(S$32-4)*3+2,1,1) -> 0.5128907293 | T59: =OFFSET(StochasticsSwamiVersion!$C$10,CalculationsAndCharts!$A59+$A$11,(T$32-4)*3+2,1,1) -> 0.5013966364 | U59: =OFFSET(StochasticsSwamiVersion!$C$10,CalculationsAndCharts!$A59+$A$11,(U$32-4)*3+2,1,1) -> 0.4919516285 | V59: =OFFSET(StochasticsSwamiVersion!$C$10,CalculationsAndCharts!$A59+$A$11,(V$32-4)*3+2,1,1) -> 0.4822305948 | W59: =OFFSET(StochasticsSwamiVersion!$C$10,CalculationsAndCharts!$A59+$A$11,(W$32-4)*3+2,1,1) -> 0.4748661528 | X59: =OFFSET(StochasticsSwamiVersion!$C$10,CalculationsAndCharts!$A59+$A$11,(X$32-4)*3+2,1,1) -> 0.4761690605 | Y59: =OFFSET(StochasticsSwamiVersion!$C$10,CalculationsAndCharts!$A59+$A$11,(Y$32-4)*3+2,1,1) -> 0.4774357053 | Z59: =OFFSET(StochasticsSwamiVersion!$C$10,CalculationsAndCharts!$A59+$A$11,(Z$32-4)*3+2,1,1) -> 0.478524281 | AA59: =OFFSET(StochasticsSwamiVersion!$C$10,CalculationsAndCharts!$A59+$A$11,(AA$32-4)*3+2,1,1) -> 0.4780849846 | AB59: =OFFSET(StochasticsSwamiVersion!$C$10,CalculationsAndCharts!$A59+$A$11,(AB$32-4)*3+2,1,1) -> 0.4759520294 | AC59: =OFFSET(StochasticsSwamiVersion!$C$10,CalculationsAndCharts!$A59+$A$11,(AC$32-4)*3+2,1,1) -> 0.4743342821 | AD59: =OFFSET(StochasticsSwamiVersion!$C$10,CalculationsAndCharts!$A59+$A$11,(AD$32-4)*3+2,1,1) -> 0.47190383 | AE59: =OFFSET(StochasticsSwamiVersion!$C$10,CalculationsAndCharts!$A59+$A$11,(AE$32-4)*3+2,1,1) -> 0.4747736651 | AF59: =OFFSET(StochasticsSwamiVersion!$C$10,CalculationsAndCharts!$A59+$A$11,(AF$32-4)*3+2,1,1) -> 0.4790182365 | AG59: =OFFSET(StochasticsSwamiVersion!$C$10,CalculationsAndCharts!$A59+$A$11,(AG$32-4)*3+2,1,1) -> 0.4849428835 | AH59: =OFFSET(StochasticsSwamiVersion!$C$10,CalculationsAndCharts!$A59+$A$11,(AH$32-4)*3+2,1,1) -> 0.4916041591 | AI59: =OFFSET(StochasticsSwamiVersion!$C$10,CalculationsAndCharts!$A59+$A$11,(AI$32-4)*3+2,1,1) -> 0.5005078758 | AJ59: =OFFSET(StochasticsSwamiVersion!$C$10,CalculationsAndCharts!$A59+$A$11,(AJ$32-4)*3+2,1,1) -> 0.5120189505 | AK59: =OFFSET(StochasticsSwamiVersion!$C$10,CalculationsAndCharts!$A59+$A$11,(AK$32-4)*3+2,1,1) -> 0.5254605118 | AL59: =OFFSET(StochasticsSwamiVersion!$C$10,CalculationsAndCharts!$A59+$A$11,(AL$32-4)*3+2,1,1) -> 0.5339850541 | AM59: =OFFSET(StochasticsSwamiVersion!$C$10,CalculationsAndCharts!$A59+$A$11,(AM$32-4)*3+2,1,1) -> 0.5442373736 | AN59: =OFFSET(StochasticsSwamiVersion!$C$10,CalculationsAndCharts!$A59+$A$11,(AN$32-4)*3+2,1,1) -> 0.5571344479 | AO59: =OFFSET(StochasticsSwamiVersion!$C$10,CalculationsAndCharts!$A59+$A$11,(AO$32-4)*3+2,1,1) -> 0.5726106762 | AP59: =OFFSET(StochasticsSwamiVersion!$C$10,CalculationsAndCharts!$A59+$A$11,(AP$32-4)*3+2,1,1) -> 0.58986054 | AQ59: =OFFSET(StochasticsSwamiVersion!$C$10,CalculationsAndCharts!$A59+$A$11,(AQ$32-4)*3+2,1,1) -> 0.6080706914 | AR59: =OFFSET(StochasticsSwamiVersion!$C$10,CalculationsAndCharts!$A59+$A$11,(AR$32-4)*3+2,1,1) -> 0.6258857432 | AS59: =OFFSET(StochasticsSwamiVersion!$C$10,CalculationsAndCharts!$A59+$A$11,(AS$32-4)*3+2,1,1) -> 0.6420896642 | AT59: =OFFSET(StochasticsSwamiVersion!$C$10,CalculationsAndCharts!$A59+$A$11,(AT$32-4)*3+2,1,1) -> 0.6554820474 | AU59: =OFFSET(StochasticsSwamiVersion!$C$10,CalculationsAndCharts!$A59+$A$11,(AU$32-4)*3+2,1,1) -> 0.6664587723 | AV59: =OFFSET(StochasticsSwamiVersion!$C$10,CalculationsAndCharts!$A59+$A$11,(AV$32-4)*3+2,1,1) -> 0.6731110839 | AW59: =OFFSET(StochasticsSwamiVersion!$C$10,CalculationsAndCharts!$A59+$A$11,(AW$32-4)*3+2,1,1) -> 0.6756218817 | AX59: =OFFSET(StochasticsSwamiVersion!$C$10,CalculationsAndCharts!$A59+$A$11,(AX$32-4)*3+2,1,1) -> 0.6756160876 | AY59: =OFFSET(StochasticsSwamiVersion!$C$10,CalculationsAndCharts!$A59+$A$11,(AY$32-4)*3+2,1,1) -> 0.6756077947 | AZ59: =OFFSET(StochasticsSwamiVersion!$C$10,CalculationsAndCharts!$A59+$A$11,(AZ$32-4)*3+2,1,1) -> 0.6755959462
A60: 28 | B60: =OFFSET(InputPriceData!B$10,CalculationsAndCharts!$A60+$A$11,0,1,1) -> 2011-12-02 | C60: =OFFSET(InputPriceData!G$10,CalculationsAndCharts!$A60+$A$11,0,1,1) -> 221109700 | D60: =OFFSET(InputPriceData!C$10,CalculationsAndCharts!$A60+$A$11,0,1,1) -> 125.32 | E60: =OFFSET(InputPriceData!D$10,CalculationsAndCharts!$A60+$A$11,0,1,1) -> 125.7 | F60: =OFFSET(InputPriceData!E$10,CalculationsAndCharts!$A60+$A$11,0,1,1) -> 123.99 | G60: =OFFSET(InputPriceData!F$10,CalculationsAndCharts!$A60+$A$11,0,1,1) -> 124.07 | H60: =OFFSET(StochasticsSwamiVersion!$C$10,CalculationsAndCharts!$A60+$A$11,(H$32-4)*3+2,1,1) -> 0.6300863588 | I60: =OFFSET(StochasticsSwamiVersion!$C$10,CalculationsAndCharts!$A60+$A$11,(I$32-4)*3+2,1,1) -> 0.6132504399 | J60: =OFFSET(StochasticsSwamiVersion!$C$10,CalculationsAndCharts!$A60+$A$11,(J$32-4)*3+2,1,1) -> 0.5844367528 | K60: =OFFSET(StochasticsSwamiVersion!$C$10,CalculationsAndCharts!$A60+$A$11,(K$32-4)*3+2,1,1) -> 0.5468275535 | L60: =OFFSET(StochasticsSwamiVersion!$C$10,CalculationsAndCharts!$A60+$A$11,(L$32-4)*3+2,1,1) -> 0.5269225425 | M60: =OFFSET(StochasticsSwamiVersion!$C$10,CalculationsAndCharts!$A60+$A$11,(M$32-4)*3+2,1,1) -> 0.5001171586 | N60: =OFFSET(StochasticsSwamiVersion!$C$10,CalculationsAndCharts!$A60+$A$11,(N$32-4)*3+2,1,1) -> 0.4854877134 | O60: =OFFSET(StochasticsSwamiVersion!$C$10,CalculationsAndCharts!$A60+$A$11,(O$32-4)*3+2,1,1) -> 0.4733308934 | P60: =OFFSET(StochasticsSwamiVersion!$C$10,CalculationsAndCharts!$A60+$A$11,(P$32-4)*3+2,1,1) -> 0.4592875405 | Q60: =OFFSET(StochasticsSwamiVersion!$C$10,CalculationsAndCharts!$A60+$A$11,(Q$32-4)*3+2,1,1) -> 0.4428572583 | R60: =OFFSET(StochasticsSwamiVersion!$C$10,CalculationsAndCharts!$A60+$A$11,(R$32-4)*3+2,1,1) -> 0.4333114051 | S60: =OFFSET(StochasticsSwamiVersion!$C$10,CalculationsAndCharts!$A60+$A$11,(S$32-4)*3+2,1,1) -> 0.4231889379 | T60: =OFFSET(StochasticsSwamiVersion!$C$10,CalculationsAndCharts!$A60+$A$11,(T$32-4)*3+2,1,1) -> 0.4150312604 | U60: =OFFSET(StochasticsSwamiVersion!$C$10,CalculationsAndCharts!$A60+$A$11,(U$32-4)*3+2,1,1) -> 0.4062778291 | V60: =OFFSET(StochasticsSwamiVersion!$C$10,CalculationsAndCharts!$A60+$A$11,(V$32-4)*3+2,1,1) -> 0.3999754536 | W60: =OFFSET(StochasticsSwamiVersion!$C$10,CalculationsAndCharts!$A60+$A$11,(W$32-4)*3+2,1,1) -> 0.4015361844 | X60: =OFFSET(StochasticsSwamiVersion!$C$10,CalculationsAndCharts!$A60+$A$11,(X$32-4)*3+2,1,1) -> 0.403260627 | Y60: =OFFSET(StochasticsSwamiVersion!$C$10,CalculationsAndCharts!$A60+$A$11,(Y$32-4)*3+2,1,1) -> 0.4050352566 | Z60: =OFFSET(StochasticsSwamiVersion!$C$10,CalculationsAndCharts!$A60+$A$11,(Z$32-4)*3+2,1,1) -> 0.4067775085 | AA60: =OFFSET(StochasticsSwamiVersion!$C$10,CalculationsAndCharts!$A60+$A$11,(AA$32-4)*3+2,1,1) -> 0.4069884356 | AB60: =OFFSET(StochasticsSwamiVersion!$C$10,CalculationsAndCharts!$A60+$A$11,(AB$32-4)*3+2,1,1) -> 0.405826835 | AC60: =OFFSET(StochasticsSwamiVersion!$C$10,CalculationsAndCharts!$A60+$A$11,(AC$32-4)*3+2,1,1) -> 0.4067434459 | AD60: =OFFSET(StochasticsSwamiVersion!$C$10,CalculationsAndCharts!$A60+$A$11,(AD$32-4)*3+2,1,1) -> 0.409321316 | AE60: =OFFSET(StochasticsSwamiVersion!$C$10,CalculationsAndCharts!$A60+$A$11,(AE$32-4)*3+2,1,1) -> 0.4131294634 | AF60: =OFFSET(StochasticsSwamiVersion!$C$10,CalculationsAndCharts!$A60+$A$11,(AF$32-4)*3+2,1,1) -> 0.418432773 | AG60: =OFFSET(StochasticsSwamiVersion!$C$10,CalculationsAndCharts!$A60+$A$11,(AG$32-4)*3+2,1,1) -> 0.425833773 | AH60: =OFFSET(StochasticsSwamiVersion!$C$10,CalculationsAndCharts!$A60+$A$11,(AH$32-4)*3+2,1,1) -> 0.4341536513 | AI60: =OFFSET(StochasticsSwamiVersion!$C$10,CalculationsAndCharts!$A60+$A$11,(AI$32-4)*3+2,1,1) -> 0.4452700914 | AJ60: =OFFSET(StochasticsSwamiVersion!$C$10,CalculationsAndCharts!$A60+$A$11,(AJ$32-4)*3+2,1,1) -> 0.4596334292 | AK60: =OFFSET(StochasticsSwamiVersion!$C$10,CalculationsAndCharts!$A60+$A$11,(AK$32-4)*3+2,1,1) -> 0.4763887636 | AL60: =OFFSET(StochasticsSwamiVersion!$C$10,CalculationsAndCharts!$A60+$A$11,(AL$32-4)*3+2,1,1) -> 0.4870093513 | AM60: =OFFSET(StochasticsSwamiVersion!$C$10,CalculationsAndCharts!$A60+$A$11,(AM$32-4)*3+2,1,1) -> 0.4997644363 | AN60: =OFFSET(StochasticsSwamiVersion!$C$10,CalculationsAndCharts!$A60+$A$11,(AN$32-4)*3+2,1,1) -> 0.5157654641 | AO60: =OFFSET(StochasticsSwamiVersion!$C$10,CalculationsAndCharts!$A60+$A$11,(AO$32-4)*3+2,1,1) -> 0.5348713652 | AP60: =OFFSET(StochasticsSwamiVersion!$C$10,CalculationsAndCharts!$A60+$A$11,(AP$32-4)*3+2,1,1) -> 0.5559598506 | AQ60: =OFFSET(StochasticsSwamiVersion!$C$10,CalculationsAndCharts!$A60+$A$11,(AQ$32-4)*3+2,1,1) -> 0.577794081 | AR60: =OFFSET(StochasticsSwamiVersion!$C$10,CalculationsAndCharts!$A60+$A$11,(AR$32-4)*3+2,1,1) -> 0.5982793519 | AS60: =OFFSET(StochasticsSwamiVersion!$C$10,CalculationsAndCharts!$A60+$A$11,(AS$32-4)*3+2,1,1) -> 0.615234956 | AT60: =OFFSET(StochasticsSwamiVersion!$C$10,CalculationsAndCharts!$A60+$A$11,(AT$32-4)*3+2,1,1) -> 0.6287859776 | AU60: =OFFSET(StochasticsSwamiVersion!$C$10,CalculationsAndCharts!$A60+$A$11,(AU$32-4)*3+2,1,1) -> 0.6370125231 | AV60: =OFFSET(StochasticsSwamiVersion!$C$10,CalculationsAndCharts!$A60+$A$11,(AV$32-4)*3+2,1,1) -> 0.6402628846 | AW60: =OFFSET(StochasticsSwamiVersion!$C$10,CalculationsAndCharts!$A60+$A$11,(AW$32-4)*3+2,1,1) -> 0.6402579768 | AX60: =OFFSET(StochasticsSwamiVersion!$C$10,CalculationsAndCharts!$A60+$A$11,(AX$32-4)*3+2,1,1) -> 0.6402507341 | AY60: =OFFSET(StochasticsSwamiVersion!$C$10,CalculationsAndCharts!$A60+$A$11,(AY$32-4)*3+2,1,1) -> 0.640240368 | AZ60: =OFFSET(StochasticsSwamiVersion!$C$10,CalculationsAndCharts!$A60+$A$11,(AZ$32-4)*3+2,1,1) -> 0.6402255574
A61: 29 | B61: =OFFSET(InputPriceData!B$10,CalculationsAndCharts!$A61+$A$11,0,1,1) -> 2011-12-01 | C61: =OFFSET(InputPriceData!G$10,CalculationsAndCharts!$A61+$A$11,0,1,1) -> 176954800 | D61: =OFFSET(InputPriceData!C$10,CalculationsAndCharts!$A61+$A$11,0,1,1) -> 124.06 | E61: =OFFSET(InputPriceData!D$10,CalculationsAndCharts!$A61+$A$11,0,1,1) -> 124.85 | F61: =OFFSET(InputPriceData!E$10,CalculationsAndCharts!$A61+$A$11,0,1,1) -> 123.64 | G61: =OFFSET(InputPriceData!F$10,CalculationsAndCharts!$A61+$A$11,0,1,1) -> 124.18 | H61: =OFFSET(StochasticsSwamiVersion!$C$10,CalculationsAndCharts!$A61+$A$11,(H$32-4)*3+2,1,1) -> 0.5465944022 | I61: =OFFSET(StochasticsSwamiVersion!$C$10,CalculationsAndCharts!$A61+$A$11,(I$32-4)*3+2,1,1) -> 0.5259849274 | J61: =OFFSET(StochasticsSwamiVersion!$C$10,CalculationsAndCharts!$A61+$A$11,(J$32-4)*3+2,1,1) -> 0.4908726299 | K61: =OFFSET(StochasticsSwamiVersion!$C$10,CalculationsAndCharts!$A61+$A$11,(K$32-4)*3+2,1,1) -> 0.4488243842 | L61: =OFFSET(StochasticsSwamiVersion!$C$10,CalculationsAndCharts!$A61+$A$11,(L$32-4)*3+2,1,1) -> 0.4268318805 | M61: =OFFSET(StochasticsSwamiVersion!$C$10,CalculationsAndCharts!$A61+$A$11,(M$32-4)*3+2,1,1) -> 0.3984660477 | N61: =OFFSET(StochasticsSwamiVersion!$C$10,CalculationsAndCharts!$A61+$A$11,(N$32-4)*3+2,1,1) -> 0.3837062301 | O61: =OFFSET(StochasticsSwamiVersion!$C$10,CalculationsAndCharts!$A61+$A$11,(O$32-4)*3+2,1,1) -> 0.3725019924 | P61: =OFFSET(StochasticsSwamiVersion!$C$10,CalculationsAndCharts!$A61+$A$11,(P$32-4)*3+2,1,1) -> 0.362517345 | Q61: =OFFSET(StochasticsSwamiVersion!$C$10,CalculationsAndCharts!$A61+$A$11,(Q$32-4)*3+2,1,1) -> 0.3556525891 | R61: =OFFSET(StochasticsSwamiVersion!$C$10,CalculationsAndCharts!$A61+$A$11,(R$32-4)*3+2,1,1) -> 0.3472886776 | S61: =OFFSET(StochasticsSwamiVersion!$C$10,CalculationsAndCharts!$A61+$A$11,(S$32-4)*3+2,1,1) -> 0.3413998098 | T61: =OFFSET(StochasticsSwamiVersion!$C$10,CalculationsAndCharts!$A61+$A$11,(T$32-4)*3+2,1,1) -> 0.3339114722 | U61: =OFFSET(StochasticsSwamiVersion!$C$10,CalculationsAndCharts!$A61+$A$11,(U$32-4)*3+2,1,1) -> 0.3281590794 | V61: =OFFSET(StochasticsSwamiVersion!$C$10,CalculationsAndCharts!$A61+$A$11,(V$32-4)*3+2,1,1) -> 0.3298323033 | W61: =OFFSET(StochasticsSwamiVersion!$C$10,CalculationsAndCharts!$A61+$A$11,(W$32-4)*3+2,1,1) -> 0.3318679857 | X61: =OFFSET(StochasticsSwamiVersion!$C$10,CalculationsAndCharts!$A61+$A$11,(X$32-4)*3+2,1,1) -> 0.3341928176 | Y61: =OFFSET(StochasticsSwamiVersion!$C$10,CalculationsAndCharts!$A61+$A$11,(Y$32-4)*3+2,1,1) -> 0.33674863 | Z61: =OFFSET(StochasticsSwamiVersion!$C$10,CalculationsAndCharts!$A61+$A$11,(Z$32-4)*3+2,1,1) -> 0.3395975341 | AA61: =OFFSET(StochasticsSwamiVersion!$C$10,CalculationsAndCharts!$A61+$A$11,(AA$32-4)*3+2,1,1) -> 0.3411916455 | AB61: =OFFSET(StochasticsSwamiVersion!$C$10,CalculationsAndCharts!$A61+$A$11,(AB$32-4)*3+2,1,1) -> 0.3423452125 | AC61: =OFFSET(StochasticsSwamiVersion!$C$10,CalculationsAndCharts!$A61+$A$11,(AC$32-4)*3+2,1,1) -> 0.3484654067 | AD61: =OFFSET(StochasticsSwamiVersion!$C$10,CalculationsAndCharts!$A61+$A$11,(AD$32-4)*3+2,1,1) -> 0.3518831292 | AE61: =OFFSET(StochasticsSwamiVersion!$C$10,CalculationsAndCharts!$A61+$A$11,(AE$32-4)*3+2,1,1) -> 0.3566401954 | AF61: =OFFSET(StochasticsSwamiVersion!$C$10,CalculationsAndCharts!$A61+$A$11,(AF$32-4)*3+2,1,1) -> 0.3632630971 | AG61: =OFFSET(StochasticsSwamiVersion!$C$10,CalculationsAndCharts!$A61+$A$11,(AG$32-4)*3+2,1,1) -> 0.372501879 | AH61: =OFFSET(StochasticsSwamiVersion!$C$10,CalculationsAndCharts!$A61+$A$11,(AH$32-4)*3+2,1,1) -> 0.3828843154 | AI61: =OFFSET(StochasticsSwamiVersion!$C$10,CalculationsAndCharts!$A61+$A$11,(AI$32-4)*3+2,1,1) -> 0.3967456405 | AJ61: =OFFSET(StochasticsSwamiVersion!$C$10,CalculationsAndCharts!$A61+$A$11,(AJ$32-4)*3+2,1,1) -> 0.4146337476 | AK61: =OFFSET(StochasticsSwamiVersion!$C$10,CalculationsAndCharts!$A61+$A$11,(AK$32-4)*3+2,1,1) -> 0.4354572916 | AL61: =OFFSET(StochasticsSwamiVersion!$C$10,CalculationsAndCharts!$A61+$A$11,(AL$32-4)*3+2,1,1) -> 0.4486423348 | AM61: =OFFSET(StochasticsSwamiVersion!$C$10,CalculationsAndCharts!$A61+$A$11,(AM$32-4)*3+2,1,1) -> 0.4644305217 | AN61: =OFFSET(StochasticsSwamiVersion!$C$10,CalculationsAndCharts!$A61+$A$11,(AN$32-4)*3+2,1,1) -> 0.4841220797 | AO61: =OFFSET(StochasticsSwamiVersion!$C$10,CalculationsAndCharts!$A61+$A$11,(AO$32-4)*3+2,1,1) -> 0.5073913735 | AP61: =OFFSET(StochasticsSwamiVersion!$C$10,CalculationsAndCharts!$A61+$A$11,(AP$32-4)*3+2,1,1) -> 0.5325506959 | AQ61: =OFFSET(StochasticsSwamiVersion!$C$10,CalculationsAndCharts!$A61+$A$11,(AQ$32-4)*3+2,1,1) -> 0.55753585 | AR61: =OFFSET(StochasticsSwamiVersion!$C$10,CalculationsAndCharts!$A61+$A$11,(AR$32-4)*3+2,1,1) -> 0.5788736508 | AS61: =OFFSET(StochasticsSwamiVersion!$C$10,CalculationsAndCharts!$A61+$A$11,(AS$32-4)*3+2,1,1) -> 0.5959414839 | AT61: =OFFSET(StochasticsSwamiVersion!$C$10,CalculationsAndCharts!$A61+$A$11,(AT$32-4)*3+2,1,1) -> 0.6057713953 | AU61: =OFFSET(StochasticsSwamiVersion!$C$10,CalculationsAndCharts!$A61+$A$11,(AU$32-4)*3+2,1,1) -> 0.6095012025 | AV61: =OFFSET(StochasticsSwamiVersion!$C$10,CalculationsAndCharts!$A61+$A$11,(AV$32-4)*3+2,1,1) -> 0.6094970672 | AW61: =OFFSET(StochasticsSwamiVersion!$C$10,CalculationsAndCharts!$A61+$A$11,(AW$32-4)*3+2,1,1) -> 0.6094909325 | AX61: =OFFSET(StochasticsSwamiVersion!$C$10,CalculationsAndCharts!$A61+$A$11,(AX$32-4)*3+2,1,1) -> 0.6094818791 | AY61: =OFFSET(StochasticsSwamiVersion!$C$10,CalculationsAndCharts!$A61+$A$11,(AY$32-4)*3+2,1,1) -> 0.6094689215 | AZ61: =OFFSET(StochasticsSwamiVersion!$C$10,CalculationsAndCharts!$A61+$A$11,(AZ$32-4)*3+2,1,1) -> 0.6094504082
A62: 30 | B62: =OFFSET(InputPriceData!B$10,CalculationsAndCharts!$A62+$A$11,0,1,1) -> 2011-11-30 | C62: =OFFSET(InputPriceData!G$10,CalculationsAndCharts!$A62+$A$11,0,1,1) -> 324439500 | D62: =OFFSET(InputPriceData!C$10,CalculationsAndCharts!$A62+$A$11,0,1,1) -> 122.71 | E62: =OFFSET(InputPriceData!D$10,CalculationsAndCharts!$A62+$A$11,0,1,1) -> 124.43 | F62: =OFFSET(InputPriceData!E$10,CalculationsAndCharts!$A62+$A$11,0,1,1) -> 119.24 | G62: =OFFSET(InputPriceData!F$10,CalculationsAndCharts!$A62+$A$11,0,1,1) -> 124.2 | H62: =OFFSET(StochasticsSwamiVersion!$C$10,CalculationsAndCharts!$A62+$A$11,(H$32-4)*3+2,1,1) -> 0.4442763926 | I62: =OFFSET(StochasticsSwamiVersion!$C$10,CalculationsAndCharts!$A62+$A$11,(I$32-4)*3+2,1,1) -> 0.4191671017 | J62: =OFFSET(StochasticsSwamiVersion!$C$10,CalculationsAndCharts!$A62+$A$11,(J$32-4)*3+2,1,1) -> 0.3812702568 | K62: =OFFSET(StochasticsSwamiVersion!$C$10,CalculationsAndCharts!$A62+$A$11,(K$32-4)*3+2,1,1) -> 0.3386947853 | L62: =OFFSET(StochasticsSwamiVersion!$C$10,CalculationsAndCharts!$A62+$A$11,(L$32-4)*3+2,1,1) -> 0.3168092145 | M62: =OFFSET(StochasticsSwamiVersion!$C$10,CalculationsAndCharts!$A62+$A$11,(M$32-4)*3+2,1,1) -> 0.2909727597 | N62: =OFFSET(StochasticsSwamiVersion!$C$10,CalculationsAndCharts!$A62+$A$11,(N$32-4)*3+2,1,1) -> 0.2788742409 | O62: =OFFSET(StochasticsSwamiVersion!$C$10,CalculationsAndCharts!$A62+$A$11,(O$32-4)*3+2,1,1) -> 0.2718255231 | P62: =OFFSET(StochasticsSwamiVersion!$C$10,CalculationsAndCharts!$A62+$A$11,(P$32-4)*3+2,1,1) -> 0.271903881 | Q62: =OFFSET(StochasticsSwamiVersion!$C$10,CalculationsAndCharts!$A62+$A$11,(Q$32-4)*3+2,1,1) -> 0.2665998097 | R62: =OFFSET(StochasticsSwamiVersion!$C$10,CalculationsAndCharts!$A62+$A$11,(R$32-4)*3+2,1,1) -> 0.262356944 | S62: =OFFSET(StochasticsSwamiVersion!$C$10,CalculationsAndCharts!$A62+$A$11,(S$32-4)*3+2,1,1) -> 0.2574831065 | T62: =OFFSET(StochasticsSwamiVersion!$C$10,CalculationsAndCharts!$A62+$A$11,(T$32-4)*3+2,1,1) -> 0.2528871263 | U62: =OFFSET(StochasticsSwamiVersion!$C$10,CalculationsAndCharts!$A62+$A$11,(U$32-4)*3+2,1,1) -> 0.2544636805 | V62: =OFFSET(StochasticsSwamiVersion!$C$10,CalculationsAndCharts!$A62+$A$11,(V$32-4)*3+2,1,1) -> 0.2566328446 | W62: =OFFSET(StochasticsSwamiVersion!$C$10,CalculationsAndCharts!$A62+$A$11,(W$32-4)*3+2,1,1) -> 0.259332478 | X62: =OFFSET(StochasticsSwamiVersion!$C$10,CalculationsAndCharts!$A62+$A$11,(X$32-4)*3+2,1,1) -> 0.2625476311 | Y62: =OFFSET(StochasticsSwamiVersion!$C$10,CalculationsAndCharts!$A62+$A$11,(Y$32-4)*3+2,1,1) -> 0.2663568591 | Z62: =OFFSET(StochasticsSwamiVersion!$C$10,CalculationsAndCharts!$A62+$A$11,(Z$32-4)*3+2,1,1) -> 0.2711323972 | AA62: =OFFSET(StochasticsSwamiVersion!$C$10,CalculationsAndCharts!$A62+$A$11,(AA$32-4)*3+2,1,1) -> 0.2755066485 | AB62: =OFFSET(StochasticsSwamiVersion!$C$10,CalculationsAndCharts!$A62+$A$11,(AB$32-4)*3+2,1,1) -> 0.2815111325 | AC62: =OFFSET(StochasticsSwamiVersion!$C$10,CalculationsAndCharts!$A62+$A$11,(AC$32-4)*3+2,1,1) -> 0.2893252679 | AD62: =OFFSET(StochasticsSwamiVersion!$C$10,CalculationsAndCharts!$A62+$A$11,(AD$32-4)*3+2,1,1) -> 0.2935938282 | AE62: =OFFSET(StochasticsSwamiVersion!$C$10,CalculationsAndCharts!$A62+$A$11,(AE$32-4)*3+2,1,1) -> 0.2995329761 | AF62: =OFFSET(StochasticsSwamiVersion!$C$10,CalculationsAndCharts!$A62+$A$11,(AF$32-4)*3+2,1,1) -> 0.3077972364 | AG62: =OFFSET(StochasticsSwamiVersion!$C$10,CalculationsAndCharts!$A62+$A$11,(AG$32-4)*3+2,1,1) -> 0.3193169923 | AH62: =OFFSET(StochasticsSwamiVersion!$C$10,CalculationsAndCharts!$A62+$A$11,(AH$32-4)*3+2,1,1) -> 0.3322549422 | AI62: =OFFSET(StochasticsSwamiVersion!$C$10,CalculationsAndCharts!$A62+$A$11,(AI$32-4)*3+2,1,1) -> 0.3495028291 | AJ62: =OFFSET(StochasticsSwamiVersion!$C$10,CalculationsAndCharts!$A62+$A$11,(AJ$32-4)*3+2,1,1) -> 0.3717110829 | AK62: =OFFSET(StochasticsSwamiVersion!$C$10,CalculationsAndCharts!$A62+$A$11,(AK$32-4)*3+2,1,1) -> 0.3974637794 | AL62: =OFFSET(StochasticsSwamiVersion!$C$10,CalculationsAndCharts!$A62+$A$11,(AL$32-4)*3+2,1,1) -> 0.4137375084 | AM62: =OFFSET(StochasticsSwamiVersion!$C$10,CalculationsAndCharts!$A62+$A$11,(AM$32-4)*3+2,1,1) -> 0.4331174162 | AN62: =OFFSET(StochasticsSwamiVersion!$C$10,CalculationsAndCharts!$A62+$A$11,(AN$32-4)*3+2,1,1) -> 0.4570285211 | AO62: =OFFSET(StochasticsSwamiVersion!$C$10,CalculationsAndCharts!$A62+$A$11,(AO$32-4)*3+2,1,1) -> 0.4847369969 | AP62: =OFFSET(StochasticsSwamiVersion!$C$10,CalculationsAndCharts!$A62+$A$11,(AP$32-4)*3+2,1,1) -> 0.5135387784 | AQ62: =OFFSET(StochasticsSwamiVersion!$C$10,CalculationsAndCharts!$A62+$A$11,(AQ$32-4)*3+2,1,1) -> 0.5398729678 | AR62: =OFFSET(StochasticsSwamiVersion!$C$10,CalculationsAndCharts!$A62+$A$11,(AR$32-4)*3+2,1,1) -> 0.5618110042 | AS62: =OFFSET(StochasticsSwamiVersion!$C$10,CalculationsAndCharts!$A62+$A$11,(AS$32-4)*3+2,1,1) -> 0.5749903387 | AT62: =OFFSET(StochasticsSwamiVersion!$C$10,CalculationsAndCharts!$A62+$A$11,(AT$32-4)*3+2,1,1) -> 0.5797595434 | AU62: =OFFSET(StochasticsSwamiVersion!$C$10,CalculationsAndCharts!$A62+$A$11,(AU$32-4)*3+2,1,1) -> 0.5797559449 | AV62: =OFFSET(StochasticsSwamiVersion!$C$10,CalculationsAndCharts!$A62+$A$11,(AV$32-4)*3+2,1,1) -> 0.5797507757 | AW62: =OFFSET(StochasticsSwamiVersion!$C$10,CalculationsAndCharts!$A62+$A$11,(AW$32-4)*3+2,1,1) -> 0.5797431074 | AX62: =OFFSET(StochasticsSwamiVersion!$C$10,CalculationsAndCharts!$A62+$A$11,(AX$32-4)*3+2,1,1) -> 0.5797317906 | AY62: =OFFSET(StochasticsSwamiVersion!$C$10,CalculationsAndCharts!$A62+$A$11,(AY$32-4)*3+2,1,1) -> 0.5797155936 | AZ62: =OFFSET(StochasticsSwamiVersion!$C$10,CalculationsAndCharts!$A62+$A$11,(AZ$32-4)*3+2,1,1) -> 0.579692452
A63: 31 | B63: =OFFSET(InputPriceData!B$10,CalculationsAndCharts!$A63+$A$11,0,1,1) -> 2011-11-29 | C63: =OFFSET(InputPriceData!G$10,CalculationsAndCharts!$A63+$A$11,0,1,1) -> 199241500 | D63: =OFFSET(InputPriceData!C$10,CalculationsAndCharts!$A63+$A$11,0,1,1) -> 119.29 | E63: =OFFSET(InputPriceData!D$10,CalculationsAndCharts!$A63+$A$11,0,1,1) -> 120.23 | F63: =OFFSET(InputPriceData!E$10,CalculationsAndCharts!$A63+$A$11,0,1,1) -> 118.85 | G63: =OFFSET(InputPriceData!F$10,CalculationsAndCharts!$A63+$A$11,0,1,1) -> 119.29 | H63: =OFFSET(StochasticsSwamiVersion!$C$10,CalculationsAndCharts!$A63+$A$11,(H$32-4)*3+2,1,1) -> 0.3250130651 | I63: =OFFSET(StochasticsSwamiVersion!$C$10,CalculationsAndCharts!$A63+$A$11,(I$32-4)*3+2,1,1) -> 0.300753772 | J63: =OFFSET(StochasticsSwamiVersion!$C$10,CalculationsAndCharts!$A63+$A$11,(J$32-4)*3+2,1,1) -> 0.2661928025 | K63: =OFFSET(StochasticsSwamiVersion!$C$10,CalculationsAndCharts!$A63+$A$11,(K$32-4)*3+2,1,1) -> 0.2325337266 | L63: =OFFSET(StochasticsSwamiVersion!$C$10,CalculationsAndCharts!$A63+$A$11,(L$32-4)*3+2,1,1) -> 0.2152867126 | M63: =OFFSET(StochasticsSwamiVersion!$C$10,CalculationsAndCharts!$A63+$A$11,(M$32-4)*3+2,1,1) -> 0.1990638426 | N63: =OFFSET(StochasticsSwamiVersion!$C$10,CalculationsAndCharts!$A63+$A$11,(N$32-4)*3+2,1,1) -> 0.1937532267 | O63: =OFFSET(StochasticsSwamiVersion!$C$10,CalculationsAndCharts!$A63+$A$11,(O$32-4)*3+2,1,1) -> 0.19503712 | P63: =OFFSET(StochasticsSwamiVersion!$C$10,CalculationsAndCharts!$A63+$A$11,(P$32-4)*3+2,1,1) -> 0.1977566987 | Q63: =OFFSET(StochasticsSwamiVersion!$C$10,CalculationsAndCharts!$A63+$A$11,(Q$32-4)*3+2,1,1) -> 0.1961143558 | R63: =OFFSET(StochasticsSwamiVersion!$C$10,CalculationsAndCharts!$A63+$A$11,(R$32-4)*3+2,1,1) -> 0.1928081287 | S63: =OFFSET(StochasticsSwamiVersion!$C$10,CalculationsAndCharts!$A63+$A$11,(S$32-4)*3+2,1,1) -> 0.1905409134 | T63: =OFFSET(StochasticsSwamiVersion!$C$10,CalculationsAndCharts!$A63+$A$11,(T$32-4)*3+2,1,1) -> 0.1918312139 | U63: =OFFSET(StochasticsSwamiVersion!$C$10,CalculationsAndCharts!$A63+$A$11,(U$32-4)*3+2,1,1) -> 0.1938637944 | V63: =OFFSET(StochasticsSwamiVersion!$C$10,CalculationsAndCharts!$A63+$A$11,(V$32-4)*3+2,1,1) -> 0.1966988342 | W63: =OFFSET(StochasticsSwamiVersion!$C$10,CalculationsAndCharts!$A63+$A$11,(W$32-4)*3+2,1,1) -> 0.2003197861 | X63: =OFFSET(StochasticsSwamiVersion!$C$10,CalculationsAndCharts!$A63+$A$11,(X$32-4)*3+2,1,1) -> 0.2048285315 | Y63: =OFFSET(StochasticsSwamiVersion!$C$10,CalculationsAndCharts!$A63+$A$11,(Y$32-4)*3+2,1,1) -> 0.210557781 | Z63: =OFFSET(StochasticsSwamiVersion!$C$10,CalculationsAndCharts!$A63+$A$11,(Z$32-4)*3+2,1,1) -> 0.2184172476 | AA63: =OFFSET(StochasticsSwamiVersion!$C$10,CalculationsAndCharts!$A63+$A$11,(AA$32-4)*3+2,1,1) -> 0.2275176817 | AB63: =OFFSET(StochasticsSwamiVersion!$C$10,CalculationsAndCharts!$A63+$A$11,(AB$32-4)*3+2,1,1) -> 0.2351465056 | AC63: =OFFSET(StochasticsSwamiVersion!$C$10,CalculationsAndCharts!$A63+$A$11,(AC$32-4)*3+2,1,1) -> 0.244870834 | AD63: =OFFSET(StochasticsSwamiVersion!$C$10,CalculationsAndCharts!$A63+$A$11,(AD$32-4)*3+2,1,1) -> 0.2501972675 | AE63: =OFFSET(StochasticsSwamiVersion!$C$10,CalculationsAndCharts!$A63+$A$11,(AE$32-4)*3+2,1,1) -> 0.2576026722 | AF63: =OFFSET(StochasticsSwamiVersion!$C$10,CalculationsAndCharts!$A63+$A$11,(AF$32-4)*3+2,1,1) -> 0.2678959527 | AG63: =OFFSET(StochasticsSwamiVersion!$C$10,CalculationsAndCharts!$A63+$A$11,(AG$32-4)*3+2,1,1) -> 0.2822216197 | AH63: =OFFSET(StochasticsSwamiVersion!$C$10,CalculationsAndCharts!$A63+$A$11,(AH$32-4)*3+2,1,1) -> 0.2982907824 | AI63: =OFFSET(StochasticsSwamiVersion!$C$10,CalculationsAndCharts!$A63+$A$11,(AI$32-4)*3+2,1,1) -> 0.3196479884 | AJ63: =OFFSET(StochasticsSwamiVersion!$C$10,CalculationsAndCharts!$A63+$A$11,(AJ$32-4)*3+2,1,1) -> 0.3470184319 | AK63: =OFFSET(StochasticsSwamiVersion!$C$10,CalculationsAndCharts!$A63+$A$11,(AK$32-4)*3+2,1,1) -> 0.3785018752 | AL63: =OFFSET(StochasticsSwamiVersion!$C$10,CalculationsAndCharts!$A63+$A$11,(AL$32-4)*3+2,1,1) -> 0.398315882 | AM63: =OFFSET(StochasticsSwamiVersion!$C$10,CalculationsAndCharts!$A63+$A$11,(AM$32-4)*3+2,1,1) -> 0.4216415679 | AN63: =OFFSET(StochasticsSwamiVersion!$C$10,CalculationsAndCharts!$A63+$A$11,(AN$32-4)*3+2,1,1) -> 0.4497685434 | AO63: =OFFSET(StochasticsSwamiVersion!$C$10,CalculationsAndCharts!$A63+$A$11,(AO$32-4)*3+2,1,1) -> 0.4810195663 | AP63: =OFFSET(StochasticsSwamiVersion!$C$10,CalculationsAndCharts!$A63+$A$11,(AP$32-4)*3+2,1,1) -> 0.5107608264 | AQ63: =OFFSET(StochasticsSwamiVersion!$C$10,CalculationsAndCharts!$A63+$A$11,(AQ$32-4)*3+2,1,1) -> 0.5376260355 | AR63: =OFFSET(StochasticsSwamiVersion!$C$10,CalculationsAndCharts!$A63+$A$11,(AR$32-4)*3+2,1,1) -> 0.554622115 | AS63: =OFFSET(StochasticsSwamiVersion!$C$10,CalculationsAndCharts!$A63+$A$11,(AS$32-4)*3+2,1,1) -> 0.5614845476 | AT63: =OFFSET(StochasticsSwamiVersion!$C$10,CalculationsAndCharts!$A63+$A$11,(AT$32-4)*3+2,1,1) -> 0.5614809179 | AU63: =OFFSET(StochasticsSwamiVersion!$C$10,CalculationsAndCharts!$A63+$A$11,(AU$32-4)*3+2,1,1) -> 0.5614764198 | AV63: =OFFSET(StochasticsSwamiVersion!$C$10,CalculationsAndCharts!$A63+$A$11,(AV$32-4)*3+2,1,1) -> 0.5614699583 | AW63: =OFFSET(StochasticsSwamiVersion!$C$10,CalculationsAndCharts!$A63+$A$11,(AW$32-4)*3+2,1,1) -> 0.5614603729 | AX63: =OFFSET(StochasticsSwamiVersion!$C$10,CalculationsAndCharts!$A63+$A$11,(AX$32-4)*3+2,1,1) -> 0.5614462269 | AY63: =OFFSET(StochasticsSwamiVersion!$C$10,CalculationsAndCharts!$A63+$A$11,(AY$32-4)*3+2,1,1) -> 0.5614259806 | AZ63: =OFFSET(StochasticsSwamiVersion!$C$10,CalculationsAndCharts!$A63+$A$11,(AZ$32-4)*3+2,1,1) -> 0.5613970537
A64: 32 | B64: =OFFSET(InputPriceData!B$10,CalculationsAndCharts!$A64+$A$11,0,1,1) -> 2011-11-28 | C64: =OFFSET(InputPriceData!G$10,CalculationsAndCharts!$A64+$A$11,0,1,1) -> 210686000 | D64: =OFFSET(InputPriceData!C$10,CalculationsAndCharts!$A64+$A$11,0,1,1) -> 118.79 | E64: =OFFSET(InputPriceData!D$10,CalculationsAndCharts!$A64+$A$11,0,1,1) -> 119.43 | F64: =OFFSET(InputPriceData!E$10,CalculationsAndCharts!$A64+$A$11,0,1,1) -> 118.08 | G64: =OFFSET(InputPriceData!F$10,CalculationsAndCharts!$A64+$A$11,0,1,1) -> 118.96 | H64: =OFFSET(StochasticsSwamiVersion!$C$10,CalculationsAndCharts!$A64+$A$11,(H$32-4)*3+2,1,1) -> 0.2222972835 | I64: =OFFSET(StochasticsSwamiVersion!$C$10,CalculationsAndCharts!$A64+$A$11,(I$32-4)*3+2,1,1) -> 0.2097669541 | J64: =OFFSET(StochasticsSwamiVersion!$C$10,CalculationsAndCharts!$A64+$A$11,(J$32-4)*3+2,1,1) -> 0.1931210692 | K64: =OFFSET(StochasticsSwamiVersion!$C$10,CalculationsAndCharts!$A64+$A$11,(K$32-4)*3+2,1,1) -> 0.1820685397 | L64: =OFFSET(StochasticsSwamiVersion!$C$10,CalculationsAndCharts!$A64+$A$11,(L$32-4)*3+2,1,1) -> 0.1733143601 | M64: =OFFSET(StochasticsSwamiVersion!$C$10,CalculationsAndCharts!$A64+$A$11,(M$32-4)*3+2,1,1) -> 0.1701311624 | N64: =OFFSET(StochasticsSwamiVersion!$C$10,CalculationsAndCharts!$A64+$A$11,(N$32-4)*3+2,1,1) -> 0.1723653199 | O64: =OFFSET(StochasticsSwamiVersion!$C$10,CalculationsAndCharts!$A64+$A$11,(O$32-4)*3+2,1,1) -> 0.1752359153 | P64: =OFFSET(StochasticsSwamiVersion!$C$10,CalculationsAndCharts!$A64+$A$11,(P$32-4)*3+2,1,1) -> 0.1810310928 | Q64: =OFFSET(StochasticsSwamiVersion!$C$10,CalculationsAndCharts!$A64+$A$11,(Q$32-4)*3+2,1,1) -> 0.1799453241 | R64: =OFFSET(StochasticsSwamiVersion!$C$10,CalculationsAndCharts!$A64+$A$11,(R$32-4)*3+2,1,1) -> 0.1776786697 | S64: =OFFSET(StochasticsSwamiVersion!$C$10,CalculationsAndCharts!$A64+$A$11,(S$32-4)*3+2,1,1) -> 0.1782737006 | T64: =OFFSET(StochasticsSwamiVersion!$C$10,CalculationsAndCharts!$A64+$A$11,(T$32-4)*3+2,1,1) -> 0.179915705 | U64: =OFFSET(StochasticsSwamiVersion!$C$10,CalculationsAndCharts!$A64+$A$11,(U$32-4)*3+2,1,1) -> 0.1825145977 | V64: =OFFSET(StochasticsSwamiVersion!$C$10,CalculationsAndCharts!$A64+$A$11,(V$32-4)*3+2,1,1) -> 0.1861743704 | W64: =OFFSET(StochasticsSwamiVersion!$C$10,CalculationsAndCharts!$A64+$A$11,(W$32-4)*3+2,1,1) -> 0.1909310714 | X64: =OFFSET(StochasticsSwamiVersion!$C$10,CalculationsAndCharts!$A64+$A$11,(X$32-4)*3+2,1,1) -> 0.1970223687 | Y64: =OFFSET(StochasticsSwamiVersion!$C$10,CalculationsAndCharts!$A64+$A$11,(Y$32-4)*3+2,1,1) -> 0.2050726725 | Z64: =OFFSET(StochasticsSwamiVersion!$C$10,CalculationsAndCharts!$A64+$A$11,(Z$32-4)*3+2,1,1) -> 0.2165938611 | AA64: =OFFSET(StochasticsSwamiVersion!$C$10,CalculationsAndCharts!$A64+$A$11,(AA$32-4)*3+2,1,1) -> 0.2279426233 | AB64: =OFFSET(StochasticsSwamiVersion!$C$10,CalculationsAndCharts!$A64+$A$11,(AB$32-4)*3+2,1,1) -> 0.2374151054 | AC64: =OFFSET(StochasticsSwamiVersion!$C$10,CalculationsAndCharts!$A64+$A$11,(AC$32-4)*3+2,1,1) -> 0.2494435454 | AD64: =OFFSET(StochasticsSwamiVersion!$C$10,CalculationsAndCharts!$A64+$A$11,(AD$32-4)*3+2,1,1) -> 0.2560744497 | AE64: =OFFSET(StochasticsSwamiVersion!$C$10,CalculationsAndCharts!$A64+$A$11,(AE$32-4)*3+2,1,1) -> 0.2652769534 | AF64: =OFFSET(StochasticsSwamiVersion!$C$10,CalculationsAndCharts!$A64+$A$11,(AF$32-4)*3+2,1,1) -> 0.2780351409 | AG64: =OFFSET(StochasticsSwamiVersion!$C$10,CalculationsAndCharts!$A64+$A$11,(AG$32-4)*3+2,1,1) -> 0.2957257627 | AH64: =OFFSET(StochasticsSwamiVersion!$C$10,CalculationsAndCharts!$A64+$A$11,(AH$32-4)*3+2,1,1) -> 0.3155106434 | AI64: =OFFSET(StochasticsSwamiVersion!$C$10,CalculationsAndCharts!$A64+$A$11,(AI$32-4)*3+2,1,1) -> 0.3416167619 | AJ64: =OFFSET(StochasticsSwamiVersion!$C$10,CalculationsAndCharts!$A64+$A$11,(AJ$32-4)*3+2,1,1) -> 0.3746991044 | AK64: =OFFSET(StochasticsSwamiVersion!$C$10,CalculationsAndCharts!$A64+$A$11,(AK$32-4)*3+2,1,1) -> 0.4120187269 | AL64: =OFFSET(StochasticsSwamiVersion!$C$10,CalculationsAndCharts!$A64+$A$11,(AL$32-4)*3+2,1,1) -> 0.4352812886 | AM64: =OFFSET(StochasticsSwamiVersion!$C$10,CalculationsAndCharts!$A64+$A$11,(AM$32-4)*3+2,1,1) -> 0.4619034983 | AN64: =OFFSET(StochasticsSwamiVersion!$C$10,CalculationsAndCharts!$A64+$A$11,(AN$32-4)*3+2,1,1) -> 0.4921927498 | AO64: =OFFSET(StochasticsSwamiVersion!$C$10,CalculationsAndCharts!$A64+$A$11,(AO$32-4)*3+2,1,1) -> 0.5222487195 | AP64: =OFFSET(StochasticsSwamiVersion!$C$10,CalculationsAndCharts!$A64+$A$11,(AP$32-4)*3+2,1,1) -> 0.550717372 | AQ64: =OFFSET(StochasticsSwamiVersion!$C$10,CalculationsAndCharts!$A64+$A$11,(AQ$32-4)*3+2,1,1) -> 0.5692980669 | AR64: =OFFSET(StochasticsSwamiVersion!$C$10,CalculationsAndCharts!$A64+$A$11,(AR$32-4)*3+2,1,1) -> 0.5767145225 | AS64: =OFFSET(StochasticsSwamiVersion!$C$10,CalculationsAndCharts!$A64+$A$11,(AS$32-4)*3+2,1,1) -> 0.5767103741 | AT64: =OFFSET(StochasticsSwamiVersion!$C$10,CalculationsAndCharts!$A64+$A$11,(AT$32-4)*3+2,1,1) -> 0.5767058371 | AU64: =OFFSET(StochasticsSwamiVersion!$C$10,CalculationsAndCharts!$A64+$A$11,(AU$32-4)*3+2,1,1) -> 0.5767002144 | AV64: =OFFSET(StochasticsSwamiVersion!$C$10,CalculationsAndCharts!$A64+$A$11,(AV$32-4)*3+2,1,1) -> 0.5766921375 | AW64: =OFFSET(StochasticsSwamiVersion!$C$10,CalculationsAndCharts!$A64+$A$11,(AW$32-4)*3+2,1,1) -> 0.5766801558 | AX64: =OFFSET(StochasticsSwamiVersion!$C$10,CalculationsAndCharts!$A64+$A$11,(AX$32-4)*3+2,1,1) -> 0.5766624733 | AY64: =OFFSET(StochasticsSwamiVersion!$C$10,CalculationsAndCharts!$A64+$A$11,(AY$32-4)*3+2,1,1) -> 0.5766371655 | AZ64: =OFFSET(StochasticsSwamiVersion!$C$10,CalculationsAndCharts!$A64+$A$11,(AZ$32-4)*3+2,1,1) -> 0.5766010068
A65: 33 | B65: =OFFSET(InputPriceData!B$10,CalculationsAndCharts!$A65+$A$11,0,1,1) -> 2011-11-25 | C65: =OFFSET(InputPriceData!G$10,CalculationsAndCharts!$A65+$A$11,0,1,1) -> 99557000 | D65: =OFFSET(InputPriceData!C$10,CalculationsAndCharts!$A65+$A$11,0,1,1) -> 115.65 | E65: =OFFSET(InputPriceData!D$10,CalculationsAndCharts!$A65+$A$11,0,1,1) -> 116.96 | F65: =OFFSET(InputPriceData!E$10,CalculationsAndCharts!$A65+$A$11,0,1,1) -> 115.47 | G65: =OFFSET(InputPriceData!F$10,CalculationsAndCharts!$A65+$A$11,0,1,1) -> 115.61 | H65: =OFFSET(StochasticsSwamiVersion!$C$10,CalculationsAndCharts!$A65+$A$11,(H$32-4)*3+2,1,1) -> 0.1612541669 | I65: =OFFSET(StochasticsSwamiVersion!$C$10,CalculationsAndCharts!$A65+$A$11,(I$32-4)*3+2,1,1) -> 0.1662715105 | J65: =OFFSET(StochasticsSwamiVersion!$C$10,CalculationsAndCharts!$A65+$A$11,(J$32-4)*3+2,1,1) -> 0.1702371037 | K65: =OFFSET(StochasticsSwamiVersion!$C$10,CalculationsAndCharts!$A65+$A$11,(K$32-4)*3+2,1,1) -> 0.1651166965 | L65: =OFFSET(StochasticsSwamiVersion!$C$10,CalculationsAndCharts!$A65+$A$11,(L$32-4)*3+2,1,1) -> 0.1656507308 | M65: =OFFSET(StochasticsSwamiVersion!$C$10,CalculationsAndCharts!$A65+$A$11,(M$32-4)*3+2,1,1) -> 0.1675664192 | N65: =OFFSET(StochasticsSwamiVersion!$C$10,CalculationsAndCharts!$A65+$A$11,(N$32-4)*3+2,1,1) -> 0.1711872397 | O65: =OFFSET(StochasticsSwamiVersion!$C$10,CalculationsAndCharts!$A65+$A$11,(O$32-4)*3+2,1,1) -> 0.1763407053 | P65: =OFFSET(StochasticsSwamiVersion!$C$10,CalculationsAndCharts!$A65+$A$11,(P$32-4)*3+2,1,1) -> 0.1841364145 | Q65: =OFFSET(StochasticsSwamiVersion!$C$10,CalculationsAndCharts!$A65+$A$11,(Q$32-4)*3+2,1,1) -> 0.1839963874 | R65: =OFFSET(StochasticsSwamiVersion!$C$10,CalculationsAndCharts!$A65+$A$11,(R$32-4)*3+2,1,1) -> 0.1834278479 | S65: =OFFSET(StochasticsSwamiVersion!$C$10,CalculationsAndCharts!$A65+$A$11,(S$32-4)*3+2,1,1) -> 0.1841901393 | T65: =OFFSET(StochasticsSwamiVersion!$C$10,CalculationsAndCharts!$A65+$A$11,(T$32-4)*3+2,1,1) -> 0.1862795918 | U65: =OFFSET(StochasticsSwamiVersion!$C$10,CalculationsAndCharts!$A65+$A$11,(U$32-4)*3+2,1,1) -> 0.189601867 | V65: =OFFSET(StochasticsSwamiVersion!$C$10,CalculationsAndCharts!$A65+$A$11,(V$32-4)*3+2,1,1) -> 0.1943229703 | W65: =OFFSET(StochasticsSwamiVersion!$C$10,CalculationsAndCharts!$A65+$A$11,(W$32-4)*3+2,1,1) -> 0.2005579514 | X65: =OFFSET(StochasticsSwamiVersion!$C$10,CalculationsAndCharts!$A65+$A$11,(X$32-4)*3+2,1,1) -> 0.2087360254 | Y65: =OFFSET(StochasticsSwamiVersion!$C$10,CalculationsAndCharts!$A65+$A$11,(Y$32-4)*3+2,1,1) -> 0.2198729563 | Z65: =OFFSET(StochasticsSwamiVersion!$C$10,CalculationsAndCharts!$A65+$A$11,(Z$32-4)*3+2,1,1) -> 0.2341205283 | AA65: =OFFSET(StochasticsSwamiVersion!$C$10,CalculationsAndCharts!$A65+$A$11,(AA$32-4)*3+2,1,1) -> 0.2480876598 | AB65: =OFFSET(StochasticsSwamiVersion!$C$10,CalculationsAndCharts!$A65+$A$11,(AB$32-4)*3+2,1,1) -> 0.2597856676 | AC65: =OFFSET(StochasticsSwamiVersion!$C$10,CalculationsAndCharts!$A65+$A$11,(AC$32-4)*3+2,1,1) -> 0.2745365996 | AD65: =OFFSET(StochasticsSwamiVersion!$C$10,CalculationsAndCharts!$A65+$A$11,(AD$32-4)*3+2,1,1) -> 0.2827644484 | AE65: =OFFSET(StochasticsSwamiVersion!$C$10,CalculationsAndCharts!$A65+$A$11,(AE$32-4)*3+2,1,1) -> 0.2941461191 | AF65: =OFFSET(StochasticsSwamiVersion!$C$10,CalculationsAndCharts!$A65+$A$11,(AF$32-4)*3+2,1,1) -> 0.3098513514 | AG65: =OFFSET(StochasticsSwamiVersion!$C$10,CalculationsAndCharts!$A65+$A$11,(AG$32-4)*3+2,1,1) -> 0.3314812807 | AH65: =OFFSET(StochasticsSwamiVersion!$C$10,CalculationsAndCharts!$A65+$A$11,(AH$32-4)*3+2,1,1) -> 0.3555408475 | AI65: =OFFSET(StochasticsSwamiVersion!$C$10,CalculationsAndCharts!$A65+$A$11,(AI$32-4)*3+2,1,1) -> 0.3868650732 | AJ65: =OFFSET(StochasticsSwamiVersion!$C$10,CalculationsAndCharts!$A65+$A$11,(AJ$32-4)*3+2,1,1) -> 0.4257349255 | AK65: =OFFSET(StochasticsSwamiVersion!$C$10,CalculationsAndCharts!$A65+$A$11,(AK$32-4)*3+2,1,1) -> 0.4679902495 | AL65: =OFFSET(StochasticsSwamiVersion!$C$10,CalculationsAndCharts!$A65+$A$11,(AL$32-4)*3+2,1,1) -> 0.493878023 | AM65: =OFFSET(StochasticsSwamiVersion!$C$10,CalculationsAndCharts!$A65+$A$11,(AM$32-4)*3+2,1,1) -> 0.5218931574 | AN65: =OFFSET(StochasticsSwamiVersion!$C$10,CalculationsAndCharts!$A65+$A$11,(AN$32-4)*3+2,1,1) -> 0.5500196238 | AO65: =OFFSET(StochasticsSwamiVersion!$C$10,CalculationsAndCharts!$A65+$A$11,(AO$32-4)*3+2,1,1) -> 0.5781785874 | AP65: =OFFSET(StochasticsSwamiVersion!$C$10,CalculationsAndCharts!$A65+$A$11,(AP$32-4)*3+2,1,1) -> 0.5975524234 | AQ65: =OFFSET(StochasticsSwamiVersion!$C$10,CalculationsAndCharts!$A65+$A$11,(AQ$32-4)*3+2,1,1) -> 0.6058331262 | AR65: =OFFSET(StochasticsSwamiVersion!$C$10,CalculationsAndCharts!$A65+$A$11,(AR$32-4)*3+2,1,1) -> 0.6058285825 | AS65: =OFFSET(StochasticsSwamiVersion!$C$10,CalculationsAndCharts!$A65+$A$11,(AS$32-4)*3+2,1,1) -> 0.605823397 | AT65: =OFFSET(StochasticsSwamiVersion!$C$10,CalculationsAndCharts!$A65+$A$11,(AT$32-4)*3+2,1,1) -> 0.6058177256 | AU65: =OFFSET(StochasticsSwamiVersion!$C$10,CalculationsAndCharts!$A65+$A$11,(AU$32-4)*3+2,1,1) -> 0.6058106973 | AV65: =OFFSET(StochasticsSwamiVersion!$C$10,CalculationsAndCharts!$A65+$A$11,(AV$32-4)*3+2,1,1) -> 0.6058006012 | AW65: =OFFSET(StochasticsSwamiVersion!$C$10,CalculationsAndCharts!$A65+$A$11,(AW$32-4)*3+2,1,1) -> 0.605785624 | AX65: =OFFSET(StochasticsSwamiVersion!$C$10,CalculationsAndCharts!$A65+$A$11,(AX$32-4)*3+2,1,1) -> 0.605763521 | AY65: =OFFSET(StochasticsSwamiVersion!$C$10,CalculationsAndCharts!$A65+$A$11,(AY$32-4)*3+2,1,1) -> 0.6057318862 | AZ65: =OFFSET(StochasticsSwamiVersion!$C$10,CalculationsAndCharts!$A65+$A$11,(AZ$32-4)*3+2,1,1) -> 0.6056866878
A66: 34 | B66: =OFFSET(InputPriceData!B$10,CalculationsAndCharts!$A66+$A$11,0,1,1) -> 2011-11-23 | C66: =OFFSET(InputPriceData!G$10,CalculationsAndCharts!$A66+$A$11,0,1,1) -> 224329100 | D66: =OFFSET(InputPriceData!C$10,CalculationsAndCharts!$A66+$A$11,0,1,1) -> 117.33 | E66: =OFFSET(InputPriceData!D$10,CalculationsAndCharts!$A66+$A$11,0,1,1) -> 118.44 | F66: =OFFSET(InputPriceData!E$10,CalculationsAndCharts!$A66+$A$11,0,1,1) -> 115.83 | G66: =OFFSET(InputPriceData!F$10,CalculationsAndCharts!$A66+$A$11,0,1,1) -> 115.83 | H66: =OFFSET(StochasticsSwamiVersion!$C$10,CalculationsAndCharts!$A66+$A$11,(H$32-4)*3+2,1,1) -> 0.200539597 | I66: =OFFSET(StochasticsSwamiVersion!$C$10,CalculationsAndCharts!$A66+$A$11,(I$32-4)*3+2,1,1) -> 0.2068854808 | J66: =OFFSET(StochasticsSwamiVersion!$C$10,CalculationsAndCharts!$A66+$A$11,(J$32-4)*3+2,1,1) -> 0.2116730024 | K66: =OFFSET(StochasticsSwamiVersion!$C$10,CalculationsAndCharts!$A66+$A$11,(K$32-4)*3+2,1,1) -> 0.2054830444 | L66: =OFFSET(StochasticsSwamiVersion!$C$10,CalculationsAndCharts!$A66+$A$11,(L$32-4)*3+2,1,1) -> 0.2062463403 | M66: =OFFSET(StochasticsSwamiVersion!$C$10,CalculationsAndCharts!$A66+$A$11,(M$32-4)*3+2,1,1) -> 0.208626261 | N66: =OFFSET(StochasticsSwamiVersion!$C$10,CalculationsAndCharts!$A66+$A$11,(N$32-4)*3+2,1,1) -> 0.2131246061 | O66: =OFFSET(StochasticsSwamiVersion!$C$10,CalculationsAndCharts!$A66+$A$11,(O$32-4)*3+2,1,1) -> 0.2194629326 | P66: =OFFSET(StochasticsSwamiVersion!$C$10,CalculationsAndCharts!$A66+$A$11,(P$32-4)*3+2,1,1) -> 0.2290103828 | Q66: =OFFSET(StochasticsSwamiVersion!$C$10,CalculationsAndCharts!$A66+$A$11,(Q$32-4)*3+2,1,1) -> 0.2288607286 | R66: =OFFSET(StochasticsSwamiVersion!$C$10,CalculationsAndCharts!$A66+$A$11,(R$32-4)*3+2,1,1) -> 0.2281485752 | S66: =OFFSET(StochasticsSwamiVersion!$C$10,CalculationsAndCharts!$A66+$A$11,(S$32-4)*3+2,1,1) -> 0.2290984865 | T66: =OFFSET(StochasticsSwamiVersion!$C$10,CalculationsAndCharts!$A66+$A$11,(T$32-4)*3+2,1,1) -> 0.2317044155 | U66: =OFFSET(StochasticsSwamiVersion!$C$10,CalculationsAndCharts!$A66+$A$11,(U$32-4)*3+2,1,1) -> 0.2358455642 | V66: =OFFSET(StochasticsSwamiVersion!$C$10,CalculationsAndCharts!$A66+$A$11,(V$32-4)*3+2,1,1) -> 0.2417238592 | W66: =OFFSET(StochasticsSwamiVersion!$C$10,CalculationsAndCharts!$A66+$A$11,(W$32-4)*3+2,1,1) -> 0.2494726064 | X66: =OFFSET(StochasticsSwamiVersion!$C$10,CalculationsAndCharts!$A66+$A$11,(X$32-4)*3+2,1,1) -> 0.2596097202 | Y66: =OFFSET(StochasticsSwamiVersion!$C$10,CalculationsAndCharts!$A66+$A$11,(Y$32-4)*3+2,1,1) -> 0.273282255 | Z66: =OFFSET(StochasticsSwamiVersion!$C$10,CalculationsAndCharts!$A66+$A$11,(Z$32-4)*3+2,1,1) -> 0.2906062067 | AA66: =OFFSET(StochasticsSwamiVersion!$C$10,CalculationsAndCharts!$A66+$A$11,(AA$32-4)*3+2,1,1) -> 0.3075364037 | AB66: =OFFSET(StochasticsSwamiVersion!$C$10,CalculationsAndCharts!$A66+$A$11,(AB$32-4)*3+2,1,1) -> 0.3218150052 | AC66: =OFFSET(StochasticsSwamiVersion!$C$10,CalculationsAndCharts!$A66+$A$11,(AC$32-4)*3+2,1,1) -> 0.3395687137 | AD66: =OFFSET(StochasticsSwamiVersion!$C$10,CalculationsAndCharts!$A66+$A$11,(AD$32-4)*3+2,1,1) -> 0.3497075042 | AE66: =OFFSET(StochasticsSwamiVersion!$C$10,CalculationsAndCharts!$A66+$A$11,(AE$32-4)*3+2,1,1) -> 0.3636430701 | AF66: =OFFSET(StochasticsSwamiVersion!$C$10,CalculationsAndCharts!$A66+$A$11,(AF$32-4)*3+2,1,1) -> 0.3826936313 | AG66: =OFFSET(StochasticsSwamiVersion!$C$10,CalculationsAndCharts!$A66+$A$11,(AG$32-4)*3+2,1,1) -> 0.40857728 | AH66: =OFFSET(StochasticsSwamiVersion!$C$10,CalculationsAndCharts!$A66+$A$11,(AH$32-4)*3+2,1,1) -> 0.4370580497 | AI66: =OFFSET(StochasticsSwamiVersion!$C$10,CalculationsAndCharts!$A66+$A$11,(AI$32-4)*3+2,1,1) -> 0.4731387908 | AJ66: =OFFSET(StochasticsSwamiVersion!$C$10,CalculationsAndCharts!$A66+$A$11,(AJ$32-4)*3+2,1,1) -> 0.5160001714 | AK66: =OFFSET(StochasticsSwamiVersion!$C$10,CalculationsAndCharts!$A66+$A$11,(AK$32-4)*3+2,1,1) -> 0.5590218826 | AL66: =OFFSET(StochasticsSwamiVersion!$C$10,CalculationsAndCharts!$A66+$A$11,(AL$32-4)*3+2,1,1) -> 0.584523967 | AM66: =OFFSET(StochasticsSwamiVersion!$C$10,CalculationsAndCharts!$A66+$A$11,(AM$32-4)*3+2,1,1) -> 0.6086735576 | AN66: =OFFSET(StochasticsSwamiVersion!$C$10,CalculationsAndCharts!$A66+$A$11,(AN$32-4)*3+2,1,1) -> 0.6333241731 | AO66: =OFFSET(StochasticsSwamiVersion!$C$10,CalculationsAndCharts!$A66+$A$11,(AO$32-4)*3+2,1,1) -> 0.6504220517 | AP66: =OFFSET(StochasticsSwamiVersion!$C$10,CalculationsAndCharts!$A66+$A$11,(AP$32-4)*3+2,1,1) -> 0.6579529305 | AQ66: =OFFSET(StochasticsSwamiVersion!$C$10,CalculationsAndCharts!$A66+$A$11,(AQ$32-4)*3+2,1,1) -> 0.657948059 | AR66: =OFFSET(StochasticsSwamiVersion!$C$10,CalculationsAndCharts!$A66+$A$11,(AR$32-4)*3+2,1,1) -> 0.6579423792 | AS66: =OFFSET(StochasticsSwamiVersion!$C$10,CalculationsAndCharts!$A66+$A$11,(AS$32-4)*3+2,1,1) -> 0.6579358974 | AT66: =OFFSET(StochasticsSwamiVersion!$C$10,CalculationsAndCharts!$A66+$A$11,(AT$32-4)*3+2,1,1) -> 0.6579288082 | AU66: =OFFSET(StochasticsSwamiVersion!$C$10,CalculationsAndCharts!$A66+$A$11,(AU$32-4)*3+2,1,1) -> 0.6579200228 | AV66: =OFFSET(StochasticsSwamiVersion!$C$10,CalculationsAndCharts!$A66+$A$11,(AV$32-4)*3+2,1,1) -> 0.6579074027 | AW66: =OFFSET(StochasticsSwamiVersion!$C$10,CalculationsAndCharts!$A66+$A$11,(AW$32-4)*3+2,1,1) -> 0.6578886812 | AX66: =OFFSET(StochasticsSwamiVersion!$C$10,CalculationsAndCharts!$A66+$A$11,(AX$32-4)*3+2,1,1) -> 0.6578610524 | AY66: =OFFSET(StochasticsSwamiVersion!$C$10,CalculationsAndCharts!$A66+$A$11,(AY$32-4)*3+2,1,1) -> 0.6578215089 | AZ66: =OFFSET(StochasticsSwamiVersion!$C$10,CalculationsAndCharts!$A66+$A$11,(AZ$32-4)*3+2,1,1) -> 0.6577650109
A67: 35 | B67: =OFFSET(InputPriceData!B$10,CalculationsAndCharts!$A67+$A$11,0,1,1) -> 2011-11-22 | C67: =OFFSET(InputPriceData!G$10,CalculationsAndCharts!$A67+$A$11,0,1,1) -> 216494900 | D67: =OFFSET(InputPriceData!C$10,CalculationsAndCharts!$A67+$A$11,0,1,1) -> 118.65 | E67: =OFFSET(InputPriceData!D$10,CalculationsAndCharts!$A67+$A$11,0,1,1) -> 119.34 | F67: =OFFSET(InputPriceData!E$10,CalculationsAndCharts!$A67+$A$11,0,1,1) -> 117.77 | G67: =OFFSET(InputPriceData!F$10,CalculationsAndCharts!$A67+$A$11,0,1,1) -> 118.44 | H67: =OFFSET(StochasticsSwamiVersion!$C$10,CalculationsAndCharts!$A67+$A$11,(H$32-4)*3+2,1,1) -> 0.2488807585 | I67: =OFFSET(StochasticsSwamiVersion!$C$10,CalculationsAndCharts!$A67+$A$11,(I$32-4)*3+2,1,1) -> 0.2566388028 | J67: =OFFSET(StochasticsSwamiVersion!$C$10,CalculationsAndCharts!$A67+$A$11,(J$32-4)*3+2,1,1) -> 0.2625219575 | K67: =OFFSET(StochasticsSwamiVersion!$C$10,CalculationsAndCharts!$A67+$A$11,(K$32-4)*3+2,1,1) -> 0.2550514029 | L67: =OFFSET(StochasticsSwamiVersion!$C$10,CalculationsAndCharts!$A67+$A$11,(L$32-4)*3+2,1,1) -> 0.2560110859 | M67: =OFFSET(StochasticsSwamiVersion!$C$10,CalculationsAndCharts!$A67+$A$11,(M$32-4)*3+2,1,1) -> 0.2589966281 | N67: =OFFSET(StochasticsSwamiVersion!$C$10,CalculationsAndCharts!$A67+$A$11,(N$32-4)*3+2,1,1) -> 0.2645210612 | O67: =OFFSET(StochasticsSwamiVersion!$C$10,CalculationsAndCharts!$A67+$A$11,(O$32-4)*3+2,1,1) -> 0.2722573568 | P67: =OFFSET(StochasticsSwamiVersion!$C$10,CalculationsAndCharts!$A67+$A$11,(P$32-4)*3+2,1,1) -> 0.2838552077 | Q67: =OFFSET(StochasticsSwamiVersion!$C$10,CalculationsAndCharts!$A67+$A$11,(Q$32-4)*3+2,1,1) -> 0.2835780795 | R67: =OFFSET(StochasticsSwamiVersion!$C$10,CalculationsAndCharts!$A67+$A$11,(R$32-4)*3+2,1,1) -> 0.2826862984 | S67: =OFFSET(StochasticsSwamiVersion!$C$10,CalculationsAndCharts!$A67+$A$11,(S$32-4)*3+2,1,1) -> 0.2838705205 | T67: =OFFSET(StochasticsSwamiVersion!$C$10,CalculationsAndCharts!$A67+$A$11,(T$32-4)*3+2,1,1) -> 0.2871216439 | U67: =OFFSET(StochasticsSwamiVersion!$C$10,CalculationsAndCharts!$A67+$A$11,(U$32-4)*3+2,1,1) -> 0.2922856851 | V67: =OFFSET(StochasticsSwamiVersion!$C$10,CalculationsAndCharts!$A67+$A$11,(V$32-4)*3+2,1,1) -> 0.2996094651 | W67: =OFFSET(StochasticsSwamiVersion!$C$10,CalculationsAndCharts!$A67+$A$11,(W$32-4)*3+2,1,1) -> 0.3092498462 | X67: =OFFSET(StochasticsSwamiVersion!$C$10,CalculationsAndCharts!$A67+$A$11,(X$32-4)*3+2,1,1) -> 0.3216525788 | Y67: =OFFSET(StochasticsSwamiVersion!$C$10,CalculationsAndCharts!$A67+$A$11,(Y$32-4)*3+2,1,1) -> 0.3382001707 | Z67: =OFFSET(StochasticsSwamiVersion!$C$10,CalculationsAndCharts!$A67+$A$11,(Z$32-4)*3+2,1,1) -> 0.3588056856 | AA67: =OFFSET(StochasticsSwamiVersion!$C$10,CalculationsAndCharts!$A67+$A$11,(AA$32-4)*3+2,1,1) -> 0.3788311145 | AB67: =OFFSET(StochasticsSwamiVersion!$C$10,CalculationsAndCharts!$A67+$A$11,(AB$32-4)*3+2,1,1) -> 0.3959426425 | AC67: =OFFSET(StochasticsSwamiVersion!$C$10,CalculationsAndCharts!$A67+$A$11,(AC$32-4)*3+2,1,1) -> 0.4166745747 | AD67: =OFFSET(StochasticsSwamiVersion!$C$10,CalculationsAndCharts!$A67+$A$11,(AD$32-4)*3+2,1,1) -> 0.4290379922 | AE67: =OFFSET(StochasticsSwamiVersion!$C$10,CalculationsAndCharts!$A67+$A$11,(AE$32-4)*3+2,1,1) -> 0.4458396838 | AF67: =OFFSET(StochasticsSwamiVersion!$C$10,CalculationsAndCharts!$A67+$A$11,(AF$32-4)*3+2,1,1) -> 0.4684267715 | AG67: =OFFSET(StochasticsSwamiVersion!$C$10,CalculationsAndCharts!$A67+$A$11,(AG$32-4)*3+2,1,1) -> 0.498366112 | AH67: =OFFSET(StochasticsSwamiVersion!$C$10,CalculationsAndCharts!$A67+$A$11,(AH$32-4)*3+2,1,1) -> 0.5306733979 | AI67: =OFFSET(StochasticsSwamiVersion!$C$10,CalculationsAndCharts!$A67+$A$11,(AI$32-4)*3+2,1,1) -> 0.569555646 | AJ67: =OFFSET(StochasticsSwamiVersion!$C$10,CalculationsAndCharts!$A67+$A$11,(AJ$32-4)*3+2,1,1) -> 0.6120045264 | AK67: =OFFSET(StochasticsSwamiVersion!$C$10,CalculationsAndCharts!$A67+$A$11,(AK$32-4)*3+2,1,1) -> 0.6480017732 | AL67: =OFFSET(StochasticsSwamiVersion!$C$10,CalculationsAndCharts!$A67+$A$11,(AL$32-4)*3+2,1,1) -> 0.6682933596 | AM67: =OFFSET(StochasticsSwamiVersion!$C$10,CalculationsAndCharts!$A67+$A$11,(AM$32-4)*3+2,1,1) -> 0.6889236989 | AN67: =OFFSET(StochasticsSwamiVersion!$C$10,CalculationsAndCharts!$A67+$A$11,(AN$32-4)*3+2,1,1) -> 0.7032740828 | AO67: =OFFSET(StochasticsSwamiVersion!$C$10,CalculationsAndCharts!$A67+$A$11,(AO$32-4)*3+2,1,1) -> 0.7094699657 | AP67: =OFFSET(StochasticsSwamiVersion!$C$10,CalculationsAndCharts!$A67+$A$11,(AP$32-4)*3+2,1,1) -> 0.7094649044 | AQ67: =OFFSET(StochasticsSwamiVersion!$C$10,CalculationsAndCharts!$A67+$A$11,(AQ$32-4)*3+2,1,1) -> 0.709458815 | AR67: =OFFSET(StochasticsSwamiVersion!$C$10,CalculationsAndCharts!$A67+$A$11,(AR$32-4)*3+2,1,1) -> 0.7094517153 | AS67: =OFFSET(StochasticsSwamiVersion!$C$10,CalculationsAndCharts!$A67+$A$11,(AS$32-4)*3+2,1,1) -> 0.709443613 | AT67: =OFFSET(StochasticsSwamiVersion!$C$10,CalculationsAndCharts!$A67+$A$11,(AT$32-4)*3+2,1,1) -> 0.7094347516 | AU67: =OFFSET(StochasticsSwamiVersion!$C$10,CalculationsAndCharts!$A67+$A$11,(AU$32-4)*3+2,1,1) -> 0.7094237698 | AV67: =OFFSET(StochasticsSwamiVersion!$C$10,CalculationsAndCharts!$A67+$A$11,(AV$32-4)*3+2,1,1) -> 0.7094079947 | AW67: =OFFSET(StochasticsSwamiVersion!$C$10,CalculationsAndCharts!$A67+$A$11,(AW$32-4)*3+2,1,1) -> 0.7093845928 | AX67: =OFFSET(StochasticsSwamiVersion!$C$10,CalculationsAndCharts!$A67+$A$11,(AX$32-4)*3+2,1,1) -> 0.7093500568 | AY67: =OFFSET(StochasticsSwamiVersion!$C$10,CalculationsAndCharts!$A67+$A$11,(AY$32-4)*3+2,1,1) -> 0.7093006274 | AZ67: =OFFSET(StochasticsSwamiVersion!$C$10,CalculationsAndCharts!$A67+$A$11,(AZ$32-4)*3+2,1,1) -> 0.7092300049
A68: 36 | B68: =OFFSET(InputPriceData!B$10,CalculationsAndCharts!$A68+$A$11,0,1,1) -> 2011-11-21 | C68: =OFFSET(InputPriceData!G$10,CalculationsAndCharts!$A68+$A$11,0,1,1) -> 229611600 | D68: =OFFSET(InputPriceData!C$10,CalculationsAndCharts!$A68+$A$11,0,1,1) -> 119.45 | E68: =OFFSET(InputPriceData!D$10,CalculationsAndCharts!$A68+$A$11,0,1,1) -> 119.6 | F68: =OFFSET(InputPriceData!E$10,CalculationsAndCharts!$A68+$A$11,0,1,1) -> 117.91 | G68: =OFFSET(InputPriceData!F$10,CalculationsAndCharts!$A68+$A$11,0,1,1) -> 118.91 | H68: =OFFSET(StochasticsSwamiVersion!$C$10,CalculationsAndCharts!$A68+$A$11,(H$32-4)*3+2,1,1) -> 0.3065363055 | I68: =OFFSET(StochasticsSwamiVersion!$C$10,CalculationsAndCharts!$A68+$A$11,(I$32-4)*3+2,1,1) -> 0.3166723671 | J68: =OFFSET(StochasticsSwamiVersion!$C$10,CalculationsAndCharts!$A68+$A$11,(J$32-4)*3+2,1,1) -> 0.3235656032 | K68: =OFFSET(StochasticsSwamiVersion!$C$10,CalculationsAndCharts!$A68+$A$11,(K$32-4)*3+2,1,1) -> 0.314314792 | L68: =OFFSET(StochasticsSwamiVersion!$C$10,CalculationsAndCharts!$A68+$A$11,(L$32-4)*3+2,1,1) -> 0.315674377 | M68: =OFFSET(StochasticsSwamiVersion!$C$10,CalculationsAndCharts!$A68+$A$11,(M$32-4)*3+2,1,1) -> 0.3193409972 | N68: =OFFSET(StochasticsSwamiVersion!$C$10,CalculationsAndCharts!$A68+$A$11,(N$32-4)*3+2,1,1) -> 0.3261244932 | O68: =OFFSET(StochasticsSwamiVersion!$C$10,CalculationsAndCharts!$A68+$A$11,(O$32-4)*3+2,1,1) -> 0.335580225 | P68: =OFFSET(StochasticsSwamiVersion!$C$10,CalculationsAndCharts!$A68+$A$11,(P$32-4)*3+2,1,1) -> 0.3489514619 | Q68: =OFFSET(StochasticsSwamiVersion!$C$10,CalculationsAndCharts!$A68+$A$11,(Q$32-4)*3+2,1,1) -> 0.3483940666 | R68: =OFFSET(StochasticsSwamiVersion!$C$10,CalculationsAndCharts!$A68+$A$11,(R$32-4)*3+2,1,1) -> 0.347286099 | S68: =OFFSET(StochasticsSwamiVersion!$C$10,CalculationsAndCharts!$A68+$A$11,(S$32-4)*3+2,1,1) -> 0.3487797744 | T68: =OFFSET(StochasticsSwamiVersion!$C$10,CalculationsAndCharts!$A68+$A$11,(T$32-4)*3+2,1,1) -> 0.3528700058 | U68: =OFFSET(StochasticsSwamiVersion!$C$10,CalculationsAndCharts!$A68+$A$11,(U$32-4)*3+2,1,1) -> 0.3593759123 | V68: =OFFSET(StochasticsSwamiVersion!$C$10,CalculationsAndCharts!$A68+$A$11,(V$32-4)*3+2,1,1) -> 0.3686256995 | W68: =OFFSET(StochasticsSwamiVersion!$C$10,CalculationsAndCharts!$A68+$A$11,(W$32-4)*3+2,1,1) -> 0.3803641019 | X68: =OFFSET(StochasticsSwamiVersion!$C$10,CalculationsAndCharts!$A68+$A$11,(X$32-4)*3+2,1,1) -> 0.3952253335 | Y68: =OFFSET(StochasticsSwamiVersion!$C$10,CalculationsAndCharts!$A68+$A$11,(Y$32-4)*3+2,1,1) -> 0.4146355511 | Z68: =OFFSET(StochasticsSwamiVersion!$C$10,CalculationsAndCharts!$A68+$A$11,(Z$32-4)*3+2,1,1) -> 0.4379519721 | AA68: =OFFSET(StochasticsSwamiVersion!$C$10,CalculationsAndCharts!$A68+$A$11,(AA$32-4)*3+2,1,1) -> 0.4603709729 | AB68: =OFFSET(StochasticsSwamiVersion!$C$10,CalculationsAndCharts!$A68+$A$11,(AB$32-4)*3+2,1,1) -> 0.4800854146 | AC68: =OFFSET(StochasticsSwamiVersion!$C$10,CalculationsAndCharts!$A68+$A$11,(AC$32-4)*3+2,1,1) -> 0.502720478 | AD68: =OFFSET(StochasticsSwamiVersion!$C$10,CalculationsAndCharts!$A68+$A$11,(AD$32-4)*3+2,1,1) -> 0.5174850272 | AE68: =OFFSET(StochasticsSwamiVersion!$C$10,CalculationsAndCharts!$A68+$A$11,(AE$32-4)*3+2,1,1) -> 0.5371199331 | AF68: =OFFSET(StochasticsSwamiVersion!$C$10,CalculationsAndCharts!$A68+$A$11,(AF$32-4)*3+2,1,1) -> 0.5626673212 | AG68: =OFFSET(StochasticsSwamiVersion!$C$10,CalculationsAndCharts!$A68+$A$11,(AG$32-4)*3+2,1,1) -> 0.5949026697 | AH68: =OFFSET(StochasticsSwamiVersion!$C$10,CalculationsAndCharts!$A68+$A$11,(AH$32-4)*3+2,1,1) -> 0.6284229429 | AI68: =OFFSET(StochasticsSwamiVersion!$C$10,CalculationsAndCharts!$A68+$A$11,(AI$32-4)*3+2,1,1) -> 0.6646936079 | AJ68: =OFFSET(StochasticsSwamiVersion!$C$10,CalculationsAndCharts!$A68+$A$11,(AJ$32-4)*3+2,1,1) -> 0.6975305938 | AK68: =OFFSET(StochasticsSwamiVersion!$C$10,CalculationsAndCharts!$A68+$A$11,(AK$32-4)*3+2,1,1) -> 0.7143568041 | AL68: =OFFSET(StochasticsSwamiVersion!$C$10,CalculationsAndCharts!$A68+$A$11,(AL$32-4)*3+2,1,1) -> 0.731859821 | AM68: =OFFSET(StochasticsSwamiVersion!$C$10,CalculationsAndCharts!$A68+$A$11,(AM$32-4)*3+2,1,1) -> 0.7441050887 | AN68: =OFFSET(StochasticsSwamiVersion!$C$10,CalculationsAndCharts!$A68+$A$11,(AN$32-4)*3+2,1,1) -> 0.7495586443 | AO68: =OFFSET(StochasticsSwamiVersion!$C$10,CalculationsAndCharts!$A68+$A$11,(AO$32-4)*3+2,1,1) -> 0.7495555448 | AP68: =OFFSET(StochasticsSwamiVersion!$C$10,CalculationsAndCharts!$A68+$A$11,(AP$32-4)*3+2,1,1) -> 0.7495492181 | AQ68: =OFFSET(StochasticsSwamiVersion!$C$10,CalculationsAndCharts!$A68+$A$11,(AQ$32-4)*3+2,1,1) -> 0.7495416064 | AR68: =OFFSET(StochasticsSwamiVersion!$C$10,CalculationsAndCharts!$A68+$A$11,(AR$32-4)*3+2,1,1) -> 0.7495327318 | AS68: =OFFSET(StochasticsSwamiVersion!$C$10,CalculationsAndCharts!$A68+$A$11,(AS$32-4)*3+2,1,1) -> 0.7495226039 | AT68: =OFFSET(StochasticsSwamiVersion!$C$10,CalculationsAndCharts!$A68+$A$11,(AT$32-4)*3+2,1,1) -> 0.7495115271 | AU68: =OFFSET(StochasticsSwamiVersion!$C$10,CalculationsAndCharts!$A68+$A$11,(AU$32-4)*3+2,1,1) -> 0.7494977999 | AV68: =OFFSET(StochasticsSwamiVersion!$C$10,CalculationsAndCharts!$A68+$A$11,(AV$32-4)*3+2,1,1) -> 0.749478081 | AW68: =OFFSET(StochasticsSwamiVersion!$C$10,CalculationsAndCharts!$A68+$A$11,(AW$32-4)*3+2,1,1) -> 0.7494488287 | AX68: =OFFSET(StochasticsSwamiVersion!$C$10,CalculationsAndCharts!$A68+$A$11,(AX$32-4)*3+2,1,1) -> 0.7494056586 | AY68: =OFFSET(StochasticsSwamiVersion!$C$10,CalculationsAndCharts!$A68+$A$11,(AY$32-4)*3+2,1,1) -> 0.7493438719 | AZ68: =OFFSET(StochasticsSwamiVersion!$C$10,CalculationsAndCharts!$A68+$A$11,(AZ$32-4)*3+2,1,1) -> 0.7492555938
A69: 37 | B69: =OFFSET(InputPriceData!B$10,CalculationsAndCharts!$A69+$A$11,0,1,1) -> 2011-11-18 | C69: =OFFSET(InputPriceData!G$10,CalculationsAndCharts!$A69+$A$11,0,1,1) -> 215580400 | D69: =OFFSET(InputPriceData!C$10,CalculationsAndCharts!$A69+$A$11,0,1,1) -> 121.73 | E69: =OFFSET(InputPriceData!D$10,CalculationsAndCharts!$A69+$A$11,0,1,1) -> 121.98 | F69: =OFFSET(InputPriceData!E$10,CalculationsAndCharts!$A69+$A$11,0,1,1) -> 120.7 | G69: =OFFSET(InputPriceData!F$10,CalculationsAndCharts!$A69+$A$11,0,1,1) -> 121.21 | H69: =OFFSET(StochasticsSwamiVersion!$C$10,CalculationsAndCharts!$A69+$A$11,(H$32-4)*3+2,1,1) -> 0.3753496564 | I69: =OFFSET(StochasticsSwamiVersion!$C$10,CalculationsAndCharts!$A69+$A$11,(I$32-4)*3+2,1,1) -> 0.3878502325 | J69: =OFFSET(StochasticsSwamiVersion!$C$10,CalculationsAndCharts!$A69+$A$11,(J$32-4)*3+2,1,1) -> 0.3940837172 | K69: =OFFSET(StochasticsSwamiVersion!$C$10,CalculationsAndCharts!$A69+$A$11,(K$32-4)*3+2,1,1) -> 0.3830744531 | L69: =OFFSET(StochasticsSwamiVersion!$C$10,CalculationsAndCharts!$A69+$A$11,(L$32-4)*3+2,1,1) -> 0.3848422936 | M69: =OFFSET(StochasticsSwamiVersion!$C$10,CalculationsAndCharts!$A69+$A$11,(M$32-4)*3+2,1,1) -> 0.3895532581 | N69: =OFFSET(StochasticsSwamiVersion!$C$10,CalculationsAndCharts!$A69+$A$11,(N$32-4)*3+2,1,1) -> 0.3982532051 | O69: =OFFSET(StochasticsSwamiVersion!$C$10,CalculationsAndCharts!$A69+$A$11,(O$32-4)*3+2,1,1) -> 0.4088300798 | P69: =OFFSET(StochasticsSwamiVersion!$C$10,CalculationsAndCharts!$A69+$A$11,(P$32-4)*3+2,1,1) -> 0.4231029471 | Q69: =OFFSET(StochasticsSwamiVersion!$C$10,CalculationsAndCharts!$A69+$A$11,(Q$32-4)*3+2,1,1) -> 0.4219749603 | R69: =OFFSET(StochasticsSwamiVersion!$C$10,CalculationsAndCharts!$A69+$A$11,(R$32-4)*3+2,1,1) -> 0.4206538627 | S69: =OFFSET(StochasticsSwamiVersion!$C$10,CalculationsAndCharts!$A69+$A$11,(S$32-4)*3+2,1,1) -> 0.4226461954 | T69: =OFFSET(StochasticsSwamiVersion!$C$10,CalculationsAndCharts!$A69+$A$11,(T$32-4)*3+2,1,1) -> 0.4279999602 | U69: =OFFSET(StochasticsSwamiVersion!$C$10,CalculationsAndCharts!$A69+$A$11,(U$32-4)*3+2,1,1) -> 0.4365794906 | V69: =OFFSET(StochasticsSwamiVersion!$C$10,CalculationsAndCharts!$A69+$A$11,(V$32-4)*3+2,1,1) -> 0.4478199263 | W69: =OFFSET(StochasticsSwamiVersion!$C$10,CalculationsAndCharts!$A69+$A$11,(W$32-4)*3+2,1,1) -> 0.461803526 | X69: =OFFSET(StochasticsSwamiVersion!$C$10,CalculationsAndCharts!$A69+$A$11,(X$32-4)*3+2,1,1) -> 0.4790132197 | Y69: =OFFSET(StochasticsSwamiVersion!$C$10,CalculationsAndCharts!$A69+$A$11,(Y$32-4)*3+2,1,1) -> 0.5005891861 | Z69: =OFFSET(StochasticsSwamiVersion!$C$10,CalculationsAndCharts!$A69+$A$11,(Z$32-4)*3+2,1,1) -> 0.5246812693 | AA69: =OFFSET(StochasticsSwamiVersion!$C$10,CalculationsAndCharts!$A69+$A$11,(AA$32-4)*3+2,1,1) -> 0.5474251378 | AB69: =OFFSET(StochasticsSwamiVersion!$C$10,CalculationsAndCharts!$A69+$A$11,(AB$32-4)*3+2,1,1) -> 0.5687520909 | AC69: =OFFSET(StochasticsSwamiVersion!$C$10,CalculationsAndCharts!$A69+$A$11,(AC$32-4)*3+2,1,1) -> 0.5907023526 | AD69: =OFFSET(StochasticsSwamiVersion!$C$10,CalculationsAndCharts!$A69+$A$11,(AD$32-4)*3+2,1,1) -> 0.6078486339 | AE69: =OFFSET(StochasticsSwamiVersion!$C$10,CalculationsAndCharts!$A69+$A$11,(AE$32-4)*3+2,1,1) -> 0.6298213213 | AF69: =OFFSET(StochasticsSwamiVersion!$C$10,CalculationsAndCharts!$A69+$A$11,(AF$32-4)*3+2,1,1) -> 0.6567971568 | AG69: =OFFSET(StochasticsSwamiVersion!$C$10,CalculationsAndCharts!$A69+$A$11,(AG$32-4)*3+2,1,1) -> 0.6878501664 | AH69: =OFFSET(StochasticsSwamiVersion!$C$10,CalculationsAndCharts!$A69+$A$11,(AH$32-4)*3+2,1,1) -> 0.7181627206 | AI69: =OFFSET(StochasticsSwamiVersion!$C$10,CalculationsAndCharts!$A69+$A$11,(AI$32-4)*3+2,1,1) -> 0.7443207362 | AJ69: =OFFSET(StochasticsSwamiVersion!$C$10,CalculationsAndCharts!$A69+$A$11,(AJ$32-4)*3+2,1,1) -> 0.7577908553 | AK69: =OFFSET(StochasticsSwamiVersion!$C$10,CalculationsAndCharts!$A69+$A$11,(AK$32-4)*3+2,1,1) -> 0.7719032036 | AL69: =OFFSET(StochasticsSwamiVersion!$C$10,CalculationsAndCharts!$A69+$A$11,(AL$32-4)*3+2,1,1) -> 0.7818604337 | AM69: =OFFSET(StochasticsSwamiVersion!$C$10,CalculationsAndCharts!$A69+$A$11,(AM$32-4)*3+2,1,1) -> 0.7861770353 | AN69: =OFFSET(StochasticsSwamiVersion!$C$10,CalculationsAndCharts!$A69+$A$11,(AN$32-4)*3+2,1,1) -> 0.7861734918 | AO69: =OFFSET(StochasticsSwamiVersion!$C$10,CalculationsAndCharts!$A69+$A$11,(AO$32-4)*3+2,1,1) -> 0.7861696174 | AP69: =OFFSET(StochasticsSwamiVersion!$C$10,CalculationsAndCharts!$A69+$A$11,(AP$32-4)*3+2,1,1) -> 0.7861617091 | AQ69: =OFFSET(StochasticsSwamiVersion!$C$10,CalculationsAndCharts!$A69+$A$11,(AQ$32-4)*3+2,1,1) -> 0.7861521944 | AR69: =OFFSET(StochasticsSwamiVersion!$C$10,CalculationsAndCharts!$A69+$A$11,(AR$32-4)*3+2,1,1) -> 0.7861411012 | AS69: =OFFSET(StochasticsSwamiVersion!$C$10,CalculationsAndCharts!$A69+$A$11,(AS$32-4)*3+2,1,1) -> 0.7861284413 | AT69: =OFFSET(StochasticsSwamiVersion!$C$10,CalculationsAndCharts!$A69+$A$11,(AT$32-4)*3+2,1,1) -> 0.7861145953 | AU69: =OFFSET(StochasticsSwamiVersion!$C$10,CalculationsAndCharts!$A69+$A$11,(AU$32-4)*3+2,1,1) -> 0.7860974363 | AV69: =OFFSET(StochasticsSwamiVersion!$C$10,CalculationsAndCharts!$A69+$A$11,(AV$32-4)*3+2,1,1) -> 0.7860727876 | AW69: =OFFSET(StochasticsSwamiVersion!$C$10,CalculationsAndCharts!$A69+$A$11,(AW$32-4)*3+2,1,1) -> 0.7860362222 | AX69: =OFFSET(StochasticsSwamiVersion!$C$10,CalculationsAndCharts!$A69+$A$11,(AX$32-4)*3+2,1,1) -> 0.7859822597 | AY69: =OFFSET(StochasticsSwamiVersion!$C$10,CalculationsAndCharts!$A69+$A$11,(AY$32-4)*3+2,1,1) -> 0.7859050262 | AZ69: =OFFSET(StochasticsSwamiVersion!$C$10,CalculationsAndCharts!$A69+$A$11,(AZ$32-4)*3+2,1,1) -> 0.7857946787
A70: 38 | B70: =OFFSET(InputPriceData!B$10,CalculationsAndCharts!$A70+$A$11,0,1,1) -> 2011-11-17 | C70: =OFFSET(InputPriceData!G$10,CalculationsAndCharts!$A70+$A$11,0,1,1) -> 331219600 | D70: =OFFSET(InputPriceData!C$10,CalculationsAndCharts!$A70+$A$11,0,1,1) -> 123.07 | E70: =OFFSET(InputPriceData!D$10,CalculationsAndCharts!$A70+$A$11,0,1,1) -> 123.38 | F70: =OFFSET(InputPriceData!E$10,CalculationsAndCharts!$A70+$A$11,0,1,1) -> 120.47 | G70: =OFFSET(InputPriceData!F$10,CalculationsAndCharts!$A70+$A$11,0,1,1) -> 121.34 | H70: =OFFSET(StochasticsSwamiVersion!$C$10,CalculationsAndCharts!$A70+$A$11,(H$32-4)*3+2,1,1) -> 0.452188643 | I70: =OFFSET(StochasticsSwamiVersion!$C$10,CalculationsAndCharts!$A70+$A$11,(I$32-4)*3+2,1,1) -> 0.4640755069 | J70: =OFFSET(StochasticsSwamiVersion!$C$10,CalculationsAndCharts!$A70+$A$11,(J$32-4)*3+2,1,1) -> 0.4674581118 | K70: =OFFSET(StochasticsSwamiVersion!$C$10,CalculationsAndCharts!$A70+$A$11,(K$32-4)*3+2,1,1) -> 0.454309927 | L70: =OFFSET(StochasticsSwamiVersion!$C$10,CalculationsAndCharts!$A70+$A$11,(L$32-4)*3+2,1,1) -> 0.4576142173 | M70: =OFFSET(StochasticsSwamiVersion!$C$10,CalculationsAndCharts!$A70+$A$11,(M$32-4)*3+2,1,1) -> 0.4653259612 | N70: =OFFSET(StochasticsSwamiVersion!$C$10,CalculationsAndCharts!$A70+$A$11,(N$32-4)*3+2,1,1) -> 0.4747585763 | O70: =OFFSET(StochasticsSwamiVersion!$C$10,CalculationsAndCharts!$A70+$A$11,(O$32-4)*3+2,1,1) -> 0.4851584236 | P70: =OFFSET(StochasticsSwamiVersion!$C$10,CalculationsAndCharts!$A70+$A$11,(P$32-4)*3+2,1,1) -> 0.4975979485 | Q70: =OFFSET(StochasticsSwamiVersion!$C$10,CalculationsAndCharts!$A70+$A$11,(Q$32-4)*3+2,1,1) -> 0.4953916212 | R70: =OFFSET(StochasticsSwamiVersion!$C$10,CalculationsAndCharts!$A70+$A$11,(R$32-4)*3+2,1,1) -> 0.4941772672 | S70: =OFFSET(StochasticsSwamiVersion!$C$10,CalculationsAndCharts!$A70+$A$11,(S$32-4)*3+2,1,1) -> 0.4975024104 | T70: =OFFSET(StochasticsSwamiVersion!$C$10,CalculationsAndCharts!$A70+$A$11,(T$32-4)*3+2,1,1) -> 0.5057224024 | U70: =OFFSET(StochasticsSwamiVersion!$C$10,CalculationsAndCharts!$A70+$A$11,(U$32-4)*3+2,1,1) -> 0.5161350731 | V70: =OFFSET(StochasticsSwamiVersion!$C$10,CalculationsAndCharts!$A70+$A$11,(V$32-4)*3+2,1,1) -> 0.5294331543 | W70: =OFFSET(StochasticsSwamiVersion!$C$10,CalculationsAndCharts!$A70+$A$11,(W$32-4)*3+2,1,1) -> 0.5454230355 | X70: =OFFSET(StochasticsSwamiVersion!$C$10,CalculationsAndCharts!$A70+$A$11,(X$32-4)*3+2,1,1) -> 0.564015716 | Y70: =OFFSET(StochasticsSwamiVersion!$C$10,CalculationsAndCharts!$A70+$A$11,(Y$32-4)*3+2,1,1) -> 0.5853750907 | Z70: =OFFSET(StochasticsSwamiVersion!$C$10,CalculationsAndCharts!$A70+$A$11,(Z$32-4)*3+2,1,1) -> 0.6053753608 | AA70: =OFFSET(StochasticsSwamiVersion!$C$10,CalculationsAndCharts!$A70+$A$11,(AA$32-4)*3+2,1,1) -> 0.6238062909 | AB70: =OFFSET(StochasticsSwamiVersion!$C$10,CalculationsAndCharts!$A70+$A$11,(AB$32-4)*3+2,1,1) -> 0.6444616128 | AC70: =OFFSET(StochasticsSwamiVersion!$C$10,CalculationsAndCharts!$A70+$A$11,(AC$32-4)*3+2,1,1) -> 0.6609656972 | AD70: =OFFSET(StochasticsSwamiVersion!$C$10,CalculationsAndCharts!$A70+$A$11,(AD$32-4)*3+2,1,1) -> 0.6802268165 | AE70: =OFFSET(StochasticsSwamiVersion!$C$10,CalculationsAndCharts!$A70+$A$11,(AE$32-4)*3+2,1,1) -> 0.7035091519 | AF70: =OFFSET(StochasticsSwamiVersion!$C$10,CalculationsAndCharts!$A70+$A$11,(AF$32-4)*3+2,1,1) -> 0.7294492654 | AG70: =OFFSET(StochasticsSwamiVersion!$C$10,CalculationsAndCharts!$A70+$A$11,(AG$32-4)*3+2,1,1) -> 0.754703728 | AH70: =OFFSET(StochasticsSwamiVersion!$C$10,CalculationsAndCharts!$A70+$A$11,(AH$32-4)*3+2,1,1) -> 0.7771209572 | AI70: =OFFSET(StochasticsSwamiVersion!$C$10,CalculationsAndCharts!$A70+$A$11,(AI$32-4)*3+2,1,1) -> 0.7879845504 | AJ70: =OFFSET(StochasticsSwamiVersion!$C$10,CalculationsAndCharts!$A70+$A$11,(AJ$32-4)*3+2,1,1) -> 0.7993428272 | AK70: =OFFSET(StochasticsSwamiVersion!$C$10,CalculationsAndCharts!$A70+$A$11,(AK$32-4)*3+2,1,1) -> 0.8075441532 | AL70: =OFFSET(StochasticsSwamiVersion!$C$10,CalculationsAndCharts!$A70+$A$11,(AL$32-4)*3+2,1,1) -> 0.8112891619 | AM70: =OFFSET(StochasticsSwamiVersion!$C$10,CalculationsAndCharts!$A70+$A$11,(AM$32-4)*3+2,1,1) -> 0.8112846629 | AN70: =OFFSET(StochasticsSwamiVersion!$C$10,CalculationsAndCharts!$A70+$A$11,(AN$32-4)*3+2,1,1) -> 0.8112802334 | AO70: =OFFSET(StochasticsSwamiVersion!$C$10,CalculationsAndCharts!$A70+$A$11,(AO$32-4)*3+2,1,1) -> 0.8112753905 | AP70: =OFFSET(StochasticsSwamiVersion!$C$10,CalculationsAndCharts!$A70+$A$11,(AP$32-4)*3+2,1,1) -> 0.811265505 | AQ70: =OFFSET(StochasticsSwamiVersion!$C$10,CalculationsAndCharts!$A70+$A$11,(AQ$32-4)*3+2,1,1) -> 0.8112536117 | AR70: =OFFSET(StochasticsSwamiVersion!$C$10,CalculationsAndCharts!$A70+$A$11,(AR$32-4)*3+2,1,1) -> 0.8112397452 | AS70: =OFFSET(StochasticsSwamiVersion!$C$10,CalculationsAndCharts!$A70+$A$11,(AS$32-4)*3+2,1,1) -> 0.8112239203 | AT70: =OFFSET(StochasticsSwamiVersion!$C$10,CalculationsAndCharts!$A70+$A$11,(AT$32-4)*3+2,1,1) -> 0.8112066128 | AU70: =OFFSET(StochasticsSwamiVersion!$C$10,CalculationsAndCharts!$A70+$A$11,(AU$32-4)*3+2,1,1) -> 0.8111851641 | AV70: =OFFSET(StochasticsSwamiVersion!$C$10,CalculationsAndCharts!$A70+$A$11,(AV$32-4)*3+2,1,1) -> 0.8111543532 | AW70: =OFFSET(StochasticsSwamiVersion!$C$10,CalculationsAndCharts!$A70+$A$11,(AW$32-4)*3+2,1,1) -> 0.8111086465 | AX70: =OFFSET(StochasticsSwamiVersion!$C$10,CalculationsAndCharts!$A70+$A$11,(AX$32-4)*3+2,1,1) -> 0.8110411933 | AY70: =OFFSET(StochasticsSwamiVersion!$C$10,CalculationsAndCharts!$A70+$A$11,(AY$32-4)*3+2,1,1) -> 0.8109446515 | AZ70: =OFFSET(StochasticsSwamiVersion!$C$10,CalculationsAndCharts!$A70+$A$11,(AZ$32-4)*3+2,1,1) -> 0.8108067172
A71: 39 | B71: =OFFSET(InputPriceData!B$10,CalculationsAndCharts!$A71+$A$11,0,1,1) -> 2011-11-16 | C71: =OFFSET(InputPriceData!G$10,CalculationsAndCharts!$A71+$A$11,0,1,1) -> 235782500 | D71: =OFFSET(InputPriceData!C$10,CalculationsAndCharts!$A71+$A$11,0,1,1) -> 124.03 | E71: =OFFSET(InputPriceData!D$10,CalculationsAndCharts!$A71+$A$11,0,1,1) -> 125.55 | F71: =OFFSET(InputPriceData!E$10,CalculationsAndCharts!$A71+$A$11,0,1,1) -> 123.12 | G71: =OFFSET(InputPriceData!F$10,CalculationsAndCharts!$A71+$A$11,0,1,1) -> 123.3 | H71: =OFFSET(StochasticsSwamiVersion!$C$10,CalculationsAndCharts!$A71+$A$11,(H$32-4)*3+2,1,1) -> 0.5278502138 | I71: =OFFSET(StochasticsSwamiVersion!$C$10,CalculationsAndCharts!$A71+$A$11,(I$32-4)*3+2,1,1) -> 0.5377642491 | J71: =OFFSET(StochasticsSwamiVersion!$C$10,CalculationsAndCharts!$A71+$A$11,(J$32-4)*3+2,1,1) -> 0.5320436524 | K71: =OFFSET(StochasticsSwamiVersion!$C$10,CalculationsAndCharts!$A71+$A$11,(K$32-4)*3+2,1,1) -> 0.518692618 | L71: =OFFSET(StochasticsSwamiVersion!$C$10,CalculationsAndCharts!$A71+$A$11,(L$32-4)*3+2,1,1) -> 0.5278259601 | M71: =OFFSET(StochasticsSwamiVersion!$C$10,CalculationsAndCharts!$A71+$A$11,(M$32-4)*3+2,1,1) -> 0.5361128992 | N71: =OFFSET(StochasticsSwamiVersion!$C$10,CalculationsAndCharts!$A71+$A$11,(N$32-4)*3+2,1,1) -> 0.5452612344 | O71: =OFFSET(StochasticsSwamiVersion!$C$10,CalculationsAndCharts!$A71+$A$11,(O$32-4)*3+2,1,1) -> 0.5532150682 | P71: =OFFSET(StochasticsSwamiVersion!$C$10,CalculationsAndCharts!$A71+$A$11,(P$32-4)*3+2,1,1) -> 0.5595330336 | Q71: =OFFSET(StochasticsSwamiVersion!$C$10,CalculationsAndCharts!$A71+$A$11,(Q$32-4)*3+2,1,1) -> 0.5559717687 | R71: =OFFSET(StochasticsSwamiVersion!$C$10,CalculationsAndCharts!$A71+$A$11,(R$32-4)*3+2,1,1) -> 0.55623971 | S71: =OFFSET(StochasticsSwamiVersion!$C$10,CalculationsAndCharts!$A71+$A$11,(S$32-4)*3+2,1,1) -> 0.563664348 | T71: =OFFSET(StochasticsSwamiVersion!$C$10,CalculationsAndCharts!$A71+$A$11,(T$32-4)*3+2,1,1) -> 0.5737423984 | U71: =OFFSET(StochasticsSwamiVersion!$C$10,CalculationsAndCharts!$A71+$A$11,(U$32-4)*3+2,1,1) -> 0.5861031785 | V71: =OFFSET(StochasticsSwamiVersion!$C$10,CalculationsAndCharts!$A71+$A$11,(V$32-4)*3+2,1,1) -> 0.6014290104 | W71: =OFFSET(StochasticsSwamiVersion!$C$10,CalculationsAndCharts!$A71+$A$11,(W$32-4)*3+2,1,1) -> 0.6188749582 | X71: =OFFSET(StochasticsSwamiVersion!$C$10,CalculationsAndCharts!$A71+$A$11,(X$32-4)*3+2,1,1) -> 0.637232017 | Y71: =OFFSET(StochasticsSwamiVersion!$C$10,CalculationsAndCharts!$A71+$A$11,(Y$32-4)*3+2,1,1) -> 0.6548905934 | Z71: =OFFSET(StochasticsSwamiVersion!$C$10,CalculationsAndCharts!$A71+$A$11,(Z$32-4)*3+2,1,1) -> 0.6712125989 | AA71: =OFFSET(StochasticsSwamiVersion!$C$10,CalculationsAndCharts!$A71+$A$11,(AA$32-4)*3+2,1,1) -> 0.6890407692 | AB71: =OFFSET(StochasticsSwamiVersion!$C$10,CalculationsAndCharts!$A71+$A$11,(AB$32-4)*3+2,1,1) -> 0.7053702233 | AC71: =OFFSET(StochasticsSwamiVersion!$C$10,CalculationsAndCharts!$A71+$A$11,(AC$32-4)*3+2,1,1) -> 0.7241154226 | AD71: =OFFSET(StochasticsSwamiVersion!$C$10,CalculationsAndCharts!$A71+$A$11,(AD$32-4)*3+2,1,1) -> 0.7445608267 | AE71: =OFFSET(StochasticsSwamiVersion!$C$10,CalculationsAndCharts!$A71+$A$11,(AE$32-4)*3+2,1,1) -> 0.7669115491 | AF71: =OFFSET(StochasticsSwamiVersion!$C$10,CalculationsAndCharts!$A71+$A$11,(AF$32-4)*3+2,1,1) -> 0.7875660407 | AG71: =OFFSET(StochasticsSwamiVersion!$C$10,CalculationsAndCharts!$A71+$A$11,(AG$32-4)*3+2,1,1) -> 0.8057042908 | AH71: =OFFSET(StochasticsSwamiVersion!$C$10,CalculationsAndCharts!$A71+$A$11,(AH$32-4)*3+2,1,1) -> 0.8147755978 | AI71: =OFFSET(StochasticsSwamiVersion!$C$10,CalculationsAndCharts!$A71+$A$11,(AI$32-4)*3+2,1,1) -> 0.8235994029 | AJ71: =OFFSET(StochasticsSwamiVersion!$C$10,CalculationsAndCharts!$A71+$A$11,(AJ$32-4)*3+2,1,1) -> 0.8296048078 | AK71: =OFFSET(StochasticsSwamiVersion!$C$10,CalculationsAndCharts!$A71+$A$11,(AK$32-4)*3+2,1,1) -> 0.8323041913 | AL71: =OFFSET(StochasticsSwamiVersion!$C$10,CalculationsAndCharts!$A71+$A$11,(AL$32-4)*3+2,1,1) -> 0.8322984407 | AM71: =OFFSET(StochasticsSwamiVersion!$C$10,CalculationsAndCharts!$A71+$A$11,(AM$32-4)*3+2,1,1) -> 0.8322928169 | AN71: =OFFSET(StochasticsSwamiVersion!$C$10,CalculationsAndCharts!$A71+$A$11,(AN$32-4)*3+2,1,1) -> 0.8322872801 | AO71: =OFFSET(StochasticsSwamiVersion!$C$10,CalculationsAndCharts!$A71+$A$11,(AO$32-4)*3+2,1,1) -> 0.8322812264 | AP71: =OFFSET(StochasticsSwamiVersion!$C$10,CalculationsAndCharts!$A71+$A$11,(AP$32-4)*3+2,1,1) -> 0.8322688696 | AQ71: =OFFSET(StochasticsSwamiVersion!$C$10,CalculationsAndCharts!$A71+$A$11,(AQ$32-4)*3+2,1,1) -> 0.832254003 | AR71: =OFFSET(StochasticsSwamiVersion!$C$10,CalculationsAndCharts!$A71+$A$11,(AR$32-4)*3+2,1,1) -> 0.8322366698 | AS71: =OFFSET(StochasticsSwamiVersion!$C$10,CalculationsAndCharts!$A71+$A$11,(AS$32-4)*3+2,1,1) -> 0.8322168887 | AT71: =OFFSET(StochasticsSwamiVersion!$C$10,CalculationsAndCharts!$A71+$A$11,(AT$32-4)*3+2,1,1) -> 0.8321952543 | AU71: =OFFSET(StochasticsSwamiVersion!$C$10,CalculationsAndCharts!$A71+$A$11,(AU$32-4)*3+2,1,1) -> 0.8321684434 | AV71: =OFFSET(StochasticsSwamiVersion!$C$10,CalculationsAndCharts!$A71+$A$11,(AV$32-4)*3+2,1,1) -> 0.8321299299 | AW71: =OFFSET(StochasticsSwamiVersion!$C$10,CalculationsAndCharts!$A71+$A$11,(AW$32-4)*3+2,1,1) -> 0.8320727965 | AX71: =OFFSET(StochasticsSwamiVersion!$C$10,CalculationsAndCharts!$A71+$A$11,(AX$32-4)*3+2,1,1) -> 0.83198848 | AY71: =OFFSET(StochasticsSwamiVersion!$C$10,CalculationsAndCharts!$A71+$A$11,(AY$32-4)*3+2,1,1) -> 0.8318678028 | AZ71: =OFFSET(StochasticsSwamiVersion!$C$10,CalculationsAndCharts!$A71+$A$11,(AZ$32-4)*3+2,1,1) -> 0.831695385
A72: 40 | B72: =OFFSET(InputPriceData!B$10,CalculationsAndCharts!$A72+$A$11,0,1,1) -> 2011-11-15 | C72: =OFFSET(InputPriceData!G$10,CalculationsAndCharts!$A72+$A$11,0,1,1) -> 184709400 | D72: =OFFSET(InputPriceData!C$10,CalculationsAndCharts!$A72+$A$11,0,1,1) -> 124.39 | E72: =OFFSET(InputPriceData!D$10,CalculationsAndCharts!$A72+$A$11,0,1,1) -> 125.96 | F72: =OFFSET(InputPriceData!E$10,CalculationsAndCharts!$A72+$A$11,0,1,1) -> 123.94 | G72: =OFFSET(InputPriceData!F$10,CalculationsAndCharts!$A72+$A$11,0,1,1) -> 125.29 | H72: =OFFSET(StochasticsSwamiVersion!$C$10,CalculationsAndCharts!$A72+$A$11,(H$32-4)*3+2,1,1) -> 0.5706783808 | I72: =OFFSET(StochasticsSwamiVersion!$C$10,CalculationsAndCharts!$A72+$A$11,(I$32-4)*3+2,1,1) -> 0.5721872823 | J72: =OFFSET(StochasticsSwamiVersion!$C$10,CalculationsAndCharts!$A72+$A$11,(J$32-4)*3+2,1,1) -> 0.5551313535 | K72: =OFFSET(StochasticsSwamiVersion!$C$10,CalculationsAndCharts!$A72+$A$11,(K$32-4)*3+2,1,1) -> 0.5521755918 | L72: =OFFSET(StochasticsSwamiVersion!$C$10,CalculationsAndCharts!$A72+$A$11,(L$32-4)*3+2,1,1) -> 0.5625430549 | M72: =OFFSET(StochasticsSwamiVersion!$C$10,CalculationsAndCharts!$A72+$A$11,(M$32-4)*3+2,1,1) -> 0.5708654775 | N72: =OFFSET(StochasticsSwamiVersion!$C$10,CalculationsAndCharts!$A72+$A$11,(N$32-4)*3+2,1,1) -> 0.5784315392 | O72: =OFFSET(StochasticsSwamiVersion!$C$10,CalculationsAndCharts!$A72+$A$11,(O$32-4)*3+2,1,1) -> 0.5813590172 | P72: =OFFSET(StochasticsSwamiVersion!$C$10,CalculationsAndCharts!$A72+$A$11,(P$32-4)*3+2,1,1) -> 0.5775605207 | Q72: =OFFSET(StochasticsSwamiVersion!$C$10,CalculationsAndCharts!$A72+$A$11,(Q$32-4)*3+2,1,1) -> 0.5766543061 | R72: =OFFSET(StochasticsSwamiVersion!$C$10,CalculationsAndCharts!$A72+$A$11,(R$32-4)*3+2,1,1) -> 0.5834773318 | S72: =OFFSET(StochasticsSwamiVersion!$C$10,CalculationsAndCharts!$A72+$A$11,(S$32-4)*3+2,1,1) -> 0.5927747552 | T72: =OFFSET(StochasticsSwamiVersion!$C$10,CalculationsAndCharts!$A72+$A$11,(T$32-4)*3+2,1,1) -> 0.604899818 | U72: =OFFSET(StochasticsSwamiVersion!$C$10,CalculationsAndCharts!$A72+$A$11,(U$32-4)*3+2,1,1) -> 0.61941542 | V72: =OFFSET(StochasticsSwamiVersion!$C$10,CalculationsAndCharts!$A72+$A$11,(V$32-4)*3+2,1,1) -> 0.6367395698 | W72: =OFFSET(StochasticsSwamiVersion!$C$10,CalculationsAndCharts!$A72+$A$11,(W$32-4)*3+2,1,1) -> 0.6550242773 | X72: =OFFSET(StochasticsSwamiVersion!$C$10,CalculationsAndCharts!$A72+$A$11,(X$32-4)*3+2,1,1) -> 0.6714495005 | Y72: =OFFSET(StochasticsSwamiVersion!$C$10,CalculationsAndCharts!$A72+$A$11,(Y$32-4)*3+2,1,1) -> 0.6872629623 | Z72: =OFFSET(StochasticsSwamiVersion!$C$10,CalculationsAndCharts!$A72+$A$11,(Z$32-4)*3+2,1,1) -> 0.7039070965 | AA72: =OFFSET(StochasticsSwamiVersion!$C$10,CalculationsAndCharts!$A72+$A$11,(AA$32-4)*3+2,1,1) -> 0.7193473131 | AB72: =OFFSET(StochasticsSwamiVersion!$C$10,CalculationsAndCharts!$A72+$A$11,(AB$32-4)*3+2,1,1) -> 0.7383995332 | AC72: =OFFSET(StochasticsSwamiVersion!$C$10,CalculationsAndCharts!$A72+$A$11,(AC$32-4)*3+2,1,1) -> 0.7592119679 | AD72: =OFFSET(StochasticsSwamiVersion!$C$10,CalculationsAndCharts!$A72+$A$11,(AD$32-4)*3+2,1,1) -> 0.7798983142 | AE72: =OFFSET(StochasticsSwamiVersion!$C$10,CalculationsAndCharts!$A72+$A$11,(AE$32-4)*3+2,1,1) -> 0.7993464675 | AF72: =OFFSET(StochasticsSwamiVersion!$C$10,CalculationsAndCharts!$A72+$A$11,(AF$32-4)*3+2,1,1) -> 0.8154775661 | AG72: =OFFSET(StochasticsSwamiVersion!$C$10,CalculationsAndCharts!$A72+$A$11,(AG$32-4)*3+2,1,1) -> 0.8244814823 | AH72: =OFFSET(StochasticsSwamiVersion!$C$10,CalculationsAndCharts!$A72+$A$11,(AH$32-4)*3+2,1,1) -> 0.8323903187 | AI72: =OFFSET(StochasticsSwamiVersion!$C$10,CalculationsAndCharts!$A72+$A$11,(AI$32-4)*3+2,1,1) -> 0.8375108347 | AJ72: =OFFSET(StochasticsSwamiVersion!$C$10,CalculationsAndCharts!$A72+$A$11,(AJ$32-4)*3+2,1,1) -> 0.839570109 | AK72: =OFFSET(StochasticsSwamiVersion!$C$10,CalculationsAndCharts!$A72+$A$11,(AK$32-4)*3+2,1,1) -> 0.8395635823 | AL72: =OFFSET(StochasticsSwamiVersion!$C$10,CalculationsAndCharts!$A72+$A$11,(AL$32-4)*3+2,1,1) -> 0.839556394 | AM72: =OFFSET(StochasticsSwamiVersion!$C$10,CalculationsAndCharts!$A72+$A$11,(AM$32-4)*3+2,1,1) -> 0.8395493643 | AN72: =OFFSET(StochasticsSwamiVersion!$C$10,CalculationsAndCharts!$A72+$A$11,(AN$32-4)*3+2,1,1) -> 0.8395424433 | AO72: =OFFSET(StochasticsSwamiVersion!$C$10,CalculationsAndCharts!$A72+$A$11,(AO$32-4)*3+2,1,1) -> 0.8395348762 | AP72: =OFFSET(StochasticsSwamiVersion!$C$10,CalculationsAndCharts!$A72+$A$11,(AP$32-4)*3+2,1,1) -> 0.8395194301 | AQ72: =OFFSET(StochasticsSwamiVersion!$C$10,CalculationsAndCharts!$A72+$A$11,(AQ$32-4)*3+2,1,1) -> 0.8395008468 | AR72: =OFFSET(StochasticsSwamiVersion!$C$10,CalculationsAndCharts!$A72+$A$11,(AR$32-4)*3+2,1,1) -> 0.8394791804 | AS72: =OFFSET(StochasticsSwamiVersion!$C$10,CalculationsAndCharts!$A72+$A$11,(AS$32-4)*3+2,1,1) -> 0.839454454 | AT72: =OFFSET(StochasticsSwamiVersion!$C$10,CalculationsAndCharts!$A72+$A$11,(AT$32-4)*3+2,1,1) -> 0.8394274111 | AU72: =OFFSET(StochasticsSwamiVersion!$C$10,CalculationsAndCharts!$A72+$A$11,(AU$32-4)*3+2,1,1) -> 0.8393938975 | AV72: =OFFSET(StochasticsSwamiVersion!$C$10,CalculationsAndCharts!$A72+$A$11,(AV$32-4)*3+2,1,1) -> 0.8393457555 | AW72: =OFFSET(StochasticsSwamiVersion!$C$10,CalculationsAndCharts!$A72+$A$11,(AW$32-4)*3+2,1,1) -> 0.8392743388 | AX72: =OFFSET(StochasticsSwamiVersion!$C$10,CalculationsAndCharts!$A72+$A$11,(AX$32-4)*3+2,1,1) -> 0.8391689432 | AY72: =OFFSET(StochasticsSwamiVersion!$C$10,CalculationsAndCharts!$A72+$A$11,(AY$32-4)*3+2,1,1) -> 0.8390180969 | AZ72: =OFFSET(StochasticsSwamiVersion!$C$10,CalculationsAndCharts!$A72+$A$11,(AZ$32-4)*3+2,1,1) -> 0.8388025747
A73: 41 | B73: =OFFSET(InputPriceData!B$10,CalculationsAndCharts!$A73+$A$11,0,1,1) -> 2011-11-14 | C73: =OFFSET(InputPriceData!G$10,CalculationsAndCharts!$A73+$A$11,0,1,1) -> 159258300 | D73: =OFFSET(InputPriceData!C$10,CalculationsAndCharts!$A73+$A$11,0,1,1) -> 125.4 | E73: =OFFSET(InputPriceData!D$10,CalculationsAndCharts!$A73+$A$11,0,1,1) -> 126.65 | F73: =OFFSET(InputPriceData!E$10,CalculationsAndCharts!$A73+$A$11,0,1,1) -> 124.13 | G73: =OFFSET(InputPriceData!F$10,CalculationsAndCharts!$A73+$A$11,0,1,1) -> 124.67 | H73: =OFFSET(StochasticsSwamiVersion!$C$10,CalculationsAndCharts!$A73+$A$11,(H$32-4)*3+2,1,1) -> 0.5517121836 | I73: =OFFSET(StochasticsSwamiVersion!$C$10,CalculationsAndCharts!$A73+$A$11,(I$32-4)*3+2,1,1) -> 0.5523573228 | J73: =OFFSET(StochasticsSwamiVersion!$C$10,CalculationsAndCharts!$A73+$A$11,(J$32-4)*3+2,1,1) -> 0.5516651378 | K73: =OFFSET(StochasticsSwamiVersion!$C$10,CalculationsAndCharts!$A73+$A$11,(K$32-4)*3+2,1,1) -> 0.5477002785 | L73: =OFFSET(StochasticsSwamiVersion!$C$10,CalculationsAndCharts!$A73+$A$11,(L$32-4)*3+2,1,1) -> 0.559396493 | M73: =OFFSET(StochasticsSwamiVersion!$C$10,CalculationsAndCharts!$A73+$A$11,(M$32-4)*3+2,1,1) -> 0.5674101726 | N73: =OFFSET(StochasticsSwamiVersion!$C$10,CalculationsAndCharts!$A73+$A$11,(N$32-4)*3+2,1,1) -> 0.5725360733 | O73: =OFFSET(StochasticsSwamiVersion!$C$10,CalculationsAndCharts!$A73+$A$11,(O$32-4)*3+2,1,1) -> 0.5689731468 | P73: =OFFSET(StochasticsSwamiVersion!$C$10,CalculationsAndCharts!$A73+$A$11,(P$32-4)*3+2,1,1) -> 0.5688476843 | Q73: =OFFSET(StochasticsSwamiVersion!$C$10,CalculationsAndCharts!$A73+$A$11,(Q$32-4)*3+2,1,1) -> 0.5761744703 | R73: =OFFSET(StochasticsSwamiVersion!$C$10,CalculationsAndCharts!$A73+$A$11,(R$32-4)*3+2,1,1) -> 0.5848506342 | S73: =OFFSET(StochasticsSwamiVersion!$C$10,CalculationsAndCharts!$A73+$A$11,(S$32-4)*3+2,1,1) -> 0.5961116793 | T73: =OFFSET(StochasticsSwamiVersion!$C$10,CalculationsAndCharts!$A73+$A$11,(T$32-4)*3+2,1,1) -> 0.6105538897 | U73: =OFFSET(StochasticsSwamiVersion!$C$10,CalculationsAndCharts!$A73+$A$11,(U$32-4)*3+2,1,1) -> 0.6272988667 | V73: =OFFSET(StochasticsSwamiVersion!$C$10,CalculationsAndCharts!$A73+$A$11,(V$32-4)*3+2,1,1) -> 0.6462646012 | W73: =OFFSET(StochasticsSwamiVersion!$C$10,CalculationsAndCharts!$A73+$A$11,(W$32-4)*3+2,1,1) -> 0.6641419078 | X73: =OFFSET(StochasticsSwamiVersion!$C$10,CalculationsAndCharts!$A73+$A$11,(X$32-4)*3+2,1,1) -> 0.6798943897 | Y73: =OFFSET(StochasticsSwamiVersion!$C$10,CalculationsAndCharts!$A73+$A$11,(Y$32-4)*3+2,1,1) -> 0.6967918694 | Z73: =OFFSET(StochasticsSwamiVersion!$C$10,CalculationsAndCharts!$A73+$A$11,(Z$32-4)*3+2,1,1) -> 0.7123711983 | AA73: =OFFSET(StochasticsSwamiVersion!$C$10,CalculationsAndCharts!$A73+$A$11,(AA$32-4)*3+2,1,1) -> 0.7306334801 | AB73: =OFFSET(StochasticsSwamiVersion!$C$10,CalculationsAndCharts!$A73+$A$11,(AB$32-4)*3+2,1,1) -> 0.7524492232 | AC73: =OFFSET(StochasticsSwamiVersion!$C$10,CalculationsAndCharts!$A73+$A$11,(AC$32-4)*3+2,1,1) -> 0.7747464426 | AD73: =OFFSET(StochasticsSwamiVersion!$C$10,CalculationsAndCharts!$A73+$A$11,(AD$32-4)*3+2,1,1) -> 0.7941224859 | AE73: =OFFSET(StochasticsSwamiVersion!$C$10,CalculationsAndCharts!$A73+$A$11,(AE$32-4)*3+2,1,1) -> 0.8110371309 | AF73: =OFFSET(StochasticsSwamiVersion!$C$10,CalculationsAndCharts!$A73+$A$11,(AF$32-4)*3+2,1,1) -> 0.8207655209 | AG73: =OFFSET(StochasticsSwamiVersion!$C$10,CalculationsAndCharts!$A73+$A$11,(AG$32-4)*3+2,1,1) -> 0.8294015696 | AH73: =OFFSET(StochasticsSwamiVersion!$C$10,CalculationsAndCharts!$A73+$A$11,(AH$32-4)*3+2,1,1) -> 0.8347762345 | AI73: =OFFSET(StochasticsSwamiVersion!$C$10,CalculationsAndCharts!$A73+$A$11,(AI$32-4)*3+2,1,1) -> 0.8370180317 | AJ73: =OFFSET(StochasticsSwamiVersion!$C$10,CalculationsAndCharts!$A73+$A$11,(AJ$32-4)*3+2,1,1) -> 0.8370111088 | AK73: =OFFSET(StochasticsSwamiVersion!$C$10,CalculationsAndCharts!$A73+$A$11,(AK$32-4)*3+2,1,1) -> 0.8370029503 | AL73: =OFFSET(StochasticsSwamiVersion!$C$10,CalculationsAndCharts!$A73+$A$11,(AL$32-4)*3+2,1,1) -> 0.836993965 | AM73: =OFFSET(StochasticsSwamiVersion!$C$10,CalculationsAndCharts!$A73+$A$11,(AM$32-4)*3+2,1,1) -> 0.8369851778 | AN73: =OFFSET(StochasticsSwamiVersion!$C$10,CalculationsAndCharts!$A73+$A$11,(AN$32-4)*3+2,1,1) -> 0.8369765266 | AO73: =OFFSET(StochasticsSwamiVersion!$C$10,CalculationsAndCharts!$A73+$A$11,(AO$32-4)*3+2,1,1) -> 0.8369670677 | AP73: =OFFSET(StochasticsSwamiVersion!$C$10,CalculationsAndCharts!$A73+$A$11,(AP$32-4)*3+2,1,1) -> 0.8369477602 | AQ73: =OFFSET(StochasticsSwamiVersion!$C$10,CalculationsAndCharts!$A73+$A$11,(AQ$32-4)*3+2,1,1) -> 0.8369245311 | AR73: =OFFSET(StochasticsSwamiVersion!$C$10,CalculationsAndCharts!$A73+$A$11,(AR$32-4)*3+2,1,1) -> 0.8368974479 | AS73: =OFFSET(StochasticsSwamiVersion!$C$10,CalculationsAndCharts!$A73+$A$11,(AS$32-4)*3+2,1,1) -> 0.83686654 | AT73: =OFFSET(StochasticsSwamiVersion!$C$10,CalculationsAndCharts!$A73+$A$11,(AT$32-4)*3+2,1,1) -> 0.8368327364 | AU73: =OFFSET(StochasticsSwamiVersion!$C$10,CalculationsAndCharts!$A73+$A$11,(AU$32-4)*3+2,1,1) -> 0.8367908443 | AV73: =OFFSET(StochasticsSwamiVersion!$C$10,CalculationsAndCharts!$A73+$A$11,(AV$32-4)*3+2,1,1) -> 0.836730667 | AW73: =OFFSET(StochasticsSwamiVersion!$C$10,CalculationsAndCharts!$A73+$A$11,(AW$32-4)*3+2,1,1) -> 0.8366413961 | AX73: =OFFSET(StochasticsSwamiVersion!$C$10,CalculationsAndCharts!$A73+$A$11,(AX$32-4)*3+2,1,1) -> 0.8365096517 | AY73: =OFFSET(StochasticsSwamiVersion!$C$10,CalculationsAndCharts!$A73+$A$11,(AY$32-4)*3+2,1,1) -> 0.836321094 | AZ73: =OFFSET(StochasticsSwamiVersion!$C$10,CalculationsAndCharts!$A73+$A$11,(AZ$32-4)*3+2,1,1) -> 0.8360516917
A74: 42 | B74: =OFFSET(InputPriceData!B$10,CalculationsAndCharts!$A74+$A$11,0,1,1) -> 2011-11-11 | C74: =OFFSET(InputPriceData!G$10,CalculationsAndCharts!$A74+$A$11,0,1,1) -> 189924400 | D74: =OFFSET(InputPriceData!C$10,CalculationsAndCharts!$A74+$A$11,0,1,1) -> 125.04 | E74: =OFFSET(InputPriceData!D$10,CalculationsAndCharts!$A74+$A$11,0,1,1) -> 126.19 | F74: =OFFSET(InputPriceData!E$10,CalculationsAndCharts!$A74+$A$11,0,1,1) -> 125 | G74: =OFFSET(InputPriceData!F$10,CalculationsAndCharts!$A74+$A$11,0,1,1) -> 125.86 | H74: =OFFSET(StochasticsSwamiVersion!$C$10,CalculationsAndCharts!$A74+$A$11,(H$32-4)*3+2,1,1) -> 0.5437304996 | I74: =OFFSET(StochasticsSwamiVersion!$C$10,CalculationsAndCharts!$A74+$A$11,(I$32-4)*3+2,1,1) -> 0.5620028348 | J74: =OFFSET(StochasticsSwamiVersion!$C$10,CalculationsAndCharts!$A74+$A$11,(J$32-4)*3+2,1,1) -> 0.5600455234 | K74: =OFFSET(StochasticsSwamiVersion!$C$10,CalculationsAndCharts!$A74+$A$11,(K$32-4)*3+2,1,1) -> 0.554273161 | L74: =OFFSET(StochasticsSwamiVersion!$C$10,CalculationsAndCharts!$A74+$A$11,(L$32-4)*3+2,1,1) -> 0.566045244 | M74: =OFFSET(StochasticsSwamiVersion!$C$10,CalculationsAndCharts!$A74+$A$11,(M$32-4)*3+2,1,1) -> 0.5709215386 | N74: =OFFSET(StochasticsSwamiVersion!$C$10,CalculationsAndCharts!$A74+$A$11,(N$32-4)*3+2,1,1) -> 0.5687576257 | O74: =OFFSET(StochasticsSwamiVersion!$C$10,CalculationsAndCharts!$A74+$A$11,(O$32-4)*3+2,1,1) -> 0.5686020318 | P74: =OFFSET(StochasticsSwamiVersion!$C$10,CalculationsAndCharts!$A74+$A$11,(P$32-4)*3+2,1,1) -> 0.5763107218 | Q74: =OFFSET(StochasticsSwamiVersion!$C$10,CalculationsAndCharts!$A74+$A$11,(Q$32-4)*3+2,1,1) -> 0.5855771708 | R74: =OFFSET(StochasticsSwamiVersion!$C$10,CalculationsAndCharts!$A74+$A$11,(R$32-4)*3+2,1,1) -> 0.5960279332 | S74: =OFFSET(StochasticsSwamiVersion!$C$10,CalculationsAndCharts!$A74+$A$11,(S$32-4)*3+2,1,1) -> 0.6093233916 | T74: =OFFSET(StochasticsSwamiVersion!$C$10,CalculationsAndCharts!$A74+$A$11,(T$32-4)*3+2,1,1) -> 0.6258458534 | U74: =OFFSET(StochasticsSwamiVersion!$C$10,CalculationsAndCharts!$A74+$A$11,(U$32-4)*3+2,1,1) -> 0.643836315 | V74: =OFFSET(StochasticsSwamiVersion!$C$10,CalculationsAndCharts!$A74+$A$11,(V$32-4)*3+2,1,1) -> 0.6620997112 | W74: =OFFSET(StochasticsSwamiVersion!$C$10,CalculationsAndCharts!$A74+$A$11,(W$32-4)*3+2,1,1) -> 0.6792207618 | X74: =OFFSET(StochasticsSwamiVersion!$C$10,CalculationsAndCharts!$A74+$A$11,(X$32-4)*3+2,1,1) -> 0.6957739251 | Y74: =OFFSET(StochasticsSwamiVersion!$C$10,CalculationsAndCharts!$A74+$A$11,(Y$32-4)*3+2,1,1) -> 0.711181681 | Z74: =OFFSET(StochasticsSwamiVersion!$C$10,CalculationsAndCharts!$A74+$A$11,(Z$32-4)*3+2,1,1) -> 0.729520875 | AA74: =OFFSET(StochasticsSwamiVersion!$C$10,CalculationsAndCharts!$A74+$A$11,(AA$32-4)*3+2,1,1) -> 0.7501623831 | AB74: =OFFSET(StochasticsSwamiVersion!$C$10,CalculationsAndCharts!$A74+$A$11,(AB$32-4)*3+2,1,1) -> 0.7733663496 | AC74: =OFFSET(StochasticsSwamiVersion!$C$10,CalculationsAndCharts!$A74+$A$11,(AC$32-4)*3+2,1,1) -> 0.7941504284 | AD74: =OFFSET(StochasticsSwamiVersion!$C$10,CalculationsAndCharts!$A74+$A$11,(AD$32-4)*3+2,1,1) -> 0.8102840571 | AE74: =OFFSET(StochasticsSwamiVersion!$C$10,CalculationsAndCharts!$A74+$A$11,(AE$32-4)*3+2,1,1) -> 0.8200170763 | AF74: =OFFSET(StochasticsSwamiVersion!$C$10,CalculationsAndCharts!$A74+$A$11,(AF$32-4)*3+2,1,1) -> 0.8293140955 | AG74: =OFFSET(StochasticsSwamiVersion!$C$10,CalculationsAndCharts!$A74+$A$11,(AG$32-4)*3+2,1,1) -> 0.8351763864 | AH74: =OFFSET(StochasticsSwamiVersion!$C$10,CalculationsAndCharts!$A74+$A$11,(AH$32-4)*3+2,1,1) -> 0.8373474206 | AI74: =OFFSET(StochasticsSwamiVersion!$C$10,CalculationsAndCharts!$A74+$A$11,(AI$32-4)*3+2,1,1) -> 0.8373275822 | AJ74: =OFFSET(StochasticsSwamiVersion!$C$10,CalculationsAndCharts!$A74+$A$11,(AJ$32-4)*3+2,1,1) -> 0.8373189286 | AK74: =OFFSET(StochasticsSwamiVersion!$C$10,CalculationsAndCharts!$A74+$A$11,(AK$32-4)*3+2,1,1) -> 0.8373087306 | AL74: =OFFSET(StochasticsSwamiVersion!$C$10,CalculationsAndCharts!$A74+$A$11,(AL$32-4)*3+2,1,1) -> 0.8372974989 | AM74: =OFFSET(StochasticsSwamiVersion!$C$10,CalculationsAndCharts!$A74+$A$11,(AM$32-4)*3+2,1,1) -> 0.8372865149 | AN74: =OFFSET(StochasticsSwamiVersion!$C$10,CalculationsAndCharts!$A74+$A$11,(AN$32-4)*3+2,1,1) -> 0.8372757009 | AO74: =OFFSET(StochasticsSwamiVersion!$C$10,CalculationsAndCharts!$A74+$A$11,(AO$32-4)*3+2,1,1) -> 0.8372638773 | AP74: =OFFSET(StochasticsSwamiVersion!$C$10,CalculationsAndCharts!$A74+$A$11,(AP$32-4)*3+2,1,1) -> 0.8372397429 | AQ74: =OFFSET(StochasticsSwamiVersion!$C$10,CalculationsAndCharts!$A74+$A$11,(AQ$32-4)*3+2,1,1) -> 0.8372107065 | AR74: =OFFSET(StochasticsSwamiVersion!$C$10,CalculationsAndCharts!$A74+$A$11,(AR$32-4)*3+2,1,1) -> 0.8371768526 | AS74: =OFFSET(StochasticsSwamiVersion!$C$10,CalculationsAndCharts!$A74+$A$11,(AS$32-4)*3+2,1,1) -> 0.8371382177 | AT74: =OFFSET(StochasticsSwamiVersion!$C$10,CalculationsAndCharts!$A74+$A$11,(AT$32-4)*3+2,1,1) -> 0.8370959631 | AU74: =OFFSET(StochasticsSwamiVersion!$C$10,CalculationsAndCharts!$A74+$A$11,(AU$32-4)*3+2,1,1) -> 0.8370435981 | AV74: =OFFSET(StochasticsSwamiVersion!$C$10,CalculationsAndCharts!$A74+$A$11,(AV$32-4)*3+2,1,1) -> 0.8369683764 | AW74: =OFFSET(StochasticsSwamiVersion!$C$10,CalculationsAndCharts!$A74+$A$11,(AW$32-4)*3+2,1,1) -> 0.8368567879 | AX74: =OFFSET(StochasticsSwamiVersion!$C$10,CalculationsAndCharts!$A74+$A$11,(AX$32-4)*3+2,1,1) -> 0.8366921077 | AY74: =OFFSET(StochasticsSwamiVersion!$C$10,CalculationsAndCharts!$A74+$A$11,(AY$32-4)*3+2,1,1) -> 0.8364564109 | AZ74: =OFFSET(StochasticsSwamiVersion!$C$10,CalculationsAndCharts!$A74+$A$11,(AZ$32-4)*3+2,1,1) -> 0.8361196589
A75: 43 | B75: =OFFSET(InputPriceData!B$10,CalculationsAndCharts!$A75+$A$11,0,1,1) -> 2011-11-10 | C75: =OFFSET(InputPriceData!G$10,CalculationsAndCharts!$A75+$A$11,0,1,1) -> 231866500 | D75: =OFFSET(InputPriceData!C$10,CalculationsAndCharts!$A75+$A$11,0,1,1) -> 124.01 | E75: =OFFSET(InputPriceData!D$10,CalculationsAndCharts!$A75+$A$11,0,1,1) -> 124.16 | F75: =OFFSET(InputPriceData!E$10,CalculationsAndCharts!$A75+$A$11,0,1,1) -> 122.25 | G75: =OFFSET(InputPriceData!F$10,CalculationsAndCharts!$A75+$A$11,0,1,1) -> 123.54 | H75: =OFFSET(StochasticsSwamiVersion!$C$10,CalculationsAndCharts!$A75+$A$11,(H$32-4)*3+2,1,1) -> 0.5482378339 | I75: =OFFSET(StochasticsSwamiVersion!$C$10,CalculationsAndCharts!$A75+$A$11,(I$32-4)*3+2,1,1) -> 0.5676201932 | J75: =OFFSET(StochasticsSwamiVersion!$C$10,CalculationsAndCharts!$A75+$A$11,(J$32-4)*3+2,1,1) -> 0.5632311642 | K75: =OFFSET(StochasticsSwamiVersion!$C$10,CalculationsAndCharts!$A75+$A$11,(K$32-4)*3+2,1,1) -> 0.5547534159 | L75: =OFFSET(StochasticsSwamiVersion!$C$10,CalculationsAndCharts!$A75+$A$11,(L$32-4)*3+2,1,1) -> 0.564610946 | M75: =OFFSET(StochasticsSwamiVersion!$C$10,CalculationsAndCharts!$A75+$A$11,(M$32-4)*3+2,1,1) -> 0.5626450951 | N75: =OFFSET(StochasticsSwamiVersion!$C$10,CalculationsAndCharts!$A75+$A$11,(N$32-4)*3+2,1,1) -> 0.5643615283 | O75: =OFFSET(StochasticsSwamiVersion!$C$10,CalculationsAndCharts!$A75+$A$11,(O$32-4)*3+2,1,1) -> 0.5722580742 | P75: =OFFSET(StochasticsSwamiVersion!$C$10,CalculationsAndCharts!$A75+$A$11,(P$32-4)*3+2,1,1) -> 0.5820168333 | Q75: =OFFSET(StochasticsSwamiVersion!$C$10,CalculationsAndCharts!$A75+$A$11,(Q$32-4)*3+2,1,1) -> 0.5932181844 | R75: =OFFSET(StochasticsSwamiVersion!$C$10,CalculationsAndCharts!$A75+$A$11,(R$32-4)*3+2,1,1) -> 0.6055259955 | S75: =OFFSET(StochasticsSwamiVersion!$C$10,CalculationsAndCharts!$A75+$A$11,(S$32-4)*3+2,1,1) -> 0.6206644167 | T75: =OFFSET(StochasticsSwamiVersion!$C$10,CalculationsAndCharts!$A75+$A$11,(T$32-4)*3+2,1,1) -> 0.6384716718 | U75: =OFFSET(StochasticsSwamiVersion!$C$10,CalculationsAndCharts!$A75+$A$11,(U$32-4)*3+2,1,1) -> 0.6556917431 | V75: =OFFSET(StochasticsSwamiVersion!$C$10,CalculationsAndCharts!$A75+$A$11,(V$32-4)*3+2,1,1) -> 0.6734641569 | W75: =OFFSET(StochasticsSwamiVersion!$C$10,CalculationsAndCharts!$A75+$A$11,(W$32-4)*3+2,1,1) -> 0.6918293629 | X75: =OFFSET(StochasticsSwamiVersion!$C$10,CalculationsAndCharts!$A75+$A$11,(X$32-4)*3+2,1,1) -> 0.7069913046 | Y75: =OFFSET(StochasticsSwamiVersion!$C$10,CalculationsAndCharts!$A75+$A$11,(Y$32-4)*3+2,1,1) -> 0.7251526984 | Z75: =OFFSET(StochasticsSwamiVersion!$C$10,CalculationsAndCharts!$A75+$A$11,(Z$32-4)*3+2,1,1) -> 0.7459609822 | AA75: =OFFSET(StochasticsSwamiVersion!$C$10,CalculationsAndCharts!$A75+$A$11,(AA$32-4)*3+2,1,1) -> 0.7678285215 | AB75: =OFFSET(StochasticsSwamiVersion!$C$10,CalculationsAndCharts!$A75+$A$11,(AB$32-4)*3+2,1,1) -> 0.7899750772 | AC75: =OFFSET(StochasticsSwamiVersion!$C$10,CalculationsAndCharts!$A75+$A$11,(AC$32-4)*3+2,1,1) -> 0.8081301415 | AD75: =OFFSET(StochasticsSwamiVersion!$C$10,CalculationsAndCharts!$A75+$A$11,(AD$32-4)*3+2,1,1) -> 0.8172558413 | AE75: =OFFSET(StochasticsSwamiVersion!$C$10,CalculationsAndCharts!$A75+$A$11,(AE$32-4)*3+2,1,1) -> 0.8266512587 | AF75: =OFFSET(StochasticsSwamiVersion!$C$10,CalculationsAndCharts!$A75+$A$11,(AF$32-4)*3+2,1,1) -> 0.8334993208 | AG75: =OFFSET(StochasticsSwamiVersion!$C$10,CalculationsAndCharts!$A75+$A$11,(AG$32-4)*3+2,1,1) -> 0.8364269996 | AH75: =OFFSET(StochasticsSwamiVersion!$C$10,CalculationsAndCharts!$A75+$A$11,(AH$32-4)*3+2,1,1) -> 0.8364100173 | AI75: =OFFSET(StochasticsSwamiVersion!$C$10,CalculationsAndCharts!$A75+$A$11,(AI$32-4)*3+2,1,1) -> 0.8363852195 | AJ75: =OFFSET(StochasticsSwamiVersion!$C$10,CalculationsAndCharts!$A75+$A$11,(AJ$32-4)*3+2,1,1) -> 0.8363744025 | AK75: =OFFSET(StochasticsSwamiVersion!$C$10,CalculationsAndCharts!$A75+$A$11,(AK$32-4)*3+2,1,1) -> 0.836361655 | AL75: =OFFSET(StochasticsSwamiVersion!$C$10,CalculationsAndCharts!$A75+$A$11,(AL$32-4)*3+2,1,1) -> 0.8363476153 | AM75: =OFFSET(StochasticsSwamiVersion!$C$10,CalculationsAndCharts!$A75+$A$11,(AM$32-4)*3+2,1,1) -> 0.8363338854 | AN75: =OFFSET(StochasticsSwamiVersion!$C$10,CalculationsAndCharts!$A75+$A$11,(AN$32-4)*3+2,1,1) -> 0.8363203678 | AO75: =OFFSET(StochasticsSwamiVersion!$C$10,CalculationsAndCharts!$A75+$A$11,(AO$32-4)*3+2,1,1) -> 0.8363055883 | AP75: =OFFSET(StochasticsSwamiVersion!$C$10,CalculationsAndCharts!$A75+$A$11,(AP$32-4)*3+2,1,1) -> 0.8362754203 | AQ75: =OFFSET(StochasticsSwamiVersion!$C$10,CalculationsAndCharts!$A75+$A$11,(AQ$32-4)*3+2,1,1) -> 0.8362391248 | AR75: =OFFSET(StochasticsSwamiVersion!$C$10,CalculationsAndCharts!$A75+$A$11,(AR$32-4)*3+2,1,1) -> 0.8361968075 | AS75: =OFFSET(StochasticsSwamiVersion!$C$10,CalculationsAndCharts!$A75+$A$11,(AS$32-4)*3+2,1,1) -> 0.8361485139 | AT75: =OFFSET(StochasticsSwamiVersion!$C$10,CalculationsAndCharts!$A75+$A$11,(AT$32-4)*3+2,1,1) -> 0.8360956957 | AU75: =OFFSET(StochasticsSwamiVersion!$C$10,CalculationsAndCharts!$A75+$A$11,(AU$32-4)*3+2,1,1) -> 0.8360302395 | AV75: =OFFSET(StochasticsSwamiVersion!$C$10,CalculationsAndCharts!$A75+$A$11,(AV$32-4)*3+2,1,1) -> 0.8359362125 | AW75: =OFFSET(StochasticsSwamiVersion!$C$10,CalculationsAndCharts!$A75+$A$11,(AW$32-4)*3+2,1,1) -> 0.8357967271 | AX75: =OFFSET(StochasticsSwamiVersion!$C$10,CalculationsAndCharts!$A75+$A$11,(AX$32-4)*3+2,1,1) -> 0.8355908771 | AY75: =OFFSET(StochasticsSwamiVersion!$C$10,CalculationsAndCharts!$A75+$A$11,(AY$32-4)*3+2,1,1) -> 0.835296257 | AZ75: =OFFSET(StochasticsSwamiVersion!$C$10,CalculationsAndCharts!$A75+$A$11,(AZ$32-4)*3+2,1,1) -> 0.8348753186
A76: 44 | B76: =OFFSET(InputPriceData!B$10,CalculationsAndCharts!$A76+$A$11,0,1,1) -> 2011-11-09 | C76: =OFFSET(InputPriceData!G$10,CalculationsAndCharts!$A76+$A$11,0,1,1) -> 337982000 | D76: =OFFSET(InputPriceData!C$10,CalculationsAndCharts!$A76+$A$11,0,1,1) -> 124.1 | E76: =OFFSET(InputPriceData!D$10,CalculationsAndCharts!$A76+$A$11,0,1,1) -> 125 | F76: =OFFSET(InputPriceData!E$10,CalculationsAndCharts!$A76+$A$11,0,1,1) -> 122.08 | G76: =OFFSET(InputPriceData!F$10,CalculationsAndCharts!$A76+$A$11,0,1,1) -> 122.38 | H76: =OFFSET(StochasticsSwamiVersion!$C$10,CalculationsAndCharts!$A76+$A$11,(H$32-4)*3+2,1,1) -> 0.6135681341 | I76: =OFFSET(StochasticsSwamiVersion!$C$10,CalculationsAndCharts!$A76+$A$11,(I$32-4)*3+2,1,1) -> 0.6262852214 | J76: =OFFSET(StochasticsSwamiVersion!$C$10,CalculationsAndCharts!$A76+$A$11,(J$32-4)*3+2,1,1) -> 0.6136242502 | K76: =OFFSET(StochasticsSwamiVersion!$C$10,CalculationsAndCharts!$A76+$A$11,(K$32-4)*3+2,1,1) -> 0.5968819609 | L76: =OFFSET(StochasticsSwamiVersion!$C$10,CalculationsAndCharts!$A76+$A$11,(L$32-4)*3+2,1,1) -> 0.5959446374 | M76: =OFFSET(StochasticsSwamiVersion!$C$10,CalculationsAndCharts!$A76+$A$11,(M$32-4)*3+2,1,1) -> 0.5966720111 | N76: =OFFSET(StochasticsSwamiVersion!$C$10,CalculationsAndCharts!$A76+$A$11,(N$32-4)*3+2,1,1) -> 0.6046454721 | O76: =OFFSET(StochasticsSwamiVersion!$C$10,CalculationsAndCharts!$A76+$A$11,(O$32-4)*3+2,1,1) -> 0.614488889 | P76: =OFFSET(StochasticsSwamiVersion!$C$10,CalculationsAndCharts!$A76+$A$11,(P$32-4)*3+2,1,1) -> 0.626177204 | Q76: =OFFSET(StochasticsSwamiVersion!$C$10,CalculationsAndCharts!$A76+$A$11,(Q$32-4)*3+2,1,1) -> 0.6391690217 | R76: =OFFSET(StochasticsSwamiVersion!$C$10,CalculationsAndCharts!$A76+$A$11,(R$32-4)*3+2,1,1) -> 0.6525746539 | S76: =OFFSET(StochasticsSwamiVersion!$C$10,CalculationsAndCharts!$A76+$A$11,(S$32-4)*3+2,1,1) -> 0.6676944357 | T76: =OFFSET(StochasticsSwamiVersion!$C$10,CalculationsAndCharts!$A76+$A$11,(T$32-4)*3+2,1,1) -> 0.6829132446 | U76: =OFFSET(StochasticsSwamiVersion!$C$10,CalculationsAndCharts!$A76+$A$11,(U$32-4)*3+2,1,1) -> 0.6976803685 | V76: =OFFSET(StochasticsSwamiVersion!$C$10,CalculationsAndCharts!$A76+$A$11,(V$32-4)*3+2,1,1) -> 0.7158384596 | W76: =OFFSET(StochasticsSwamiVersion!$C$10,CalculationsAndCharts!$A76+$A$11,(W$32-4)*3+2,1,1) -> 0.7314054469 | X76: =OFFSET(StochasticsSwamiVersion!$C$10,CalculationsAndCharts!$A76+$A$11,(X$32-4)*3+2,1,1) -> 0.7488901453 | Y76: =OFFSET(StochasticsSwamiVersion!$C$10,CalculationsAndCharts!$A76+$A$11,(Y$32-4)*3+2,1,1) -> 0.7687645325 | Z76: =OFFSET(StochasticsSwamiVersion!$C$10,CalculationsAndCharts!$A76+$A$11,(Z$32-4)*3+2,1,1) -> 0.7895172082 | AA76: =OFFSET(StochasticsSwamiVersion!$C$10,CalculationsAndCharts!$A76+$A$11,(AA$32-4)*3+2,1,1) -> 0.8076864895 | AB76: =OFFSET(StochasticsSwamiVersion!$C$10,CalculationsAndCharts!$A76+$A$11,(AB$32-4)*3+2,1,1) -> 0.8249129673 | AC76: =OFFSET(StochasticsSwamiVersion!$C$10,CalculationsAndCharts!$A76+$A$11,(AC$32-4)*3+2,1,1) -> 0.8328523985 | AD76: =OFFSET(StochasticsSwamiVersion!$C$10,CalculationsAndCharts!$A76+$A$11,(AD$32-4)*3+2,1,1) -> 0.8405569198 | AE76: =OFFSET(StochasticsSwamiVersion!$C$10,CalculationsAndCharts!$A76+$A$11,(AE$32-4)*3+2,1,1) -> 0.8459229614 | AF76: =OFFSET(StochasticsSwamiVersion!$C$10,CalculationsAndCharts!$A76+$A$11,(AF$32-4)*3+2,1,1) -> 0.8486033288 | AG76: =OFFSET(StochasticsSwamiVersion!$C$10,CalculationsAndCharts!$A76+$A$11,(AG$32-4)*3+2,1,1) -> 0.8486139812 | AH76: =OFFSET(StochasticsSwamiVersion!$C$10,CalculationsAndCharts!$A76+$A$11,(AH$32-4)*3+2,1,1) -> 0.8485927535 | AI76: =OFFSET(StochasticsSwamiVersion!$C$10,CalculationsAndCharts!$A76+$A$11,(AI$32-4)*3+2,1,1) -> 0.8485617566 | AJ76: =OFFSET(StochasticsSwamiVersion!$C$10,CalculationsAndCharts!$A76+$A$11,(AJ$32-4)*3+2,1,1) -> 0.8485482354 | AK76: =OFFSET(StochasticsSwamiVersion!$C$10,CalculationsAndCharts!$A76+$A$11,(AK$32-4)*3+2,1,1) -> 0.8485323009 | AL76: =OFFSET(StochasticsSwamiVersion!$C$10,CalculationsAndCharts!$A76+$A$11,(AL$32-4)*3+2,1,1) -> 0.8485147514 | AM76: =OFFSET(StochasticsSwamiVersion!$C$10,CalculationsAndCharts!$A76+$A$11,(AM$32-4)*3+2,1,1) -> 0.848497589 | AN76: =OFFSET(StochasticsSwamiVersion!$C$10,CalculationsAndCharts!$A76+$A$11,(AN$32-4)*3+2,1,1) -> 0.848480692 | AO76: =OFFSET(StochasticsSwamiVersion!$C$10,CalculationsAndCharts!$A76+$A$11,(AO$32-4)*3+2,1,1) -> 0.8484622176 | AP76: =OFFSET(StochasticsSwamiVersion!$C$10,CalculationsAndCharts!$A76+$A$11,(AP$32-4)*3+2,1,1) -> 0.8484245076 | AQ76: =OFFSET(StochasticsSwamiVersion!$C$10,CalculationsAndCharts!$A76+$A$11,(AQ$32-4)*3+2,1,1) -> 0.8483791383 | AR76: =OFFSET(StochasticsSwamiVersion!$C$10,CalculationsAndCharts!$A76+$A$11,(AR$32-4)*3+2,1,1) -> 0.8483262416 | AS76: =OFFSET(StochasticsSwamiVersion!$C$10,CalculationsAndCharts!$A76+$A$11,(AS$32-4)*3+2,1,1) -> 0.8482658746 | AT76: =OFFSET(StochasticsSwamiVersion!$C$10,CalculationsAndCharts!$A76+$A$11,(AT$32-4)*3+2,1,1) -> 0.848199852 | AU76: =OFFSET(StochasticsSwamiVersion!$C$10,CalculationsAndCharts!$A76+$A$11,(AU$32-4)*3+2,1,1) -> 0.8481180318 | AV76: =OFFSET(StochasticsSwamiVersion!$C$10,CalculationsAndCharts!$A76+$A$11,(AV$32-4)*3+2,1,1) -> 0.8480004982 | AW76: =OFFSET(StochasticsSwamiVersion!$C$10,CalculationsAndCharts!$A76+$A$11,(AW$32-4)*3+2,1,1) -> 0.8478261418 | AX76: =OFFSET(StochasticsSwamiVersion!$C$10,CalculationsAndCharts!$A76+$A$11,(AX$32-4)*3+2,1,1) -> 0.8475688301 | AY76: =OFFSET(StochasticsSwamiVersion!$C$10,CalculationsAndCharts!$A76+$A$11,(AY$32-4)*3+2,1,1) -> 0.8472005565 | AZ76: =OFFSET(StochasticsSwamiVersion!$C$10,CalculationsAndCharts!$A76+$A$11,(AZ$32-4)*3+2,1,1) -> 0.8466743864
A77: 45 | B77: =OFFSET(InputPriceData!B$10,CalculationsAndCharts!$A77+$A$11,0,1,1) -> 2011-11-08 | C77: =OFFSET(InputPriceData!G$10,CalculationsAndCharts!$A77+$A$11,0,1,1) -> 224426300 | D77: =OFFSET(InputPriceData!C$10,CalculationsAndCharts!$A77+$A$11,0,1,1) -> 126.12 | E77: =OFFSET(InputPriceData!D$10,CalculationsAndCharts!$A77+$A$11,0,1,1) -> 127.21 | F77: =OFFSET(InputPriceData!E$10,CalculationsAndCharts!$A77+$A$11,0,1,1) -> 124.91 | G77: =OFFSET(InputPriceData!F$10,CalculationsAndCharts!$A77+$A$11,0,1,1) -> 127.07 | H77: =OFFSET(StochasticsSwamiVersion!$C$10,CalculationsAndCharts!$A77+$A$11,(H$32-4)*3+2,1,1) -> 0.6830399837 | I77: =OFFSET(StochasticsSwamiVersion!$C$10,CalculationsAndCharts!$A77+$A$11,(I$32-4)*3+2,1,1) -> 0.6773247663 | J77: =OFFSET(StochasticsSwamiVersion!$C$10,CalculationsAndCharts!$A77+$A$11,(J$32-4)*3+2,1,1) -> 0.650575472 | K77: =OFFSET(StochasticsSwamiVersion!$C$10,CalculationsAndCharts!$A77+$A$11,(K$32-4)*3+2,1,1) -> 0.6224849919 | L77: =OFFSET(StochasticsSwamiVersion!$C$10,CalculationsAndCharts!$A77+$A$11,(L$32-4)*3+2,1,1) -> 0.6248307939 | M77: =OFFSET(StochasticsSwamiVersion!$C$10,CalculationsAndCharts!$A77+$A$11,(M$32-4)*3+2,1,1) -> 0.6323327279 | N77: =OFFSET(StochasticsSwamiVersion!$C$10,CalculationsAndCharts!$A77+$A$11,(N$32-4)*3+2,1,1) -> 0.6423229042 | O77: =OFFSET(StochasticsSwamiVersion!$C$10,CalculationsAndCharts!$A77+$A$11,(O$32-4)*3+2,1,1) -> 0.6541601872 | P77: =OFFSET(StochasticsSwamiVersion!$C$10,CalculationsAndCharts!$A77+$A$11,(P$32-4)*3+2,1,1) -> 0.6678461243 | Q77: =OFFSET(StochasticsSwamiVersion!$C$10,CalculationsAndCharts!$A77+$A$11,(Q$32-4)*3+2,1,1) -> 0.6822741682 | R77: =OFFSET(StochasticsSwamiVersion!$C$10,CalculationsAndCharts!$A77+$A$11,(R$32-4)*3+2,1,1) -> 0.6955496942 | S77: =OFFSET(StochasticsSwamiVersion!$C$10,CalculationsAndCharts!$A77+$A$11,(S$32-4)*3+2,1,1) -> 0.7080048366 | T77: =OFFSET(StochasticsSwamiVersion!$C$10,CalculationsAndCharts!$A77+$A$11,(T$32-4)*3+2,1,1) -> 0.720842318 | U77: =OFFSET(StochasticsSwamiVersion!$C$10,CalculationsAndCharts!$A77+$A$11,(U$32-4)*3+2,1,1) -> 0.7355872494 | V77: =OFFSET(StochasticsSwamiVersion!$C$10,CalculationsAndCharts!$A77+$A$11,(V$32-4)*3+2,1,1) -> 0.7515209813 | W77: =OFFSET(StochasticsSwamiVersion!$C$10,CalculationsAndCharts!$A77+$A$11,(W$32-4)*3+2,1,1) -> 0.7696362733 | X77: =OFFSET(StochasticsSwamiVersion!$C$10,CalculationsAndCharts!$A77+$A$11,(X$32-4)*3+2,1,1) -> 0.7889042395 | Y77: =OFFSET(StochasticsSwamiVersion!$C$10,CalculationsAndCharts!$A77+$A$11,(Y$32-4)*3+2,1,1) -> 0.8089348592 | Z77: =OFFSET(StochasticsSwamiVersion!$C$10,CalculationsAndCharts!$A77+$A$11,(Z$32-4)*3+2,1,1) -> 0.8264870336 | AA77: =OFFSET(StochasticsSwamiVersion!$C$10,CalculationsAndCharts!$A77+$A$11,(AA$32-4)*3+2,1,1) -> 0.8396281293 | AB77: =OFFSET(StochasticsSwamiVersion!$C$10,CalculationsAndCharts!$A77+$A$11,(AB$32-4)*3+2,1,1) -> 0.8476578412 | AC77: =OFFSET(StochasticsSwamiVersion!$C$10,CalculationsAndCharts!$A77+$A$11,(AC$32-4)*3+2,1,1) -> 0.8541935729 | AD77: =OFFSET(StochasticsSwamiVersion!$C$10,CalculationsAndCharts!$A77+$A$11,(AD$32-4)*3+2,1,1) -> 0.8579870797 | AE77: =OFFSET(StochasticsSwamiVersion!$C$10,CalculationsAndCharts!$A77+$A$11,(AE$32-4)*3+2,1,1) -> 0.8593138267 | AF77: =OFFSET(StochasticsSwamiVersion!$C$10,CalculationsAndCharts!$A77+$A$11,(AF$32-4)*3+2,1,1) -> 0.859325014 | AG77: =OFFSET(StochasticsSwamiVersion!$C$10,CalculationsAndCharts!$A77+$A$11,(AG$32-4)*3+2,1,1) -> 0.8593383296 | AH77: =OFFSET(StochasticsSwamiVersion!$C$10,CalculationsAndCharts!$A77+$A$11,(AH$32-4)*3+2,1,1) -> 0.8593117953 | AI77: =OFFSET(StochasticsSwamiVersion!$C$10,CalculationsAndCharts!$A77+$A$11,(AI$32-4)*3+2,1,1) -> 0.85927305 | AJ77: =OFFSET(StochasticsSwamiVersion!$C$10,CalculationsAndCharts!$A77+$A$11,(AJ$32-4)*3+2,1,1) -> 0.8592561484 | AK77: =OFFSET(StochasticsSwamiVersion!$C$10,CalculationsAndCharts!$A77+$A$11,(AK$32-4)*3+2,1,1) -> 0.8592362303 | AL77: =OFFSET(StochasticsSwamiVersion!$C$10,CalculationsAndCharts!$A77+$A$11,(AL$32-4)*3+2,1,1) -> 0.8592142934 | AM77: =OFFSET(StochasticsSwamiVersion!$C$10,CalculationsAndCharts!$A77+$A$11,(AM$32-4)*3+2,1,1) -> 0.8591928405 | AN77: =OFFSET(StochasticsSwamiVersion!$C$10,CalculationsAndCharts!$A77+$A$11,(AN$32-4)*3+2,1,1) -> 0.8591717192 | AO77: =OFFSET(StochasticsSwamiVersion!$C$10,CalculationsAndCharts!$A77+$A$11,(AO$32-4)*3+2,1,1) -> 0.8591486262 | AP77: =OFFSET(StochasticsSwamiVersion!$C$10,CalculationsAndCharts!$A77+$A$11,(AP$32-4)*3+2,1,1) -> 0.8591014887 | AQ77: =OFFSET(StochasticsSwamiVersion!$C$10,CalculationsAndCharts!$A77+$A$11,(AQ$32-4)*3+2,1,1) -> 0.8590447771 | AR77: =OFFSET(StochasticsSwamiVersion!$C$10,CalculationsAndCharts!$A77+$A$11,(AR$32-4)*3+2,1,1) -> 0.8589786562 | AS77: =OFFSET(StochasticsSwamiVersion!$C$10,CalculationsAndCharts!$A77+$A$11,(AS$32-4)*3+2,1,1) -> 0.8589031975 | AT77: =OFFSET(StochasticsSwamiVersion!$C$10,CalculationsAndCharts!$A77+$A$11,(AT$32-4)*3+2,1,1) -> 0.8588206693 | AU77: =OFFSET(StochasticsSwamiVersion!$C$10,CalculationsAndCharts!$A77+$A$11,(AU$32-4)*3+2,1,1) -> 0.8587183943 | AV77: =OFFSET(StochasticsSwamiVersion!$C$10,CalculationsAndCharts!$A77+$A$11,(AV$32-4)*3+2,1,1) -> 0.8585714777 | AW77: =OFFSET(StochasticsSwamiVersion!$C$10,CalculationsAndCharts!$A77+$A$11,(AW$32-4)*3+2,1,1) -> 0.8583535329 | AX77: =OFFSET(StochasticsSwamiVersion!$C$10,CalculationsAndCharts!$A77+$A$11,(AX$32-4)*3+2,1,1) -> 0.8580318949 | AY77: =OFFSET(StochasticsSwamiVersion!$C$10,CalculationsAndCharts!$A77+$A$11,(AY$32-4)*3+2,1,1) -> 0.8575715559 | AZ77: =OFFSET(StochasticsSwamiVersion!$C$10,CalculationsAndCharts!$A77+$A$11,(AZ$32-4)*3+2,1,1) -> 0.8569138494
A78: 46 | B78: =OFFSET(InputPriceData!B$10,CalculationsAndCharts!$A78+$A$11,0,1,1) -> 2011-11-07 | C78: =OFFSET(InputPriceData!G$10,CalculationsAndCharts!$A78+$A$11,0,1,1) -> 196617200 | D78: =OFFSET(InputPriceData!C$10,CalculationsAndCharts!$A78+$A$11,0,1,1) -> 124.6 | E78: =OFFSET(InputPriceData!D$10,CalculationsAndCharts!$A78+$A$11,0,1,1) -> 125.59 | F78: =OFFSET(InputPriceData!E$10,CalculationsAndCharts!$A78+$A$11,0,1,1) -> 123.41 | G78: =OFFSET(InputPriceData!F$10,CalculationsAndCharts!$A78+$A$11,0,1,1) -> 125.46 | H78: =OFFSET(StochasticsSwamiVersion!$C$10,CalculationsAndCharts!$A78+$A$11,(H$32-4)*3+2,1,1) -> 0.6352633732 | I78: =OFFSET(StochasticsSwamiVersion!$C$10,CalculationsAndCharts!$A78+$A$11,(I$32-4)*3+2,1,1) -> 0.6264857558 | J78: =OFFSET(StochasticsSwamiVersion!$C$10,CalculationsAndCharts!$A78+$A$11,(J$32-4)*3+2,1,1) -> 0.5993250696 | K78: =OFFSET(StochasticsSwamiVersion!$C$10,CalculationsAndCharts!$A78+$A$11,(K$32-4)*3+2,1,1) -> 0.5844020694 | L78: =OFFSET(StochasticsSwamiVersion!$C$10,CalculationsAndCharts!$A78+$A$11,(L$32-4)*3+2,1,1) -> 0.598035351 | M78: =OFFSET(StochasticsSwamiVersion!$C$10,CalculationsAndCharts!$A78+$A$11,(M$32-4)*3+2,1,1) -> 0.6077132666 | N78: =OFFSET(StochasticsSwamiVersion!$C$10,CalculationsAndCharts!$A78+$A$11,(N$32-4)*3+2,1,1) -> 0.6199706643 | O78: =OFFSET(StochasticsSwamiVersion!$C$10,CalculationsAndCharts!$A78+$A$11,(O$32-4)*3+2,1,1) -> 0.6343113201 | P78: =OFFSET(StochasticsSwamiVersion!$C$10,CalculationsAndCharts!$A78+$A$11,(P$32-4)*3+2,1,1) -> 0.6505251947 | Q78: =OFFSET(StochasticsSwamiVersion!$C$10,CalculationsAndCharts!$A78+$A$11,(Q$32-4)*3+2,1,1) -> 0.6668431953 | R78: =OFFSET(StochasticsSwamiVersion!$C$10,CalculationsAndCharts!$A78+$A$11,(R$32-4)*3+2,1,1) -> 0.6802593046 | S78: =OFFSET(StochasticsSwamiVersion!$C$10,CalculationsAndCharts!$A78+$A$11,(S$32-4)*3+2,1,1) -> 0.6927775847 | T78: =OFFSET(StochasticsSwamiVersion!$C$10,CalculationsAndCharts!$A78+$A$11,(T$32-4)*3+2,1,1) -> 0.7069929585 | U78: =OFFSET(StochasticsSwamiVersion!$C$10,CalculationsAndCharts!$A78+$A$11,(U$32-4)*3+2,1,1) -> 0.7220887572 | V78: =OFFSET(StochasticsSwamiVersion!$C$10,CalculationsAndCharts!$A78+$A$11,(V$32-4)*3+2,1,1) -> 0.7413434806 | W78: =OFFSET(StochasticsSwamiVersion!$C$10,CalculationsAndCharts!$A78+$A$11,(W$32-4)*3+2,1,1) -> 0.7627115268 | X78: =OFFSET(StochasticsSwamiVersion!$C$10,CalculationsAndCharts!$A78+$A$11,(X$32-4)*3+2,1,1) -> 0.7844236362 | Y78: =OFFSET(StochasticsSwamiVersion!$C$10,CalculationsAndCharts!$A78+$A$11,(Y$32-4)*3+2,1,1) -> 0.8053258247 | Z78: =OFFSET(StochasticsSwamiVersion!$C$10,CalculationsAndCharts!$A78+$A$11,(Z$32-4)*3+2,1,1) -> 0.822547557 | AA78: =OFFSET(StochasticsSwamiVersion!$C$10,CalculationsAndCharts!$A78+$A$11,(AA$32-4)*3+2,1,1) -> 0.8323170033 | AB78: =OFFSET(StochasticsSwamiVersion!$C$10,CalculationsAndCharts!$A78+$A$11,(AB$32-4)*3+2,1,1) -> 0.8406837499 | AC78: =OFFSET(StochasticsSwamiVersion!$C$10,CalculationsAndCharts!$A78+$A$11,(AC$32-4)*3+2,1,1) -> 0.8459760847 | AD78: =OFFSET(StochasticsSwamiVersion!$C$10,CalculationsAndCharts!$A78+$A$11,(AD$32-4)*3+2,1,1) -> 0.8480656935 | AE78: =OFFSET(StochasticsSwamiVersion!$C$10,CalculationsAndCharts!$A78+$A$11,(AE$32-4)*3+2,1,1) -> 0.8480782057 | AF78: =OFFSET(StochasticsSwamiVersion!$C$10,CalculationsAndCharts!$A78+$A$11,(AF$32-4)*3+2,1,1) -> 0.84809219 | AG78: =OFFSET(StochasticsSwamiVersion!$C$10,CalculationsAndCharts!$A78+$A$11,(AG$32-4)*3+2,1,1) -> 0.8481088349 | AH78: =OFFSET(StochasticsSwamiVersion!$C$10,CalculationsAndCharts!$A78+$A$11,(AH$32-4)*3+2,1,1) -> 0.8480756679 | AI78: =OFFSET(StochasticsSwamiVersion!$C$10,CalculationsAndCharts!$A78+$A$11,(AI$32-4)*3+2,1,1) -> 0.8480272379 | AJ78: =OFFSET(StochasticsSwamiVersion!$C$10,CalculationsAndCharts!$A78+$A$11,(AJ$32-4)*3+2,1,1) -> 0.8480061109 | AK78: =OFFSET(StochasticsSwamiVersion!$C$10,CalculationsAndCharts!$A78+$A$11,(AK$32-4)*3+2,1,1) -> 0.8479812133 | AL78: =OFFSET(StochasticsSwamiVersion!$C$10,CalculationsAndCharts!$A78+$A$11,(AL$32-4)*3+2,1,1) -> 0.8479537922 | AM78: =OFFSET(StochasticsSwamiVersion!$C$10,CalculationsAndCharts!$A78+$A$11,(AM$32-4)*3+2,1,1) -> 0.847926976 | AN78: =OFFSET(StochasticsSwamiVersion!$C$10,CalculationsAndCharts!$A78+$A$11,(AN$32-4)*3+2,1,1) -> 0.8479005744 | AO78: =OFFSET(StochasticsSwamiVersion!$C$10,CalculationsAndCharts!$A78+$A$11,(AO$32-4)*3+2,1,1) -> 0.8478717082 | AP78: =OFFSET(StochasticsSwamiVersion!$C$10,CalculationsAndCharts!$A78+$A$11,(AP$32-4)*3+2,1,1) -> 0.8478127863 | AQ78: =OFFSET(StochasticsSwamiVersion!$C$10,CalculationsAndCharts!$A78+$A$11,(AQ$32-4)*3+2,1,1) -> 0.8477418968 | AR78: =OFFSET(StochasticsSwamiVersion!$C$10,CalculationsAndCharts!$A78+$A$11,(AR$32-4)*3+2,1,1) -> 0.8476592458 | AS78: =OFFSET(StochasticsSwamiVersion!$C$10,CalculationsAndCharts!$A78+$A$11,(AS$32-4)*3+2,1,1) -> 0.8475649225 | AT78: =OFFSET(StochasticsSwamiVersion!$C$10,CalculationsAndCharts!$A78+$A$11,(AT$32-4)*3+2,1,1) -> 0.8474617625 | AU78: =OFFSET(StochasticsSwamiVersion!$C$10,CalculationsAndCharts!$A78+$A$11,(AU$32-4)*3+2,1,1) -> 0.8473339191 | AV78: =OFFSET(StochasticsSwamiVersion!$C$10,CalculationsAndCharts!$A78+$A$11,(AV$32-4)*3+2,1,1) -> 0.8471502742 | AW78: =OFFSET(StochasticsSwamiVersion!$C$10,CalculationsAndCharts!$A78+$A$11,(AW$32-4)*3+2,1,1) -> 0.846877845 | AX78: =OFFSET(StochasticsSwamiVersion!$C$10,CalculationsAndCharts!$A78+$A$11,(AX$32-4)*3+2,1,1) -> 0.8464758009 | AY78: =OFFSET(StochasticsSwamiVersion!$C$10,CalculationsAndCharts!$A78+$A$11,(AY$32-4)*3+2,1,1) -> 0.845900384 | AZ78: =OFFSET(StochasticsSwamiVersion!$C$10,CalculationsAndCharts!$A78+$A$11,(AZ$32-4)*3+2,1,1) -> 0.8450782647
A79: 47 | B79: =OFFSET(InputPriceData!B$10,CalculationsAndCharts!$A79+$A$11,0,1,1) -> 2011-11-04 | C79: =OFFSET(InputPriceData!G$10,CalculationsAndCharts!$A79+$A$11,0,1,1) -> 249401600 | D79: =OFFSET(InputPriceData!C$10,CalculationsAndCharts!$A79+$A$11,0,1,1) -> 124.44 | E79: =OFFSET(InputPriceData!D$10,CalculationsAndCharts!$A79+$A$11,0,1,1) -> 124.91 | F79: =OFFSET(InputPriceData!E$10,CalculationsAndCharts!$A79+$A$11,0,1,1) -> 123.23 | G79: =OFFSET(InputPriceData!F$10,CalculationsAndCharts!$A79+$A$11,0,1,1) -> 124.69 | H79: =OFFSET(StochasticsSwamiVersion!$C$10,CalculationsAndCharts!$A79+$A$11,(H$32-4)*3+2,1,1) -> 0.5971381656 | I79: =OFFSET(StochasticsSwamiVersion!$C$10,CalculationsAndCharts!$A79+$A$11,(I$32-4)*3+2,1,1) -> 0.5870513763 | J79: =OFFSET(StochasticsSwamiVersion!$C$10,CalculationsAndCharts!$A79+$A$11,(J$32-4)*3+2,1,1) -> 0.5745241062 | K79: =OFFSET(StochasticsSwamiVersion!$C$10,CalculationsAndCharts!$A79+$A$11,(K$32-4)*3+2,1,1) -> 0.5869397873 | L79: =OFFSET(StochasticsSwamiVersion!$C$10,CalculationsAndCharts!$A79+$A$11,(L$32-4)*3+2,1,1) -> 0.6038626672 | M79: =OFFSET(StochasticsSwamiVersion!$C$10,CalculationsAndCharts!$A79+$A$11,(M$32-4)*3+2,1,1) -> 0.6155958308 | N79: =OFFSET(StochasticsSwamiVersion!$C$10,CalculationsAndCharts!$A79+$A$11,(N$32-4)*3+2,1,1) -> 0.6301965414 | O79: =OFFSET(StochasticsSwamiVersion!$C$10,CalculationsAndCharts!$A79+$A$11,(O$32-4)*3+2,1,1) -> 0.6467093334 | P79: =OFFSET(StochasticsSwamiVersion!$C$10,CalculationsAndCharts!$A79+$A$11,(P$32-4)*3+2,1,1) -> 0.6642614853 | Q79: =OFFSET(StochasticsSwamiVersion!$C$10,CalculationsAndCharts!$A79+$A$11,(Q$32-4)*3+2,1,1) -> 0.6796334865 | R79: =OFFSET(StochasticsSwamiVersion!$C$10,CalculationsAndCharts!$A79+$A$11,(R$32-4)*3+2,1,1) -> 0.691580425 | S79: =OFFSET(StochasticsSwamiVersion!$C$10,CalculationsAndCharts!$A79+$A$11,(S$32-4)*3+2,1,1) -> 0.7043328357 | T79: =OFFSET(StochasticsSwamiVersion!$C$10,CalculationsAndCharts!$A79+$A$11,(T$32-4)*3+2,1,1) -> 0.7168294934 | U79: =OFFSET(StochasticsSwamiVersion!$C$10,CalculationsAndCharts!$A79+$A$11,(U$32-4)*3+2,1,1) -> 0.7346521067 | V79: =OFFSET(StochasticsSwamiVersion!$C$10,CalculationsAndCharts!$A79+$A$11,(V$32-4)*3+2,1,1) -> 0.7567034704 | W79: =OFFSET(StochasticsSwamiVersion!$C$10,CalculationsAndCharts!$A79+$A$11,(W$32-4)*3+2,1,1) -> 0.779663033 | X79: =OFFSET(StochasticsSwamiVersion!$C$10,CalculationsAndCharts!$A79+$A$11,(X$32-4)*3+2,1,1) -> 0.8002664523 | Y79: =OFFSET(StochasticsSwamiVersion!$C$10,CalculationsAndCharts!$A79+$A$11,(Y$32-4)*3+2,1,1) -> 0.8189379629 | Z79: =OFFSET(StochasticsSwamiVersion!$C$10,CalculationsAndCharts!$A79+$A$11,(Z$32-4)*3+2,1,1) -> 0.8299475407 | AA79: =OFFSET(StochasticsSwamiVersion!$C$10,CalculationsAndCharts!$A79+$A$11,(AA$32-4)*3+2,1,1) -> 0.8395205433 | AB79: =OFFSET(StochasticsSwamiVersion!$C$10,CalculationsAndCharts!$A79+$A$11,(AB$32-4)*3+2,1,1) -> 0.8454338211 | AC79: =OFFSET(StochasticsSwamiVersion!$C$10,CalculationsAndCharts!$A79+$A$11,(AC$32-4)*3+2,1,1) -> 0.8478599369 | AD79: =OFFSET(StochasticsSwamiVersion!$C$10,CalculationsAndCharts!$A79+$A$11,(AD$32-4)*3+2,1,1) -> 0.8478723601 | AE79: =OFFSET(StochasticsSwamiVersion!$C$10,CalculationsAndCharts!$A79+$A$11,(AE$32-4)*3+2,1,1) -> 0.8478880005 | AF79: =OFFSET(StochasticsSwamiVersion!$C$10,CalculationsAndCharts!$A79+$A$11,(AF$32-4)*3+2,1,1) -> 0.8479054812 | AG79: =OFFSET(StochasticsSwamiVersion!$C$10,CalculationsAndCharts!$A79+$A$11,(AG$32-4)*3+2,1,1) -> 0.8479262882 | AH79: =OFFSET(StochasticsSwamiVersion!$C$10,CalculationsAndCharts!$A79+$A$11,(AH$32-4)*3+2,1,1) -> 0.8478848309 | AI79: =OFFSET(StochasticsSwamiVersion!$C$10,CalculationsAndCharts!$A79+$A$11,(AI$32-4)*3+2,1,1) -> 0.8478242964 | AJ79: =OFFSET(StochasticsSwamiVersion!$C$10,CalculationsAndCharts!$A79+$A$11,(AJ$32-4)*3+2,1,1) -> 0.8477978877 | AK79: =OFFSET(StochasticsSwamiVersion!$C$10,CalculationsAndCharts!$A79+$A$11,(AK$32-4)*3+2,1,1) -> 0.8477667657 | AL79: =OFFSET(StochasticsSwamiVersion!$C$10,CalculationsAndCharts!$A79+$A$11,(AL$32-4)*3+2,1,1) -> 0.8477324893 | AM79: =OFFSET(StochasticsSwamiVersion!$C$10,CalculationsAndCharts!$A79+$A$11,(AM$32-4)*3+2,1,1) -> 0.847698969 | AN79: =OFFSET(StochasticsSwamiVersion!$C$10,CalculationsAndCharts!$A79+$A$11,(AN$32-4)*3+2,1,1) -> 0.8476659671 | AO79: =OFFSET(StochasticsSwamiVersion!$C$10,CalculationsAndCharts!$A79+$A$11,(AO$32-4)*3+2,1,1) -> 0.8476298843 | AP79: =OFFSET(StochasticsSwamiVersion!$C$10,CalculationsAndCharts!$A79+$A$11,(AP$32-4)*3+2,1,1) -> 0.847556232 | AQ79: =OFFSET(StochasticsSwamiVersion!$C$10,CalculationsAndCharts!$A79+$A$11,(AQ$32-4)*3+2,1,1) -> 0.8474676201 | AR79: =OFFSET(StochasticsSwamiVersion!$C$10,CalculationsAndCharts!$A79+$A$11,(AR$32-4)*3+2,1,1) -> 0.8473643065 | AS79: =OFFSET(StochasticsSwamiVersion!$C$10,CalculationsAndCharts!$A79+$A$11,(AS$32-4)*3+2,1,1) -> 0.8472464026 | AT79: =OFFSET(StochasticsSwamiVersion!$C$10,CalculationsAndCharts!$A79+$A$11,(AT$32-4)*3+2,1,1) -> 0.8471174529 | AU79: =OFFSET(StochasticsSwamiVersion!$C$10,CalculationsAndCharts!$A79+$A$11,(AU$32-4)*3+2,1,1) -> 0.8469576495 | AV79: =OFFSET(StochasticsSwamiVersion!$C$10,CalculationsAndCharts!$A79+$A$11,(AV$32-4)*3+2,1,1) -> 0.8467280951 | AW79: =OFFSET(StochasticsSwamiVersion!$C$10,CalculationsAndCharts!$A79+$A$11,(AW$32-4)*3+2,1,1) -> 0.8463875618 | AX79: =OFFSET(StochasticsSwamiVersion!$C$10,CalculationsAndCharts!$A79+$A$11,(AX$32-4)*3+2,1,1) -> 0.8458850131 | AY79: =OFFSET(StochasticsSwamiVersion!$C$10,CalculationsAndCharts!$A79+$A$11,(AY$32-4)*3+2,1,1) -> 0.8451657549 | AZ79: =OFFSET(StochasticsSwamiVersion!$C$10,CalculationsAndCharts!$A79+$A$11,(AZ$32-4)*3+2,1,1) -> 0.8441381315
